Workbook

Sheet Interfaz
C5: POBLACIÓN ASIGNADA 2025 SEGÚN CENSOS INEI - RENIEC - PN - CNV
C10: RED INTEGRADA DE SALUD HUAURA OYÓN
C22: Elaboración: Área de Estadística - RIS Huaura Oyón.
C23: NOTA: LA POBLACION ESTIMADA DE EDADES SIMPLES Y GRUPOS DE EDAD DE DISTRITOS, CORRESPONDEN A CIFRAS REFERENCIALES HASTA OBTENER LAS CIFRAS DE LAS PROYECCIONES DEL INEI
C24: FUENTE: CENSO NACIONAL XI DE POBLACION Y VI DE VIVIENDA 2017/- BOLETIN DEMOGRAFICO Nº 26,37, 39 / RENIEC / Padrón Nominal / CNV
C25: La población de 0-5 años corresponden a una proyección de la poblacion del Padrón Nominal (cifras preliminares) /corte al mes de Diciembre 2021.
C26: OFICINA DE GESTION DE LA INFORMACIÓN - MINISTERIO DE SALUD
R27: Versión1.021

Sheet Poblacion
C1: 1 | D1: 2 | E1: 3 | F1: 4 | G1: 5 | H1: 6 | I1: 7 | J1: 8 | K1: 9 | L1: 10 | M1: 11 | N1: 12 | O1: 13 | P1: 14 | Q1: 15 | R1: 16 | S1: 17 | T1: 18 | U1: 19 | V1: 20 | W1: 21 | X1: 22 | Y1: 23 | Z1: 24 | AA1: 25 | AB1: 26 | AC1: 27 | AD1: 28 | AE1: 29 | AF1: 30 | AG1: 31 | AH1: 32 | AI1: 33 | AJ1: 34 | AK1: 35 | AL1: 36 | AM1: 37 | AN1: 38 | AO1: 39 | AP1: 40 | AQ1: 41 | AR1: 42 | AS1: 43 | AT1: 44 | AU1: 45 | AV1: 46 | AW1: 47 | AX1: 48 | AY1: 49 | AZ1: 50 | BA1: 51 | BB1: 52 | BC1: 53 | BD1: 54 | BE1: 55 | BF1: 56 | BG1: 57 | BH1: 58 | BI1: 59 | BJ1: 60 | BK1: 61 | BL1: 62 | BM1: 63 | BN1: 64 | BO1: 65 | BP1: 66 | BQ1: 67 | BR1: 68 | BS1: 69 | BT1: 70 | BU1: 71 | BV1: 72 | BW1: 73 | BX1: 74 | BY1: 75 | BZ1: 76 | CA1: 77 | CB1: 78 | CC1: 79 | CD1: 80 | CE1: 81 | CF1: 82 | CG1: 83 | CH1: 84 | CI1: 85 | CJ1: 86 | CK1: 87 | CL1: 88 | CM1: 89 | CN1: 90 | CO1: 91 | CP1: 92 | CQ1: 93 | CR1: 94 | CS1: 95 | CT1: 96 | CU1: 97 | CV1: 98 | CW1: 99 | CX1: 100 | CY1: 101 | CZ1: 102 | DA1: 103 | DB1: 104 | DC1: 105 | DD1: 106 | DE1: 107 | DF1: 108 | DG1: 109 | DH1: 110 | DI1: 111 | DJ1: 112 | DK1: 113 | DL1: 114 | DM1: 115 | DN1: 116 | DO1: 117 | DP1: 118 | DQ1: 119 | DR1: 120 | DS1: 121 | DT1: 122 | DU1: 123 | DV1: 124 | DW1: 125
S2: POBLACIÓN ESTIMADA POR GRUPOS DE EDAD, SEGÚN PROVINCIAS DISTRITOS Y ESTABLECIMIENTOS DE SALUD
S3: RED INTEGRADA DE SALUD HUAURA OYON - AÑO 2025 | CN3: MAS GRUPOS DE EDAD
S4: EDADES PUNTUALES Y GRUPOS DE EDAD | DN4: Varones
C5: N° | E5: DIRECCION DE SALUD | F5: TOTAL GENERAL | H5: TOTAL MASCULINO | I5: TOTAL FEMENINO | K5: EDAD | M5: EDAD | O5: EDAD | Q5: EDAD | S5: EDAD | U5: EDAD | W5: EDAD | Y5: EDAD | AA5: EDAD | AC5: EDAD | AE5: EDAD | AG5: EDAD | AI5: EDAD | AK5: EDAD | AM5: EDAD | AO5: EDAD | AQ5: EDAD | AS5: EDAD | AU5: EDAD | AW5: EDAD | AY5: EDAD | BA5: EDAD | BC5: EDAD | BE5: EDAD | BG5: EDAD | BI5: EDAD | BK5: EDAD | BM5: EDAD | BO5: EDAD | BQ5: EDAD | BS5: EDAD | BU5: EDAD | BW5: EDAD | BY5: EDAD | CB5: EDADES ESPECIALES | CG5: NACIMIENTOS | CH5: POBLACION FEMENINA TOTAL | CI5: POBLACION FEMENINA | CL5: GESTANTES ESPERADAS | CN5: menor de 1 Año | CO5: Pre escolar (1-4) | CP5: Niño (0 - 11) | CQ5: Escolar (05 - 17) | CR5: Adolescente (12 - 17) | CS5: Adulto Joven (18 - 29) | CT5: Adulto (30-59) | CU5: Adu.Mayor (60 a MAS) | CW5: Escolar (05 - 09) | CX5: Adolescente (10 - 19) | CY5: Adulto (20-59) | DA5: Poblacion: PADRON NOMINAL al 31_12_2023 | DH5: OTROS GRUPOS ESPECIALES (CONVENIO) | DN5: Población Hombres Adolescentes (14 -17 años) | DO5: Población Hombres (18 - 59 años) | DP5: (0 -13 años) | DR5: (14 -17 años) | DT5: (18 -59 años) | DV5: (60 años a màs)
A6: UBIGEO | E6: PROVINCIA | K6: 0 | M6: 1 | O6: 2 | Q6: 3 | S6: 4 | U6: 5 | W6: 6 | Y6: 7 | AA6: 8 | AC6: 9 | AE6: 10 | AG6: 11 | AI6: 12 | AK6: 13 | AM6: 14 | AO6: 15 | AQ6: 16 | AS6: 17 | AU6: 18 | AW6: 19 | AY6: 20 - 24 | BA6: 25 - 29 | BC6: 30 - 34 | BE6: 35 - 39 | BG6: 40 - 44 | BI6: 45 - 49 | BK6: 50 - 54 | BM6: 55 - 59 | BO6: 60 - 64 | BQ6: 65 - 69 | BS6: 70 - 74 | BU6: 75 - 79 | BW6: 80 - 84 | BY6: 85 y ++ | CA6: 28 DIAS | CC6: 0-5 MESES | CE6: 6-11 MESES | DA6: 0A | DB6: 1A | DC6: 2A | DD6: 3A | DE6: 4A | DF6: 5A | DH6: 25 - 64 (Cancer) | DJ6: 50 - 64 (PAP) | DK6: 30 - 49 (IVVA) | DL6: 15 - 49 (MEF)
B7: Microredes | D7: RENAES | E7: DISTRITO | K7: M | L7: F | M7: M | N7: F | O7: M | P7: F | Q7: M | R7: F | S7: M | T7: F | U7: M | V7: F | W7: M | X7: F | Y7: M | Z7: F | AA7: M | AB7: F | AC7: M | AD7: F | AE7: M | AF7: F | AG7: M | AH7: F | AI7: M | AJ7: F | AK7: M | AL7: F | AM7: M | AN7: F | AO7: M | AP7: F | AQ7: M | AR7: F | AS7: M | AT7: F | AU7: M | AV7: F | AW7: M | AX7: F | AY7: M | AZ7: F | BA7: M | BB7: F | BC7: M | BD7: F | BE7: M | BF7: F | BG7: M | BH7: F | BI7: M | BJ7: F | BK7: M | BL7: F | BM7: M | BN7: F | BO7: M | BP7: F | BQ7: M | BR7: F | BS7: M | BT7: F | BU7: M | BV7: F | BW7: M | BX7: F | BY7: M | BZ7: F | CA7: M | CB7: F | CC7: M | CD7: F | CE7: M | CF7: F | CI7: 10 - 14 | CJ7: 15 - 19 | CK7: 20 - 49 | DH7: M | DI7: F | DP7: M | DQ7: F | DR7: M | DS7: F | DT7: M | DU7: F | DV7: M | DW7: F
A8: 150000 | C8: 1 | E8: HUAURA - OYON | F8: =SUM(H8:I8) -> 292417 | H8: =K8+M8+O8+Q8+S8+U8+W8+Y8+AA8+AC8+AE8+AG8+AI8+AK8+AM8+AO8+AQ8+AS8+AU8+AW8+AY8+BA8+BC8+BE8+BG8+BI8+BK8+BM8+BO8+BQ8+BS8+BU8+BW8+BY8 -> 140430 | I8: 151987 | K8: 1806 | L8: 1837 | M8: 1687 | N8: 1737 | O8: 1801 | P8: 1839 | Q8: 1905 | R8: 1778 | S8: 2067 | T8: 1954 | U8: 2078 | V8: 2012 | W8: 2116 | X8: 2117 | Y8: 2183 | Z8: 2094 | AA8: 2130 | AB8: 2150 | AC8: 1815 | AD8: 1651 | AE8: 1778 | AF8: 1778 | AG8: 1855 | AH8: 1862 | AI8: 1913 | AJ8: 1925 | AK8: 1908 | AL8: 1918 | AM8: 1757 | AN8: 1770 | AO8: 2107 | AP8: 2274 | AQ8: 2071 | AR8: 2157 | AS8: 1984 | AT8: 2100 | AU8: 2018 | AV8: 2040 | AW8: 1893 | AX8: 2031 | AY8: 9097 | AZ8: 10151 | BA8: 9680 | BB8: 12812 | BC8: 9715 | BD8: 11572 | BE8: 10039 | BF8: 10555 | BG8: 9821 | BH8: 10484 | BI8: 9474 | BJ8: 10181 | BK8: 8617 | BL8: 9784 | BM8: 8271 | BN8: 8859 | BO8: 7335 | BP8: 7432 | BQ8: 5583 | BR8: 6089 | BS8: 5039 | BT8: 5363 | BU8: 3902 | BV8: 3990 | BW8: 2637 | BX8: 2773 | BY8: 2348 | BZ8: 2918 | CA8: 107 | CB8: 109 | CC8: 786 | CD8: 733 | CE8: 1020 | CF8: 1104 | CG8: 4875 | CH8: 151987 | CI8: 9253 | CJ8: 10602 | CK8: 65755 | CL8: 8094 | CN8: 3643 | CO8: 14768 | CP8: 46030 | CQ8: 51503 | CR8: 23884 | CS8: 49722 | CT8: 117372 | CU8: 55409 | CW8: 20346 | CX8: 39139 | CY8: 214521 | DA8: 3643 | DB8: 3424 | DC8: 3640 | DD8: 3683 | DE8: 4021 | DF8: 4090 | DH8: 72952 | DI8: 81679 | DJ8: 26075 | DK8: 42792 | DL8: 76357 | DN8: 7919 | DO8: 78625 | DP8: 27042 | DQ8: 26652 | DR8: 7919 | DS8: 8301 | DT8: 78625 | DU8: 88469 | DV8: 24207 | DW8: 25792
A9: 150800 | C9: 2 | D9: 150800 | E9: PROVINCIA HUAURA | F9: =SUM(H9:I9) -> 274303 | H9: 131706 | I9: 142597 | K9: 1679 | L9: 1705 | M9: 1591 | N9: 1632 | O9: 1706 | P9: 1729 | Q9: 1807 | R9: 1665 | S9: 1956 | T9: 1846 | U9: 1939 | V9: 1888 | W9: 1988 | X9: 1993 | Y9: 2053 | Z9: 1965 | AA9: 2010 | AB9: 2009 | AC9: 1690 | AD9: 1534 | AE9: 1646 | AF9: 1643 | AG9: 1720 | AH9: 1723 | AI9: 1758 | AJ9: 1764 | AK9: 1763 | AL9: 1766 | AM9: 1629 | AN9: 1631 | AO9: 1932 | AP9: 2082 | AQ9: 1908 | AR9: 1963 | AS9: 1826 | AT9: 1943 | AU9: 1865 | AV9: 1896 | AW9: 1764 | AX9: 1900 | AY9: 8511 | AZ9: 9513 | BA9: 9115 | BB9: 12087 | BC9: 9170 | BD9: 10902 | BE9: 9452 | BF9: 9939 | BG9: 9288 | BH9: 9966 | BI9: 8908 | BJ9: 9638 | BK9: 8093 | BL9: 9207 | BM9: 7784 | BN9: 8349 | BO9: 6865 | BP9: 6988 | BQ9: 5240 | BR9: 5733 | BS9: 4719 | BT9: 5042 | BU9: 3664 | BV9: 3718 | BW9: 2477 | BX9: 2560 | BY9: 2190 | BZ9: 2678 | CA9: 95 | CB9: 104 | CC9: 736 | CD9: 684 | CE9: 943 | CF9: 1021 | CG9: 4514 | CH9: 142597 | CI9: 8527 | CJ9: 9784 | CK9: 62045 | CL9: 7622 | CN9: 3384 | CO9: 13932 | CP9: 43117 | CQ9: 47766 | CR9: 21965 | CS9: 46651 | CT9: 110696 | CU9: 51874 | CW9: 19069 | CX9: 36122 | CY9: 201796 | DA9: 3384 | DB9: 3223 | DC9: 3435 | DD9: 3472 | DE9: 3802 | DF9: 3827 | DH9: 68675 | DI9: 77076 | DJ9: 24544 | DK9: 40445 | DL9: 71829 | DN9: 7295 | DO9: 73950 | DP9: 25306 | DQ9: 24862 | DR9: 7295 | DS9: 7619 | DT9: 73950 | DU9: 83397 | DV9: 22678 | DW9: 24159
A10: 150801 | C10: 3 | D10: 150802 | E10: DISTRITO HUACHO | F10: 53280 | H10: 25923 | I10: 27357 | K10: 206 | L10: 221 | M10: 212 | N10: 220 | O10: 256 | P10: 253 | Q10: 247 | R10: 230 | S10: 291 | T10: 277 | U10: 332 | V10: 311 | W10: 362 | X10: 348 | Y10: 379 | Z10: 326 | AA10: 377 | AB10: 373 | AC10: 325 | AD10: 297 | AE10: 305 | AF10: 292 | AG10: 301 | AH10: 287 | AI10: 316 | AJ10: 302 | AK10: 321 | AL10: 306 | AM10: 293 | AN10: 281 | AO10: 351 | AP10: 362 | AQ10: 352 | AR10: 343 | AS10: 342 | AT10: 337 | AU10: 371 | AV10: 325 | AW10: 330 | AX10: 321 | AY10: 1578 | AZ10: 1626 | BA10: 1630 | BB10: 2134 | BC10: 1685 | BD10: 1955 | BE10: 1829 | BF10: 1800 | BG10: 1865 | BH10: 1933 | BI10: 1836 | BJ10: 1923 | BK10: 1754 | BL10: 1932 | BM10: 1716 | BN10: 1810 | BO10: 1551 | BP10: 1591 | BQ10: 1230 | BR10: 1323 | BS10: 1071 | BT10: 1218 | BU10: 805 | BV10: 841 | BW10: 606 | BX10: 610 | BY10: 498 | BZ10: 649 | CA10: 20 | CB10: 22 | CC10: 102 | CD10: 101 | CE10: 104 | CF10: 120 | CG10: 498 | CH10: 27357 | CI10: 1468 | CJ10: 1688 | CK10: 11371 | CL10: 1181 | CN10: 427 | CO10: 1986 | CP10: 7028 | CQ10: 8521 | CR10: 3906 | CS10: 8315 | CT10: 22038 | CU10: 11993 | CW10: 3430 | CX10: 6438 | CY10: 40999 | DA10: 427 | DB10: 432 | DC10: 509 | DD10: 477 | DE10: 568 | DF10: 643 | DH10: 13866 | DI10: 15078 | DJ10: 5333 | DK10: 7611 | DL10: 13059 | DN10: 1338 | DO10: 14594 | DP10: 4230 | DQ10: 4043 | DR10: 1338 | DS10: 1323 | DT10: 14594 | DU10: 15759 | DV10: 5155 | DW10: 5622
B11: 00 | C11: 4 | D11: 7639 | E11: HOSPITAL HUACHO (Sin Población) | F11: 0
B12: 02 | C12: 5 | D12: 30794 | E12: C.S. MANZANARES | F12: 53280 | H12: 25923 | I12: 27357 | K12: 206 | L12: 221 | M12: 212 | N12: 220 | O12: 256 | P12: 253 | Q12: 247 | R12: 230 | S12: 291 | T12: 277 | U12: 332 | V12: 311 | W12: 362 | X12: 348 | Y12: 379 | Z12: 326 | AA12: 377 | AB12: 373 | AC12: 325 | AD12: 297 | AE12: 305 | AF12: 292 | AG12: 301 | AH12: 287 | AI12: 316 | AJ12: 302 | AK12: 321 | AL12: 306 | AM12: 293 | AN12: 281 | AO12: 351 | AP12: 362 | AQ12: 352 | AR12: 343 | AS12: 342 | AT12: 337 | AU12: 371 | AV12: 325 | AW12: 330 | AX12: 321 | AY12: 1578 | AZ12: 1626 | BA12: 1630 | BB12: 2134 | BC12: 1685 | BD12: 1955 | BE12: 1829 | BF12: 1800 | BG12: 1865 | BH12: 1933 | BI12: 1836 | BJ12: 1923 | BK12: 1754 | BL12: 1932 | BM12: 1716 | BN12: 1810 | BO12: 1551 | BP12: 1591 | BQ12: 1230 | BR12: 1323 | BS12: 1071 | BT12: 1218 | BU12: 805 | BV12: 841 | BW12: 606 | BX12: 610 | BY12: 498 | BZ12: 649 | CA12: 20 | CB12: 22 | CC12: 102 | CD12: 101 | CE12: 104 | CF12: 120 | CG12: 498 | CH12: 27357 | CI12: 1468 | CJ12: 1688 | CK12: 11371 | CL12: 1181 | CN12: 427 | CO12: 1986 | CP12: 7028 | CQ12: 8521 | CR12: 3906 | CS12: 8315 | CT12: 22038 | CU12: 11993 | CW12: 3430 | CX12: 6438 | CY12: 40999 | DA12: 427 | DB12: 432 | DC12: 509 | DD12: 477 | DE12: 568 | DF12: 643 | DH12: 13866 | DI12: 15078 | DJ12: 5333 | DK12: 7611 | DL12: 13059 | DN12: 1338 | DO12: 14594 | DP12: 4230 | DQ12: 4043 | DR12: 1338 | DS12: 1323 | DT12: 14594 | DU12: 15759 | DV12: 5155 | DW12: 5622
A13: 150802 | C13: 6 | D13: 150802 | E13: DISTRITO AMBAR | F13: 2841 | H13: 1336 | I13: 1505 | K13: 15 | L13: 19 | M13: 16 | N13: 14 | O13: 20 | P13: 24 | Q13: 30 | R13: 30 | S13: 25 | T13: 16 | U13: 23 | V13: 21 | W13: 14 | X13: 13 | Y13: 18 | Z13: 12 | AA13: 21 | AB13: 18 | AC13: 17 | AD13: 10 | AE13: 12 | AF13: 14 | AG13: 16 | AH13: 18 | AI13: 14 | AJ13: 17 | AK13: 15 | AL13: 18 | AM13: 17 | AN13: 20 | AO13: 13 | AP13: 25 | AQ13: 16 | AR13: 12 | AS13: 15 | AT13: 22 | AU13: 21 | AV13: 17 | AW13: 19 | AX13: 25 | AY13: 91 | AZ13: 107 | BA13: 79 | BB13: 128 | BC13: 66 | BD13: 104 | BE13: 85 | BF13: 121 | BG13: 80 | BH13: 81 | BI13: 88 | BJ13: 95 | BK13: 72 | BL13: 97 | BM13: 88 | BN13: 74 | BO13: 67 | BP13: 81 | BQ13: 73 | BR13: 79 | BS13: 64 | BT13: 51 | BU13: 70 | BV13: 30 | BW13: 30 | BX13: 44 | BY13: 26 | BZ13: 48 | CA13: 0 | CB13: 1 | CC13: 5 | CD13: 9 | CE13: 10 | CF13: 10 | CG13: 63 | CH13: 1505 | CI13: 87 | CJ13: 101 | CK13: 636 | CL13: 170 | CN13: 34 | CO13: 175 | CP13: 436 | CQ13: 431 | CR13: 204 | CS13: 487 | CT13: 1051 | CU13: 663 | CW13: 167 | CX13: 346 | CY13: 2119 | DA13: 34 | DB13: 30 | DC13: 44 | DD13: 60 | DE13: 41 | DF13: 44 | DH13: 625 | DI13: 781 | DJ13: 252 | DK13: 401 | DL13: 737 | DN13: 61 | DO13: 689 | DP13: 256 | DQ13: 244 | DR13: 61 | DS13: 79 | DT13: 689 | DU13: 849 | DV13: 300 | DW13: 289
B14: 01 | C14: 7 | D14: 5680 | E14: C.S. AMBAR | F14: 1787 | H14: 838 | I14: 949 | K14: 9 | L14: 12 | M14: 10 | N14: 9 | O14: 13 | P14: 15 | Q14: 19 | R14: 19 | S14: 16 | T14: 10 | U14: 14 | V14: 13 | W14: 9 | X14: 8 | Y14: 11 | Z14: 8 | AA14: 13 | AB14: 11 | AC14: 11 | AD14: 6 | AE14: 8 | AF14: 9 | AG14: 10 | AH14: 11 | AI14: 9 | AJ14: 11 | AK14: 9 | AL14: 11 | AM14: 11 | AN14: 13 | AO14: 8 | AP14: 16 | AQ14: 10 | AR14: 8 | AS14: 9 | AT14: 14 | AU14: 13 | AV14: 11 | AW14: 12 | AX14: 16 | AY14: 57 | AZ14: 67 | BA14: 50 | BB14: 81 | BC14: 42 | BD14: 65 | BE14: 53 | BF14: 76 | BG14: 50 | BH14: 51 | BI14: 55 | BJ14: 60 | BK14: 45 | BL14: 61 | BM14: 55 | BN14: 47 | BO14: 42 | BP14: 51 | BQ14: 46 | BR14: 50 | BS14: 40 | BT14: 32 | BU14: 44 | BV14: 19 | BW14: 19 | BX14: 28 | BY14: 16 | BZ14: 30 | CA14: 0 | CB14: 1 | CC14: 3 | CD14: 6 | CE14: 6 | CF14: 6 | CG14: 40 | CH14: 949 | CI14: 55 | CJ14: 65 | CK14: 400 | CL14: 107 | CN14: 21 | CO14: 111 | CP14: 274 | CQ14: 271 | CR14: 129 | CS14: 307 | CT14: 660 | CU14: 417 | CW14: 104 | CX14: 219 | CY14: 1332 | DA14: 21 | DB14: 19 | DC14: 28 | DD14: 38 | DE14: 26 | DF14: 27 | DH14: 392 | DI14: 492 | DJ14: 159 | DK14: 252 | DL14: 465 | DN14: 38 | DO14: 432 | DP14: 161 | DQ14: 153 | DR14: 38 | DS14: 51 | DT14: 432 | DU14: 535 | DV14: 188 | DW14: 182
B15: 01 | C15: 8 | D15: 5681 | E15: P.S. AYNACA | F15: 1054 | H15: 498 | I15: 556 | K15: 6 | L15: 7 | M15: 6 | N15: 5 | O15: 7 | P15: 9 | Q15: 11 | R15: 11 | S15: 9 | T15: 6 | U15: 9 | V15: 8 | W15: 5 | X15: 5 | Y15: 7 | Z15: 4 | AA15: 8 | AB15: 7 | AC15: 6 | AD15: 4 | AE15: 4 | AF15: 5 | AG15: 6 | AH15: 7 | AI15: 5 | AJ15: 6 | AK15: 6 | AL15: 7 | AM15: 6 | AN15: 7 | AO15: 5 | AP15: 9 | AQ15: 6 | AR15: 4 | AS15: 6 | AT15: 8 | AU15: 8 | AV15: 6 | AW15: 7 | AX15: 9 | AY15: 34 | AZ15: 40 | BA15: 29 | BB15: 47 | BC15: 24 | BD15: 39 | BE15: 32 | BF15: 45 | BG15: 30 | BH15: 30 | BI15: 33 | BJ15: 35 | BK15: 27 | BL15: 36 | BM15: 33 | BN15: 27 | BO15: 25 | BP15: 30 | BQ15: 27 | BR15: 29 | BS15: 24 | BT15: 19 | BU15: 26 | BV15: 11 | BW15: 11 | BX15: 16 | BY15: 10 | BZ15: 18 | CA15: 0 | CB15: 0 | CC15: 2 | CD15: 3 | CE15: 4 | CF15: 4 | CG15: 23 | CH15: 556 | CI15: 32 | CJ15: 36 | CK15: 236 | CL15: 63 | CN15: 13 | CO15: 64 | CP15: 162 | CQ15: 160 | CR15: 75 | CS15: 180 | CT15: 391 | CU15: 246 | CW15: 63 | CX15: 127 | CY15: 787 | DA15: 13 | DB15: 11 | DC15: 16 | DD15: 22 | DE15: 15 | DF15: 17 | DH15: 233 | DI15: 289 | DJ15: 93 | DK15: 149 | DL15: 272 | DN15: 23 | DO15: 257 | DP15: 95 | DQ15: 91 | DR15: 23 | DS15: 28 | DT15: 257 | DU15: 314 | DV15: 112 | DW15: 107
A16: 150803 | C16: 9 | D16: 150803 | E16: DISTRITO CARQUIN | F16: 9548 | H16: 4567 | I16: 4981 | K16: 50 | L16: 45 | M16: 39 | N16: 44 | O16: 43 | P16: 60 | Q16: 54 | R16: 36 | S16: 50 | T16: 45 | U16: 44 | V16: 50 | W16: 63 | X16: 68 | Y16: 79 | Z16: 65 | AA16: 73 | AB16: 63 | AC16: 60 | AD16: 57 | AE16: 59 | AF16: 60 | AG16: 66 | AH16: 68 | AI16: 61 | AJ16: 63 | AK16: 71 | AL16: 73 | AM16: 68 | AN16: 67 | AO16: 79 | AP16: 77 | AQ16: 85 | AR16: 89 | AS16: 62 | AT16: 74 | AU16: 50 | AV16: 61 | AW16: 52 | AX16: 68 | AY16: 305 | AZ16: 346 | BA16: 305 | BB16: 388 | BC16: 320 | BD16: 411 | BE16: 356 | BF16: 355 | BG16: 340 | BH16: 406 | BI16: 326 | BJ16: 343 | BK16: 269 | BL16: 310 | BM16: 284 | BN16: 309 | BO16: 248 | BP16: 222 | BQ16: 159 | BR16: 202 | BS16: 179 | BT16: 179 | BU16: 116 | BV16: 124 | BW16: 103 | BX16: 83 | BY16: 49 | BZ16: 70 | CA16: 3 | CB16: 5 | CC16: 28 | CD16: 20 | CE16: 22 | CF16: 25 | CG16: 119 | CH16: 4981 | CI16: 331 | CJ16: 369 | CK16: 2249 | CL16: 171 | CN16: 95 | CO16: 371 | CP16: 1341 | CQ16: 1744 | CR16: 869 | CS16: 1575 | CT16: 4029 | CU16: 1734 | CW16: 622 | CX16: 1353 | CY16: 7107 | DA16: 95 | DB16: 83 | DC16: 103 | DD16: 90 | DE16: 95 | DF16: 94 | DH16: 2448 | DI16: 2744 | DJ16: 841 | DK16: 1515 | DL16: 2618 | DN16: 294 | DO16: 2607 | DP16: 812 | DQ16: 797 | DR16: 294 | DS16: 307 | DT16: 2607 | DU16: 2997 | DV16: 751 | DW16: 797
B17: 02 | C17: 10 | D17: 5664 | E17: P.S. CARQUIN | F17: 9548 | H17: 4567 | I17: 4981 | K17: 50 | L17: 45 | M17: 39 | N17: 44 | O17: 43 | P17: 60 | Q17: 54 | R17: 36 | S17: 50 | T17: 45 | U17: 44 | V17: 50 | W17: 63 | X17: 68 | Y17: 79 | Z17: 65 | AA17: 73 | AB17: 63 | AC17: 60 | AD17: 57 | AE17: 59 | AF17: 60 | AG17: 66 | AH17: 68 | AI17: 61 | AJ17: 63 | AK17: 71 | AL17: 73 | AM17: 68 | AN17: 67 | AO17: 79 | AP17: 77 | AQ17: 85 | AR17: 89 | AS17: 62 | AT17: 74 | AU17: 50 | AV17: 61 | AW17: 52 | AX17: 68 | AY17: 305 | AZ17: 346 | BA17: 305 | BB17: 388 | BC17: 320 | BD17: 411 | BE17: 356 | BF17: 355 | BG17: 340 | BH17: 406 | BI17: 326 | BJ17: 343 | BK17: 269 | BL17: 310 | BM17: 284 | BN17: 309 | BO17: 248 | BP17: 222 | BQ17: 159 | BR17: 202 | BS17: 179 | BT17: 179 | BU17: 116 | BV17: 124 | BW17: 103 | BX17: 83 | BY17: 49 | BZ17: 70 | CA17: 3 | CB17: 5 | CC17: 28 | CD17: 20 | CE17: 22 | CF17: 25 | CG17: 119 | CH17: 4981 | CI17: 331 | CJ17: 369 | CK17: 2249 | CL17: 171 | CN17: 95 | CO17: 371 | CP17: 1341 | CQ17: 1744 | CR17: 869 | CS17: 1575 | CT17: 4029 | CU17: 1734 | CW17: 622 | CX17: 1353 | CY17: 7107 | DA17: 95 | DB17: 83 | DC17: 103 | DD17: 90 | DE17: 95 | DF17: 94 | DH17: 2448 | DI17: 2744 | DJ17: 841 | DK17: 1515 | DL17: 2618 | DN17: 294 | DO17: 2607 | DP17: 812 | DQ17: 797 | DR17: 294 | DS17: 307 | DT17: 2607 | DU17: 2997 | DV17: 751 | DW17: 797
A18: 150804 | C18: 11 | D18: 150804 | E18: DISTRITO CHECRAS | F18: 1022 | H18: 492 | I18: 530 | K18: 3 | L18: 7 | M18: 3 | N18: 1 | O18: 2 | P18: 6 | Q18: 3 | R18: 4 | S18: 2 | T18: 3 | U18: 3 | V18: 4 | W18: 3 | X18: 3 | Y18: 7 | Z18: 2 | AA18: 3 | AB18: 3 | AC18: 5 | AD18: 1 | AE18: 3 | AF18: 3 | AG18: 5 | AH18: 6 | AI18: 8 | AJ18: 9 | AK18: 2 | AL18: 2 | AM18: 5 | AN18: 5 | AO18: 7 | AP18: 8 | AQ18: 18 | AR18: 11 | AS18: 9 | AT18: 8 | AU18: 4 | AV18: 9 | AW18: 6 | AX18: 0 | AY18: 18 | AZ18: 29 | BA18: 27 | BB18: 28 | BC18: 17 | BD18: 22 | BE18: 20 | BF18: 24 | BG18: 27 | BH18: 16 | BI18: 27 | BJ18: 17 | BK18: 30 | BL18: 39 | BM18: 42 | BN18: 37 | BO18: 34 | BP18: 31 | BQ18: 35 | BR18: 38 | BS18: 36 | BT18: 42 | BU18: 19 | BV18: 31 | BW18: 30 | BX18: 32 | BY18: 29 | BZ18: 49 | CA18: 0 | CB18: 0 | CC18: 3 | CD18: 0 | CE18: 0 | CF18: 7 | CG18: 15 | CH18: 530 | CI18: 25 | CJ18: 36 | CK18: 136 | CL18: 26 | CN18: 10 | CO18: 24 | CP18: 85 | CQ18: 143 | CR18: 92 | CS18: 121 | CT18: 318 | CU18: 406 | CW18: 34 | CX18: 128 | CY18: 826 | DA18: 10 | DB18: 4 | DC18: 8 | DD18: 7 | DE18: 5 | DF18: 7 | DH18: 224 | DI18: 214 | DJ18: 107 | DK18: 79 | DL18: 172 | DN18: 39 | DO18: 218 | DP18: 52 | DQ18: 54 | DR18: 39 | DS18: 32 | DT18: 218 | DU18: 221 | DV18: 153 | DW18: 191
B19: 05 | C19: 12 | D19: 5663 | E19: P.S. PUÑUN | F19: 1022 | H19: 492 | I19: 530 | K19: 3 | L19: 7 | M19: 3 | N19: 1 | O19: 2 | P19: 6 | Q19: 3 | R19: 4 | S19: 2 | T19: 3 | U19: 3 | V19: 4 | W19: 3 | X19: 3 | Y19: 7 | Z19: 2 | AA19: 3 | AB19: 3 | AC19: 5 | AD19: 1 | AE19: 3 | AF19: 3 | AG19: 5 | AH19: 6 | AI19: 8 | AJ19: 9 | AK19: 2 | AL19: 2 | AM19: 5 | AN19: 5 | AO19: 7 | AP19: 8 | AQ19: 18 | AR19: 11 | AS19: 9 | AT19: 8 | AU19: 4 | AV19: 9 | AW19: 6 | AX19: 0 | AY19: 18 | AZ19: 29 | BA19: 27 | BB19: 28 | BC19: 17 | BD19: 22 | BE19: 20 | BF19: 24 | BG19: 27 | BH19: 16 | BI19: 27 | BJ19: 17 | BK19: 30 | BL19: 39 | BM19: 42 | BN19: 37 | BO19: 34 | BP19: 31 | BQ19: 35 | BR19: 38 | BS19: 36 | BT19: 42 | BU19: 19 | BV19: 31 | BW19: 30 | BX19: 32 | BY19: 29 | BZ19: 49 | CA19: 0 | CB19: 0 | CC19: 3 | CD19: 0 | CE19: 0 | CF19: 7 | CG19: 15 | CH19: 530 | CI19: 25 | CJ19: 36 | CK19: 136 | CL19: 26 | CN19: 10 | CO19: 24 | CP19: 85 | CQ19: 143 | CR19: 92 | CS19: 121 | CT19: 318 | CU19: 406 | CW19: 34 | CX19: 128 | CY19: 826 | DA19: 10 | DB19: 4 | DC19: 8 | DD19: 7 | DE19: 5 | DF19: 7 | DH19: 224 | DI19: 214 | DJ19: 107 | DK19: 79 | DL19: 172 | DN19: 39 | DO19: 218 | DP19: 52 | DQ19: 54 | DR19: 39 | DS19: 32 | DT19: 218 | DU19: 221 | DV19: 153 | DW19: 191
A20: 150805 | C20: 13 | D20: 150805 | E20: DISTRITO HUALMAY | F20: 57016 | H20: 27623 | I20: 29393 | K20: 306 | L20: 295 | M20: 304 | N20: 287 | O20: 318 | P20: 313 | Q20: 295 | R20: 275 | S20: 337 | T20: 322 | U20: 374 | V20: 373 | W20: 388 | X20: 381 | Y20: 427 | Z20: 403 | AA20: 432 | AB20: 402 | AC20: 358 | AD20: 328 | AE20: 331 | AF20: 323 | AG20: 329 | AH20: 323 | AI20: 350 | AJ20: 343 | AK20: 360 | AL20: 353 | AM20: 341 | AN20: 334 | AO20: 383 | AP20: 408 | AQ20: 369 | AR20: 382 | AS20: 383 | AT20: 377 | AU20: 411 | AV20: 368 | AW20: 331 | AX20: 369 | AY20: 1776 | AZ20: 1891 | BA20: 1854 | BB20: 2429 | BC20: 1906 | BD20: 2138 | BE20: 1989 | BF20: 2069 | BG20: 1979 | BH20: 2093 | BI20: 2001 | BJ20: 2079 | BK20: 1849 | BL20: 1933 | BM20: 1726 | BN20: 1808 | BO20: 1491 | BP20: 1506 | BQ20: 1155 | BR20: 1297 | BS20: 1008 | BT20: 1126 | BU20: 789 | BV20: 866 | BW20: 523 | BX20: 585 | BY20: 450 | BZ20: 614 | CA20: 14 | CB20: 14 | CC20: 116 | CD20: 103 | CE20: 190 | CF20: 192 | CG20: 910 | CH20: 29393 | CI20: 1676 | CJ20: 1904 | CK20: 12699 | CL20: 1059 | CN20: 601 | CO20: 2451 | CP20: 8224 | CQ20: 9555 | CR20: 4383 | CS20: 9429 | CT20: 23570 | CU20: 11410 | CW20: 3866 | CX20: 7168 | CY20: 42930 | DA20: 601 | DB20: 591 | DC20: 631 | DD20: 570 | DE20: 659 | DF20: 747 | DH20: 14795 | DI20: 16055 | DJ20: 5247 | DK20: 8379 | DL20: 14603 | DN20: 1476 | DO20: 15822 | DP20: 4909 | DQ20: 4721 | DR20: 1476 | DS20: 1501 | DT20: 15822 | DU20: 17177 | DV20: 4893 | DW20: 5409
B21: 02 | C21: 14 | D21: 32365 | E21: C.S. HUALMAY | F21: 31021 | H21: 15027 | I21: 15994 | K21: 161 | L21: 157 | M21: 160 | N21: 153 | O21: 170 | P21: 168 | Q21: 158 | R21: 148 | S21: 182 | T21: 174 | U21: 202 | V21: 200 | W21: 211 | X21: 207 | Y21: 231 | Z21: 216 | AA21: 233 | AB21: 218 | AC21: 194 | AD21: 178 | AE21: 180 | AF21: 175 | AG21: 179 | AH21: 175 | AI21: 189 | AJ21: 185 | AK21: 194 | AL21: 190 | AM21: 183 | AN21: 179 | AO21: 208 | AP21: 221 | AQ21: 201 | AR21: 207 | AS21: 207 | AT21: 204 | AU21: 223 | AV21: 199 | AW21: 181 | AX21: 199 | AY21: 960 | AZ21: 1019 | BA21: 1001 | BB21: 1312 | BC21: 1030 | BD21: 1175 | BE21: 1080 | BF21: 1117 | BG21: 1077 | BH21: 1136 | BI21: 1086 | BJ21: 1129 | BK21: 1007 | BL21: 1060 | BM21: 946 | BN21: 991 | BO21: 821 | BP21: 831 | BQ21: 639 | BR21: 713 | BS21: 557 | BT21: 623 | BU21: 434 | BV21: 473 | BW21: 292 | BX21: 323 | BY21: 250 | BZ21: 339 | CA21: 7 | CB21: 8 | CC21: 71 | CD21: 60 | CE21: 90 | CF21: 97 | CG21: 500 | CH21: 15994 | CI21: 904 | CJ21: 1030 | CK21: 6888 | CL21: 528 | CN21: 318 | CO21: 1313 | CP21: 4430 | CQ21: 5167 | CR21: 2368 | CS21: 5094 | CT21: 12834 | CU21: 6295 | CW21: 2090 | CX21: 3879 | CY21: 23421 | DA21: 318 | DB21: 313 | DC21: 338 | DD21: 306 | DE21: 356 | DF21: 402 | DH21: 8048 | DI21: 8751 | DJ21: 2882 | DK21: 4557 | DL21: 7918 | DN21: 799 | DO21: 8591 | DP21: 2644 | DQ21: 2544 | DR21: 799 | DS21: 811 | DT21: 8591 | DU21: 9337 | DV21: 2701 | DW21: 2979
B22: 02 | C22: 15 | D22: 5666 | E22: P.S. DGO. MANDAMIENTO | F22: 20884 | H22: 10127 | I22: 10757 | K22: 111 | L22: 107 | M22: 111 | N22: 105 | O22: 116 | P22: 114 | Q22: 109 | R22: 100 | S22: 123 | T22: 117 | U22: 137 | V22: 137 | W22: 142 | X22: 139 | Y22: 156 | Z22: 147 | AA22: 158 | AB22: 148 | AC22: 131 | AD22: 120 | AE22: 121 | AF22: 118 | AG22: 120 | AH22: 118 | AI22: 129 | AJ22: 126 | AK22: 133 | AL22: 130 | AM22: 126 | AN22: 123 | AO22: 140 | AP22: 149 | AQ22: 135 | AR22: 140 | AS22: 140 | AT22: 138 | AU22: 150 | AV22: 134 | AW22: 122 | AX22: 135 | AY22: 651 | AZ22: 692 | BA22: 679 | BB22: 889 | BC22: 698 | BD22: 768 | BE22: 729 | BF22: 757 | BG22: 726 | BH22: 768 | BI22: 733 | BJ22: 762 | BK22: 678 | BL22: 709 | BM22: 633 | BN22: 664 | BO22: 548 | BP22: 554 | BQ22: 424 | BR22: 476 | BS22: 370 | BT22: 415 | BU22: 289 | BV22: 318 | BW22: 193 | BX22: 214 | BY22: 166 | BZ22: 226 | CA22: 6 | CB22: 5 | CC22: 35 | CD22: 33 | CE22: 76 | CF22: 74 | CG22: 326 | CH22: 10757 | CI22: 615 | CJ22: 696 | CK22: 4636 | CL22: 418 | CN22: 218 | CO22: 895 | CP22: 3005 | CQ22: 3501 | CR22: 1609 | CS22: 3452 | CT22: 8625 | CU22: 4193 | CW22: 1415 | CX22: 2627 | CY22: 15729 | DA22: 218 | DB22: 216 | DC22: 230 | DD22: 209 | DE22: 240 | DF22: 274 | DH22: 5424 | DI22: 5871 | DJ22: 1927 | DK22: 3055 | DL22: 5332 | DN22: 541 | DO22: 5799 | DP22: 1797 | DQ22: 1726 | DR22: 541 | DS22: 550 | DT22: 5799 | DU22: 6278 | DV22: 1797 | DW22: 1989
B23: 02 | C23: 16 | D23: 5667 | E23: P.S. CAMPO ALEGRE | F23: 5111 | H23: 2469 | I23: 2642 | K23: 34 | L23: 31 | M23: 33 | N23: 29 | O23: 32 | P23: 31 | Q23: 28 | R23: 27 | S23: 32 | T23: 31 | U23: 35 | V23: 36 | W23: 35 | X23: 35 | Y23: 40 | Z23: 40 | AA23: 41 | AB23: 36 | AC23: 33 | AD23: 30 | AE23: 30 | AF23: 30 | AG23: 30 | AH23: 30 | AI23: 32 | AJ23: 32 | AK23: 33 | AL23: 33 | AM23: 32 | AN23: 32 | AO23: 35 | AP23: 38 | AQ23: 33 | AR23: 35 | AS23: 36 | AT23: 35 | AU23: 38 | AV23: 35 | AW23: 28 | AX23: 35 | AY23: 165 | AZ23: 180 | BA23: 174 | BB23: 228 | BC23: 178 | BD23: 195 | BE23: 180 | BF23: 195 | BG23: 176 | BH23: 189 | BI23: 182 | BJ23: 188 | BK23: 164 | BL23: 164 | BM23: 147 | BN23: 153 | BO23: 122 | BP23: 121 | BQ23: 92 | BR23: 108 | BS23: 81 | BT23: 88 | BU23: 66 | BV23: 75 | BW23: 38 | BX23: 48 | BY23: 34 | BZ23: 49 | CA23: 1 | CB23: 1 | CC23: 10 | CD23: 10 | CE23: 24 | CF23: 21 | CG23: 84 | CH23: 2642 | CI23: 157 | CJ23: 178 | CK23: 1175 | CL23: 113 | CN23: 65 | CO23: 243 | CP23: 789 | CQ23: 887 | CR23: 406 | CS23: 883 | CT23: 2111 | CU23: 922 | CW23: 361 | CX23: 662 | CY23: 3780 | DA23: 65 | DB23: 62 | DC23: 63 | DD23: 55 | DE23: 63 | DF23: 71 | DH23: 1323 | DI23: 1433 | DJ23: 438 | DK23: 767 | DL23: 1353 | DN23: 136 | DO23: 1432 | DP23: 468 | DQ23: 451 | DR23: 136 | DS23: 140 | DT23: 1432 | DU23: 1562 | DV23: 395 | DW23: 441
A24: 150806 | C24: 17 | D24: 150806 | E24: DISTRITO HUAURA | F24: 41495 | H24: =K24+M24+O24+Q24+S24+U24+W24+Y24+AA24+AC24+AE24+AG24+AI24+AK24+AM24+AO24+AQ24+AS24+AU24+AW24+AY24+BA24+BC24+BE24+BG24+BI24+BK24+BM24+BO24+BQ24+BS24+BU24+BW24+BY24 -> 19674 | I24: 21821 | K24: 273 | L24: 311 | M24: 247 | N24: 282 | O24: 270 | P24: 233 | Q24: 254 | R24: 240 | S24: 327 | T24: 286 | U24: 307 | V24: 304 | W24: 317 | X24: 347 | Y24: 333 | Z24: 289 | AA24: 316 | AB24: 300 | AC24: 260 | AD24: 223 | AE24: 265 | AF24: 284 | AG24: 276 | AH24: 296 | AI24: 276 | AJ24: 296 | AK24: 259 | AL24: 278 | AM24: 248 | AN24: 268 | AO24: 288 | AP24: 321 | AQ24: 282 | AR24: 352 | AS24: 262 | AT24: 309 | AU24: 277 | AV24: 311 | AW24: 277 | AX24: 305 | AY24: 1286 | AZ24: 1500 | BA24: 1502 | BB24: 1956 | BC24: 1549 | BD24: 1732 | BE24: 1420 | BF24: 1549 | BG24: 1464 | BH24: 1544 | BI24: 1283 | BJ24: 1509 | BK24: 1148 | BL24: 1481 | BM24: 1119 | BN24: 1271 | BO24: 1000 | BP24: 1000 | BQ24: 679 | BR24: 751 | BS24: 591 | BT24: 640 | BU24: 452 | BV24: 430 | BW24: 311 | BX24: 322 | BY24: 256 | BZ24: 301 | CA24: 16 | CB24: 18 | CC24: 113 | CD24: 114 | CE24: 160 | CF24: 197 | CG24: 662 | CH24: 21821 | CI24: 1422 | CJ24: 1598 | CK24: 9790 | CL24: 1101 | CN24: 584 | CO24: 2139 | CP24: 6840 | CQ24: 7556 | CR24: 3439 | CS24: 7414 | CT24: 17069 | CU24: 6733 | CW24: 2996 | CX24: 5730 | CY24: 30046 | DA24: 584 | DB24: 529 | DC24: 503 | DD24: 494 | DE24: 613 | DF24: 611 | DH24: 10485 | DI24: 12042 | DJ24: 3752 | DK24: 6334 | DL24: 11388 | DN24: 1080 | DO24: 11325 | DP24: 3980 | DQ24: 3969 | DR24: 1080 | DS24: 1250 | DT24: 11325 | DU24: 13158 | DV24: 2978 | DW24: 3122
B25: 01 | C25: 18 | D25: 5682 | E25: C.S. HUAURA | F25: 18665 | H25: 8849 | I25: 9816 | K25: 123 | L25: 140 | M25: 109 | N25: 127 | O25: 122 | P25: 105 | Q25: 114 | R25: 108 | S25: 148 | T25: 128 | U25: 138 | V25: 137 | W25: 143 | X25: 156 | Y25: 150 | Z25: 130 | AA25: 142 | AB25: 135 | AC25: 117 | AD25: 100 | AE25: 119 | AF25: 128 | AG25: 124 | AH25: 133 | AI25: 124 | AJ25: 132 | AK25: 116 | AL25: 125 | AM25: 112 | AN25: 121 | AO25: 129 | AP25: 144 | AQ25: 127 | AR25: 158 | AS25: 117 | AT25: 139 | AU25: 125 | AV25: 140 | AW25: 125 | AX25: 137 | AY25: 578 | AZ25: 675 | BA25: 676 | BB25: 880 | BC25: 696 | BD25: 779 | BE25: 639 | BF25: 696 | BG25: 658 | BH25: 695 | BI25: 577 | BJ25: 679 | BK25: 517 | BL25: 667 | BM25: 504 | BN25: 572 | BO25: 450 | BP25: 450 | BQ25: 306 | BR25: 337 | BS25: 266 | BT25: 288 | BU25: 203 | BV25: 194 | BW25: 140 | BX25: 145 | BY25: 115 | BZ25: 136 | CA25: 8 | CB25: 7 | CC25: 51 | CD25: 52 | CE25: 72 | CF25: 88 | CG25: 297 | CH25: 9816 | CI25: 639 | CJ25: 718 | CK25: 4404 | CL25: 496 | CN25: 263 | CO25: 961 | CP25: 3076 | CQ25: 3396 | CR25: 1544 | CS25: 3336 | CT25: 7679 | CU25: 3030 | CW25: 1348 | CX25: 2575 | CY25: 13518 | DA25: 263 | DB25: 236 | DC25: 227 | DD25: 222 | DE25: 276 | DF25: 275 | DH25: 4717 | DI25: 5418 | DJ25: 1689 | DK25: 2849 | DL25: 5122 | DN25: 485 | DO25: 5095 | DP25: 1789 | DQ25: 1784 | DR25: 485 | DS25: 562 | DT25: 5095 | DU25: 5920 | DV25: 1340 | DW25: 1405
B26: 01 | C26: 19 | D26: 5683 | E26: P.S. HUMAYA | F26: 3738 | H26: 1772 | I26: 1966 | K26: 25 | L26: 28 | M26: 22 | N26: 25 | O26: 24 | P26: 21 | Q26: 23 | R26: 22 | S26: 29 | T26: 26 | U26: 28 | V26: 27 | W26: 29 | X26: 31 | Y26: 30 | Z26: 26 | AA26: 28 | AB26: 27 | AC26: 23 | AD26: 20 | AE26: 24 | AF26: 26 | AG26: 25 | AH26: 27 | AI26: 25 | AJ26: 27 | AK26: 23 | AL26: 25 | AM26: 22 | AN26: 24 | AO26: 26 | AP26: 29 | AQ26: 25 | AR26: 32 | AS26: 24 | AT26: 28 | AU26: 25 | AV26: 28 | AW26: 25 | AX26: 27 | AY26: 116 | AZ26: 135 | BA26: 135 | BB26: 176 | BC26: 140 | BD26: 156 | BE26: 128 | BF26: 140 | BG26: 132 | BH26: 139 | BI26: 116 | BJ26: 136 | BK26: 103 | BL26: 133 | BM26: 101 | BN26: 114 | BO26: 90 | BP26: 90 | BQ26: 61 | BR26: 68 | BS26: 53 | BT26: 58 | BU26: 41 | BV26: 39 | BW26: 28 | BX26: 29 | BY26: 23 | BZ26: 27 | CA26: 1 | CB26: 2 | CC26: 10 | CD26: 10 | CE26: 15 | CF26: 18 | CG26: 60 | CH26: 1966 | CI26: 129 | CJ26: 144 | CK26: 882 | CL26: 99 | CN26: 53 | CO26: 192 | CP26: 616 | CQ26: 681 | CR26: 310 | CS26: 667 | CT26: 1538 | CU26: 607 | CW26: 269 | CX26: 517 | CY26: 2707 | DA26: 53 | DB26: 47 | DC26: 45 | DD26: 45 | DE26: 55 | DF26: 55 | DH26: 945 | DI26: 1084 | DJ26: 337 | DK26: 571 | DL26: 1026 | DN26: 97 | DO26: 1021 | DP26: 358 | DQ26: 358 | DR26: 97 | DS26: 113 | DT26: 1021 | DU26: 1184 | DV26: 268 | DW26: 282
B27: 01 | C27: 20 | D27: 5684 | E27: P.S. VILCAHUAURA | F27: 3315 | H27: 1571 | I27: 1744 | K27: 22 | L27: 25 | M27: 18 | N27: 23 | O27: 22 | P27: 19 | Q27: 20 | R27: 19 | S27: 26 | T27: 23 | U27: 25 | V27: 24 | W27: 25 | X27: 28 | Y27: 27 | Z27: 23 | AA27: 26 | AB27: 24 | AC27: 21 | AD27: 18 | AE27: 21 | AF27: 23 | AG27: 22 | AH27: 24 | AI27: 22 | AJ27: 24 | AK27: 21 | AL27: 22 | AM27: 20 | AN27: 21 | AO27: 23 | AP27: 26 | AQ27: 23 | AR27: 28 | AS27: 21 | AT27: 25 | AU27: 22 | AV27: 25 | AW27: 22 | AX27: 24 | AY27: 103 | AZ27: 120 | BA27: 120 | BB27: 156 | BC27: 124 | BD27: 138 | BE27: 113 | BF27: 124 | BG27: 117 | BH27: 123 | BI27: 102 | BJ27: 121 | BK27: 92 | BL27: 118 | BM27: 89 | BN27: 101 | BO27: 80 | BP27: 80 | BQ27: 54 | BR27: 60 | BS27: 47 | BT27: 51 | BU27: 36 | BV27: 34 | BW27: 25 | BX27: 26 | BY27: 20 | BZ27: 24 | CA27: 1 | CB27: 2 | CC27: 9 | CD27: 9 | CE27: 13 | CF27: 16 | CG27: 53 | CH27: 1744 | CI27: 114 | CJ27: 128 | CK27: 782 | CL27: 88 | CN27: 47 | CO27: 170 | CP27: 548 | CQ27: 607 | CR27: 276 | CS27: 592 | CT27: 1362 | CU27: 537 | CW27: 241 | CX27: 459 | CY27: 2398 | DA27: 47 | DB27: 41 | DC27: 41 | DD27: 39 | DE27: 49 | DF27: 49 | DH27: 837 | DI27: 961 | DJ27: 299 | DK27: 506 | DL27: 910 | DN27: 87 | DO27: 904 | DP27: 318 | DQ27: 319 | DR27: 87 | DS27: 100 | DT27: 904 | DU27: 1050 | DV27: 237 | DW27: 249
B28: 01 | C28: 21 | D28: 5685 | E28: P.S. PEÑICO | F28: 422 | H28: 200 | I28: 222 | K28: 3 | L28: 3 | M28: 2 | N28: 3 | O28: 3 | P28: 2 | Q28: 3 | R28: 2 | S28: 3 | T28: 3 | U28: 3 | V28: 3 | W28: 3 | X28: 3 | Y28: 3 | Z28: 3 | AA28: 3 | AB28: 3 | AC28: 3 | AD28: 2 | AE28: 3 | AF28: 3 | AG28: 3 | AH28: 3 | AI28: 3 | AJ28: 3 | AK28: 3 | AL28: 3 | AM28: 2 | AN28: 3 | AO28: 3 | AP28: 3 | AQ28: 3 | AR28: 4 | AS28: 3 | AT28: 3 | AU28: 3 | AV28: 3 | AW28: 3 | AX28: 4 | AY28: 13 | AZ28: 15 | BA28: 15 | BB28: 20 | BC28: 16 | BD28: 18 | BE28: 14 | BF28: 16 | BG28: 15 | BH28: 16 | BI28: 13 | BJ28: 15 | BK28: 11 | BL28: 15 | BM28: 11 | BN28: 14 | BO28: 10 | BP28: 10 | BQ28: 7 | BR28: 8 | BS28: 6 | BT28: 6 | BU28: 5 | BV28: 4 | BW28: 3 | BX28: 3 | BY28: 3 | BZ28: 3 | CA28: 0 | CB28: 0 | CC28: 1 | CD28: 1 | CE28: 2 | CF28: 2 | CG28: 7 | CH28: 222 | CI28: 15 | CJ28: 17 | CK28: 100 | CL28: 11 | CN28: 6 | CO28: 21 | CP28: 68 | CQ28: 77 | CR28: 36 | CS28: 76 | CT28: 174 | CU28: 68 | CW28: 29 | CX28: 61 | CY28: 305 | DA28: 6 | DB28: 5 | DC28: 5 | DD28: 5 | DE28: 6 | DF28: 6 | DH28: 105 | DI28: 124 | DJ28: 39 | DK28: 65 | DL28: 117 | DN28: 11 | DO28: 114 | DP28: 41 | DQ28: 39 | DR28: 11 | DS28: 13 | DT28: 114 | DU28: 136 | DV28: 31 | DW28: 31
B29: 01 | C29: 22 | D29: 5686 | E29: P.S. EL SOCORRO | F29: 15355 | H29: 7282 | I29: 8073 | K29: 100 | L29: 115 | M29: 96 | N29: 104 | O29: 99 | P29: 86 | Q29: 94 | R29: 89 | S29: 121 | T29: 106 | U29: 113 | V29: 113 | W29: 117 | X29: 129 | Y29: 123 | Z29: 107 | AA29: 117 | AB29: 111 | AC29: 96 | AD29: 83 | AE29: 98 | AF29: 104 | AG29: 102 | AH29: 109 | AI29: 102 | AJ29: 110 | AK29: 96 | AL29: 103 | AM29: 92 | AN29: 99 | AO29: 107 | AP29: 119 | AQ29: 104 | AR29: 130 | AS29: 97 | AT29: 114 | AU29: 102 | AV29: 115 | AW29: 102 | AX29: 113 | AY29: 476 | AZ29: 555 | BA29: 556 | BB29: 724 | BC29: 573 | BD29: 641 | BE29: 526 | BF29: 573 | BG29: 542 | BH29: 571 | BI29: 475 | BJ29: 558 | BK29: 425 | BL29: 548 | BM29: 414 | BN29: 470 | BO29: 370 | BP29: 370 | BQ29: 251 | BR29: 278 | BS29: 219 | BT29: 237 | BU29: 167 | BV29: 159 | BW29: 115 | BX29: 119 | BY29: 95 | BZ29: 111 | CA29: 6 | CB29: 7 | CC29: 42 | CD29: 42 | CE29: 58 | CF29: 73 | CG29: 245 | CH29: 8073 | CI29: 525 | CJ29: 591 | CK29: 3622 | CL29: 407 | CN29: 215 | CO29: 795 | CP29: 2532 | CQ29: 2795 | CR29: 1273 | CS29: 2743 | CT29: 6316 | CU29: 2491 | CW29: 1109 | CX29: 2118 | CY29: 11118 | DA29: 215 | DB29: 200 | DC29: 185 | DD29: 183 | DE29: 227 | DF29: 226 | DH29: 3881 | DI29: 4455 | DJ29: 1388 | DK29: 2343 | DL29: 4213 | DN29: 400 | DO29: 4191 | DP29: 1474 | DQ29: 1469 | DR29: 400 | DS29: 462 | DT29: 4191 | DU29: 4868 | DV29: 1102 | DW29: 1155
A30: 150807 | C30: 23 | D30: 150807 | E30: DISTRITO LEONCIO PRADO | F30: 2490 | H30: 1103 | I30: 1387 | K30: 17 | L30: 16 | M30: 13 | N30: 17 | O30: 23 | P30: 17 | Q30: 18 | R30: 11 | S30: 25 | T30: 15 | U30: 14 | V30: 13 | W30: 9 | X30: 19 | Y30: 11 | Z30: 12 | AA30: 11 | AB30: 17 | AC30: 10 | AD30: 14 | AE30: 8 | AF30: 12 | AG30: 11 | AH30: 17 | AI30: 11 | AJ30: 17 | AK30: 13 | AL30: 20 | AM30: 12 | AN30: 19 | AO30: 20 | AP30: 19 | AQ30: 14 | AR30: 25 | AS30: 14 | AT30: 18 | AU30: 18 | AV30: 22 | AW30: 18 | AX30: 18 | AY30: 86 | AZ30: 119 | BA30: 54 | BB30: 102 | BC30: 82 | BD30: 94 | BE30: 74 | BF30: 91 | BG30: 74 | BH30: 81 | BI30: 78 | BJ30: 90 | BK30: 61 | BL30: 87 | BM30: 63 | BN30: 62 | BO30: 61 | BP30: 76 | BQ30: 63 | BR30: 80 | BS30: 38 | BT30: 43 | BU30: 29 | BV30: 45 | BW30: 20 | BX30: 36 | BY30: 30 | BZ30: 43 | CA30: 2 | CB30: 0 | CC30: 11 | CD30: 4 | CE30: 6 | CF30: 12 | CG30: 62 | CH30: 1387 | CI30: 85 | CJ30: 102 | CK30: 577 | CL30: 144 | CN30: 33 | CO30: 139 | CP30: 350 | CQ30: 380 | CR30: 202 | CS30: 437 | CT30: 937 | CU30: 564 | CW30: 130 | CX30: 326 | CY30: 1862 | DA30: 33 | DB30: 30 | DC30: 40 | DD30: 29 | DE30: 40 | DF30: 27 | DH30: 547 | DI30: 683 | DJ30: 225 | DK30: 356 | DL30: 679 | DN30: 60 | DO30: 608 | DP30: 194 | DQ30: 217 | DR30: 60 | DS30: 81 | DT30: 608 | DU30: 766 | DV30: 221 | DW30: 287
B31: 03 | C31: 24 | D31: 5778 | E31: P.S. AUQUIMARCA | F31: 138 | H31: 62 | I31: 76 | K31: 1 | L31: 1 | M31: 1 | N31: 1 | O31: 1 | P31: 1 | Q31: 1 | R31: 1 | S31: 1 | T31: 1 | U31: 1 | V31: 1 | W31: 0 | X31: 1 | Y31: 1 | Z31: 1 | AA31: 1 | AB31: 1 | AC31: 1 | AD31: 1 | AE31: 0 | AF31: 1 | AG31: 1 | AH31: 1 | AI31: 1 | AJ31: 1 | AK31: 1 | AL31: 1 | AM31: 1 | AN31: 1 | AO31: 1 | AP31: 1 | AQ31: 1 | AR31: 1 | AS31: 1 | AT31: 1 | AU31: 1 | AV31: 1 | AW31: 1 | AX31: 1 | AY31: 5 | AZ31: 7 | BA31: 3 | BB31: 5 | BC31: 4 | BD31: 5 | BE31: 4 | BF31: 5 | BG31: 4 | BH31: 5 | BI31: 4 | BJ31: 5 | BK31: 4 | BL31: 5 | BM31: 3 | BN31: 3 | BO31: 3 | BP31: 4 | BQ31: 3 | BR31: 4 | BS31: 2 | BT31: 2 | BU31: 2 | BV31: 2 | BW31: 1 | BX31: 2 | BY31: 2 | BZ31: 2 | CA31: 0 | CB31: 0 | CC31: 1 | CD31: 0 | CE31: 0 | CF31: 1 | CG31: 3 | CH31: 76 | CI31: 5 | CJ31: 5 | CK31: 32 | CL31: 8 | CN31: 2 | CO31: 8 | CP31: 22 | CQ31: 24 | CR31: 12 | CS31: 24 | CT31: 51 | CU31: 29 | CW31: 9 | CX31: 19 | CY31: 100 | DA31: 2 | DB31: 2 | DC31: 2 | DD31: 2 | DE31: 2 | DF31: 2 | DH31: 29 | DI31: 37 | DJ31: 12 | DK31: 20 | DL31: 37 | DN31: 4 | DO31: 33 | DP31: 12 | DQ31: 14 | DR31: 4 | DS31: 4 | DT31: 33 | DU31: 42 | DV31: 12 | DW31: 14
B32: 03 | C32: 25 | D32: 5779 | E32: P.S. PARAN | F32: 867 | H32: 383 | I32: 484 | K32: 6 | L32: 6 | M32: 4 | N32: 6 | O32: 8 | P32: 6 | Q32: 6 | R32: 4 | S32: 9 | T32: 5 | U32: 4 | V32: 5 | W32: 3 | X32: 7 | Y32: 4 | Z32: 4 | AA32: 4 | AB32: 6 | AC32: 3 | AD32: 4 | AE32: 3 | AF32: 4 | AG32: 4 | AH32: 6 | AI32: 4 | AJ32: 6 | AK32: 4 | AL32: 7 | AM32: 4 | AN32: 6 | AO32: 7 | AP32: 6 | AQ32: 5 | AR32: 9 | AS32: 5 | AT32: 6 | AU32: 6 | AV32: 8 | AW32: 6 | AX32: 6 | AY32: 30 | AZ32: 41 | BA32: 19 | BB32: 36 | BC32: 29 | BD32: 33 | BE32: 26 | BF32: 32 | BG32: 26 | BH32: 28 | BI32: 27 | BJ32: 31 | BK32: 21 | BL32: 30 | BM32: 22 | BN32: 22 | BO32: 22 | BP32: 27 | BQ32: 22 | BR32: 28 | BS32: 13 | BT32: 15 | BU32: 10 | BV32: 16 | BW32: 7 | BX32: 13 | BY32: 10 | BZ32: 15 | CA32: 1 | CB32: 0 | CC32: 3 | CD32: 1 | CE32: 3 | CF32: 5 | CG32: 22 | CH32: 484 | CI32: 29 | CJ32: 35 | CK32: 201 | CL32: 50 | CN32: 12 | CO32: 48 | CP32: 121 | CQ32: 130 | CR32: 69 | CS32: 152 | CT32: 327 | CU32: 198 | CW32: 44 | CX32: 112 | CY32: 651 | DA32: 12 | DB32: 10 | DC32: 14 | DD32: 10 | DE32: 14 | DF32: 9 | DH32: 192 | DI32: 239 | DJ32: 79 | DK32: 124 | DL32: 236 | DN32: 21 | DO32: 212 | DP32: 66 | DQ32: 76 | DR32: 21 | DS32: 27 | DT32: 212 | DU32: 267 | DV32: 77 | DW32: 101
B33: 03 | C33: 26 | D33: 6725 | E33: P.S. SANTA CRUZ | F33: 499 | H33: 224 | I33: 275 | K33: 3 | L33: 3 | M33: 3 | N33: 3 | O33: 5 | P33: 3 | Q33: 4 | R33: 2 | S33: 5 | T33: 3 | U33: 3 | V33: 3 | W33: 2 | X33: 4 | Y33: 2 | Z33: 2 | AA33: 2 | AB33: 3 | AC33: 2 | AD33: 3 | AE33: 2 | AF33: 2 | AG33: 2 | AH33: 3 | AI33: 2 | AJ33: 3 | AK33: 3 | AL33: 4 | AM33: 2 | AN33: 4 | AO33: 4 | AP33: 4 | AQ33: 3 | AR33: 5 | AS33: 3 | AT33: 4 | AU33: 4 | AV33: 4 | AW33: 4 | AX33: 4 | AY33: 17 | AZ33: 24 | BA33: 11 | BB33: 20 | BC33: 16 | BD33: 19 | BE33: 15 | BF33: 18 | BG33: 15 | BH33: 16 | BI33: 16 | BJ33: 18 | BK33: 12 | BL33: 17 | BM33: 13 | BN33: 12 | BO33: 12 | BP33: 15 | BQ33: 13 | BR33: 16 | BS33: 8 | BT33: 9 | BU33: 6 | BV33: 9 | BW33: 4 | BX33: 7 | BY33: 6 | BZ33: 9 | CA33: 0 | CB33: 0 | CC33: 2 | CD33: 1 | CE33: 1 | CF33: 2 | CG33: 12 | CH33: 275 | CI33: 16 | CJ33: 21 | CK33: 115 | CL33: 29 | CN33: 6 | CO33: 28 | CP33: 69 | CQ33: 76 | CR33: 41 | CS33: 88 | CT33: 187 | CU33: 114 | CW33: 26 | CX33: 66 | CY33: 373 | DA33: 6 | DB33: 6 | DC33: 8 | DD33: 6 | DE33: 8 | DF33: 6 | DH33: 110 | DI33: 135 | DJ33: 44 | DK33: 71 | DL33: 136 | DN33: 12 | DO33: 123 | DP33: 40 | DQ33: 41 | DR33: 12 | DS33: 17 | DT33: 123 | DU33: 152 | DV33: 45 | DW33: 58
B34: 03 | C34: 27 | D34: 7757 | E34: P.S. HUANANGUI | F34: 986 | H34: 434 | I34: 552 | K34: 7 | L34: 6 | M34: 5 | N34: 7 | O34: 9 | P34: 7 | Q34: 7 | R34: 4 | S34: 10 | T34: 6 | U34: 6 | V34: 4 | W34: 4 | X34: 7 | Y34: 4 | Z34: 5 | AA34: 4 | AB34: 7 | AC34: 4 | AD34: 6 | AE34: 3 | AF34: 5 | AG34: 4 | AH34: 7 | AI34: 4 | AJ34: 7 | AK34: 5 | AL34: 8 | AM34: 5 | AN34: 8 | AO34: 8 | AP34: 8 | AQ34: 5 | AR34: 10 | AS34: 5 | AT34: 7 | AU34: 7 | AV34: 9 | AW34: 7 | AX34: 7 | AY34: 34 | AZ34: 47 | BA34: 21 | BB34: 41 | BC34: 33 | BD34: 37 | BE34: 29 | BF34: 36 | BG34: 29 | BH34: 32 | BI34: 31 | BJ34: 36 | BK34: 24 | BL34: 35 | BM34: 25 | BN34: 25 | BO34: 24 | BP34: 30 | BQ34: 25 | BR34: 32 | BS34: 15 | BT34: 17 | BU34: 11 | BV34: 18 | BW34: 8 | BX34: 14 | BY34: 12 | BZ34: 17 | CA34: 1 | CB34: 0 | CC34: 5 | CD34: 2 | CE34: 2 | CF34: 4 | CG34: 25 | CH34: 552 | CI34: 35 | CJ34: 41 | CK34: 229 | CL34: 57 | CN34: 13 | CO34: 55 | CP34: 138 | CQ34: 150 | CR34: 80 | CS34: 173 | CT34: 372 | CU34: 223 | CW34: 51 | CX34: 129 | CY34: 738 | DA34: 13 | DB34: 12 | DC34: 16 | DD34: 11 | DE34: 16 | DF34: 10 | DH34: 216 | DI34: 272 | DJ34: 90 | DK34: 141 | DL34: 270 | DN34: 23 | DO34: 240 | DP34: 76 | DQ34: 86 | DR34: 23 | DS34: 33 | DT34: 240 | DU34: 305 | DV34: 87 | DW34: 114
A35: 150808 | C35: 28 | D35: 150808 | E35: DISTRITO PACCHO | F35: 1707 | H35: 819 | I35: 888 | K35: 9 | L35: 11 | M35: 4 | N35: 8 | O35: 4 | P35: 2 | Q35: 5 | R35: 5 | S35: 10 | T35: 11 | U35: 8 | V35: 7 | W35: 7 | X35: 6 | Y35: 11 | Z35: 3 | AA35: 7 | AB35: 7 | AC35: 4 | AD35: 10 | AE35: 8 | AF35: 8 | AG35: 6 | AH35: 6 | AI35: 6 | AJ35: 7 | AK35: 9 | AL35: 9 | AM35: 9 | AN35: 9 | AO35: 14 | AP35: 11 | AQ35: 7 | AR35: 6 | AS35: 10 | AT35: 9 | AU35: 11 | AV35: 12 | AW35: 7 | AX35: 8 | AY35: 35 | AZ35: 50 | BA35: 33 | BB35: 46 | BC35: 35 | BD35: 40 | BE35: 46 | BF35: 33 | BG35: 39 | BH35: 43 | BI35: 53 | BJ35: 55 | BK35: 55 | BL35: 79 | BM35: 61 | BN35: 59 | BO35: 55 | BP35: 53 | BQ35: 50 | BR35: 51 | BS35: 43 | BT35: 56 | BU35: 62 | BV35: 63 | BW35: 49 | BX35: 45 | BY35: 47 | BZ35: 60 | CA35: 0 | CB35: 0 | CC35: 4 | CD35: 2 | CE35: 5 | CF35: 9 | CG35: 15 | CH35: 888 | CI35: 39 | CJ35: 46 | CK35: 267 | CL35: 25 | CN35: 20 | CO35: 49 | CP35: 167 | CQ35: 204 | CR35: 106 | CS35: 202 | CT35: 598 | CU35: 634 | CW35: 70 | CX35: 172 | CY35: 1396 | DA35: 20 | DB35: 12 | DC35: 6 | DD35: 10 | DE35: 21 | DF35: 15 | DH35: 377 | DI35: 408 | DJ35: 191 | DK35: 171 | DL35: 313 | DN35: 40 | DO35: 375 | DP35: 98 | DQ35: 100 | DR35: 40 | DS35: 35 | DT35: 375 | DU35: 425 | DV35: 257 | DW35: 283
B36: 05 | C36: 29 | D36: 5650 | E36: P.S. PACCHO | F36: 671 | H36: 322 | I36: 349 | K36: 4 | L36: 4 | M36: 1 | N36: 4 | O36: 1 | P36: 1 | Q36: 1 | R36: 1 | S36: 3 | T36: 4 | U36: 4 | V36: 3 | W36: 3 | X36: 2 | Y36: 4 | Z36: 2 | AA36: 3 | AB36: 3 | AC36: 1 | AD36: 3 | AE36: 3 | AF36: 4 | AG36: 2 | AH36: 2 | AI36: 2 | AJ36: 3 | AK36: 4 | AL36: 4 | AM36: 4 | AN36: 4 | AO36: 6 | AP36: 4 | AQ36: 3 | AR36: 2 | AS36: 3 | AT36: 4 | AU36: 4 | AV36: 4 | AW36: 3 | AX36: 4 | AY36: 14 | AZ36: 20 | BA36: 13 | BB36: 18 | BC36: 14 | BD36: 16 | BE36: 18 | BF36: 13 | BG36: 15 | BH36: 16 | BI36: 21 | BJ36: 22 | BK36: 22 | BL36: 31 | BM36: 24 | BN36: 23 | BO36: 22 | BP36: 21 | BQ36: 20 | BR36: 20 | BS36: 17 | BT36: 21 | BU36: 25 | BV36: 25 | BW36: 19 | BX36: 17 | BY36: 19 | BZ36: 24 | CA36: 0 | CB36: 0 | CC36: 1 | CD36: 1 | CE36: 3 | CF36: 3 | CG36: 6 | CH36: 349 | CI36: 17 | CJ36: 18 | CK36: 105 | CL36: 9 | CN36: 8 | CO36: 16 | CP36: 63 | CQ36: 82 | CR36: 43 | CS36: 80 | CT36: 235 | CU36: 250 | CW36: 28 | CX36: 69 | CY36: 550 | DA36: 8 | DB36: 5 | DC36: 2 | DD36: 2 | DE36: 7 | DF36: 7 | DH36: 149 | DI36: 160 | DJ36: 75 | DK36: 67 | DL36: 123 | DN36: 16 | DO36: 148 | DP36: 36 | DQ36: 40 | DR36: 16 | DS36: 14 | DT36: 148 | DU36: 167 | DV36: 103 | DW36: 111
B37: 05 | C37: 30 | D37: 5651 | E37: P.S. LACSANGA | F37: 515 | H37: 248 | I37: 267 | K37: 3 | L37: 3 | M37: 1 | N37: 2 | O37: 1 | P37: 1 | Q37: 2 | R37: 2 | S37: 3 | T37: 3 | U37: 2 | V37: 2 | W37: 2 | X37: 2 | Y37: 3 | Z37: 1 | AA37: 2 | AB37: 2 | AC37: 1 | AD37: 3 | AE37: 3 | AF37: 2 | AG37: 2 | AH37: 2 | AI37: 2 | AJ37: 2 | AK37: 3 | AL37: 3 | AM37: 3 | AN37: 3 | AO37: 4 | AP37: 3 | AQ37: 2 | AR37: 2 | AS37: 3 | AT37: 3 | AU37: 3 | AV37: 4 | AW37: 2 | AX37: 2 | AY37: 11 | AZ37: 14 | BA37: 10 | BB37: 14 | BC37: 11 | BD37: 12 | BE37: 14 | BF37: 10 | BG37: 12 | BH37: 13 | BI37: 16 | BJ37: 17 | BK37: 17 | BL37: 24 | BM37: 19 | BN37: 18 | BO37: 17 | BP37: 16 | BQ37: 14 | BR37: 15 | BS37: 12 | BT37: 17 | BU37: 19 | BV37: 18 | BW37: 15 | BX37: 14 | BY37: 14 | BZ37: 18 | CA37: 0 | CB37: 0 | CC37: 1 | CD37: 1 | CE37: 2 | CF37: 2 | CG37: 5 | CH37: 267 | CI37: 12 | CJ37: 14 | CK37: 80 | CL37: 8 | CN37: 6 | CO37: 15 | CP37: 50 | CQ37: 62 | CR37: 33 | CS37: 60 | CT37: 183 | CU37: 189 | CW37: 20 | CX37: 53 | CY37: 421 | DA37: 6 | DB37: 3 | DC37: 2 | DD37: 4 | DE37: 6 | DF37: 4 | DH37: 116 | DI37: 124 | DJ37: 58 | DK37: 52 | DL37: 94 | DN37: 12 | DO37: 115 | DP37: 30 | DQ37: 30 | DR37: 12 | DS37: 11 | DT37: 115 | DU37: 128 | DV37: 76 | DW37: 84
B38: 05 | C38: 31 | D38: 5653 | E38: P.S. MUZGA | F38: 260 | H38: 124 | I38: 136 | K38: 1 | L38: 2 | M38: 1 | N38: 1 | O38: 1 | P38: 0 | Q38: 1 | R38: 1 | S38: 2 | T38: 2 | U38: 1 | V38: 1 | W38: 1 | X38: 1 | Y38: 2 | Z38: 0 | AA38: 1 | AB38: 1 | AC38: 1 | AD38: 2 | AE38: 1 | AF38: 1 | AG38: 1 | AH38: 1 | AI38: 1 | AJ38: 1 | AK38: 1 | AL38: 1 | AM38: 1 | AN38: 1 | AO38: 2 | AP38: 2 | AQ38: 1 | AR38: 1 | AS38: 2 | AT38: 1 | AU38: 2 | AV38: 2 | AW38: 1 | AX38: 1 | AY38: 5 | AZ38: 8 | BA38: 5 | BB38: 7 | BC38: 5 | BD38: 6 | BE38: 7 | BF38: 5 | BG38: 6 | BH38: 7 | BI38: 8 | BJ38: 8 | BK38: 8 | BL38: 12 | BM38: 9 | BN38: 9 | BO38: 8 | BP38: 8 | BQ38: 8 | BR38: 8 | BS38: 7 | BT38: 9 | BU38: 9 | BV38: 10 | BW38: 7 | BX38: 7 | BY38: 7 | BZ38: 9 | CA38: 0 | CB38: 0 | CC38: 1 | CD38: 0 | CE38: 0 | CF38: 2 | CG38: 2 | CH38: 136 | CI38: 5 | CJ38: 7 | CK38: 41 | CL38: 4 | CN38: 3 | CO38: 9 | CP38: 27 | CQ38: 30 | CR38: 15 | CS38: 31 | CT38: 90 | CU38: 97 | CW38: 11 | CX38: 25 | CY38: 212 | DA38: 3 | DB38: 2 | DC38: 1 | DD38: 2 | DE38: 4 | DF38: 2 | DH38: 56 | DI38: 62 | DJ38: 29 | DK38: 26 | DL38: 48 | DN38: 6 | DO38: 56 | DP38: 16 | DQ38: 15 | DR38: 6 | DS38: 5 | DT38: 56 | DU38: 65 | DV38: 39 | DW38: 44
B39: 05 | C39: 32 | D39: 5652 | E39: P.S. AYARANGA | F39: 261 | H39: 125 | I39: 136 | K39: 1 | L39: 2 | M39: 1 | N39: 1 | O39: 1 | P39: 0 | Q39: 1 | R39: 1 | S39: 2 | T39: 2 | U39: 1 | V39: 1 | W39: 1 | X39: 1 | Y39: 2 | Z39: 0 | AA39: 1 | AB39: 1 | AC39: 1 | AD39: 2 | AE39: 1 | AF39: 1 | AG39: 1 | AH39: 1 | AI39: 1 | AJ39: 1 | AK39: 1 | AL39: 1 | AM39: 1 | AN39: 1 | AO39: 2 | AP39: 2 | AQ39: 1 | AR39: 1 | AS39: 2 | AT39: 1 | AU39: 2 | AV39: 2 | AW39: 1 | AX39: 1 | AY39: 5 | AZ39: 8 | BA39: 5 | BB39: 7 | BC39: 5 | BD39: 6 | BE39: 7 | BF39: 5 | BG39: 6 | BH39: 7 | BI39: 8 | BJ39: 8 | BK39: 8 | BL39: 12 | BM39: 9 | BN39: 9 | BO39: 8 | BP39: 8 | BQ39: 8 | BR39: 8 | BS39: 7 | BT39: 9 | BU39: 9 | BV39: 10 | BW39: 8 | BX39: 7 | BY39: 7 | BZ39: 9 | CA39: 0 | CB39: 0 | CC39: 1 | CD39: 0 | CE39: 0 | CF39: 2 | CG39: 2 | CH39: 136 | CI39: 5 | CJ39: 7 | CK39: 41 | CL39: 4 | CN39: 3 | CO39: 9 | CP39: 27 | CQ39: 30 | CR39: 15 | CS39: 31 | CT39: 90 | CU39: 98 | CW39: 11 | CX39: 25 | CY39: 213 | DA39: 3 | DB39: 2 | DC39: 1 | DD39: 2 | DE39: 4 | DF39: 2 | DH39: 56 | DI39: 62 | DJ39: 29 | DK39: 26 | DL39: 48 | DN39: 6 | DO39: 56 | DP39: 16 | DQ39: 15 | DR39: 6 | DS39: 5 | DT39: 56 | DU39: 65 | DV39: 39 | DW39: 44
A40: 150809 | C40: 33 | D40: 150809 | E40: DISTRITO SANTA LEONOR | F40: 1245 | H40: 587 | I40: 658 | K40: 13 | L40: 7 | M40: 6 | N40: 4 | O40: 8 | P40: 5 | Q40: 8 | R40: 2 | S40: 6 | T40: 14 | U40: 8 | V40: 7 | W40: 3 | X40: 10 | Y40: 7 | Z40: 4 | AA40: 8 | AB40: 4 | AC40: 1 | AD40: 3 | AE40: 5 | AF40: 7 | AG40: 5 | AH40: 7 | AI40: 9 | AJ40: 11 | AK40: 5 | AL40: 7 | AM40: 5 | AN40: 5 | AO40: 10 | AP40: 7 | AQ40: 7 | AR40: 11 | AS40: 8 | AT40: 4 | AU40: 8 | AV40: 9 | AW40: 7 | AX40: 7 | AY40: 27 | AZ40: 28 | BA40: 29 | BB40: 43 | BC40: 29 | BD40: 47 | BE40: 36 | BF40: 29 | BG40: 30 | BH40: 40 | BI40: 29 | BJ40: 38 | BK40: 36 | BL40: 41 | BM40: 40 | BN40: 38 | BO40: 46 | BP40: 48 | BQ40: 38 | BR40: 38 | BS40: 35 | BT40: 26 | BU40: 31 | BV40: 47 | BW40: 20 | BX40: 29 | BY40: 24 | BZ40: 31 | CA40: 0 | CB40: 1 | CC40: 1 | CD40: 4 | CE40: 12 | CF40: 3 | CG40: 20 | CH40: 658 | CI40: 37 | CJ40: 38 | CK40: 225 | CL40: 27 | CN40: 20 | CO40: 53 | CP40: 152 | CQ40: 168 | CR40: 89 | CS40: 158 | CT40: 433 | CU40: 413 | CW40: 55 | CX40: 144 | CY40: 973 | DA40: 20 | DB40: 10 | DC40: 13 | DD40: 10 | DE40: 20 | DF40: 15 | DH40: 275 | DI40: 324 | DJ40: 127 | DK40: 154 | DL40: 263 | DN40: 30 | DO40: 271 | DP40: 92 | DQ40: 92 | DR40: 30 | DS40: 27 | DT40: 271 | DU40: 320 | DV40: 174 | DW40: 190
B41: 05 | C41: 34 | D41: 5645 | E41: P.S. CHIUCHIN | F41: 812 | H41: 384 | I41: 428 | K41: 8 | L41: 5 | M41: 4 | N41: 2 | O41: 5 | P41: 3 | Q41: 5 | R41: 1 | S41: 4 | T41: 9 | U41: 5 | V41: 5 | W41: 2 | X41: 7 | Y41: 5 | Z41: 2 | AA41: 5 | AB41: 2 | AC41: 1 | AD41: 2 | AE41: 3 | AF41: 5 | AG41: 3 | AH41: 5 | AI41: 6 | AJ41: 7 | AK41: 3 | AL41: 5 | AM41: 3 | AN41: 3 | AO41: 7 | AP41: 5 | AQ41: 5 | AR41: 7 | AS41: 5 | AT41: 2 | AU41: 5 | AV41: 6 | AW41: 5 | AX41: 5 | AY41: 18 | AZ41: 18 | BA41: 19 | BB41: 28 | BC41: 19 | BD41: 31 | BE41: 24 | BF41: 19 | BG41: 20 | BH41: 26 | BI41: 19 | BJ41: 25 | BK41: 24 | BL41: 27 | BM41: 26 | BN41: 24 | BO41: 30 | BP41: 31 | BQ41: 25 | BR41: 24 | BS41: 23 | BT41: 17 | BU41: 20 | BV41: 31 | BW41: 13 | BX41: 19 | BY41: 15 | BZ41: 20 | CA41: 0 | CB41: 1 | CC41: 1 | CD41: 3 | CE41: 7 | CF41: 2 | CG41: 13 | CH41: 428 | CI41: 25 | CJ41: 25 | CK41: 147 | CL41: 18 | CN41: 13 | CO41: 33 | CP41: 98 | CQ41: 110 | CR41: 58 | CS41: 104 | CT41: 284 | CU41: 268 | CW41: 36 | CX41: 95 | CY41: 635 | DA41: 13 | DB41: 6 | DC41: 8 | DD41: 6 | DE41: 13 | DF41: 10 | DH41: 181 | DI41: 211 | DJ41: 82 | DK41: 101 | DL41: 172 | DN41: 20 | DO41: 179 | DP41: 59 | DQ41: 60 | DR41: 20 | DS41: 17 | DT41: 179 | DU41: 209 | DV41: 113 | DW41: 123
B42: 05 | C42: 35 | D42: 5646 | E42: P.S. PARQUIN | F42: 249 | H42: 118 | I42: 131 | K42: 3 | L42: 1 | M42: 1 | N42: 1 | O42: 2 | P42: 1 | Q42: 2 | R42: 1 | S42: 1 | T42: 3 | U42: 2 | V42: 1 | W42: 1 | X42: 2 | Y42: 1 | Z42: 1 | AA42: 2 | AB42: 1 | AC42: 0 | AD42: 1 | AE42: 1 | AF42: 1 | AG42: 1 | AH42: 1 | AI42: 2 | AJ42: 2 | AK42: 1 | AL42: 1 | AM42: 1 | AN42: 1 | AO42: 2 | AP42: 1 | AQ42: 1 | AR42: 2 | AS42: 2 | AT42: 1 | AU42: 2 | AV42: 2 | AW42: 1 | AX42: 1 | AY42: 5 | AZ42: 6 | BA42: 6 | BB42: 9 | BC42: 6 | BD42: 9 | BE42: 7 | BF42: 6 | BG42: 6 | BH42: 8 | BI42: 6 | BJ42: 7 | BK42: 7 | BL42: 8 | BM42: 8 | BN42: 8 | BO42: 9 | BP42: 10 | BQ42: 7 | BR42: 8 | BS42: 7 | BT42: 5 | BU42: 6 | BV42: 9 | BW42: 4 | BX42: 6 | BY42: 5 | BZ42: 6 | CA42: 0 | CB42: 0 | CC42: 0 | CD42: 0 | CE42: 3 | CF42: 1 | CG42: 4 | CH42: 131 | CI42: 6 | CJ42: 7 | CK42: 45 | CL42: 5 | CN42: 4 | CO42: 12 | CP42: 32 | CQ42: 33 | CR42: 17 | CS42: 32 | CT42: 86 | CU42: 82 | CW42: 12 | CX42: 27 | CY42: 194 | DA42: 4 | DB42: 2 | DC42: 3 | DD42: 3 | DE42: 4 | DF42: 3 | DH42: 55 | DI42: 65 | DJ42: 26 | DK42: 30 | DL42: 52 | DN42: 6 | DO42: 54 | DP42: 20 | DQ42: 18 | DR42: 6 | DS42: 5 | DT42: 54 | DU42: 64 | DV42: 34 | DW42: 38
B43: 05 | C43: 36 | D43: 5647 | E43: P.S. JUCUL | F43: 184 | H43: 85 | I43: 99 | K43: 2 | L43: 1 | M43: 1 | N43: 1 | O43: 1 | P43: 1 | Q43: 1 | R43: 0 | S43: 1 | T43: 2 | U43: 1 | V43: 1 | W43: 0 | X43: 1 | Y43: 1 | Z43: 1 | AA43: 1 | AB43: 1 | AC43: 0 | AD43: 0 | AE43: 1 | AF43: 1 | AG43: 1 | AH43: 1 | AI43: 1 | AJ43: 2 | AK43: 1 | AL43: 1 | AM43: 1 | AN43: 1 | AO43: 1 | AP43: 1 | AQ43: 1 | AR43: 2 | AS43: 1 | AT43: 1 | AU43: 1 | AV43: 1 | AW43: 1 | AX43: 1 | AY43: 4 | AZ43: 4 | BA43: 4 | BB43: 6 | BC43: 4 | BD43: 7 | BE43: 5 | BF43: 4 | BG43: 4 | BH43: 6 | BI43: 4 | BJ43: 6 | BK43: 5 | BL43: 6 | BM43: 6 | BN43: 6 | BO43: 7 | BP43: 7 | BQ43: 6 | BR43: 6 | BS43: 5 | BT43: 4 | BU43: 5 | BV43: 7 | BW43: 3 | BX43: 4 | BY43: 4 | BZ43: 5 | CA43: 0 | CB43: 0 | CC43: 0 | CD43: 1 | CE43: 2 | CF43: 0 | CG43: 3 | CH43: 99 | CI43: 6 | CJ43: 6 | CK43: 33 | CL43: 4 | CN43: 3 | CO43: 8 | CP43: 22 | CQ43: 25 | CR43: 14 | CS43: 22 | CT43: 63 | CU43: 63 | CW43: 7 | CX43: 22 | CY43: 144 | DA43: 3 | DB43: 2 | DC43: 2 | DD43: 1 | DE43: 3 | DF43: 2 | DH43: 39 | DI43: 48 | DJ43: 19 | DK43: 23 | DL43: 39 | DN43: 4 | DO43: 38 | DP43: 13 | DQ43: 14 | DR43: 4 | DS43: 5 | DT43: 38 | DU43: 47 | DV43: 27 | DW43: 29
A44: 150810 | C44: 37 | D44: 150810 | E44: DISTRITO SANTA MARIA | F44: 45471 | H44: 21822 | I44: 23649 | K44: 340 | L44: 304 | M44: 301 | N44: 296 | O44: 328 | P44: 321 | Q44: 365 | R44: 343 | S44: 345 | T44: 376 | U44: 352 | V44: 342 | W44: 358 | X44: 343 | Y44: 322 | Z44: 353 | AA44: 330 | AB44: 368 | AC44: 276 | AD44: 253 | AE44: 279 | AF44: 275 | AG44: 296 | AH44: 291 | AI44: 302 | AJ44: 298 | AK44: 295 | AL44: 291 | AM44: 268 | AN44: 263 | AO44: 311 | AP44: 345 | AQ44: 322 | AR44: 288 | AS44: 317 | AT44: 341 | AU44: 276 | AV44: 314 | AW44: 319 | AX44: 337 | AY44: 1560 | AZ44: 1635 | BA44: 1576 | BB44: 2089 | BC44: 1499 | BD44: 1843 | BE44: 1537 | BF44: 1665 | BG44: 1490 | BH44: 1600 | BI44: 1402 | BJ44: 1566 | BK44: 1293 | BL44: 1446 | BM44: 1178 | BN44: 1253 | BO44: 1027 | BP44: 1116 | BQ44: 800 | BR44: 876 | BS44: 773 | BT44: 866 | BU44: 608 | BV44: 618 | BW44: 378 | BX44: 369 | BY44: 399 | BZ44: 365 | CA44: 18 | CB44: 18 | CC44: 151 | CD44: 142 | CE44: 189 | CF44: 162 | CG44: 869 | CH44: 23649 | CI44: 1418 | CJ44: 1625 | CK44: 10398 | CL44: 1603 | CN44: 644 | CO44: 2675 | CP44: 7757 | CQ44: 8079 | CR44: 3641 | CS44: 8106 | CT44: 17772 | CU44: 8195 | CW44: 3297 | CX44: 6028 | CY44: 32827 | DA44: 644 | DB44: 597 | DC44: 649 | DD44: 708 | DE44: 721 | DF44: 694 | DH44: 11002 | DI44: 12578 | DJ44: 3815 | DK44: 6674 | DL44: 12023 | DN44: 1218 | DO44: 12130 | DP44: 4489 | DQ44: 4454 | DR44: 1218 | DS44: 1237 | DT44: 12130 | DU44: 13748 | DV44: 3607 | DW44: 3841
B45: 02 | C45: 38 | D45: 5668 | E45: C.S. SANTA MARIA | F45: 12730 | H45: 6109 | I45: 6621 | K45: 95 | L45: 85 | M45: 84 | N45: 83 | O45: 92 | P45: 90 | Q45: 102 | R45: 96 | S45: 96 | T45: 105 | U45: 99 | V45: 96 | W45: 100 | X45: 96 | Y45: 90 | Z45: 98 | AA45: 92 | AB45: 103 | AC45: 77 | AD45: 71 | AE45: 78 | AF45: 77 | AG45: 83 | AH45: 82 | AI45: 85 | AJ45: 83 | AK45: 83 | AL45: 82 | AM45: 75 | AN45: 74 | AO45: 87 | AP45: 97 | AQ45: 90 | AR45: 81 | AS45: 89 | AT45: 96 | AU45: 77 | AV45: 88 | AW45: 89 | AX45: 94 | AY45: 437 | AZ45: 458 | BA45: 441 | BB45: 585 | BC45: 420 | BD45: 516 | BE45: 430 | BF45: 465 | BG45: 417 | BH45: 448 | BI45: 393 | BJ45: 438 | BK45: 362 | BL45: 405 | BM45: 330 | BN45: 351 | BO45: 288 | BP45: 313 | BQ45: 224 | BR45: 245 | BS45: 217 | BT45: 242 | BU45: 170 | BV45: 173 | BW45: 106 | BX45: 104 | BY45: 111 | BZ45: 101 | CA45: 5 | CB45: 5 | CC45: 42 | CD45: 39 | CE45: 53 | CF45: 46 | CG45: 243 | CH45: 6621 | CI45: 398 | CJ45: 456 | CK45: 2910 | CL45: 449 | CN45: 180 | CO45: 748 | CP45: 2170 | CQ45: 2264 | CR45: 1022 | CS45: 2269 | CT45: 4975 | CU45: 2294 | CW45: 922 | CX45: 1690 | CY45: 9190 | DA45: 180 | DB45: 167 | DC45: 182 | DD45: 198 | DE45: 201 | DF45: 195 | DH45: 3081 | DI45: 3521 | DJ45: 1069 | DK45: 1867 | DL45: 3366 | DN45: 341 | DO45: 3396 | DP45: 1256 | DQ45: 1247 | DR45: 341 | DS45: 348 | DT45: 3396 | DU45: 3848 | DV45: 1010 | DW45: 1074
B46: 02 | C46: 39 | D46: 5669 | E46: P.S. CHONTA | F46: 6820 | H46: 3275 | I46: 3545 | K46: 51 | L46: 46 | M46: 45 | N46: 44 | O46: 49 | P46: 48 | Q46: 55 | R46: 51 | S46: 52 | T46: 56 | U46: 53 | V46: 51 | W46: 54 | X46: 51 | Y46: 48 | Z46: 53 | AA46: 50 | AB46: 55 | AC46: 41 | AD46: 38 | AE46: 42 | AF46: 41 | AG46: 44 | AH46: 44 | AI46: 45 | AJ46: 45 | AK46: 44 | AL46: 44 | AM46: 40 | AN46: 39 | AO46: 47 | AP46: 52 | AQ46: 48 | AR46: 43 | AS46: 48 | AT46: 51 | AU46: 41 | AV46: 47 | AW46: 48 | AX46: 51 | AY46: 234 | AZ46: 245 | BA46: 237 | BB46: 313 | BC46: 224 | BD46: 276 | BE46: 231 | BF46: 250 | BG46: 224 | BH46: 240 | BI46: 210 | BJ46: 235 | BK46: 194 | BL46: 217 | BM46: 177 | BN46: 188 | BO46: 154 | BP46: 167 | BQ46: 120 | BR46: 131 | BS46: 116 | BT46: 130 | BU46: 92 | BV46: 93 | BW46: 57 | BX46: 55 | BY46: 60 | BZ46: 55 | CA46: 3 | CB46: 2 | CC46: 23 | CD46: 22 | CE46: 28 | CF46: 24 | CG46: 130 | CH46: 3545 | CI46: 213 | CJ46: 244 | CK46: 1559 | CL46: 241 | CN46: 97 | CO46: 400 | CP46: 1162 | CQ46: 1211 | CR46: 546 | CS46: 1216 | CT46: 2666 | CU46: 1230 | CW46: 494 | CX46: 904 | CY46: 4925 | DA46: 97 | DB46: 89 | DC46: 97 | DD46: 106 | DE46: 108 | DF46: 104 | DH46: 1651 | DI46: 1886 | DJ46: 572 | DK46: 1001 | DL46: 1803 | DN46: 183 | DO46: 1820 | DP46: 673 | DQ46: 667 | DR46: 183 | DS46: 185 | DT46: 1820 | DU46: 2062 | DV46: 542 | DW46: 576
B47: 02 | C47: 40 | D47: 5670 | E47: P.S. 1RO DE MAYO | F47: 13638 | H47: 6545 | I47: 7093 | K47: 102 | L47: 91 | M47: 90 | N47: 89 | O47: 98 | P47: 96 | Q47: 109 | R47: 103 | S47: 104 | T47: 113 | U47: 105 | V47: 102 | W47: 107 | X47: 103 | Y47: 97 | Z47: 106 | AA47: 99 | AB47: 110 | AC47: 83 | AD47: 75 | AE47: 84 | AF47: 83 | AG47: 89 | AH47: 87 | AI47: 91 | AJ47: 89 | AK47: 88 | AL47: 87 | AM47: 80 | AN47: 79 | AO47: 93 | AP47: 103 | AQ47: 97 | AR47: 86 | AS47: 95 | AT47: 102 | AU47: 83 | AV47: 94 | AW47: 96 | AX47: 101 | AY47: 468 | AZ47: 491 | BA47: 472 | BB47: 627 | BC47: 450 | BD47: 553 | BE47: 461 | BF47: 500 | BG47: 447 | BH47: 480 | BI47: 421 | BJ47: 470 | BK47: 388 | BL47: 434 | BM47: 353 | BN47: 375 | BO47: 308 | BP47: 335 | BQ47: 240 | BR47: 263 | BS47: 232 | BT47: 260 | BU47: 182 | BV47: 185 | BW47: 113 | BX47: 111 | BY47: 120 | BZ47: 110 | CA47: 6 | CB47: 6 | CC47: 45 | CD47: 42 | CE47: 57 | CF47: 49 | CG47: 262 | CH47: 7093 | CI47: 425 | CJ47: 486 | CK47: 3121 | CL47: 481 | CN47: 193 | CO47: 802 | CP47: 2325 | CQ47: 2420 | CR47: 1090 | CS47: 2432 | CT47: 5332 | CU47: 2459 | CW47: 987 | CX47: 1807 | CY47: 9849 | DA47: 193 | DB47: 179 | DC47: 194 | DD47: 212 | DE47: 217 | DF47: 207 | DH47: 3300 | DI47: 3774 | DJ47: 1144 | DK47: 2003 | DL47: 3607 | DN47: 365 | DO47: 3639 | DP47: 1346 | DQ47: 1334 | DR47: 365 | DS47: 370 | DT47: 3639 | DU47: 4125 | DV47: 1082 | DW47: 1153
B48: 02 | C48: 41 | D48: 5671 | E48: P.S. ZAPATA | F48: 4098 | H48: 1967 | I48: 2131 | K48: 31 | L48: 27 | M48: 28 | N48: 27 | O48: 30 | P48: 29 | Q48: 33 | R48: 31 | S48: 31 | T48: 34 | U48: 32 | V48: 31 | W48: 33 | X48: 31 | Y48: 29 | Z48: 32 | AA48: 30 | AB48: 34 | AC48: 25 | AD48: 23 | AE48: 25 | AF48: 25 | AG48: 27 | AH48: 26 | AI48: 27 | AJ48: 27 | AK48: 27 | AL48: 26 | AM48: 25 | AN48: 24 | AO48: 28 | AP48: 31 | AQ48: 29 | AR48: 26 | AS48: 28 | AT48: 31 | AU48: 25 | AV48: 28 | AW48: 29 | AX48: 30 | AY48: 140 | AZ48: 147 | BA48: 142 | BB48: 188 | BC48: 135 | BD48: 166 | BE48: 138 | BF48: 150 | BG48: 134 | BH48: 144 | BI48: 126 | BJ48: 141 | BK48: 116 | BL48: 130 | BM48: 106 | BN48: 113 | BO48: 92 | BP48: 100 | BQ48: 72 | BR48: 79 | BS48: 69 | BT48: 78 | BU48: 55 | BV48: 56 | BW48: 34 | BX48: 33 | BY48: 36 | BZ48: 33 | CA48: 1 | CB48: 2 | CC48: 14 | CD48: 13 | CE48: 17 | CF48: 14 | CG48: 78 | CH48: 2131 | CI48: 128 | CJ48: 146 | CK48: 936 | CL48: 144 | CN48: 58 | CO48: 243 | CP48: 704 | CQ48: 732 | CR48: 329 | CS48: 729 | CT48: 1599 | CU48: 737 | CW48: 300 | CX48: 544 | CY48: 2953 | DA48: 58 | DB48: 55 | DC48: 59 | DD48: 64 | DE48: 65 | DF48: 63 | DH48: 989 | DI48: 1132 | DJ48: 343 | DK48: 601 | DL48: 1082 | DN48: 110 | DO48: 1091 | DP48: 408 | DQ48: 403 | DR48: 110 | DS48: 112 | DT48: 1091 | DU48: 1237 | DV48: 324 | DW48: 346
B49: 02 | C49: 42 | D49: 5672 | E49: P.S. SAN BARTOLOME | F49: 8185 | H49: 3926 | I49: 4259 | K49: 61 | L49: 55 | M49: 54 | N49: 53 | O49: 59 | P49: 58 | Q49: 66 | R49: 62 | S49: 62 | T49: 68 | U49: 63 | V49: 62 | W49: 64 | X49: 62 | Y49: 58 | Z49: 64 | AA49: 59 | AB49: 66 | AC49: 50 | AD49: 46 | AE49: 50 | AF49: 49 | AG49: 53 | AH49: 52 | AI49: 54 | AJ49: 54 | AK49: 53 | AL49: 52 | AM49: 48 | AN49: 47 | AO49: 56 | AP49: 62 | AQ49: 58 | AR49: 52 | AS49: 57 | AT49: 61 | AU49: 50 | AV49: 57 | AW49: 57 | AX49: 61 | AY49: 281 | AZ49: 294 | BA49: 284 | BB49: 376 | BC49: 270 | BD49: 332 | BE49: 277 | BF49: 300 | BG49: 268 | BH49: 288 | BI49: 252 | BJ49: 282 | BK49: 233 | BL49: 260 | BM49: 212 | BN49: 226 | BO49: 185 | BP49: 201 | BQ49: 144 | BR49: 158 | BS49: 139 | BT49: 156 | BU49: 109 | BV49: 111 | BW49: 68 | BX49: 66 | BY49: 72 | BZ49: 66 | CA49: 3 | CB49: 3 | CC49: 27 | CD49: 26 | CE49: 34 | CF49: 29 | CG49: 156 | CH49: 4259 | CI49: 254 | CJ49: 293 | CK49: 1872 | CL49: 288 | CN49: 116 | CO49: 482 | CP49: 1396 | CQ49: 1452 | CR49: 654 | CS49: 1460 | CT49: 3200 | CU49: 1475 | CW49: 594 | CX49: 1083 | CY49: 5910 | DA49: 116 | DB49: 107 | DC49: 117 | DD49: 128 | DE49: 130 | DF49: 125 | DH49: 1981 | DI49: 2265 | DJ49: 687 | DK49: 1202 | DL49: 2165 | DN49: 219 | DO49: 2184 | DP49: 806 | DQ49: 803 | DR49: 219 | DS49: 222 | DT49: 2184 | DU49: 2476 | DV49: 649 | DW49: 692
A50: 150811 | C50: 43 | D50: 150811 | E50: DISTRITO SAYAN | F50: 27544 | H50: 13138 | I50: 14406 | K50: 190 | L50: 182 | M50: 196 | N50: 194 | O50: 182 | P50: 215 | Q50: 231 | R50: 200 | S50: 226 | T50: 203 | U50: 211 | V50: 198 | W50: 201 | X50: 220 | Y50: 196 | Z50: 249 | AA50: 203 | AB50: 207 | AC50: 182 | AD50: 172 | AE50: 153 | AF50: 154 | AG50: 184 | AH50: 186 | AI50: 189 | AJ50: 191 | AK50: 197 | AL50: 199 | AM50: 175 | AN50: 178 | AO50: 200 | AP50: 268 | AQ50: 203 | AR50: 232 | AS50: 191 | AT50: 206 | AU50: 202 | AV50: 228 | AW50: 193 | AX50: 208 | AY50: 851 | AZ50: 1086 | BA50: 939 | BB50: 1274 | BC50: 893 | BD50: 1152 | BE50: 967 | BF50: 1016 | BG50: 914 | BH50: 1038 | BI50: 899 | BJ50: 933 | BK50: 741 | BL50: 857 | BM50: 719 | BN50: 792 | BO50: 660 | BP50: 589 | BQ50: 470 | BR50: 502 | BS50: 447 | BT50: 381 | BU50: 334 | BV50: 310 | BW50: 217 | BX50: 191 | BY50: 182 | BZ50: 195 | CA50: 8 | CB50: 14 | CC50: 96 | CD50: 77 | CE50: 94 | CF50: 105 | CG50: 499 | CH50: 14406 | CI50: 908 | CJ50: 1142 | CK50: 6499 | CL50: 787 | CN50: 372 | CO50: 1647 | CP50: 4735 | CQ50: 5145 | CR50: 2429 | CS50: 4981 | CT50: 10921 | CU50: 4478 | CW50: 2039 | CX50: 3937 | CY50: 19549 | DA50: 372 | DB50: 390 | DC50: 397 | DD50: 431 | DE50: 429 | DF50: 409 | DH50: 6732 | DI50: 7651 | DJ50: 2238 | DK50: 4139 | DL50: 7641 | DN50: 769 | DO50: 7318 | DP50: 2741 | DQ50: 2770 | DR50: 769 | DS50: 884 | DT50: 7318 | DU50: 8584 | DV50: 2093 | DW50: 1977
B51: 03 | C51: 44 | D51: 5774 | E51: P.S. 9 DE OCTUBRE | F51: 7434 | H51: 3547 | I51: 3887 | K51: 51 | L51: 49 | M51: 53 | N51: 52 | O51: 49 | P51: 58 | Q51: 62 | R51: 54 | S51: 61 | T51: 55 | U51: 57 | V51: 53 | W51: 55 | X51: 59 | Y51: 53 | Z51: 67 | AA51: 55 | AB51: 56 | AC51: 51 | AD51: 46 | AE51: 41 | AF51: 42 | AG51: 50 | AH51: 50 | AI51: 51 | AJ51: 52 | AK51: 53 | AL51: 54 | AM51: 47 | AN51: 48 | AO51: 54 | AP51: 72 | AQ51: 55 | AR51: 63 | AS51: 52 | AT51: 56 | AU51: 55 | AV51: 62 | AW51: 52 | AX51: 56 | AY51: 230 | AZ51: 292 | BA51: 253 | BB51: 344 | BC51: 241 | BD51: 311 | BE51: 261 | BF51: 274 | BG51: 247 | BH51: 280 | BI51: 242 | BJ51: 251 | BK51: 200 | BL51: 231 | BM51: 193 | BN51: 214 | BO51: 178 | BP51: 158 | BQ51: 127 | BR51: 136 | BS51: 121 | BT51: 103 | BU51: 90 | BV51: 84 | BW51: 58 | BX51: 52 | BY51: 49 | BZ51: 53 | CA51: 2 | CB51: 4 | CC51: 26 | CD51: 21 | CE51: 25 | CF51: 28 | CG51: 134 | CH51: 3887 | CI51: 246 | CJ51: 309 | CK51: 1752 | CL51: 212 | CN51: 100 | CO51: 444 | CP51: 1279 | CQ51: 1392 | CR51: 657 | CS51: 1344 | CT51: 2945 | CU51: 1209 | CW51: 552 | CX51: 1065 | CY51: 5273 | DA51: 100 | DB51: 105 | DC51: 107 | DD51: 116 | DE51: 116 | DF51: 110 | DH51: 1815 | DI51: 2063 | DJ51: 603 | DK51: 1116 | DL51: 2061 | DN51: 208 | DO51: 1974 | DP51: 742 | DQ51: 747 | DR51: 208 | DS51: 239 | DT51: 1974 | DU51: 2315 | DV51: 565 | DW51: 534
B52: 03 | C52: 45 | D52: 5775 | E52: P.S. LA MERCED | F52: 1112 | H52: 529 | I52: 583 | K52: 8 | L52: 9 | M52: 8 | N52: 8 | O52: 7 | P52: 10 | Q52: 9 | R52: 8 | S52: 9 | T52: 8 | U52: 8 | V52: 8 | W52: 8 | X52: 9 | Y52: 7 | Z52: 10 | AA52: 8 | AB52: 8 | AC52: 7 | AD52: 8 | AE52: 6 | AF52: 6 | AG52: 7 | AH52: 7 | AI52: 8 | AJ52: 8 | AK52: 8 | AL52: 8 | AM52: 7 | AN52: 7 | AO52: 8 | AP52: 11 | AQ52: 8 | AR52: 9 | AS52: 8 | AT52: 8 | AU52: 8 | AV52: 9 | AW52: 8 | AX52: 8 | AY52: 34 | AZ52: 44 | BA52: 38 | BB52: 51 | BC52: 36 | BD52: 46 | BE52: 39 | BF52: 41 | BG52: 37 | BH52: 42 | BI52: 36 | BJ52: 38 | BK52: 30 | BL52: 35 | BM52: 29 | BN52: 32 | BO52: 27 | BP52: 24 | BQ52: 19 | BR52: 20 | BS52: 18 | BT52: 15 | BU52: 13 | BV52: 12 | BW52: 9 | BX52: 8 | BY52: 9 | BZ52: 8 | CA52: 0 | CB52: 1 | CC52: 4 | CD52: 3 | CE52: 4 | CF52: 6 | CG52: 20 | CH52: 583 | CI52: 36 | CJ52: 45 | CK52: 262 | CL52: 32 | CN52: 17 | CO52: 67 | CP52: 191 | CQ52: 205 | CR52: 98 | CS52: 200 | CT52: 441 | CU52: 182 | CW52: 81 | CX52: 157 | CY52: 790 | DA52: 17 | DB52: 16 | DC52: 17 | DD52: 17 | DE52: 17 | DF52: 16 | DH52: 272 | DI52: 309 | DJ52: 91 | DK52: 167 | DL52: 307 | DN52: 31 | DO52: 295 | DP52: 108 | DQ52: 115 | DR52: 31 | DS52: 35 | DT52: 295 | DU52: 346 | DV52: 86 | DW52: 79
B53: 03 | C53: 46 | D53: 5776 | E53: P.S. LA VILLA | F53: 7974 | H53: 3803 | I53: 4171 | K53: 54 | L53: 53 | M53: 57 | N53: 56 | O53: 53 | P53: 62 | Q53: 67 | R53: 58 | S53: 65 | T53: 59 | U53: 61 | V53: 57 | W53: 58 | X53: 63 | Y53: 57 | Z53: 72 | AA53: 59 | AB53: 60 | AC53: 53 | AD53: 50 | AE53: 44 | AF53: 45 | AG53: 53 | AH53: 53 | AI53: 55 | AJ53: 55 | AK53: 57 | AL53: 58 | AM53: 51 | AN53: 52 | AO53: 58 | AP53: 78 | AQ53: 59 | AR53: 67 | AS53: 55 | AT53: 60 | AU53: 58 | AV53: 66 | AW53: 56 | AX53: 60 | AY53: 245 | AZ53: 314 | BA53: 272 | BB53: 369 | BC53: 258 | BD53: 333 | BE53: 280 | BF53: 295 | BG53: 265 | BH53: 301 | BI53: 261 | BJ53: 271 | BK53: 215 | BL53: 247 | BM53: 208 | BN53: 229 | BO53: 191 | BP53: 171 | BQ53: 136 | BR53: 146 | BS53: 130 | BT53: 110 | BU53: 97 | BV53: 90 | BW53: 62 | BX53: 54 | BY53: 53 | BZ53: 57 | CA53: 2 | CB53: 4 | CC53: 27 | CD53: 23 | CE53: 27 | CF53: 30 | CG53: 145 | CH53: 4171 | CI53: 263 | CJ53: 331 | CK53: 1883 | CL53: 227 | CN53: 107 | CO53: 477 | CP53: 1369 | CQ53: 1490 | CR53: 705 | CS53: 1440 | CT53: 3163 | CU53: 1297 | CW53: 590 | CX53: 1140 | CY53: 5660 | DA53: 107 | DB53: 113 | DC53: 115 | DD53: 125 | DE53: 124 | DF53: 118 | DH53: 1950 | DI53: 2216 | DJ53: 647 | DK53: 1200 | DL53: 2214 | DN53: 223 | DO53: 2118 | DP53: 793 | DQ53: 801 | DR53: 223 | DS53: 257 | DT53: 2118 | DU53: 2485 | DV53: 607 | DW53: 574
B54: 03 | C54: 47 | D54: 5777 | E54: P.S. EL AHORCADO | F54: 833 | H54: 397 | I54: 436 | K54: 6 | L54: 5 | M54: 6 | N54: 6 | O54: 5 | P54: 6 | Q54: 7 | R54: 6 | S54: 7 | T54: 6 | U54: 6 | V54: 7 | W54: 6 | X54: 7 | Y54: 6 | Z54: 7 | AA54: 6 | AB54: 7 | AC54: 5 | AD54: 5 | AE54: 5 | AF54: 5 | AG54: 6 | AH54: 6 | AI54: 6 | AJ54: 6 | AK54: 6 | AL54: 6 | AM54: 6 | AN54: 5 | AO54: 6 | AP54: 8 | AQ54: 6 | AR54: 7 | AS54: 6 | AT54: 6 | AU54: 6 | AV54: 7 | AW54: 6 | AX54: 8 | AY54: 26 | AZ54: 33 | BA54: 29 | BB54: 38 | BC54: 27 | BD54: 35 | BE54: 29 | BF54: 30 | BG54: 27 | BH54: 31 | BI54: 27 | BJ54: 28 | BK54: 22 | BL54: 26 | BM54: 22 | BN54: 24 | BO54: 20 | BP54: 18 | BQ54: 14 | BR54: 15 | BS54: 13 | BT54: 11 | BU54: 10 | BV54: 9 | BW54: 7 | BX54: 6 | BY54: 5 | BZ54: 6 | CA54: 0 | CB54: 1 | CC54: 3 | CD54: 2 | CE54: 3 | CF54: 3 | CG54: 15 | CH54: 436 | CI54: 28 | CJ54: 36 | CK54: 195 | CL54: 24 | CN54: 11 | CO54: 49 | CP54: 144 | CQ54: 158 | CR54: 74 | CS54: 153 | CT54: 328 | CU54: 134 | CW54: 62 | CX54: 123 | CY54: 588 | DA54: 11 | DB54: 12 | DC54: 11 | DD54: 13 | DE54: 13 | DF54: 13 | DH54: 203 | DI54: 230 | DJ54: 68 | DK54: 124 | DL54: 231 | DN54: 24 | DO54: 221 | DP54: 83 | DQ54: 85 | DR54: 24 | DS54: 26 | DT54: 221 | DU54: 260 | DV54: 62 | DW54: 59
B55: 03 | C55: 48 | D55: 5780 | E55: C.S. SAYAN | F55: 8529 | H55: 4069 | I55: 4460 | K55: 59 | L55: 56 | M55: 60 | N55: 60 | O55: 58 | P55: 67 | Q55: 72 | R55: 62 | S55: 70 | T55: 63 | U55: 65 | V55: 61 | W55: 62 | X55: 68 | Y55: 61 | Z55: 79 | AA55: 63 | AB55: 64 | AC55: 56 | AD55: 53 | AE55: 47 | AF55: 46 | AG55: 56 | AH55: 58 | AI55: 57 | AJ55: 58 | AK55: 61 | AL55: 61 | AM55: 54 | AN55: 56 | AO55: 62 | AP55: 83 | AQ55: 63 | AR55: 72 | AS55: 58 | AT55: 64 | AU55: 63 | AV55: 70 | AW55: 59 | AX55: 64 | AY55: 264 | AZ55: 337 | BA55: 291 | BB55: 395 | BC55: 277 | BD55: 357 | BE55: 300 | BF55: 315 | BG55: 283 | BH55: 322 | BI55: 279 | BJ55: 289 | BK55: 230 | BL55: 266 | BM55: 223 | BN55: 245 | BO55: 204 | BP55: 182 | BQ55: 146 | BR55: 155 | BS55: 139 | BT55: 118 | BU55: 104 | BV55: 96 | BW55: 67 | BX55: 59 | BY55: 56 | BZ55: 59 | CA55: 2 | CB55: 4 | CC55: 30 | CD55: 24 | CE55: 29 | CF55: 32 | CG55: 155 | CH55: 4460 | CI55: 279 | CJ55: 353 | CK55: 2015 | CL55: 244 | CN55: 115 | CO55: 512 | CP55: 1466 | CQ55: 1588 | CR55: 749 | CS55: 1543 | CT55: 3386 | CU55: 1385 | CW55: 632 | CX55: 1212 | CY55: 6058 | DA55: 115 | DB55: 120 | DC55: 125 | DD55: 134 | DE55: 133 | DF55: 126 | DH55: 2087 | DI55: 2371 | DJ55: 693 | DK55: 1283 | DL55: 2368 | DN55: 237 | DO55: 2269 | DP55: 847 | DQ55: 856 | DR55: 237 | DS55: 275 | DT55: 2269 | DU55: 2660 | DV55: 649 | DW55: 610
B56: 03 | C56: 49 | D56: 5781 | E56: P.S. CHAMBARA | F56: 835 | H56: 398 | I56: 437 | K56: 6 | L56: 5 | M56: 6 | N56: 6 | O56: 5 | P56: 6 | Q56: 7 | R56: 6 | S56: 7 | T56: 6 | U56: 8 | V56: 6 | W56: 6 | X56: 7 | Y56: 6 | Z56: 7 | AA56: 6 | AB56: 6 | AC56: 5 | AD56: 5 | AE56: 5 | AF56: 5 | AG56: 6 | AH56: 6 | AI56: 6 | AJ56: 6 | AK56: 6 | AL56: 6 | AM56: 5 | AN56: 5 | AO56: 6 | AP56: 8 | AQ56: 6 | AR56: 7 | AS56: 6 | AT56: 6 | AU56: 6 | AV56: 7 | AW56: 6 | AX56: 6 | AY56: 26 | AZ56: 33 | BA56: 28 | BB56: 39 | BC56: 27 | BD56: 35 | BE56: 29 | BF56: 31 | BG56: 28 | BH56: 31 | BI56: 27 | BJ56: 28 | BK56: 22 | BL56: 26 | BM56: 22 | BN56: 24 | BO56: 20 | BP56: 18 | BQ56: 14 | BR56: 15 | BS56: 13 | BT56: 13 | BU56: 10 | BV56: 10 | BW56: 7 | BX56: 6 | BY56: 5 | BZ56: 6 | CA56: 1 | CB56: 0 | CC56: 3 | CD56: 2 | CE56: 3 | CF56: 3 | CG56: 15 | CH56: 437 | CI56: 28 | CJ56: 34 | CK56: 197 | CL56: 24 | CN56: 11 | CO56: 49 | CP56: 144 | CQ56: 157 | CR56: 73 | CS56: 151 | CT56: 330 | CU56: 137 | CW56: 62 | CX56: 120 | CY56: 593 | DA56: 11 | DB56: 12 | DC56: 11 | DD56: 13 | DE56: 13 | DF56: 14 | DH56: 203 | DI56: 232 | DJ56: 68 | DK56: 125 | DL56: 231 | DN56: 23 | DO56: 221 | DP56: 85 | DQ56: 83 | DR56: 23 | DS56: 26 | DT56: 221 | DU56: 260 | DV56: 62 | DW56: 62
B57: 03 | C57: 50 | D57: 6726 | E57: P.S. LA UNION | F57: 827 | H57: 395 | I57: 432 | K57: 6 | L57: 5 | M57: 6 | N57: 6 | O57: 5 | P57: 6 | Q57: 7 | R57: 6 | S57: 7 | T57: 6 | U57: 6 | V57: 6 | W57: 6 | X57: 7 | Y57: 6 | Z57: 7 | AA57: 6 | AB57: 6 | AC57: 5 | AD57: 5 | AE57: 5 | AF57: 5 | AG57: 6 | AH57: 6 | AI57: 6 | AJ57: 6 | AK57: 6 | AL57: 6 | AM57: 5 | AN57: 5 | AO57: 6 | AP57: 8 | AQ57: 6 | AR57: 7 | AS57: 6 | AT57: 6 | AU57: 6 | AV57: 7 | AW57: 6 | AX57: 6 | AY57: 26 | AZ57: 33 | BA57: 28 | BB57: 38 | BC57: 27 | BD57: 35 | BE57: 29 | BF57: 30 | BG57: 27 | BH57: 31 | BI57: 27 | BJ57: 28 | BK57: 22 | BL57: 26 | BM57: 22 | BN57: 24 | BO57: 20 | BP57: 18 | BQ57: 14 | BR57: 15 | BS57: 13 | BT57: 11 | BU57: 10 | BV57: 9 | BW57: 7 | BX57: 6 | BY57: 5 | BZ57: 6 | CA57: 1 | CB57: 0 | CC57: 3 | CD57: 2 | CE57: 3 | CF57: 3 | CG57: 15 | CH57: 432 | CI57: 28 | CJ57: 34 | CK57: 195 | CL57: 24 | CN57: 11 | CO57: 49 | CP57: 142 | CQ57: 155 | CR57: 73 | CS57: 150 | CT57: 328 | CU57: 134 | CW57: 60 | CX57: 120 | CY57: 587 | DA57: 11 | DB57: 12 | DC57: 11 | DD57: 13 | DE57: 13 | DF57: 12 | DH57: 202 | DI57: 230 | DJ57: 68 | DK57: 124 | DL57: 229 | DN57: 23 | DO57: 220 | DP57: 83 | DQ57: 83 | DR57: 23 | DS57: 26 | DT57: 220 | DU57: 258 | DV57: 62 | DW57: 59
A58: 150812 | C58: 51 | D58: 150812 | E58: DISTRITO VEGUETA | F58: 30644 | H58: 14622 | I58: 16022 | K58: 257 | L58: 287 | M58: 250 | N58: 265 | O58: 252 | P58: 280 | Q58: 297 | R58: 289 | S58: 312 | T58: 278 | U58: 263 | V58: 258 | W58: 263 | X58: 235 | Y58: 263 | Z58: 247 | AA58: 229 | AB58: 247 | AC58: 192 | AD58: 166 | AE58: 218 | AF58: 211 | AG58: 225 | AH58: 218 | AI58: 216 | AJ58: 210 | AK58: 216 | AL58: 210 | AM58: 188 | AN58: 182 | AO58: 256 | AP58: 231 | AQ58: 233 | AR58: 212 | AS58: 213 | AT58: 238 | AU58: 216 | AV58: 220 | AW58: 205 | AX58: 234 | AY58: 898 | AZ58: 1096 | BA58: 1087 | BB58: 1470 | BC58: 1089 | BD58: 1364 | BE58: 1093 | BF58: 1187 | BG58: 986 | BH58: 1091 | BI58: 886 | BJ58: 990 | BK58: 785 | BL58: 905 | BM58: 748 | BN58: 836 | BO58: 625 | BP58: 675 | BQ58: 488 | BR58: 496 | BS58: 434 | BT58: 414 | BU58: 349 | BV58: 313 | BW58: 190 | BX58: 214 | BY58: 200 | BZ58: 253 | CA58: 14 | CB58: 11 | CC58: 106 | CD58: 108 | CE58: 151 | CF58: 179 | CG58: 782 | CH58: 16022 | CI58: 1031 | CJ58: 1135 | CK58: 7198 | CL58: 1328 | CN58: 544 | CO58: 2223 | CP58: 6002 | CQ58: 5840 | CR58: 2605 | CS58: 5426 | CT58: 11960 | CU58: 4651 | CW58: 2363 | CX58: 4352 | CY58: 21162 | DA58: 544 | DB58: 515 | DC58: 532 | DD58: 586 | DE58: 590 | DF58: 521 | DH58: 7299 | DI58: 8518 | DJ58: 2416 | DK58: 4632 | DL58: 8333 | DN58: 890 | DO58: 7993 | DP58: 3453 | DQ58: 3401 | DR58: 890 | DS58: 863 | DT58: 7993 | DU58: 9393 | DV58: 2096 | DW58: 2151
B59: 04 | C59: 52 | D59: 5673 | E59: C.S. VEGUETA | F59: 8274 | H59: 3946 | I59: 4328 | K59: 69 | L59: 77 | M59: 67 | N59: 72 | O59: 69 | P59: 77 | Q59: 80 | R59: 79 | S59: 84 | T59: 75 | U59: 71 | V59: 70 | W59: 71 | X59: 63 | Y59: 71 | Z59: 67 | AA59: 62 | AB59: 67 | AC59: 52 | AD59: 45 | AE59: 59 | AF59: 57 | AG59: 61 | AH59: 59 | AI59: 58 | AJ59: 57 | AK59: 58 | AL59: 57 | AM59: 51 | AN59: 49 | AO59: 69 | AP59: 62 | AQ59: 63 | AR59: 57 | AS59: 58 | AT59: 64 | AU59: 58 | AV59: 59 | AW59: 55 | AX59: 63 | AY59: 242 | AZ59: 296 | BA59: 293 | BB59: 397 | BC59: 294 | BD59: 368 | BE59: 295 | BF59: 320 | BG59: 266 | BH59: 295 | BI59: 239 | BJ59: 267 | BK59: 212 | BL59: 244 | BM59: 202 | BN59: 226 | BO59: 169 | BP59: 182 | BQ59: 132 | BR59: 134 | BS59: 117 | BT59: 112 | BU59: 94 | BV59: 85 | BW59: 51 | BX59: 58 | BY59: 54 | BZ59: 68 | CA59: 4 | CB59: 3 | CC59: 29 | CD59: 29 | CE59: 40 | CF59: 48 | CG59: 213 | CH59: 4328 | CI59: 279 | CJ59: 305 | CK59: 1943 | CL59: 372 | CN59: 146 | CO59: 603 | CP59: 1624 | CQ59: 1578 | CR59: 703 | CS59: 1463 | CT59: 3228 | CU59: 1256 | CW59: 639 | CX59: 1174 | CY59: 5712 | DA59: 146 | DB59: 139 | DC59: 146 | DD59: 159 | DE59: 159 | DF59: 141 | DH59: 1970 | DI59: 2299 | DJ59: 652 | DK59: 1250 | DL59: 2248 | DN59: 241 | DO59: 2156 | DP59: 932 | DQ59: 922 | DR59: 241 | DS59: 232 | DT59: 2156 | DU59: 2535 | DV59: 566 | DW59: 581
B60: 04 | C60: 53 | D60: 5674 | E60: P.S. MAZO | F60: 1992 | H60: 951 | I60: 1041 | K60: 17 | L60: 19 | M60: 16 | N60: 17 | O60: 16 | P60: 18 | Q60: 20 | R60: 19 | S60: 20 | T60: 18 | U60: 17 | V60: 17 | W60: 17 | X60: 16 | Y60: 17 | Z60: 16 | AA60: 15 | AB60: 16 | AC60: 13 | AD60: 10 | AE60: 14 | AF60: 14 | AG60: 15 | AH60: 14 | AI60: 14 | AJ60: 14 | AK60: 14 | AL60: 14 | AM60: 12 | AN60: 12 | AO60: 17 | AP60: 15 | AQ60: 15 | AR60: 14 | AS60: 14 | AT60: 15 | AU60: 14 | AV60: 14 | AW60: 13 | AX60: 15 | AY60: 58 | AZ60: 71 | BA60: 71 | BB60: 96 | BC60: 71 | BD60: 89 | BE60: 71 | BF60: 77 | BG60: 64 | BH60: 71 | BI60: 58 | BJ60: 64 | BK60: 51 | BL60: 59 | BM60: 48 | BN60: 54 | BO60: 41 | BP60: 44 | BQ60: 32 | BR60: 32 | BS60: 28 | BT60: 27 | BU60: 23 | BV60: 20 | BW60: 12 | BX60: 14 | BY60: 13 | BZ60: 16 | CA60: 1 | CB60: 1 | CC60: 7 | CD60: 7 | CE60: 10 | CF60: 12 | CG60: 52 | CH60: 1041 | CI60: 68 | CJ60: 73 | CK60: 468 | CL60: 100 | CN60: 36 | CO60: 144 | CP60: 391 | CQ60: 381 | CR60: 170 | CS60: 352 | CT60: 777 | CU60: 302 | CW60: 154 | CX60: 283 | CY60: 1375 | DA60: 36 | DB60: 33 | DC60: 34 | DD60: 39 | DE60: 38 | DF60: 34 | DH60: 475 | DI60: 554 | DJ60: 157 | DK60: 301 | DL60: 541 | DN60: 58 | DO60: 519 | DP60: 225 | DQ60: 222 | DR60: 58 | DS60: 56 | DT60: 519 | DU60: 610 | DV60: 137 | DW60: 139
B61: 04 | C61: 54 | D61: 5675 | E61: P.S. PRIMAVERA | F61: 7354 | H61: 3511 | I61: 3843 | K61: 62 | L61: 69 | M61: 60 | N61: 64 | O61: 60 | P61: 67 | Q61: 71 | R61: 69 | S61: 75 | T61: 67 | U61: 63 | V61: 62 | W61: 63 | X61: 56 | Y61: 63 | Z61: 59 | AA61: 55 | AB61: 59 | AC61: 46 | AD61: 40 | AE61: 52 | AF61: 50 | AG61: 54 | AH61: 52 | AI61: 53 | AJ61: 50 | AK61: 52 | AL61: 50 | AM61: 45 | AN61: 44 | AO61: 62 | AP61: 55 | AQ61: 56 | AR61: 51 | AS61: 51 | AT61: 57 | AU61: 52 | AV61: 53 | AW61: 49 | AX61: 56 | AY61: 216 | AZ61: 263 | BA61: 261 | BB61: 353 | BC61: 261 | BD61: 327 | BE61: 262 | BF61: 285 | BG61: 237 | BH61: 262 | BI61: 213 | BJ61: 238 | BK61: 188 | BL61: 217 | BM61: 180 | BN61: 201 | BO61: 150 | BP61: 162 | BQ61: 117 | BR61: 119 | BS61: 104 | BT61: 99 | BU61: 84 | BV61: 75 | BW61: 46 | BX61: 51 | BY61: 48 | BZ61: 61 | CA61: 3 | CB61: 3 | CC61: 25 | CD61: 26 | CE61: 37 | CF61: 43 | CG61: 187 | CH61: 3843 | CI61: 246 | CJ61: 272 | CK61: 1728 | CL61: 319 | CN61: 131 | CO61: 533 | CP61: 1438 | CQ61: 1400 | CR61: 626 | CS61: 1303 | CT61: 2871 | CU61: 1116 | CW61: 566 | CX61: 1044 | CY61: 5080 | DA61: 131 | DB61: 124 | DC61: 127 | DD61: 140 | DE61: 142 | DF61: 125 | DH61: 1752 | DI61: 2045 | DJ61: 580 | DK61: 1112 | DL61: 2000 | DN61: 214 | DO61: 1919 | DP61: 829 | DQ61: 814 | DR61: 214 | DS61: 207 | DT61: 1919 | DU61: 2255 | DV61: 503 | DW61: 516
B62: 04 | C62: 55 | D62: 5676 | E62: P.S. MARIATEGUI | F62: 10113 | H62: 4823 | I62: 5290 | K62: 85 | L62: 95 | M62: 83 | N62: 87 | O62: 83 | P62: 92 | Q62: 98 | R62: 95 | S62: 103 | T62: 92 | U62: 87 | V62: 85 | W62: 87 | X62: 78 | Y62: 87 | Z62: 82 | AA62: 75 | AB62: 82 | AC62: 63 | AD62: 55 | AE62: 72 | AF62: 70 | AG62: 74 | AH62: 72 | AI62: 71 | AJ62: 69 | AK62: 72 | AL62: 69 | AM62: 62 | AN62: 60 | AO62: 84 | AP62: 76 | AQ62: 77 | AR62: 70 | AS62: 70 | AT62: 79 | AU62: 71 | AV62: 73 | AW62: 68 | AX62: 77 | AY62: 296 | AZ62: 362 | BA62: 359 | BB62: 485 | BC62: 359 | BD62: 450 | BE62: 361 | BF62: 392 | BG62: 325 | BH62: 360 | BI62: 292 | BJ62: 327 | BK62: 259 | BL62: 299 | BM62: 247 | BN62: 276 | BO62: 206 | BP62: 223 | BQ62: 161 | BR62: 164 | BS62: 142 | BT62: 137 | BU62: 115 | BV62: 103 | BW62: 63 | BX62: 71 | BY62: 66 | BZ62: 83 | CA62: 5 | CB62: 3 | CC62: 34 | CD62: 36 | CE62: 51 | CF62: 59 | CG62: 255 | CH62: 5290 | CI62: 340 | CJ62: 375 | CK62: 2376 | CL62: 385 | CN62: 180 | CO62: 733 | CP62: 1982 | CQ62: 1928 | CR62: 859 | CS62: 1791 | CT62: 3947 | CU62: 1534 | CW62: 781 | CX62: 1436 | CY62: 6983 | DA62: 180 | DB62: 170 | DC62: 175 | DD62: 193 | DE62: 195 | DF62: 172 | DH62: 2408 | DI62: 2812 | DJ62: 798 | DK62: 1529 | DL62: 2751 | DN62: 293 | DO62: 2637 | DP62: 1140 | DQ62: 1123 | DR62: 293 | DS62: 285 | DT62: 2637 | DU62: 3101 | DV62: 690 | DW62: 710
B63: 04 | C63: 56 | D63: 5677 | E63: P.S. MEDIO MUNDO | F63: 2758 | H63: 1317 | I63: 1441 | K63: 23 | L63: 26 | M63: 23 | N63: 24 | O63: 23 | P63: 25 | Q63: 27 | R63: 26 | S63: 28 | T63: 25 | U63: 24 | V63: 23 | W63: 24 | X63: 21 | Y63: 24 | Z63: 22 | AA63: 21 | AB63: 22 | AC63: 17 | AD63: 15 | AE63: 20 | AF63: 19 | AG63: 20 | AH63: 20 | AI63: 19 | AJ63: 19 | AK63: 19 | AL63: 19 | AM63: 17 | AN63: 16 | AO63: 23 | AP63: 21 | AQ63: 21 | AR63: 19 | AS63: 19 | AT63: 21 | AU63: 19 | AV63: 20 | AW63: 18 | AX63: 21 | AY63: 81 | AZ63: 99 | BA63: 98 | BB63: 132 | BC63: 98 | BD63: 123 | BE63: 98 | BF63: 107 | BG63: 89 | BH63: 98 | BI63: 80 | BJ63: 89 | BK63: 71 | BL63: 81 | BM63: 67 | BN63: 75 | BO63: 56 | BP63: 61 | BQ63: 44 | BR63: 45 | BS63: 40 | BT63: 37 | BU63: 31 | BV63: 28 | BW63: 17 | BX63: 19 | BY63: 18 | BZ63: 23 | CA63: 1 | CB63: 1 | CC63: 10 | CD63: 10 | CE63: 13 | CF63: 16 | CG63: 71 | CH63: 1441 | CI63: 93 | CJ63: 102 | CK63: 648 | CL63: 146 | CN63: 49 | CO63: 201 | CP63: 542 | CQ63: 525 | CR63: 233 | CS63: 488 | CT63: 1076 | CU63: 419 | CW63: 213 | CX63: 390 | CY63: 1905 | DA63: 49 | DB63: 47 | DC63: 48 | DD63: 53 | DE63: 53 | DF63: 47 | DH63: 657 | DI63: 766 | DJ63: 217 | DK63: 417 | DL63: 750 | DN63: 80 | DO63: 719 | DP63: 312 | DQ63: 306 | DR63: 80 | DS63: 77 | DT63: 719 | DU63: 845 | DV63: 189 | DW63: 194
B64: 04 | C64: 57 | D64: 5678 | E64: P.S. TIROLER | F64: 153 | H64: 74 | I64: 79 | K64: 1 | L64: 1 | M64: 1 | N64: 1 | O64: 1 | P64: 1 | Q64: 1 | R64: 1 | S64: 2 | T64: 1 | U64: 1 | V64: 1 | W64: 1 | X64: 1 | Y64: 1 | Z64: 1 | AA64: 1 | AB64: 1 | AC64: 1 | AD64: 1 | AE64: 1 | AF64: 1 | AG64: 1 | AH64: 1 | AI64: 1 | AJ64: 1 | AK64: 1 | AL64: 1 | AM64: 1 | AN64: 1 | AO64: 1 | AP64: 2 | AQ64: 1 | AR64: 1 | AS64: 1 | AT64: 2 | AU64: 2 | AV64: 1 | AW64: 2 | AX64: 2 | AY64: 5 | AZ64: 5 | BA64: 5 | BB64: 7 | BC64: 6 | BD64: 7 | BE64: 6 | BF64: 6 | BG64: 5 | BH64: 5 | BI64: 4 | BJ64: 5 | BK64: 4 | BL64: 5 | BM64: 4 | BN64: 4 | BO64: 3 | BP64: 3 | BQ64: 2 | BR64: 2 | BS64: 3 | BT64: 2 | BU64: 2 | BV64: 2 | BW64: 1 | BX64: 1 | BY64: 1 | BZ64: 2 | CA64: 0 | CB64: 0 | CC64: 1 | CD64: 0 | CE64: 0 | CF64: 1 | CG64: 4 | CH64: 79 | CI64: 5 | CJ64: 8 | CK64: 35 | CL64: 6 | CN64: 2 | CO64: 9 | CP64: 25 | CQ64: 28 | CR64: 14 | CS64: 29 | CT64: 61 | CU64: 24 | CW64: 10 | CX64: 25 | CY64: 107 | DA64: 2 | DB64: 2 | DC64: 2 | DD64: 2 | DE64: 3 | DF64: 2 | DH64: 37 | DI64: 42 | DJ64: 12 | DK64: 23 | DL64: 43 | DN64: 4 | DO64: 43 | DP64: 15 | DQ64: 14 | DR64: 4 | DS64: 6 | DT64: 43 | DU64: 47 | DV64: 11 | DW64: 11
A65: 150900 | C65: 58 | D65: 150900 | E65: PROVINCIA OYON | F65: 17137 | H65: 8265 | I65: 8872 | K65: 116 | L65: 127 | M65: 91 | N65: 101 | O65: 92 | P65: 103 | Q65: 94 | R65: 108 | S65: 105 | T65: 103 | U65: 134 | V65: 121 | W65: 125 | X65: 118 | Y65: 126 | Z65: 125 | AA65: 115 | AB65: 136 | AC65: 120 | AD65: 113 | AE65: 129 | AF65: 132 | AG65: 130 | AH65: 132 | AI65: 150 | AJ65: 154 | AK65: 141 | AL65: 147 | AM65: 123 | AN65: 132 | AO65: 172 | AP65: 184 | AQ65: 155 | AR65: 187 | AS65: 154 | AT65: 150 | AU65: 146 | AV65: 136 | AW65: 124 | AX65: 125 | AY65: 560 | AZ65: 606 | BA65: 538 | BB65: 692 | BC65: 508 | BD65: 636 | BE65: 554 | BF65: 585 | BG65: 512 | BH65: 483 | BI65: 534 | BJ65: 509 | BK65: 498 | BL65: 545 | BM65: 456 | BN65: 478 | BO65: 439 | BP65: 408 | BQ65: 322 | BR65: 334 | BS65: 298 | BT65: 300 | BU65: 218 | BV65: 255 | BW65: 140 | BX65: 193 | BY65: 146 | BZ65: 214 | CA65: 11 | CB65: 4 | CC65: 49 | CD65: 46 | CE65: 67 | CF65: 81 | CG65: 329 | CH65: 8872 | CI65: 697 | CJ65: 782 | CK65: 3511 | CL65: 438 | CN65: 243 | CO65: 797 | CP65: 2796 | CQ65: 3605 | CR65: 1849 | CS65: 2927 | CT65: 6298 | CU65: 3267 | CW65: 1233 | CX65: 2903 | CY65: 11961 | DA65: 243 | DB65: 192 | DC65: 195 | DD65: 202 | DE65: 208 | DF65: 255 | DH65: 4039 | DI65: 4336 | DJ65: 1431 | DK65: 2213 | DL65: 4293 | DN65: 604 | DO65: 4430 | DP65: 1668 | DQ65: 1720 | DR65: 604 | DS65: 653 | DT65: 4430 | DU65: 4795 | DV65: 1423 | DW65: 1511
A66: 150901 | C66: 59 | D66: 150901 | E66: DISTRITO OYON | F66: 11592 | H66: 5609 | I66: 5983 | K66: 60 | L66: 74 | M66: 48 | N66: 58 | O66: 53 | P66: 46 | Q66: 50 | R66: 51 | S66: 44 | T66: 53 | U66: 85 | V66: 68 | W66: 96 | X66: 93 | Y66: 104 | Z66: 100 | AA66: 86 | AB66: 113 | AC66: 101 | AD66: 97 | AE66: 104 | AF66: 101 | AG66: 101 | AH66: 98 | AI66: 116 | AJ66: 113 | AK66: 108 | AL66: 106 | AM66: 100 | AN66: 99 | AO66: 133 | AP66: 137 | AQ66: 119 | AR66: 132 | AS66: 113 | AT66: 104 | AU66: 96 | AV66: 93 | AW66: 92 | AX66: 92 | AY66: 402 | AZ66: 442 | BA66: 404 | BB66: 488 | BC66: 373 | BD66: 482 | BE66: 405 | BF66: 421 | BG66: 358 | BH66: 335 | BI66: 359 | BJ66: 348 | BK66: 347 | BL66: 377 | BM66: 288 | BN66: 290 | BO66: 260 | BP66: 245 | BQ66: 198 | BR66: 199 | BS66: 171 | BT66: 168 | BU66: 112 | BV66: 136 | BW66: 68 | BX66: 110 | BY66: 55 | BZ66: 114 | CA66: 7 | CB66: 3 | CC66: 25 | CD66: 22 | CE66: 35 | CF66: 52 | CG66: 171 | CH66: 5983 | CI66: 517 | CJ66: 558 | CK66: 2516 | CL66: 234 | CN66: 134 | CO66: 403 | CP66: 1884 | CQ66: 2727 | CR66: 1380 | CS66: 2109 | CT66: 4383 | CU66: 1836 | CW66: 943 | CX66: 2157 | CY66: 7955 | DA66: 134 | DB66: 106 | DC66: 99 | DD66: 101 | DE66: 97 | DF66: 153 | DH66: 2794 | DI66: 2986 | DJ66: 912 | DK66: 1586 | DL66: 3074 | DN66: 465 | DO66: 3124 | DP66: 1156 | DQ66: 1171 | DR66: 465 | DS66: 472 | DT66: 3124 | DU66: 3368 | DV66: 796 | DW66: 862
B67: 05 | C67: 60 | D67: 5648 | E67: P.S. RAPAZ | F67: 745 | H67: 360 | I67: 385 | K67: 4 | L67: 4 | M67: 3 | N67: 4 | O67: 3 | P67: 3 | Q67: 3 | R67: 3 | S67: 3 | T67: 3 | U67: 6 | V67: 4 | W67: 6 | X67: 6 | Y67: 7 | Z67: 7 | AA67: 6 | AB67: 7 | AC67: 7 | AD67: 6 | AE67: 7 | AF67: 6 | AG67: 6 | AH67: 6 | AI67: 7 | AJ67: 7 | AK67: 7 | AL67: 7 | AM67: 7 | AN67: 6 | AO67: 8 | AP67: 8 | AQ67: 7 | AR67: 9 | AS67: 7 | AT67: 7 | AU67: 6 | AV67: 6 | AW67: 6 | AX67: 6 | AY67: 25 | AZ67: 29 | BA67: 26 | BB67: 32 | BC67: 25 | BD67: 31 | BE67: 26 | BF67: 27 | BG67: 23 | BH67: 22 | BI67: 23 | BJ67: 23 | BK67: 23 | BL67: 25 | BM67: 18 | BN67: 18 | BO67: 17 | BP67: 17 | BQ67: 12 | BR67: 12 | BS67: 11 | BT67: 11 | BU67: 7 | BV67: 9 | BW67: 4 | BX67: 7 | BY67: 4 | BZ67: 7 | CA67: 1 | CB67: 0 | CC67: 2 | CD67: 1 | CE67: 2 | CF67: 3 | CG67: 11 | CH67: 385 | CI67: 32 | CJ67: 36 | CK67: 164 | CL67: 16 | CN67: 8 | CO67: 25 | CP67: 120 | CQ67: 174 | CR67: 87 | CS67: 136 | CT67: 284 | CU67: 118 | CW67: 62 | CX67: 136 | CY67: 514 | DA67: 8 | DB67: 7 | DC67: 6 | DD67: 6 | DE67: 6 | DF67: 10 | DH67: 181 | DI67: 195 | DJ67: 60 | DK67: 103 | DL67: 200 | DN67: 29 | DO67: 201 | DP67: 75 | DQ67: 73 | DR67: 29 | DS67: 30 | DT67: 201 | DU67: 219 | DV67: 51 | DW67: 56
B68: 05 | C68: 61 | D68: 5659 | E68: C.S. OYON | F68: 9712 | H68: 4699 | I68: 5013 | K68: 49 | L68: 62 | M68: 41 | N68: 47 | O68: 45 | P68: 39 | Q68: 43 | R68: 44 | S68: 37 | T68: 45 | U68: 71 | V68: 57 | W68: 80 | X68: 78 | Y68: 87 | Z68: 83 | AA68: 72 | AB68: 95 | AC68: 84 | AD68: 81 | AE68: 87 | AF68: 85 | AG68: 85 | AH68: 82 | AI68: 97 | AJ68: 95 | AK68: 91 | AL68: 89 | AM68: 83 | AN68: 83 | AO68: 111 | AP68: 115 | AQ68: 100 | AR68: 111 | AS68: 95 | AT68: 87 | AU68: 80 | AV68: 78 | AW68: 77 | AX68: 77 | AY68: 337 | AZ68: 369 | BA68: 338 | BB68: 409 | BC68: 312 | BD68: 404 | BE68: 339 | BF68: 353 | BG68: 300 | BH68: 281 | BI68: 301 | BJ68: 291 | BK68: 291 | BL68: 316 | BM68: 241 | BN68: 243 | BO68: 218 | BP68: 205 | BQ68: 166 | BR68: 167 | BS68: 143 | BT68: 142 | BU68: 95 | BV68: 113 | BW68: 57 | BX68: 92 | BY68: 46 | BZ68: 95 | CA68: 5 | CB68: 3 | CC68: 21 | CD68: 19 | CE68: 28 | CF68: 43 | CG68: 143 | CH68: 5013 | CI68: 434 | CJ68: 468 | CK68: 2107 | CL68: 196 | CN68: 111 | CO68: 341 | CP68: 1579 | CQ68: 2284 | CR68: 1157 | CS68: 1765 | CT68: 3672 | CU68: 1539 | CW68: 788 | CX68: 1808 | CY68: 6664 | DA68: 111 | DB68: 88 | DC68: 84 | DD68: 87 | DE68: 82 | DF68: 128 | DH68: 2340 | DI68: 2502 | DJ68: 764 | DK68: 1329 | DL68: 2575 | DN68: 389 | DO68: 2616 | DP68: 969 | DQ68: 982 | DR68: 389 | DS68: 396 | DT68: 2616 | DU68: 2821 | DV68: 668 | DW68: 722
B69: 05 | C69: 62 | D69: 5660 | E69: P.S. MALLAY | F69: 574 | H69: 277 | I69: 297 | K69: 3 | L69: 4 | M69: 2 | N69: 3 | O69: 3 | P69: 2 | Q69: 2 | R69: 2 | S69: 2 | T69: 3 | U69: 4 | V69: 3 | W69: 5 | X69: 5 | Y69: 5 | Z69: 5 | AA69: 4 | AB69: 6 | AC69: 5 | AD69: 5 | AE69: 5 | AF69: 5 | AG69: 5 | AH69: 5 | AI69: 6 | AJ69: 6 | AK69: 5 | AL69: 5 | AM69: 5 | AN69: 5 | AO69: 7 | AP69: 7 | AQ69: 6 | AR69: 6 | AS69: 6 | AT69: 5 | AU69: 5 | AV69: 5 | AW69: 5 | AX69: 5 | AY69: 20 | AZ69: 22 | BA69: 20 | BB69: 24 | BC69: 18 | BD69: 24 | BE69: 20 | BF69: 21 | BG69: 18 | BH69: 16 | BI69: 18 | BJ69: 17 | BK69: 17 | BL69: 18 | BM69: 14 | BN69: 14 | BO69: 13 | BP69: 12 | BQ69: 10 | BR69: 10 | BS69: 8 | BT69: 8 | BU69: 5 | BV69: 7 | BW69: 3 | BX69: 6 | BY69: 3 | BZ69: 6 | CA69: 1 | CB69: 0 | CC69: 1 | CD69: 1 | CE69: 2 | CF69: 3 | CG69: 8 | CH69: 297 | CI69: 26 | CJ69: 28 | CK69: 124 | CL69: 11 | CN69: 7 | CO69: 19 | CP69: 93 | CQ69: 136 | CR69: 69 | CS69: 106 | CT69: 215 | CU69: 91 | CW69: 47 | CX69: 109 | CY69: 392 | DA69: 7 | DB69: 5 | DC69: 5 | DD69: 4 | DE69: 5 | DF69: 7 | DH69: 138 | DI69: 146 | DJ69: 44 | DK69: 78 | DL69: 152 | DN69: 24 | DO69: 155 | DP69: 56 | DQ69: 59 | DR69: 24 | DS69: 23 | DT69: 155 | DU69: 166 | DV69: 39 | DW69: 43
B70: 05 | C70: 63 | D70: 5661 | E70: P.S. NAVA | F70: 148 | H70: 72 | I70: 76 | K70: 1 | L70: 1 | M70: 1 | N70: 1 | O70: 1 | P70: 1 | Q70: 1 | R70: 1 | S70: 1 | T70: 1 | U70: 1 | V70: 1 | W70: 1 | X70: 1 | Y70: 1 | Z70: 1 | AA70: 1 | AB70: 1 | AC70: 1 | AD70: 1 | AE70: 1 | AF70: 1 | AG70: 1 | AH70: 1 | AI70: 2 | AJ70: 1 | AK70: 1 | AL70: 1 | AM70: 1 | AN70: 1 | AO70: 2 | AP70: 2 | AQ70: 2 | AR70: 2 | AS70: 1 | AT70: 1 | AU70: 1 | AV70: 1 | AW70: 1 | AX70: 1 | AY70: 5 | AZ70: 6 | BA70: 5 | BB70: 6 | BC70: 5 | BD70: 6 | BE70: 5 | BF70: 5 | BG70: 5 | BH70: 4 | BI70: 5 | BJ70: 5 | BK70: 4 | BL70: 5 | BM70: 4 | BN70: 4 | BO70: 3 | BP70: 3 | BQ70: 3 | BR70: 3 | BS70: 2 | BT70: 2 | BU70: 1 | BV70: 2 | BW70: 1 | BX70: 1 | BY70: 1 | BZ70: 2 | CA70: 0 | CB70: 0 | CC70: 0 | CD70: 0 | CE70: 1 | CF70: 1 | CG70: 2 | CH70: 76 | CI70: 5 | CJ70: 7 | CK70: 32 | CL70: 3 | CN70: 2 | CO70: 8 | CP70: 24 | CQ70: 31 | CR70: 17 | CS70: 26 | CT70: 57 | CU70: 24 | CW70: 10 | CX70: 25 | CY70: 103 | DA70: 2 | DB70: 2 | DC70: 2 | DD70: 2 | DE70: 2 | DF70: 2 | DH70: 36 | DI70: 38 | DJ70: 12 | DK70: 20 | DL70: 39 | DN70: 6 | DO70: 40 | DP70: 15 | DQ70: 14 | DR70: 6 | DS70: 6 | DT70: 40 | DU70: 43 | DV70: 10 | DW70: 12
B71: 05 | C71: 64 | D71: 5662 | E71: P.S. TINTA | F71: 309 | H71: 150 | I71: 159 | K71: 2 | L71: 2 | M71: 1 | N71: 2 | O71: 1 | P71: 1 | Q71: 1 | R71: 1 | S71: 1 | T71: 1 | U71: 2 | V71: 2 | W71: 3 | X71: 2 | Y71: 3 | Z71: 3 | AA71: 2 | AB71: 3 | AC71: 3 | AD71: 3 | AE71: 3 | AF71: 3 | AG71: 3 | AH71: 3 | AI71: 3 | AJ71: 3 | AK71: 3 | AL71: 3 | AM71: 3 | AN71: 3 | AO71: 4 | AP71: 4 | AQ71: 3 | AR71: 3 | AS71: 3 | AT71: 3 | AU71: 3 | AV71: 2 | AW71: 2 | AX71: 2 | AY71: 11 | AZ71: 12 | BA71: 11 | BB71: 13 | BC71: 10 | BD71: 13 | BE71: 11 | BF71: 11 | BG71: 9 | BH71: 9 | BI71: 9 | BJ71: 9 | BK71: 9 | BL71: 10 | BM71: 8 | BN71: 8 | BO71: 7 | BP71: 6 | BQ71: 5 | BR71: 5 | BS71: 5 | BT71: 4 | BU71: 3 | BV71: 4 | BW71: 2 | BX71: 3 | BY71: 1 | BZ71: 3 | CA71: 0 | CB71: 0 | CC71: 1 | CD71: 1 | CE71: 1 | CF71: 1 | CG71: 5 | CH71: 159 | CI71: 15 | CJ71: 14 | CK71: 67 | CL71: 6 | CN71: 4 | CO71: 9 | CP71: 51 | CQ71: 76 | CR71: 38 | CS71: 56 | CT71: 116 | CU71: 48 | CW71: 26 | CX71: 59 | CY71: 211 | DA71: 4 | DB71: 3 | DC71: 2 | DD71: 2 | DE71: 2 | DF71: 4 | DH71: 74 | DI71: 79 | DJ71: 24 | DK71: 42 | DL71: 81 | DN71: 13 | DO71: 83 | DP71: 31 | DQ71: 32 | DR71: 13 | DS71: 13 | DT71: 83 | DU71: 89 | DV71: 21 | DW71: 22
B72: 05 | C72: 65 | D72: 35035 | E72: P.S. QUICHAS | F72: 104 | H72: 51 | I72: 53 | K72: 1 | L72: 1 | M72: 0 | N72: 1 | O72: 0 | P72: 0 | Q72: 0 | R72: 0 | S72: 0 | T72: 0 | U72: 1 | V72: 1 | W72: 1 | X72: 1 | Y72: 1 | Z72: 1 | AA72: 1 | AB72: 1 | AC72: 1 | AD72: 1 | AE72: 1 | AF72: 1 | AG72: 1 | AH72: 1 | AI72: 1 | AJ72: 1 | AK72: 1 | AL72: 1 | AM72: 1 | AN72: 1 | AO72: 1 | AP72: 1 | AQ72: 1 | AR72: 1 | AS72: 1 | AT72: 1 | AU72: 1 | AV72: 1 | AW72: 1 | AX72: 1 | AY72: 4 | AZ72: 4 | BA72: 4 | BB72: 4 | BC72: 3 | BD72: 4 | BE72: 4 | BF72: 4 | BG72: 3 | BH72: 3 | BI72: 3 | BJ72: 3 | BK72: 3 | BL72: 3 | BM72: 3 | BN72: 3 | BO72: 2 | BP72: 2 | BQ72: 2 | BR72: 2 | BS72: 2 | BT72: 1 | BU72: 1 | BV72: 1 | BW72: 1 | BX72: 1 | BY72: 0 | BZ72: 1 | CA72: 0 | CB72: 0 | CC72: 0 | CD72: 0 | CE72: 1 | CF72: 1 | CG72: 2 | CH72: 53 | CI72: 5 | CJ72: 5 | CK72: 22 | CL72: 2 | CN72: 2 | CO72: 1 | CP72: 17 | CQ72: 26 | CR72: 12 | CS72: 20 | CT72: 39 | CU72: 16 | CW72: 10 | CX72: 20 | CY72: 71 | DA72: 2 | DB72: 1 | DC72: 0 | DD72: 0 | DE72: 0 | DF72: 2 | DH72: 25 | DI72: 26 | DJ72: 8 | DK72: 14 | DL72: 27 | DN72: 4 | DO72: 29 | DP72: 10 | DQ72: 11 | DR72: 4 | DS72: 4 | DT72: 29 | DU72: 30 | DV72: 7 | DW72: 7
A73: 150902 | C73: 66 | D73: 150902 | E73: DISTRITO ANDAJES | F73: =SUM(H73:I73) -> 473 | H73: 241 | I73: 232 | K73: 4 | L73: 2 | M73: 2 | N73: 2 | O73: 4 | P73: 5 | Q73: 2 | R73: 5 | S73: 1 | T73: 7 | U73: 4 | V73: 2 | W73: 2 | X73: 1 | Y73: 2 | Z73: 2 | AA73: 2 | AB73: 1 | AC73: 0 | AD73: 0 | AE73: 2 | AF73: 2 | AG73: 4 | AH73: 4 | AI73: 2 | AJ73: 2 | AK73: 2 | AL73: 3 | AM73: 0 | AN73: 1 | AO73: 3 | AP73: 3 | AQ73: 1 | AR73: 4 | AS73: 4 | AT73: 3 | AU73: 2 | AV73: 2 | AW73: 0 | AX73: 0 | AY73: 8 | AZ73: 4 | BA73: 6 | BB73: 6 | BC73: 6 | BD73: 4 | BE73: 9 | BF73: 8 | BG73: 12 | BH73: 6 | BI73: 7 | BJ73: 7 | BK73: 18 | BL73: 7 | BM73: 15 | BN73: 18 | BO73: 34 | BP73: 20 | BQ73: 11 | BR73: 18 | BS73: 16 | BT73: 19 | BU73: 16 | BV73: 22 | BW73: 17 | BX73: 21 | BY73: 23 | BZ73: 21 | CA73: 0 | CB73: 0 | CC73: 1 | CD73: 2 | CE73: 3 | CF73: 0 | CG73: 12 | CH73: 232 | CI73: 12 | CJ73: 12 | CK73: 35 | CL73: 8 | CN73: 6 | CO73: 28 | CP73: 62 | CQ73: 56 | CR73: 28 | CS73: 28 | CT73: 117 | CU73: 238 | CW73: 16 | CX73: 44 | CY73: 379 | DA73: 6 | DB73: 4 | DC73: 9 | DD73: 7 | DE73: 8 | DF73: 6 | DH73: 107 | DI73: 76 | DJ73: 45 | DK73: 25 | DL73: 47 | DN73: 8 | DO73: 83 | DP73: 33 | DQ73: 38 | DR73: 8 | DS73: 11 | DT73: 83 | DU73: 62 | DV73: 100 | DW73: 100
B74: 05 | C74: 67 | D74: 5654 | E74: P.S. ANDAJES | F74: 473 | H74: 241 | I74: 232 | K74: 4 | L74: 2 | M74: 2 | N74: 2 | O74: 4 | P74: 5 | Q74: 2 | R74: 5 | S74: 1 | T74: 7 | U74: 4 | V74: 2 | W74: 2 | X74: 1 | Y74: 2 | Z74: 2 | AA74: 2 | AB74: 1 | AC74: 0 | AD74: 0 | AE74: 2 | AF74: 2 | AG74: 4 | AH74: 4 | AI74: 2 | AJ74: 2 | AK74: 2 | AL74: 3 | AM74: 0 | AN74: 1 | AO74: 3 | AP74: 3 | AQ74: 1 | AR74: 4 | AS74: 4 | AT74: 3 | AU74: 2 | AV74: 2 | AW74: 0 | AX74: 0 | AY74: 8 | AZ74: 4 | BA74: 6 | BB74: 6 | BC74: 6 | BD74: 4 | BE74: 9 | BF74: 8 | BG74: 12 | BH74: 6 | BI74: 7 | BJ74: 7 | BK74: 18 | BL74: 7 | BM74: 15 | BN74: 18 | BO74: 34 | BP74: 20 | BQ74: 11 | BR74: 18 | BS74: 16 | BT74: 19 | BU74: 16 | BV74: 22 | BW74: 17 | BX74: 21 | BY74: 23 | BZ74: 21 | CA74: 0 | CB74: 0 | CC74: 1 | CD74: 2 | CE74: 3 | CF74: 0 | CG74: 12 | CH74: 232 | CI74: 12 | CJ74: 12 | CK74: 35 | CL74: 8 | CN74: 6 | CO74: 28 | CP74: 62 | CQ74: 56 | CR74: 28 | CS74: 28 | CT74: 117 | CU74: 238 | CW74: 16 | CX74: 44 | CY74: 379 | DA74: 6 | DB74: 4 | DC74: 9 | DD74: 7 | DE74: 8 | DF74: 6 | DH74: 107 | DI74: 76 | DJ74: 45 | DK74: 25 | DL74: 47 | DN74: 8 | DO74: 83 | DP74: 33 | DQ74: 38 | DR74: 8 | DS74: 11 | DT74: 83 | DU74: 62 | DV74: 100 | DW74: 100
A75: 150903 | C75: 68 | D75: 150903 | E75: DISTRITO CAUJUL | F75: 445 | H75: 215 | I75: 230 | K75: 5 | L75: 8 | M75: 3 | N75: 3 | O75: 3 | P75: 3 | Q75: 5 | R75: 2 | S75: 1 | T75: 6 | U75: 2 | V75: 3 | W75: 2 | X75: 2 | Y75: 3 | Z75: 2 | AA75: 1 | AB75: 1 | AC75: 1 | AD75: 3 | AE75: 1 | AF75: 1 | AG75: 2 | AH75: 2 | AI75: 1 | AJ75: 1 | AK75: 3 | AL75: 4 | AM75: 1 | AN75: 3 | AO75: 3 | AP75: 3 | AQ75: 3 | AR75: 3 | AS75: 3 | AT75: 3 | AU75: 3 | AV75: 4 | AW75: 1 | AX75: 2 | AY75: 12 | AZ75: 14 | BA75: 10 | BB75: 16 | BC75: 11 | BD75: 11 | BE75: 11 | BF75: 15 | BG75: 10 | BH75: 11 | BI75: 20 | BJ75: 10 | BK75: 9 | BL75: 14 | BM75: 14 | BN75: 17 | BO75: 16 | BP75: 13 | BQ75: 18 | BR75: 9 | BS75: 12 | BT75: 7 | BU75: 8 | BV75: 10 | BW75: 5 | BX75: 12 | BY75: 12 | BZ75: 12 | CA75: 1 | CB75: 0 | CC75: 5 | CD75: 4 | CE75: 0 | CF75: 4 | CG75: 16 | CH75: 230 | CI75: 11 | CJ75: 15 | CK75: 77 | CL75: 14 | CN75: 13 | CO75: 26 | CP75: 65 | CQ75: 57 | CR75: 31 | CS75: 62 | CT75: 153 | CU75: 134 | CW75: 20 | CX75: 47 | CY75: 339 | DA75: 13 | DB75: 6 | DC75: 6 | DD75: 7 | DE75: 7 | DF75: 5 | DH75: 101 | DI75: 107 | DJ75: 44 | DK75: 47 | DL75: 92 | DN75: 10 | DO75: 101 | DP75: 33 | DQ75: 41 | DR75: 10 | DS75: 12 | DT75: 101 | DU75: 114 | DV75: 66 | DW75: 51
B76: 05 | C76: 69 | D76: 5655 | E76: P.S. CAUJUL | F76: 445 | H76: 215 | I76: 230 | K76: 5 | L76: 8 | M76: 3 | N76: 3 | O76: 3 | P76: 3 | Q76: 5 | R76: 2 | S76: 1 | T76: 6 | U76: 2 | V76: 3 | W76: 2 | X76: 2 | Y76: 3 | Z76: 2 | AA76: 1 | AB76: 1 | AC76: 1 | AD76: 3 | AE76: 1 | AF76: 1 | AG76: 2 | AH76: 2 | AI76: 1 | AJ76: 1 | AK76: 3 | AL76: 4 | AM76: 1 | AN76: 3 | AO76: 3 | AP76: 3 | AQ76: 3 | AR76: 3 | AS76: 3 | AT76: 3 | AU76: 3 | AV76: 4 | AW76: 1 | AX76: 2 | AY76: 12 | AZ76: 14 | BA76: 10 | BB76: 16 | BC76: 11 | BD76: 11 | BE76: 11 | BF76: 15 | BG76: 10 | BH76: 11 | BI76: 20 | BJ76: 10 | BK76: 9 | BL76: 14 | BM76: 14 | BN76: 17 | BO76: 16 | BP76: 13 | BQ76: 18 | BR76: 9 | BS76: 12 | BT76: 7 | BU76: 8 | BV76: 10 | BW76: 5 | BX76: 12 | BY76: 12 | BZ76: 12 | CA76: 1 | CB76: 0 | CC76: 5 | CD76: 4 | CE76: 0 | CF76: 4 | CG76: 16 | CH76: 230 | CI76: 11 | CJ76: 15 | CK76: 77 | CL76: 14 | CN76: 13 | CO76: 26 | CP76: 65 | CQ76: 57 | CR76: 31 | CS76: 62 | CT76: 153 | CU76: 134 | CW76: 20 | CX76: 47 | CY76: 339 | DA76: 13 | DB76: 6 | DC76: 6 | DD76: 7 | DE76: 7 | DF76: 5 | DH76: 101 | DI76: 107 | DJ76: 44 | DK76: 47 | DL76: 92 | DN76: 10 | DO76: 101 | DP76: 33 | DQ76: 41 | DR76: 10 | DS76: 12 | DT76: 101 | DU76: 114 | DV76: 66 | DW76: 51
A77: 150904 | C77: 70 | D77: 150904 | E77: DISTRITO COCHAMARCA | F77: 1191 | H77: 550 | I77: 641 | K77: 8 | L77: 12 | M77: 8 | N77: 14 | O77: 8 | P77: 14 | Q77: 8 | R77: 14 | S77: 18 | T77: 6 | U77: 7 | V77: 15 | W77: 10 | X77: 9 | Y77: 4 | Z77: 5 | AA77: 4 | AB77: 5 | AC77: 4 | AD77: 4 | AE77: 6 | AF77: 10 | AG77: 5 | AH77: 8 | AI77: 7 | AJ77: 12 | AK77: 7 | AL77: 12 | AM77: 8 | AN77: 13 | AO77: 14 | AP77: 12 | AQ77: 13 | AR77: 19 | AS77: 11 | AT77: 10 | AU77: 17 | AV77: 12 | AW77: 13 | AX77: 16 | AY77: 50 | AZ77: 56 | BA77: 37 | BB77: 51 | BC77: 35 | BD77: 35 | BE77: 28 | BF77: 33 | BG77: 24 | BH77: 25 | BI77: 38 | BJ77: 44 | BK77: 30 | BL77: 35 | BM77: 38 | BN77: 27 | BO77: 23 | BP77: 26 | BQ77: 14 | BR77: 16 | BS77: 19 | BT77: 27 | BU77: 9 | BV77: 16 | BW77: 11 | BX77: 10 | BY77: 14 | BZ77: 18 | CA77: 1 | CB77: 0 | CC77: 4 | CD77: 3 | CE77: 4 | CF77: 9 | CG77: 24 | CH77: 641 | CI77: 55 | CJ77: 69 | CK77: 244 | CL77: 36 | CN77: 20 | CO77: 90 | CP77: 206 | CQ77: 234 | CR77: 138 | CS77: 252 | CT77: 392 | CU77: 203 | CW77: 67 | CX77: 225 | CY77: 789 | DA77: 20 | DB77: 22 | DC77: 22 | DD77: 22 | DE77: 24 | DF77: 22 | DH77: 253 | DI77: 276 | DJ77: 88 | DK77: 137 | DL77: 313 | DN77: 46 | DO77: 310 | DP77: 104 | DQ77: 140 | DR77: 46 | DS77: 54 | DT77: 310 | DU77: 334 | DV77: 79 | DW77: 103
B78: 03 | C78: 71 | D78: 5783 | E78: P.S. COCHAMARCA | F78: 507 | H78: 234 | I78: 273 | K78: 3 | L78: 5 | M78: 3 | N78: 6 | O78: 3 | P78: 6 | Q78: 3 | R78: 6 | S78: 8 | T78: 3 | U78: 3 | V78: 6 | W78: 4 | X78: 4 | Y78: 2 | Z78: 2 | AA78: 2 | AB78: 2 | AC78: 2 | AD78: 2 | AE78: 2 | AF78: 4 | AG78: 2 | AH78: 3 | AI78: 3 | AJ78: 5 | AK78: 3 | AL78: 5 | AM78: 3 | AN78: 6 | AO78: 6 | AP78: 5 | AQ78: 6 | AR78: 8 | AS78: 5 | AT78: 4 | AU78: 7 | AV78: 5 | AW78: 6 | AX78: 7 | AY78: 21 | AZ78: 24 | BA78: 16 | BB78: 22 | BC78: 15 | BD78: 15 | BE78: 12 | BF78: 14 | BG78: 10 | BH78: 11 | BI78: 16 | BJ78: 19 | BK78: 13 | BL78: 15 | BM78: 16 | BN78: 11 | BO78: 10 | BP78: 11 | BQ78: 6 | BR78: 7 | BS78: 8 | BT78: 11 | BU78: 4 | BV78: 7 | BW78: 5 | BX78: 4 | BY78: 6 | BZ78: 8 | CA78: 1 | CB78: 0 | CC78: 2 | CD78: 1 | CE78: 1 | CF78: 4 | CG78: 10 | CH78: 273 | CI78: 23 | CJ78: 29 | CK78: 105 | CL78: 15 | CN78: 8 | CO78: 38 | CP78: 86 | CQ78: 99 | CR78: 59 | CS78: 108 | CT78: 167 | CU78: 87 | CW78: 29 | CX78: 95 | CY78: 337 | DA78: 8 | DB78: 9 | DC78: 9 | DD78: 9 | DE78: 11 | DF78: 9 | DH78: 108 | DI78: 118 | DJ78: 37 | DK78: 59 | DL78: 134 | DN78: 20 | DO78: 132 | DP78: 43 | DQ78: 59 | DR78: 20 | DS78: 23 | DT78: 132 | DU78: 143 | DV78: 34 | DW78: 44
B79: 03 | C79: 72 | D79: 5784 | E79: P.S. COLCAPAMPA | F79: 570 | H79: 262 | I79: 308 | K79: 4 | L79: 6 | M79: 4 | N79: 7 | O79: 4 | P79: 7 | Q79: 4 | R79: 7 | S79: 8 | T79: 2 | U79: 3 | V79: 7 | W79: 5 | X79: 4 | Y79: 2 | Z79: 2 | AA79: 2 | AB79: 2 | AC79: 2 | AD79: 2 | AE79: 3 | AF79: 5 | AG79: 2 | AH79: 4 | AI79: 3 | AJ79: 6 | AK79: 3 | AL79: 6 | AM79: 4 | AN79: 6 | AO79: 7 | AP79: 6 | AQ79: 6 | AR79: 9 | AS79: 5 | AT79: 5 | AU79: 8 | AV79: 6 | AW79: 6 | AX79: 8 | AY79: 24 | AZ79: 27 | BA79: 18 | BB79: 24 | BC79: 17 | BD79: 17 | BE79: 13 | BF79: 16 | BG79: 12 | BH79: 12 | BI79: 18 | BJ79: 21 | BK79: 14 | BL79: 17 | BM79: 18 | BN79: 13 | BO79: 11 | BP79: 13 | BQ79: 7 | BR79: 8 | BS79: 9 | BT79: 13 | BU79: 4 | BV79: 8 | BW79: 5 | BX79: 5 | BY79: 7 | BZ79: 7 | CA79: 0 | CB79: 0 | CC79: 2 | CD79: 2 | CE79: 2 | CF79: 4 | CG79: 12 | CH79: 308 | CI79: 27 | CJ79: 34 | CK79: 117 | CL79: 18 | CN79: 10 | CO79: 43 | CP79: 98 | CQ79: 111 | CR79: 66 | CS79: 121 | CT79: 188 | CU79: 97 | CW79: 31 | CX79: 108 | CY79: 378 | DA79: 10 | DB79: 11 | DC79: 11 | DD79: 11 | DE79: 10 | DF79: 10 | DH79: 121 | DI79: 133 | DJ79: 43 | DK79: 66 | DL79: 151 | DN79: 22 | DO79: 148 | DP79: 49 | DQ79: 67 | DR79: 22 | DS79: 26 | DT79: 148 | DU79: 161 | DV79: 38 | DW79: 49
B80: 03 | C80: 73 | D80: 5785 | E80: P.S. YARUCAYA | F80: 114 | H80: 54 | I80: 60 | K80: 1 | L80: 1 | M80: 1 | N80: 1 | O80: 1 | P80: 1 | Q80: 1 | R80: 1 | S80: 2 | T80: 1 | U80: 1 | V80: 2 | W80: 1 | X80: 1 | Y80: 0 | Z80: 1 | AA80: 0 | AB80: 1 | AC80: 0 | AD80: 0 | AE80: 1 | AF80: 1 | AG80: 1 | AH80: 1 | AI80: 1 | AJ80: 1 | AK80: 1 | AL80: 1 | AM80: 1 | AN80: 1 | AO80: 1 | AP80: 1 | AQ80: 1 | AR80: 2 | AS80: 1 | AT80: 1 | AU80: 2 | AV80: 1 | AW80: 1 | AX80: 1 | AY80: 5 | AZ80: 5 | BA80: 3 | BB80: 5 | BC80: 3 | BD80: 3 | BE80: 3 | BF80: 3 | BG80: 2 | BH80: 2 | BI80: 4 | BJ80: 4 | BK80: 3 | BL80: 3 | BM80: 4 | BN80: 3 | BO80: 2 | BP80: 2 | BQ80: 1 | BR80: 1 | BS80: 2 | BT80: 3 | BU80: 1 | BV80: 1 | BW80: 1 | BX80: 1 | BY80: 1 | BZ80: 3 | CA80: 0 | CB80: 0 | CC80: 0 | CD80: 0 | CE80: 1 | CF80: 1 | CG80: 2 | CH80: 60 | CI80: 5 | CJ80: 6 | CK80: 22 | CL80: 3 | CN80: 2 | CO80: 9 | CP80: 22 | CQ80: 24 | CR80: 13 | CS80: 23 | CT80: 37 | CU80: 19 | CW80: 7 | CX80: 22 | CY80: 74 | DA80: 2 | DB80: 2 | DC80: 2 | DD80: 2 | DE80: 3 | DF80: 3 | DH80: 24 | DI80: 25 | DJ80: 8 | DK80: 12 | DL80: 28 | DN80: 4 | DO80: 30 | DP80: 12 | DQ80: 14 | DR80: 4 | DS80: 5 | DT80: 30 | DU80: 30 | DV80: 7 | DW80: 10
A81: 150905 | C81: 74 | D81: 150905 | E81: DISTRITO NAVAN | F81: 814 | H81: 394 | I81: 420 | K81: 8 | L81: 11 | M81: 5 | N81: 4 | O81: 4 | P81: 5 | Q81: 5 | R81: 6 | S81: 3 | T81: 3 | U81: 3 | V81: 7 | W81: 6 | X81: 2 | Y81: 3 | Z81: 2 | AA81: 5 | AB81: 2 | AC81: 3 | AD81: 1 | AE81: 4 | AF81: 5 | AG81: 3 | AH81: 3 | AI81: 7 | AJ81: 8 | AK81: 6 | AL81: 6 | AM81: 2 | AN81: 3 | AO81: 3 | AP81: 6 | AQ81: 2 | AR81: 11 | AS81: 6 | AT81: 10 | AU81: 6 | AV81: 9 | AW81: 6 | AX81: 2 | AY81: 20 | AZ81: 20 | BA81: 13 | BB81: 19 | BC81: 12 | BD81: 26 | BE81: 31 | BF81: 25 | BG81: 20 | BH81: 23 | BI81: 29 | BJ81: 29 | BK81: 39 | BL81: 26 | BM81: 28 | BN81: 32 | BO81: 32 | BP81: 25 | BQ81: 23 | BR81: 21 | BS81: 19 | BT81: 23 | BU81: 14 | BV81: 17 | BW81: 9 | BX81: 10 | BY81: 15 | BZ81: 18 | CA81: 0 | CB81: 0 | CC81: 4 | CD81: 1 | CE81: 4 | CF81: 10 | CG81: 36 | CH81: 420 | CI81: 25 | CJ81: 38 | CK81: 142 | CL81: 14 | CN81: 19 | CO81: 35 | CP81: 103 | CQ81: 119 | CR81: 70 | CS81: 95 | CT81: 320 | CU81: 226 | CW81: 34 | CX81: 108 | CY81: 618 | DA81: 19 | DB81: 9 | DC81: 9 | DD81: 11 | DE81: 6 | DF81: 10 | DH81: 204 | DI81: 205 | DJ81: 83 | DK81: 103 | DL81: 180 | DN81: 13 | DO81: 204 | DP81: 65 | DQ81: 65 | DR81: 13 | DS81: 30 | DT81: 204 | DU81: 211 | DV81: 103 | DW81: 104
B82: 05 | C82: 75 | D82: 5656 | E82: P.S. NAVAN | F82: 814 | H82: 394 | I82: 420 | K82: 8 | L82: 11 | M82: 5 | N82: 4 | O82: 4 | P82: 5 | Q82: 5 | R82: 6 | S82: 3 | T82: 3 | U82: 3 | V82: 7 | W82: 6 | X82: 2 | Y82: 3 | Z82: 2 | AA82: 5 | AB82: 2 | AC82: 3 | AD82: 1 | AE82: 4 | AF82: 5 | AG82: 3 | AH82: 3 | AI82: 7 | AJ82: 8 | AK82: 6 | AL82: 6 | AM82: 2 | AN82: 3 | AO82: 3 | AP82: 6 | AQ82: 2 | AR82: 11 | AS82: 6 | AT82: 10 | AU82: 6 | AV82: 9 | AW82: 6 | AX82: 2 | AY82: 20 | AZ82: 20 | BA82: 13 | BB82: 19 | BC82: 12 | BD82: 26 | BE82: 31 | BF82: 25 | BG82: 20 | BH82: 23 | BI82: 29 | BJ82: 29 | BK82: 39 | BL82: 26 | BM82: 28 | BN82: 32 | BO82: 32 | BP82: 25 | BQ82: 23 | BR82: 21 | BS82: 19 | BT82: 23 | BU82: 14 | BV82: 17 | BW82: 9 | BX82: 10 | BY82: 15 | BZ82: 18 | CA82: 0 | CB82: 0 | CC82: 4 | CD82: 1 | CE82: 4 | CF82: 10 | CG82: 36 | CH82: 420 | CI82: 25 | CJ82: 38 | CK82: 142 | CL82: 14 | CN82: 19 | CO82: 35 | CP82: 103 | CQ82: 119 | CR82: 70 | CS82: 95 | CT82: 320 | CU82: 226 | CW82: 34 | CX82: 108 | CY82: 618 | DA82: 19 | DB82: 9 | DC82: 9 | DD82: 11 | DE82: 6 | DF82: 10 | DH82: 204 | DI82: 205 | DJ82: 83 | DK82: 103 | DL82: 180 | DN82: 13 | DO82: 204 | DP82: 65 | DQ82: 65 | DR82: 13 | DS82: 30 | DT82: 204 | DU82: 211 | DV82: 103 | DW82: 104
A83: 150906 | C83: 76 | D83: 150906 | E83: DISTRITO PACHANGARA | F83: 2622 | H83: 1256 | I83: 1366 | K83: 31 | L83: 20 | M83: 25 | N83: 20 | O83: 20 | P83: 30 | Q83: 24 | R83: 30 | S83: 38 | T83: 28 | U83: 33 | V83: 26 | W83: 9 | X83: 11 | Y83: 10 | Z83: 14 | AA83: 17 | AB83: 14 | AC83: 11 | AD83: 8 | AE83: 12 | AF83: 13 | AG83: 15 | AH83: 17 | AI83: 17 | AJ83: 18 | AK83: 15 | AL83: 16 | AM83: 12 | AN83: 13 | AO83: 16 | AP83: 23 | AQ83: 17 | AR83: 18 | AS83: 17 | AT83: 20 | AU83: 22 | AV83: 16 | AW83: 12 | AX83: 13 | AY83: 68 | AZ83: 70 | BA83: 68 | BB83: 112 | BC83: 71 | BD83: 78 | BE83: 70 | BF83: 83 | BG83: 88 | BH83: 83 | BI83: 81 | BJ83: 71 | BK83: 55 | BL83: 86 | BM83: 73 | BN83: 94 | BO83: 74 | BP83: 79 | BQ83: 58 | BR83: 71 | BS83: 61 | BT83: 56 | BU83: 59 | BV83: 54 | BW83: 30 | BX83: 30 | BY83: 27 | BZ83: 31 | CA83: 2 | CB83: 1 | CC83: 10 | CD83: 14 | CE83: 21 | CF83: 6 | CG83: 70 | CH83: 1366 | CI83: 77 | CJ83: 90 | CK83: 497 | CL83: 132 | CN83: 51 | CO83: 215 | CP83: 476 | CQ83: 412 | CR83: 202 | CS83: 381 | CT83: 933 | CU83: 630 | CW83: 153 | CX83: 322 | CY83: 1881 | DA83: 51 | DB83: 45 | DC83: 50 | DD83: 54 | DE83: 66 | DF83: 59 | DH83: 580 | DI83: 686 | DJ83: 259 | DK83: 315 | DL83: 587 | DN83: 62 | DO83: 608 | DP83: 277 | DQ83: 265 | DR83: 62 | DS83: 74 | DT83: 608 | DU83: 706 | DV83: 279 | DW83: 291
B84: 05 | C84: 77 | D84: 5649 | E84: P.S. HUANCAHUASI | F84: 476 | H84: 227 | I84: 249 | K84: 6 | L84: 4 | M84: 5 | N84: 4 | O84: 4 | P84: 5 | Q84: 4 | R84: 5 | S84: 7 | T84: 5 | U84: 6 | V84: 5 | W84: 2 | X84: 2 | Y84: 2 | Z84: 3 | AA84: 3 | AB84: 3 | AC84: 2 | AD84: 2 | AE84: 2 | AF84: 2 | AG84: 3 | AH84: 3 | AI84: 3 | AJ84: 3 | AK84: 3 | AL84: 3 | AM84: 2 | AN84: 2 | AO84: 3 | AP84: 5 | AQ84: 3 | AR84: 3 | AS84: 3 | AT84: 4 | AU84: 4 | AV84: 3 | AW84: 2 | AX84: 2 | AY84: 12 | AZ84: 13 | BA84: 12 | BB84: 20 | BC84: 12 | BD84: 14 | BE84: 13 | BF84: 15 | BG84: 16 | BH84: 15 | BI84: 15 | BJ84: 13 | BK84: 10 | BL84: 16 | BM84: 13 | BN84: 17 | BO84: 13 | BP84: 14 | BQ84: 10 | BR84: 13 | BS84: 11 | BT84: 10 | BU84: 11 | BV84: 10 | BW84: 5 | BX84: 5 | BY84: 5 | BZ84: 6 | CA84: 0 | CB84: 1 | CC84: 2 | CD84: 3 | CE84: 4 | CF84: 1 | CG84: 13 | CH84: 249 | CI84: 13 | CJ84: 17 | CK84: 90 | CL84: 24 | CN84: 10 | CO84: 39 | CP84: 89 | CQ84: 77 | CR84: 37 | CS84: 68 | CT84: 169 | CU84: 113 | CW84: 30 | CX84: 58 | CY84: 339 | DA84: 10 | DB84: 9 | DC84: 9 | DD84: 9 | DE84: 12 | DF84: 11 | DH84: 104 | DI84: 124 | DJ84: 47 | DK84: 57 | DL84: 107 | DN84: 11 | DO84: 109 | DP84: 52 | DQ84: 49 | DR84: 11 | DS84: 14 | DT84: 109 | DU84: 128 | DV84: 50 | DW84: 53
B85: 05 | C85: 78 | D85: 5657 | E85: C.S. CHURIN | F85: 1750 | H85: 839 | I85: 911 | K85: 20 | L85: 13 | M85: 16 | N85: 13 | O85: 13 | P85: 20 | Q85: 16 | R85: 20 | S85: 25 | T85: 19 | U85: 22 | V85: 17 | W85: 6 | X85: 7 | Y85: 7 | Z85: 9 | AA85: 11 | AB85: 9 | AC85: 7 | AD85: 5 | AE85: 8 | AF85: 9 | AG85: 10 | AH85: 11 | AI85: 11 | AJ85: 12 | AK85: 10 | AL85: 11 | AM85: 8 | AN85: 9 | AO85: 11 | AP85: 15 | AQ85: 11 | AR85: 12 | AS85: 11 | AT85: 13 | AU85: 15 | AV85: 11 | AW85: 8 | AX85: 9 | AY85: 46 | AZ85: 47 | BA85: 46 | BB85: 75 | BC85: 48 | BD85: 52 | BE85: 47 | BF85: 56 | BG85: 59 | BH85: 56 | BI85: 54 | BJ85: 47 | BK85: 37 | BL85: 57 | BM85: 49 | BN85: 63 | BO85: 50 | BP85: 53 | BQ85: 39 | BR85: 47 | BS85: 41 | BT85: 38 | BU85: 39 | BV85: 36 | BW85: 20 | BX85: 20 | BY85: 18 | BZ85: 20 | CA85: 2 | CB85: 0 | CC85: 7 | CD85: 9 | CE85: 13 | CF85: 4 | CG85: 47 | CH85: 911 | CI85: 52 | CJ85: 60 | CK85: 333 | CL85: 88 | CN85: 33 | CO85: 142 | CP85: 313 | CQ85: 272 | CR85: 134 | CS85: 257 | CT85: 625 | CU85: 421 | CW85: 100 | CX85: 215 | CY85: 1260 | DA85: 33 | DB85: 29 | DC85: 33 | DD85: 36 | DE85: 44 | DF85: 39 | DH85: 390 | DI85: 459 | DJ85: 173 | DK85: 211 | DL85: 393 | DN85: 41 | DO85: 409 | DP85: 182 | DQ85: 175 | DR85: 41 | DS85: 49 | DT85: 409 | DU85: 473 | DV85: 187 | DW85: 194
B86: 05 | C86: 79 | D86: 5658 | E86: P.S. PACHANGARA | F86: 396 | H86: 190 | I86: 206 | K86: 5 | L86: 3 | M86: 4 | N86: 3 | O86: 3 | P86: 5 | Q86: 4 | R86: 5 | S86: 6 | T86: 4 | U86: 5 | V86: 4 | W86: 1 | X86: 2 | Y86: 1 | Z86: 2 | AA86: 3 | AB86: 2 | AC86: 2 | AD86: 1 | AE86: 2 | AF86: 2 | AG86: 2 | AH86: 3 | AI86: 3 | AJ86: 3 | AK86: 2 | AL86: 2 | AM86: 2 | AN86: 2 | AO86: 2 | AP86: 3 | AQ86: 3 | AR86: 3 | AS86: 3 | AT86: 3 | AU86: 3 | AV86: 2 | AW86: 2 | AX86: 2 | AY86: 10 | AZ86: 10 | BA86: 10 | BB86: 17 | BC86: 11 | BD86: 12 | BE86: 10 | BF86: 12 | BG86: 13 | BH86: 12 | BI86: 12 | BJ86: 11 | BK86: 8 | BL86: 13 | BM86: 11 | BN86: 14 | BO86: 11 | BP86: 12 | BQ86: 9 | BR86: 11 | BS86: 9 | BT86: 8 | BU86: 9 | BV86: 8 | BW86: 5 | BX86: 5 | BY86: 4 | BZ86: 5 | CA86: 0 | CB86: 0 | CC86: 1 | CD86: 2 | CE86: 4 | CF86: 1 | CG86: 10 | CH86: 206 | CI86: 12 | CJ86: 13 | CK86: 74 | CL86: 20 | CN86: 8 | CO86: 34 | CP86: 74 | CQ86: 63 | CR86: 31 | CS86: 56 | CT86: 139 | CU86: 96 | CW86: 23 | CX86: 49 | CY86: 282 | DA86: 8 | DB86: 7 | DC86: 8 | DD86: 9 | DE86: 10 | DF86: 9 | DH86: 86 | DI86: 103 | DJ86: 39 | DK86: 47 | DL86: 87 | DN86: 10 | DO86: 90 | DP86: 43 | DQ86: 41 | DR86: 10 | DS86: 11 | DT86: 90 | DU86: 105 | DV86: 42 | DW86: 44
C87: 80 | D87: 150600 | E87: PROVINCIA HUARAL | F87: 977 | H87: 459 | I87: 518 | K87: 11 | L87: 5 | M87: 5 | N87: 4 | O87: 3 | P87: 7 | Q87: 4 | R87: 5 | S87: 6 | T87: 5 | U87: 5 | V87: 3 | W87: 3 | X87: 6 | Y87: 4 | Z87: 4 | AA87: 5 | AB87: 5 | AC87: 5 | AD87: 4 | AE87: 3 | AF87: 3 | AG87: 5 | AH87: 7 | AI87: 5 | AJ87: 7 | AK87: 4 | AL87: 5 | AM87: 5 | AN87: 7 | AO87: 3 | AP87: 8 | AQ87: 8 | AR87: 7 | AS87: 4 | AT87: 7 | AU87: 7 | AV87: 8 | AW87: 5 | AX87: 6 | AY87: 26 | AZ87: 32 | BA87: 27 | BB87: 33 | BC87: 37 | BD87: 34 | BE87: 33 | BF87: 31 | BG87: 21 | BH87: 35 | BI87: 32 | BJ87: 34 | BK87: 26 | BL87: 32 | BM87: 31 | BN87: 32 | BO87: 31 | BP87: 36 | BQ87: 21 | BR87: 22 | BS87: 22 | BT87: 21 | BU87: 20 | BV87: 17 | BW87: 20 | BX87: 20 | BY87: 12 | BZ87: 26 | CA87: 1 | CB87: 1 | CC87: 1 | CD87: 3 | CE87: 10 | CF87: 2 | CG87: 32 | CH87: 518 | CI87: 29 | CJ87: 36 | CK87: 199 | CL87: 34 | CN87: 16 | CO87: 39 | CP87: 117 | CQ87: 132 | CR87: 70 | CS87: 144 | CT87: 378 | CU87: 268 | CW87: 44 | CX87: 114 | CY87: 764 | DA87: 16 | DB87: 9 | DC87: 10 | DD87: 9 | DE87: 11 | DF87: 8 | DH87: 238 | DI87: 267 | DJ87: 100 | DK87: 134 | DL87: 235 | DN87: 20 | DO87: 245 | DP87: 68 | DQ87: 70 | DR87: 20 | DS87: 29 | DT87: 245 | DU87: 277 | DV87: 106 | DW87: 122
A88: 150606 | B88: 03 | C88: 81 | D88: 5782 | E88: IHUARI - P.S. ACOTAMA | F88: 977 | H88: =K88+M88+O88+Q88+S88+U88+W88+Y88+AA88+AC88+AE88+AG88+AI88+AK88+AM88+AO88+AQ88+AS88+AU88+AW88+AY88+BA88+BC88+BE88+BG88+BI88+BK88+BM88+BO88+BQ88+BS88+BU88+BW88+BY88 -> 459 | I88: 518 | K88: 11 | L88: 5 | M88: 5 | N88: 4 | O88: 3 | P88: 7 | Q88: 4 | R88: 5 | S88: 6 | T88: 5 | U88: 5 | V88: 3 | W88: 3 | X88: 6 | Y88: 4 | Z88: 4 | AA88: 5 | AB88: 5 | AC88: 5 | AD88: 4 | AE88: 3 | AF88: 3 | AG88: 5 | AH88: 7 | AI88: 5 | AJ88: 7 | AK88: 4 | AL88: 5 | AM88: 5 | AN88: 7 | AO88: 3 | AP88: 8 | AQ88: 8 | AR88: 7 | AS88: 4 | AT88: 7 | AU88: 7 | AV88: 8 | AW88: 5 | AX88: 6 | AY88: 26 | AZ88: 32 | BA88: 27 | BB88: 33 | BC88: 37 | BD88: 34 | BE88: 33 | BF88: 31 | BG88: 21 | BH88: 35 | BI88: 32 | BJ88: 34 | BK88: 26 | BL88: 32 | BM88: 31 | BN88: 32 | BO88: 31 | BP88: 36 | BQ88: 21 | BR88: 22 | BS88: 22 | BT88: 21 | BU88: 20 | BV88: 17 | BW88: 20 | BX88: 20 | BY88: 12 | BZ88: 26 | CA88: 1 | CB88: 1 | CC88: 1 | CD88: 3 | CE88: 10 | CF88: 2 | CG88: 32 | CH88: 518 | CI88: 29 | CJ88: 36 | CK88: 199 | CL88: 34 | CN88: 16 | CO88: 39 | CP88: 117 | CQ88: 132 | CR88: 70 | CS88: 144 | CT88: 378 | CU88: 268 | CW88: 44 | CX88: 114 | CY88: 764 | DA88: 16 | DB88: 9 | DC88: 10 | DD88: 9 | DE88: 11 | DF88: 8 | DH88: 238 | DI88: 267 | DJ88: 100 | DK88: 134 | DL88: 235 | DN88: 20 | DO88: 245 | DP88: 68 | DQ88: 70 | DR88: 20 | DS88: 29 | DT88: 245 | DU88: 277 | DV88: 106 | DW88: 122
C89: 82
B90: 1 | C90: 83 | E90: MICRORED HUAURA | F90: =SUM(H90:I90) -> 44336 | H90: =K90+M90+O90+Q90+S90+U90+W90+Y90+AA90+AC90+AE90+AG90+AI90+AK90+AM90+AO90+AQ90+AS90+AU90+AW90+AY90+BA90+BC90+BE90+BG90+BI90+BK90+BM90+BO90+BQ90+BS90+BU90+BW90+BY90 -> 21010 | I90: =L90+N90+P90+R90+T90+V90+X90+Z90+AB90+AD90+AF90+AH90+AJ90+AL90+AN90+AP90+AR90+AT90+AV90+AX90+AZ90+BB90+BD90+BF90+BH90+BJ90+BL90+BN90+BP90+BR90+BT90+BV90+BX90+BZ90 -> 23326 | K90: 288 | L90: 330 | M90: 263 | N90: 296 | O90: 290 | P90: 257 | Q90: 284 | R90: 270 | S90: 352 | T90: 302 | U90: 330 | V90: 325 | W90: 331 | X90: 360 | Y90: 351 | Z90: 301 | AA90: 337 | AB90: 318 | AC90: 277 | AD90: 233 | AE90: 277 | AF90: 298 | AG90: 292 | AH90: 314 | AI90: 290 | AJ90: 313 | AK90: 274 | AL90: 296 | AM90: 265 | AN90: 288 | AO90: 301 | AP90: 346 | AQ90: 298 | AR90: 364 | AS90: 277 | AT90: 331 | AU90: 298 | AV90: 328 | AW90: 296 | AX90: 330 | AY90: 1377 | AZ90: 1607 | BA90: 1581 | BB90: 2084 | BC90: 1615 | BD90: 1836 | BE90: 1505 | BF90: 1670 | BG90: 1544 | BH90: 1625 | BI90: 1371 | BJ90: 1604 | BK90: 1220 | BL90: 1578 | BM90: 1207 | BN90: 1345 | BO90: 1067 | BP90: 1081 | BQ90: 752 | BR90: 830 | BS90: 655 | BT90: 691 | BU90: 522 | BV90: 460 | BW90: 341 | BX90: 366 | BY90: 282 | BZ90: 349 | CA90: 16 | CB90: 19 | CC90: 118 | CD90: 123 | CE90: 170 | CF90: 207 | CG90: 725 | CH90: 23326 | CI90: 1509 | CJ90: 1699 | CK90: 10426 | CL90: 1271 | CN90: 618 | CO90: 2314 | CP90: 7276 | CQ90: 7987 | CR90: 3643 | CS90: 7901 | CT90: 18120 | CU90: 7396 | CW90: 3163 | CX90: 6076 | CY90: 32165 | DA90: 618 | DB90: 559 | DC90: 547 | DD90: 554 | DE90: 654 | DF90: 655 | DH90: 11110 | DI90: 12823 | DJ90: 4004 | DK90: 6735 | DL90: 12125 | DN90: 1141 | DO90: 12014 | DP90: 4236 | DQ90: 4213 | DR90: 1141 | DS90: 1329 | DT90: 12014 | DU90: 14007 | DV90: 3278 | DW90: 3411
B91: 2 | C91: 84 | E91: MICRORED HUALMAY | F91: 165315 | H91: 79935 | I91: 85380 | K91: 902 | L91: 865 | M91: 856 | N91: 847 | O91: 945 | P91: 947 | Q91: 961 | R91: 884 | S91: 1023 | T91: 1020 | U91: 1102 | V91: 1076 | W91: 1171 | X91: 1140 | Y91: 1207 | Z91: 1147 | AA91: 1212 | AB91: 1206 | AC91: 1019 | AD91: 935 | AE91: 974 | AF91: 950 | AG91: 992 | AH91: 969 | AI91: 1029 | AJ91: 1006 | AK91: 1047 | AL91: 1023 | AM91: 970 | AN91: 945 | AO91: 1124 | AP91: 1192 | AQ91: 1128 | AR91: 1102 | AS91: 1104 | AT91: 1129 | AU91: 1108 | AV91: 1068 | AW91: 1032 | AX91: 1095 | AY91: 5219 | AZ91: 5498 | BA91: 5365 | BB91: 7040 | BC91: 5410 | BD91: 6347 | BE91: 5711 | BF91: 5889 | BG91: 5674 | BH91: 6032 | BI91: 5565 | BJ91: 5911 | BK91: 5165 | BL91: 5621 | BM91: 4904 | BN91: 5180 | BO91: 4317 | BP91: 4435 | BQ91: 3344 | BR91: 3698 | BS91: 3031 | BT91: 3389 | BU91: 2318 | BV91: 2449 | BW91: 1610 | BX91: 1647 | BY91: 1396 | BZ91: 1698 | CA91: 55 | CB91: 59 | CC91: 397 | CD91: 366 | CE91: 505 | CF91: 499 | CG91: 2396 | CH91: 85380 | CI91: 4893 | CJ91: 5586 | CK91: 36717 | CL91: 4014 | CN91: 1767 | CO91: 7483 | CP91: 24350 | CQ91: 27899 | CR91: 12799 | CS91: 27425 | CT91: 67409 | CU91: 33332 | CW91: 11215 | CX91: 20987 | CY91: 123863 | DA91: 1767 | DB91: 1703 | DC91: 1892 | DD91: 1845 | DE91: 2043 | DF91: 2178 | DH91: 42111 | DI91: 46455 | DJ91: 15236 | DK91: 24179 | DL91: 42303 | DN91: 4326 | DO91: 45153 | DP91: 14440 | DQ91: 14015 | DR91: 4326 | DS91: 4368 | DT91: 45153 | DU91: 49681 | DV91: 14406 | DW91: 15669
B92: 3 | C92: 85 | E92: MICRORED SAYAN | F92: 32202 | H92: 15250 | I92: 16952 | K92: 226 | L92: 215 | M92: 222 | N92: 229 | O92: 216 | P92: 253 | Q92: 261 | R92: 230 | S92: 275 | T92: 229 | U92: 237 | V92: 229 | W92: 223 | X92: 254 | Y92: 215 | Z92: 270 | AA92: 223 | AB92: 234 | AC92: 201 | AD92: 194 | AE92: 170 | AF92: 179 | AG92: 205 | AH92: 218 | AI92: 212 | AJ92: 227 | AK92: 221 | AL92: 236 | AM92: 200 | AN92: 217 | AO92: 237 | AP92: 307 | AQ92: 238 | AR92: 283 | AS92: 220 | AT92: 241 | AU92: 244 | AV92: 270 | AW92: 229 | AX92: 248 | AY92: 1013 | AZ92: 1293 | BA92: 1057 | BB92: 1460 | BC92: 1047 | BD92: 1315 | BE92: 1102 | BF92: 1171 | BG92: 1033 | BH92: 1179 | BI92: 1047 | BJ92: 1101 | BK92: 858 | BL92: 1011 | BM92: 851 | BN92: 913 | BO92: 775 | BP92: 727 | BQ92: 568 | BR92: 620 | BS92: 526 | BT92: 472 | BU92: 392 | BV92: 388 | BW92: 268 | BX92: 257 | BY92: 238 | BZ92: 282 | CA92: 12 | CB92: 15 | CC92: 112 | CD92: 87 | CE92: 114 | CF92: 128 | CG92: 617 | CH92: 16952 | CI92: 1077 | CJ92: 1349 | CK92: 7519 | CL92: 1001 | CN92: 441 | CO92: 1915 | CP92: 5408 | CQ92: 5891 | CR92: 2839 | CS92: 5814 | CT92: 12628 | CU92: 5513 | CW92: 2280 | CX92: 4602 | CY92: 22964 | DA92: 441 | DB92: 451 | DC92: 469 | DD92: 491 | DE92: 504 | DF92: 466 | DH92: 7770 | DI92: 8877 | DJ92: 2651 | DK92: 4766 | DL92: 8868 | DN92: 895 | DO92: 8481 | DP92: 3107 | DQ92: 3197 | DR92: 895 | DS92: 1048 | DT92: 8481 | DU92: 9961 | DV92: 2499 | DW92: 2489
B93: 4 | C93: 86 | E93: MICRORED VEGUETA | F93: 30644 | H93: =K93+M93+O93+Q93+S93+U93+W93+Y93+AA93+AC93+AE93+AG93+AI93+AK93+AM93+AO93+AQ93+AS93+AU93+AW93+AY93+BA93+BC93+BE93+BG93+BI93+BK93+BM93+BO93+BQ93+BS93+BU93+BW93+BY93 -> 14622 | I93: =L93+N93+P93+R93+T93+V93+X93+Z93+AB93+AD93+AF93+AH93+AJ93+AL93+AN93+AP93+AR93+AT93+AV93+AX93+AZ93+BB93+BD93+BF93+BH93+BJ93+BL93+BN93+BP93+BR93+BT93+BV93+BX93+BZ93 -> 16022 | K93: 257 | L93: 287 | M93: 250 | N93: 265 | O93: 252 | P93: 280 | Q93: 297 | R93: 289 | S93: 312 | T93: 278 | U93: 263 | V93: 258 | W93: 263 | X93: 235 | Y93: 263 | Z93: 247 | AA93: 229 | AB93: 247 | AC93: 192 | AD93: 166 | AE93: 218 | AF93: 211 | AG93: 225 | AH93: 218 | AI93: 216 | AJ93: 210 | AK93: 216 | AL93: 210 | AM93: 188 | AN93: 182 | AO93: 256 | AP93: 231 | AQ93: 233 | AR93: 212 | AS93: 213 | AT93: 238 | AU93: 216 | AV93: 220 | AW93: 205 | AX93: 234 | AY93: 898 | AZ93: 1096 | BA93: 1087 | BB93: 1470 | BC93: 1089 | BD93: 1364 | BE93: 1093 | BF93: 1187 | BG93: 986 | BH93: 1091 | BI93: 886 | BJ93: 990 | BK93: 785 | BL93: 905 | BM93: 748 | BN93: 836 | BO93: 625 | BP93: 675 | BQ93: 488 | BR93: 496 | BS93: 434 | BT93: 414 | BU93: 349 | BV93: 313 | BW93: 190 | BX93: 214 | BY93: 200 | BZ93: 253 | CA93: 14 | CB93: 11 | CC93: 106 | CD93: 108 | CE93: 151 | CF93: 179 | CG93: 782 | CH93: 16022 | CI93: 1031 | CJ93: 1135 | CK93: 7198 | CL93: 1328 | CN93: 544 | CO93: 2223 | CP93: 6002 | CQ93: 5840 | CR93: 2605 | CS93: 5426 | CT93: 11960 | CU93: 4651 | CW93: 2363 | CX93: 4352 | CY93: 21162 | DA93: 544 | DB93: 515 | DC93: 532 | DD93: 586 | DE93: 590 | DF93: 521 | DH93: 7299 | DI93: 8518 | DJ93: 2416 | DK93: 4632 | DL93: 8333 | DN93: 890 | DO93: 7993 | DP93: 3453 | DQ93: 3401 | DR93: 890 | DS93: 863 | DT93: 7993 | DU93: 9393 | DV93: 2096 | DW93: 2151
B94: 5 | C94: 87 | E94: MICRORED CHURIN - OYON | F94: =SUM(H94:I94) -> 19920 | H94: =K94+M94+O94+Q94+S94+U94+W94+Y94+AA94+AC94+AE94+AG94+AI94+AK94+AM94+AO94+AQ94+AS94+AU94+AW94+AY94+BA94+BC94+BE94+BG94+BI94+BK94+BM94+BO94+BQ94+BS94+BU94+BW94+BY94 -> 9613 | I94: =L94+N94+P94+R94+T94+V94+X94+Z94+AB94+AD94+AF94+AH94+AJ94+AL94+AN94+AP94+AR94+AT94+AV94+AX94+AZ94+BB94+BD94+BF94+BH94+BJ94+BL94+BN94+BP94+BR94+BT94+BV94+BX94+BZ94 -> 10307 | K94: 133 | L94: 140 | M94: 96 | N94: 100 | O94: 98 | P94: 102 | Q94: 102 | R94: 105 | S94: 105 | T94: 125 | U94: 146 | V94: 124 | W94: 128 | X94: 128 | Y94: 147 | Z94: 129 | AA94: 129 | AB94: 145 | AC94: 126 | AD94: 123 | AE94: 139 | AF94: 140 | AG94: 141 | AH94: 143 | AI94: 166 | AJ94: 169 | AK94: 150 | AL94: 153 | AM94: 134 | AN94: 138 | AO94: 189 | AP94: 198 | AQ94: 174 | AR94: 196 | AS94: 170 | AT94: 161 | AU94: 152 | AV94: 154 | AW94: 131 | AX94: 124 | AY94: 590 | AZ94: 657 | BA94: 590 | BB94: 758 | BC94: 554 | BD94: 710 | BE94: 628 | BF94: 638 | BG94: 584 | BH94: 557 | BI94: 605 | BJ94: 575 | BK94: 589 | BL94: 669 | BM94: 561 | BN94: 585 | BO94: 551 | BP94: 514 | BQ94: 431 | BR94: 445 | BS94: 393 | BT94: 397 | BU94: 321 | BV94: 380 | BW94: 228 | BX94: 289 | BY94: 232 | BZ94: 336 | CA94: 10 | CB94: 5 | CC94: 53 | CD94: 49 | CE94: 80 | CF94: 91 | CG94: 355 | CH94: 10307 | CI94: 743 | CJ94: 833 | CK94: 3895 | CL94: 480 | CN94: 273 | CO94: 833 | CP94: 2994 | CQ94: 3886 | CR94: 1998 | CS94: 3156 | CT94: 7255 | CU94: 4517 | CW94: 1325 | CX94: 3122 | CY94: 14367 | DA94: 273 | DB94: 196 | DC94: 200 | DD94: 207 | DE94: 230 | DF94: 270 | DH94: 4662 | DI94: 5006 | DJ94: 1768 | DK94: 2480 | DL94: 4728 | DN94: 667 | DO94: 4984 | DP94: 1806 | DQ94: 1826 | DR94: 667 | DS94: 693 | DT94: 4984 | DU94: 5427 | DV94: 1928 | DW94: 2072

Sheet etapas y mredes
C2: POBLACION ASIGNADA POR DISTRITO SIERRA, HOSPITAL, MICROREDES Y POR ETAPAS DE VIDA 2025
C7: DISTRITO | P7: MICROREDES
C8: 66 | D8: 68 | E8: 11 | F8: 74 | G8: 59 | H8: 28 | I8: 76 | J8: 33 | N8: 4 | P8: 83 | Q8: 84 | R8: 85 | S8: 86 | T8: 87
B9: POBLACION POR ETAPAS DE VIDA | C9: Andajes | D9: Caujul | E9: Checras | F9: Naván | G9: Oyón | H9: Paccho | I9: Pachangara | J9: Santa Leonor | K9: Total | L9: PORC. (%) | N9: HOSPITAL HUACHO | P9: HUAURA | Q9: HUALMAY | R9: SAYAN | S9: VEGUETA | T9: CHURIN OYON | U9: Total Microredes
A10: 77 | B10: Neonatal (0-28dias) | C10: 0 | D10: 1 | E10: 0 | F10: 0 | G10: 7 | H10: 0 | I10: 2 | J10: 0 | K10: 10 | L10: 0.05020080321 | N10: 0 | P10: 16 | Q10: 55 | R10: 12 | S10: 14 | T10: 10 | U10: 107
A11: 90 | B11: Infantil (Men.1año) | C11: 6 | D11: 13 | E11: 10 | F11: 19 | G11: 134 | H11: 20 | I11: 51 | J11: 20 | K11: 273 | L11: 1.370481928 | N11: 0 | P11: 618 | Q11: 1767 | R11: 441 | S11: 544 | T11: 273 | U11: 3643
A12: 91 | B12: Pre-escolar (01-04años) | C12: 28 | D12: 26 | E12: 24 | F12: 35 | G12: 403 | H12: 49 | I12: 215 | J12: 53 | K12: 833 | L12: 4.181726908 | N12: 0 | P12: 2314 | Q12: 7483 | R12: 1915 | S12: 2223 | T12: 833 | U12: 14768
A13: 92 | B13: Niño (0-11años) | C13: 62 | D13: 65 | E13: 85 | F13: 103 | G13: 1884 | H13: 167 | I13: 476 | J13: 152 | K13: 2994 | L13: 15.03012048 | N13: 0 | P13: 7276 | Q13: 24350 | R13: 5408 | S13: 6002 | T13: 2994 | U13: 46030
A14: 93 | B14: Escolar (05-17años) | C14: 56 | D14: 57 | E14: 143 | F14: 119 | G14: 2727 | H14: 204 | I14: 412 | J14: 168 | K14: 3886 | L14: 19.50803213 | N14: 0 | P14: 7987 | Q14: 27899 | R14: 5891 | S14: 5840 | T14: 3886 | U14: 51503
A15: 94 | B15: Adolescente (12-17años) | C15: 28 | D15: 31 | E15: 92 | F15: 70 | G15: 1380 | H15: 106 | I15: 202 | J15: 89 | K15: 1998 | L15: 10.03012048 | N15: 0 | P15: 3643 | Q15: 12799 | R15: 2839 | S15: 2605 | T15: 1998 | U15: 23884
A16: 95 | B16: Adulto Joven (18-29años) | C16: 28 | D16: 62 | E16: 121 | F16: 95 | G16: 2109 | H16: 202 | I16: 381 | J16: 158 | K16: 3156 | L16: 15.84337349 | N16: 0 | P16: 7901 | Q16: 27425 | R16: 5814 | S16: 5426 | T16: 3156 | U16: 49722
A17: 96 | B17: Adulto (30-59años) | C17: 117 | D17: 153 | E17: 318 | F17: 320 | G17: 4383 | H17: 598 | I17: 933 | J17: 433 | K17: 7255 | L17: 36.42068273 | N17: 0 | P17: 18120 | Q17: 67409 | R17: 12628 | S17: 11960 | T17: 7255 | U17: 117372
A18: 97 | B18: Adu.Mayor (60 a MAS) | C18: 238 | D18: 134 | E18: 406 | F18: 226 | G18: 1836 | H18: 634 | I18: 630 | J18: 413 | K18: 4517 | L18: 22.67570281 | N18: 0 | P18: 7396 | Q18: 33332 | R18: 5513 | S18: 4651 | T18: 4517 | U18: 55409
A19: 116 | B19: Población Hombres Adolescentes (14 -17 años) | C19: 8 | D19: 10 | E19: 39 | F19: 13 | G19: 465 | H19: 40 | I19: 62 | J19: 30 | K19: 667 | L19: 3.348393574 | N19: 0 | P19: 1141 | Q19: 4326 | R19: 895 | S19: 890 | T19: 667 | U19: 7919
A20: 117 | B20: Población Hombres (18 - 59 años) | C20: 83 | D20: 101 | E20: 218 | F20: 204 | G20: 3124 | H20: 375 | I20: 608 | J20: 271 | K20: 4984 | L20: 25.02008032 | N20: 0 | P20: 12014 | Q20: 45153 | R20: 8481 | S20: 7993 | T20: 4984 | U20: 78625
A21: 88 | B21: Gestantes | C21: 8 | D21: 14 | E21: 26 | F21: 14 | G21: 234 | H21: 25 | I21: 132 | J21: 27 | K21: 480 | L21: 2.409638554 | N21: 0 | P21: 1271 | Q21: 4014 | R21: 1001 | S21: 1328 | T21: 480 | U21: 8094
A22: 114 | B22: Mujeres en Edad Fertil (MEF) | C22: 47 | D22: 92 | E22: 172 | F22: 180 | G22: 3074 | H22: 313 | I22: 587 | J22: 263 | K22: 4728 | L22: 23.73493976 | N22: 0 | P22: 12125 | Q22: 42303 | R22: 8868 | S22: 8333 | T22: 4728 | U22: 76357
B23: TOTAL | C23: 662 | D23: 667 | E23: 1482 | F23: 1218 | G23: 18686 | H23: 2420 | I23: 4104 | J23: 1814 | K23: 19920 | L23: 100 | N23: 0 | P23: 44336 | Q23: 165315 | R23: 32202 | S23: 30644 | T23: 19920 | U23: 292417
B24: Elaboración: Área de Estadística - RIS Huaura Oyón.

Sheet Etapas de Vida
A5: 86
A6: TRUE
A8: 15
C11: POBLACIÓN POR CICLO Y ETAPAS DE VIDA | D11: PROP. (%) | E11: Nº
A12: 77 | B12: Neonatal | C12: Neonatal (0 - 28dias) | D12: =IFERROR((E12/$E$24)*100,0) -> 0.02873012833 | E12: =VLOOKUP($A$8,Poblacion!$C$8:$DL$94,$A12,FALSE) -> 6
A13: 90 | B13: Infantil | C13: Infantil (< 1 año) | D13: 1.043861329 | E13: =VLOOKUP($A$8,Poblacion!$C$8:$DL$94,$A13,FALSE) -> 218
A14: 91 | B14: Pre-escolar | C14: Pre-escolar (1 a 4 años) | D14: 4.285577476 | E14: =VLOOKUP($A$8,Poblacion!$C$8:$DL$94,$A14,FALSE) -> 895
A15: 92 | B15: Niños | C15: Niños (0 - 11 años) | D15: 14.38900594 | E15: =VLOOKUP($A$8,Poblacion!$C$8:$DL$94,$A15,FALSE) -> 3005
A16: 93 | B16: Escolar | C16: Escolar (5 - 17 años) | D16: 16.76402988 | E16: =VLOOKUP($A$8,Poblacion!$C$8:$DL$94,$A16,FALSE) -> 3501
A17: 94 | B17: Adolescentes | C17: Adolescentes (10 - 19 años) | D17: 24.23386324 | E17: =VLOOKUP($A$8,Poblacion!$C$8:$DL$94,$A17,FALSE)+VLOOKUP($A$8,Poblacion!$C$8:$DL$94,$A17+1,FALSE) -> 5061
A18: 96 | B18: Adulto | C18: Adulto (20 - 59 años) | D18: 41.29955947 | E18: =VLOOKUP($A$8,Poblacion!$C$8:$DL$94,$A18,FALSE) -> 8625
A19: 97 | B19: Adul. Mayor | C19: Adul. Mayor (60 a Más) | D19: 20.07757135 | E19: =VLOOKUP($A$8,Poblacion!$C$8:$DL$94,$A19,FALSE) -> 4193
A20: 88 | B20: Gestantes | C20: Gestantes | D20: 2.001532274 | E20: =VLOOKUP($A$8,Poblacion!$C$8:$DL$94,$A20,FALSE) -> 418
A21: 114 | B21: M.E.F | C21: M.E.F | D21: 25.53150737 | E21: =VLOOKUP($A$8,Poblacion!$C$8:$DO$94,$A21,FALSE) -> 5332
A22: 116 | B22: (14 -17 años) | C22: Población Hombres Adolescentes (14 -17 años) | D22: 2.590499904 | E22: =VLOOKUP($A$8,Poblacion!$C$8:$DO$94,$A22,FALSE) -> 541 | F22: =D22 -> 2.590499904
A23: 117 | B23: (18 - 59 años) | C23: Población Hombres (18 - 59 años) | D23: 27.76766903 | E23: =VLOOKUP($A$8,Poblacion!$C$8:$DO$94,$A23,FALSE) -> 5799 | F23: =D23 -> 27.76766903
C24: TOTAL | D24: 100 | E24: =E15+E17+E18+E19 -> 20884
C25: =C34 -> Elaboración: Área de Estadística - RIS Huaura Oyón.
C27: POBLACIÓN POR ETAPAS DE VIDA ACTUALES | D27: PROP. (%) | E27: Nº
A28: 92 | B28: Niños | C28: Niños (0 - 11 años) | D28: =IFERROR((E28/$E$33)*100,0) -> 14.38900594 | E28: =VLOOKUP($A$8,Poblacion!$C$8:$DL$94,$A28,FALSE) -> 3005
A29: 94 | B29: Adolescente | C29: Adolescente (12 - 17 años) | D29: 7.704462747 | E29: =VLOOKUP($A$8,Poblacion!$C$8:$DL$94,$A29,FALSE) -> 1609
A30: 95 | B30: Adulto Joven | C30: Joven (18 - 29 años) | D30: 16.5294005 | E30: =VLOOKUP($A$8,Poblacion!$C$8:$DL$94,$A30,FALSE) -> 3452
A31: 96 | B31: Adulto | C31: Adulto (30 - 59 años) | D31: 41.29955947 | E31: =VLOOKUP($A$8,Poblacion!$C$8:$DL$94,$A31,FALSE) -> 8625
A32: 97 | B32: Adulto Mayor | C32: Adulto Mayor (60 a Más) | D32: 20.07757135 | E32: =VLOOKUP($A$8,Poblacion!$C$8:$DL$94,$A32,FALSE) -> 4193
C33: TOTAL | D33: 100 | E33: =SUM(E28:E32) -> 20884
C34: ='etapas y mredes'!B24 -> Elaboración: Área de Estadística - RIS Huaura Oyón.

Sheet Piramide Poblacional
I2: =CONCATENATE("PIRAMIDE POBLACIONAL 2025") -> PIRAMIDE POBLACIONAL 2025 | T2: =UPPER("Piramide Poblacional 2024 - " &$B$10) -> PIRAMIDE POBLACIONAL 2024 - MICRORED VEGUETA
E5: ESTABLECIMIENTOS | AX5: M | AY5: F
A7: 87 | AX7: =AX8/SUM($AX$8:$AY$8) -> 0.4772486772 | AY7: =AY8/SUM($AX$8:$AY$8) -> 0.5227513228
AX8: =SUM(AX12:AX28) -> 14432 | AY8: =SUM(AY12:AY28) -> 15808 | BB8: 1 | BC8: 2 | BD8: 3 | BE8: 4 | BF8: 5 | BG8: 6 | BH8: 7 | BI8: 8 | BJ8: 9 | BK8: 10 | BL8: 11 | BM8: 12 | BN8: 13 | BO8: 14 | BP8: 15 | BQ8: 16 | BR8: 17 | BS8: 18 | BT8: 19 | BU8: 20 | BV8: 21 | BW8: 22 | BX8: 23 | BY8: 24 | BZ8: 25 | CA8: 26 | CB8: 27 | CC8: 28 | CD8: 29 | CE8: 30 | CF8: 31 | CG8: 32 | CH8: 33 | CI8: 34 | CJ8: 35 | CK8: 36 | CL8: 37 | CM8: 38 | CN8: 39 | CO8: 40 | CP8: 41 | CQ8: 42 | CR8: 43 | CS8: 44 | CT8: 45
A10: 87 | B10: =VLOOKUP($A$10,$BB$13:$BC$100,2,FALSE) -> MICRORED VEGUETA | AS10: DATOS PIRAMIDE | AW10: DATOS PIRAMIDE | BB10: N° | BC10: DIRECCION DE SALUD | BD10: GRUPOS DE EDADES - PIRAMIDE
AS11: DESCRIPCION | AT11: M | AU11: F | AW11: DESCRIPCION | AX11: M | AY11: F | BA11: Microredes | BC11: PROVINCIA | BD11: TOTAL | BE11: Menor de 5 años | BG11: 5 - 9 | BI11: 10 - 14 | BK11: 15 - 19 | BM11: 20 - 24 | BO11: 25 - 29 | BQ11: 30 - 34 | BS11: 35 - 39 | BU11: 40 - 44 | BW11: 45 - 49 | BY11: 50 - 54 | CA11: 55 - 59 | CC11: 60 - 64 | CE11: 65 - 69 | CG11: 70 - 74 | CI11: 75 - 79 | CK11: 80 +++ | CM11: 0 - 13 | CO11: 14 - 17 | CQ11: 18 - 59 | CS11: 60++++
AS12: MENORES DE 5 AÑOS | AT12: =AX12 -> 1368 | AU12: =-AY12 -> -1399 | AW12: MENORES DE 5 AÑOS | AX12: =+LOOKUP($A$10,numeropiramide,BE13:BE100) -> 1368 | AY12: =+LOOKUP($A$10,numeropiramide,BF13:BF100) -> 1399 | BC12: DISTRITO | BE12: M | BF12: F | BG12: M | BH12: F | BI12: M | BJ12: F | BK12: M | BL12: F | BM12: M | BN12: F | BO12: M | BP12: F | BQ12: M | BR12: F | BS12: M | BT12: F | BU12: M | BV12: F | BW12: M | BX12: F | BY12: M | BZ12: F | CA12: M | CB12: F | CC12: M | CD12: F | CE12: M | CF12: F | CG12: M | CH12: F | CI12: M | CJ12: F | CK12: M | CL12: F | CM12: M | CN12: F | CO12: M | CP12: F | CQ12: M | CR12: F | CS12: M | CT12: F
AS13: DE 5 A 9 AÑOS | AT13: =AX13 -> 1210 | AU13: =-AY13 -> -1153 | AW13: DE 5 A 9 AÑOS | AX13: =+LOOKUP($A$10,numeropiramide,BG13:BG100) -> 1210 | AY13: =+LOOKUP($A$10,numeropiramide,BH13:BH100) -> 1153 | BB13: 1 | BC13: HUAURA - OYON | BD13: =Poblacion!F8 -> 292417 | BE13: =+SUM(Poblacion!K8,Poblacion!M8,Poblacion!O8,Poblacion!Q8,Poblacion!S8) -> 9266 | BF13: =+SUM(Poblacion!L8,Poblacion!N8,Poblacion!P8,Poblacion!R8,Poblacion!T8) -> 9145 | BG13: =SUM(Poblacion!U8,Poblacion!W8,Poblacion!Y8,Poblacion!AA8,Poblacion!AC8) -> 10322 | BH13: =SUM(Poblacion!V8,Poblacion!X8,Poblacion!Z8,Poblacion!AB8,Poblacion!AD8) -> 10024 | BI13: =+SUM(Poblacion!AE8,Poblacion!AG8,Poblacion!AI8,Poblacion!AK8,Poblacion!AM8) -> 9211 | BJ13: =+SUM(Poblacion!AF8,Poblacion!AH8,Poblacion!AJ8,Poblacion!AL8,Poblacion!AN8) -> 9253 | BK13: =+SUM(Poblacion!AO8,Poblacion!AQ8,Poblacion!AS8,Poblacion!AU8,Poblacion!AW8) -> 10073 | BL13: =+SUM(Poblacion!AP8,Poblacion!AR8,Poblacion!AT8,Poblacion!AV8,Poblacion!AX8) -> 10602 | BM13: =Poblacion!AY8 -> 9097 | BN13: =Poblacion!AZ8 -> 10151 | BO13: =Poblacion!BA8 -> 9680 | BP13: =Poblacion!BB8 -> 12812 | BQ13: =Poblacion!BC8 -> 9715 | BR13: =Poblacion!BD8 -> 11572 | BS13: =Poblacion!BE8 -> 10039 | BT13: =Poblacion!BF8 -> 10555 | BU13: =Poblacion!BG8 -> 9821 | BV13: =Poblacion!BH8 -> 10484 | BW13: =Poblacion!BI8 -> 9474 | BX13: =Poblacion!BJ8 -> 10181 | BY13: =Poblacion!BK8 -> 8617 | BZ13: =Poblacion!BL8 -> 9784 | CA13: =Poblacion!BM8 -> 8271 | CB13: =Poblacion!BN8 -> 8859 | CC13: =Poblacion!BO8 -> 7335 | CD13: =Poblacion!BP8 -> 7432 | CE13: =Poblacion!BQ8 -> 5583 | CF13: =Poblacion!BR8 -> 6089 | CG13: =Poblacion!BS8 -> 5039 | CH13: =Poblacion!BT8 -> 5363 | CI13: =Poblacion!BU8 -> 3902 | CJ13: =Poblacion!BV8 -> 3990 | CK13: =Poblacion!BY8 -> 2348 | CL13: =Poblacion!BZ8 -> 2918 | CM13: =Poblacion!DP8 -> 27042 | CN13: =Poblacion!DQ8 -> 26652 | CO13: =Poblacion!DR8 -> 7919 | CP13: =Poblacion!DS8 -> 8301 | CQ13: =Poblacion!DT8 -> 78625 | CR13: =Poblacion!DU8 -> 88469 | CS13: =Poblacion!DV8 -> 24207 | CT13: =Poblacion!DW8 -> 25792
AS14: DE 10 A 14 AÑOS | AT14: 1063 | AU14: -1031 | AW14: DE 10 A 14 AÑOS | AX14: =+LOOKUP($A$10,numeropiramide,BI13:BI100) -> 1063 | AY14: =+LOOKUP($A$10,numeropiramide,BJ13:BJ100) -> 1031 | BB14: 2 | BC14: PROVINCIA HUAURA | BD14: =Poblacion!F9 -> 274303 | BE14: =+SUM(Poblacion!K9,Poblacion!M9,Poblacion!O9,Poblacion!Q9,Poblacion!S9) -> 8739 | BF14: =+SUM(Poblacion!L9,Poblacion!N9,Poblacion!P9,Poblacion!R9,Poblacion!T9) -> 8577 | BG14: =SUM(Poblacion!U9,Poblacion!W9,Poblacion!Y9,Poblacion!AA9,Poblacion!AC9) -> 9680 | BH14: =SUM(Poblacion!V9,Poblacion!X9,Poblacion!Z9,Poblacion!AB9,Poblacion!AD9) -> 9389 | BI14: =+SUM(Poblacion!AE9,Poblacion!AG9,Poblacion!AI9,Poblacion!AK9,Poblacion!AM9) -> 8516 | BJ14: =+SUM(Poblacion!AF9,Poblacion!AH9,Poblacion!AJ9,Poblacion!AL9,Poblacion!AN9) -> 8527 | BK14: =+SUM(Poblacion!AO9,Poblacion!AQ9,Poblacion!AS9,Poblacion!AU9,Poblacion!AW9) -> 9295 | BL14: =+SUM(Poblacion!AP9,Poblacion!AR9,Poblacion!AT9,Poblacion!AV9,Poblacion!AX9) -> 9784 | BM14: =Poblacion!AY9 -> 8511 | BN14: =Poblacion!AZ9 -> 9513 | BO14: =Poblacion!BA9 -> 9115 | BP14: =Poblacion!BB9 -> 12087 | BQ14: =Poblacion!BC9 -> 9170 | BR14: =Poblacion!BD9 -> 10902 | BS14: =Poblacion!BE9 -> 9452 | BT14: =Poblacion!BF9 -> 9939 | BU14: =Poblacion!BG9 -> 9288 | BV14: =Poblacion!BH9 -> 9966 | BW14: =Poblacion!BI9 -> 8908 | BX14: =Poblacion!BJ9 -> 9638 | BY14: =Poblacion!BK9 -> 8093 | BZ14: =Poblacion!BL9 -> 9207 | CA14: =Poblacion!BM9 -> 7784 | CB14: =Poblacion!BN9 -> 8349 | CC14: =Poblacion!BO9 -> 6865 | CD14: =Poblacion!BP9 -> 6988 | CE14: =Poblacion!BQ9 -> 5240 | CF14: =Poblacion!BR9 -> 5733 | CG14: =Poblacion!BS9 -> 4719 | CH14: =Poblacion!BT9 -> 5042 | CI14: =Poblacion!BU9 -> 3664 | CJ14: =Poblacion!BV9 -> 3718 | CK14: =Poblacion!BY9 -> 2190 | CL14: =Poblacion!BZ9 -> 2678 | CM14: =Poblacion!DP9 -> 25306 | CN14: =Poblacion!DQ9 -> 24862 | CO14: =Poblacion!DR9 -> 7295 | CP14: =Poblacion!DS9 -> 7619 | CQ14: =Poblacion!DT9 -> 73950 | CR14: =Poblacion!DU9 -> 83397 | CS14: =Poblacion!DV9 -> 22678 | CT14: =Poblacion!DW9 -> 24159
A15: 18 | B15: =VLOOKUP($A$15,$BB$105:$BC$127,2,FALSE) -> DISTRITO CAUJUL | AS15: DE 15 A 19 AÑOS | AT15: 1123 | AU15: -1135 | AW15: DE 15 A 19 AÑOS | AX15: =+LOOKUP($A$10,numeropiramide,BK13:BK100) -> 1123 | AY15: =+LOOKUP($A$10,numeropiramide,BL13:BL100) -> 1135 | BB15: 3 | BC15: DISTRITO HUACHO | BD15: =Poblacion!F10 -> 53280 | BE15: =+SUM(Poblacion!K10,Poblacion!M10,Poblacion!O10,Poblacion!Q10,Poblacion!S10) -> 1212 | BF15: =+SUM(Poblacion!L10,Poblacion!N10,Poblacion!P10,Poblacion!R10,Poblacion!T10) -> 1201 | BG15: =SUM(Poblacion!U10,Poblacion!W10,Poblacion!Y10,Poblacion!AA10,Poblacion!AC10) -> 1775 | BH15: =SUM(Poblacion!V10,Poblacion!X10,Poblacion!Z10,Poblacion!AB10,Poblacion!AD10) -> 1655 | BI15: =+SUM(Poblacion!AE10,Poblacion!AG10,Poblacion!AI10,Poblacion!AK10,Poblacion!AM10) -> 1536 | BJ15: =+SUM(Poblacion!AF10,Poblacion!AH10,Poblacion!AJ10,Poblacion!AL10,Poblacion!AN10) -> 1468 | BK15: =+SUM(Poblacion!AO10,Poblacion!AQ10,Poblacion!AS10,Poblacion!AU10,Poblacion!AW10) -> 1746 | BL15: =+SUM(Poblacion!AP10,Poblacion!AR10,Poblacion!AT10,Poblacion!AV10,Poblacion!AX10) -> 1688 | BM15: =Poblacion!AY10 -> 1578 | BN15: =Poblacion!AZ10 -> 1626 | BO15: =Poblacion!BA10 -> 1630 | BP15: =Poblacion!BB10 -> 2134 | BQ15: =Poblacion!BC10 -> 1685 | BR15: =Poblacion!BD10 -> 1955 | BS15: =Poblacion!BE10 -> 1829 | BT15: =Poblacion!BF10 -> 1800 | BU15: =Poblacion!BG10 -> 1865 | BV15: =Poblacion!BH10 -> 1933 | BW15: =Poblacion!BI10 -> 1836 | BX15: =Poblacion!BJ10 -> 1923 | BY15: =Poblacion!BK10 -> 1754 | BZ15: =Poblacion!BL10 -> 1932 | CA15: =Poblacion!BM10 -> 1716 | CB15: =Poblacion!BN10 -> 1810 | CC15: =Poblacion!BO10 -> 1551 | CD15: =Poblacion!BP10 -> 1591 | CE15: =Poblacion!BQ10 -> 1230 | CF15: =Poblacion!BR10 -> 1323 | CG15: =Poblacion!BS10 -> 1071 | CH15: =Poblacion!BT10 -> 1218 | CI15: =Poblacion!BU10 -> 805 | CJ15: =Poblacion!BV10 -> 841 | CK15: =Poblacion!BY10 -> 498 | CL15: =Poblacion!BZ10 -> 649 | CM15: =Poblacion!DP10 -> 4230 | CN15: =Poblacion!DQ10 -> 4043 | CO15: =Poblacion!DR10 -> 1338 | CP15: =Poblacion!DS10 -> 1323 | CQ15: =Poblacion!DT10 -> 14594 | CR15: =Poblacion!DU10 -> 15759 | CS15: =Poblacion!DV10 -> 5155 | CT15: =Poblacion!DW10 -> 5622
A16: 1 | AS16: DE 20 A 24 AÑOS | AT16: 898 | AU16: -1096 | AW16: DE 20 A 24 AÑOS | AX16: =+LOOKUP($A$10,numeropiramide,BM13:BM100) -> 898 | AY16: =+LOOKUP($A$10,numeropiramide,BN13:BN100) -> 1096 | BA16: 00 | BB16: 4 | BC16: HOSPITAL HUACHO | BD16: =Poblacion!F11 -> 0 | BE16: =+SUM(Poblacion!K11,Poblacion!M11,Poblacion!O11,Poblacion!Q11,Poblacion!S11) -> 0 | BF16: =+SUM(Poblacion!L11,Poblacion!N11,Poblacion!P11,Poblacion!R11,Poblacion!T11) -> 0 | BG16: =SUM(Poblacion!U11,Poblacion!W11,Poblacion!Y11,Poblacion!AA11,Poblacion!AC11) -> 0 | BH16: =SUM(Poblacion!V11,Poblacion!X11,Poblacion!Z11,Poblacion!AB11,Poblacion!AD11) -> 0 | BI16: =+SUM(Poblacion!AE11,Poblacion!AG11,Poblacion!AI11,Poblacion!AK11,Poblacion!AM11) -> 0 | BJ16: =+SUM(Poblacion!AF11,Poblacion!AH11,Poblacion!AJ11,Poblacion!AL11,Poblacion!AN11) -> 0 | BK16: =+SUM(Poblacion!AO11,Poblacion!AQ11,Poblacion!AS11,Poblacion!AU11,Poblacion!AW11) -> 0 | BL16: =+SUM(Poblacion!AP11,Poblacion!AR11,Poblacion!AT11,Poblacion!AV11,Poblacion!AX11) -> 0 | BM16: =Poblacion!AY11 -> 0 | BN16: =Poblacion!AZ11 -> 0 | BO16: =Poblacion!BA11 -> 0 | BP16: =Poblacion!BB11 -> 0 | BQ16: =Poblacion!BC11 -> 0 | BR16: =Poblacion!BD11 -> 0 | BS16: =Poblacion!BE11 -> 0 | BT16: =Poblacion!BF11 -> 0 | BU16: =Poblacion!BG11 -> 0 | BV16: =Poblacion!BH11 -> 0 | BW16: =Poblacion!BI11 -> 0 | BX16: =Poblacion!BJ11 -> 0 | BY16: =Poblacion!BK11 -> 0 | BZ16: =Poblacion!BL11 -> 0 | CA16: =Poblacion!BM11 -> 0 | CB16: =Poblacion!BN11 -> 0 | CC16: =Poblacion!BO11 -> 0 | CD16: =Poblacion!BP11 -> 0 | CE16: =Poblacion!BQ11 -> 0 | CF16: =Poblacion!BR11 -> 0 | CG16: =Poblacion!BS11 -> 0 | CH16: =Poblacion!BT11 -> 0 | CI16: =Poblacion!BU11 -> 0 | CJ16: =Poblacion!BV11 -> 0 | CK16: =Poblacion!BY11 -> 0 | CL16: =Poblacion!BZ11 -> 0 | CM16: =Poblacion!DP11 -> 0 | CN16: =Poblacion!DQ11 -> 0 | CO16: =Poblacion!DR11 -> 0 | CP16: =Poblacion!DS11 -> 0 | CQ16: =Poblacion!DT11 -> 0 | CR16: =Poblacion!DU11 -> 0 | CS16: =Poblacion!DV11 -> 0 | CT16: =Poblacion!DW11 -> 0
A17: -1 | AS17: DE 25 A 29 AÑOS | AT17: 1087 | AU17: -1470 | AW17: DE 25 A 29 AÑOS | AX17: =+LOOKUP($A$10,numeropiramide,BO13:BO100) -> 1087 | AY17: =+LOOKUP($A$10,numeropiramide,BP13:BP100) -> 1470 | BA17: 02 | BB17: 5 | BC17: C.S. MANZANARES | BD17: =Poblacion!F12 -> 53280 | BE17: =+SUM(Poblacion!K12,Poblacion!M12,Poblacion!O12,Poblacion!Q12,Poblacion!S12) -> 1212 | BF17: =+SUM(Poblacion!L12,Poblacion!N12,Poblacion!P12,Poblacion!R12,Poblacion!T12) -> 1201 | BG17: =SUM(Poblacion!U12,Poblacion!W12,Poblacion!Y12,Poblacion!AA12,Poblacion!AC12) -> 1775 | BH17: =SUM(Poblacion!V12,Poblacion!X12,Poblacion!Z12,Poblacion!AB12,Poblacion!AD12) -> 1655 | BI17: =+SUM(Poblacion!AE12,Poblacion!AG12,Poblacion!AI12,Poblacion!AK12,Poblacion!AM12) -> 1536 | BJ17: =+SUM(Poblacion!AF12,Poblacion!AH12,Poblacion!AJ12,Poblacion!AL12,Poblacion!AN12) -> 1468 | BK17: =+SUM(Poblacion!AO12,Poblacion!AQ12,Poblacion!AS12,Poblacion!AU12,Poblacion!AW12) -> 1746 | BL17: =+SUM(Poblacion!AP12,Poblacion!AR12,Poblacion!AT12,Poblacion!AV12,Poblacion!AX12) -> 1688 | BM17: =Poblacion!AY12 -> 1578 | BN17: =Poblacion!AZ12 -> 1626 | BO17: =Poblacion!BA12 -> 1630 | BP17: =Poblacion!BB12 -> 2134 | BQ17: =Poblacion!BC12 -> 1685 | BR17: =Poblacion!BD12 -> 1955 | BS17: =Poblacion!BE12 -> 1829 | BT17: =Poblacion!BF12 -> 1800 | BU17: =Poblacion!BG12 -> 1865 | BV17: =Poblacion!BH12 -> 1933 | BW17: =Poblacion!BI12 -> 1836 | BX17: =Poblacion!BJ12 -> 1923 | BY17: =Poblacion!BK12 -> 1754 | BZ17: =Poblacion!BL12 -> 1932 | CA17: =Poblacion!BM12 -> 1716 | CB17: =Poblacion!BN12 -> 1810 | CC17: =Poblacion!BO12 -> 1551 | CD17: =Poblacion!BP12 -> 1591 | CE17: =Poblacion!BQ12 -> 1230 | CF17: =Poblacion!BR12 -> 1323 | CG17: =Poblacion!BS12 -> 1071 | CH17: =Poblacion!BT12 -> 1218 | CI17: =Poblacion!BU12 -> 805 | CJ17: =Poblacion!BV12 -> 841 | CK17: =Poblacion!BY12 -> 498 | CL17: =Poblacion!BZ12 -> 649 | CM17: =Poblacion!DP12 -> 4230 | CN17: =Poblacion!DQ12 -> 4043 | CO17: =Poblacion!DR12 -> 1338 | CP17: =Poblacion!DS12 -> 1323 | CQ17: =Poblacion!DT12 -> 14594 | CR17: =Poblacion!DU12 -> 15759 | CS17: =Poblacion!DV12 -> 5155 | CT17: =Poblacion!DW12 -> 5622
AS18: DE 30 A 34 AÑOS | AT18: 1089 | AU18: -1364 | AW18: DE 30 A 34 AÑOS | AX18: =+LOOKUP($A$10,numeropiramide,BQ13:BQ100) -> 1089 | AY18: =+LOOKUP($A$10,numeropiramide,BR13:BR100) -> 1364 | BB18: 6 | BC18: DISTRITO AMBAR | BD18: =Poblacion!F13 -> 2841 | BE18: =+SUM(Poblacion!K13,Poblacion!M13,Poblacion!O13,Poblacion!Q13,Poblacion!S13) -> 106 | BF18: =+SUM(Poblacion!L13,Poblacion!N13,Poblacion!P13,Poblacion!R13,Poblacion!T13) -> 103 | BG18: =SUM(Poblacion!U13,Poblacion!W13,Poblacion!Y13,Poblacion!AA13,Poblacion!AC13) -> 93 | BH18: =SUM(Poblacion!V13,Poblacion!X13,Poblacion!Z13,Poblacion!AB13,Poblacion!AD13) -> 74 | BI18: =+SUM(Poblacion!AE13,Poblacion!AG13,Poblacion!AI13,Poblacion!AK13,Poblacion!AM13) -> 74 | BJ18: =+SUM(Poblacion!AF13,Poblacion!AH13,Poblacion!AJ13,Poblacion!AL13,Poblacion!AN13) -> 87 | BK18: =+SUM(Poblacion!AO13,Poblacion!AQ13,Poblacion!AS13,Poblacion!AU13,Poblacion!AW13) -> 84 | BL18: =+SUM(Poblacion!AP13,Poblacion!AR13,Poblacion!AT13,Poblacion!AV13,Poblacion!AX13) -> 101 | BM18: =Poblacion!AY13 -> 91 | BN18: =Poblacion!AZ13 -> 107 | BO18: =Poblacion!BA13 -> 79 | BP18: =Poblacion!BB13 -> 128 | BQ18: =Poblacion!BC13 -> 66 | BR18: =Poblacion!BD13 -> 104 | BS18: =Poblacion!BE13 -> 85 | BT18: =Poblacion!BF13 -> 121 | BU18: =Poblacion!BG13 -> 80 | BV18: =Poblacion!BH13 -> 81 | BW18: =Poblacion!BI13 -> 88 | BX18: =Poblacion!BJ13 -> 95 | BY18: =Poblacion!BK13 -> 72 | BZ18: =Poblacion!BL13 -> 97 | CA18: =Poblacion!BM13 -> 88 | CB18: =Poblacion!BN13 -> 74 | CC18: =Poblacion!BO13 -> 67 | CD18: =Poblacion!BP13 -> 81 | CE18: =Poblacion!BQ13 -> 73 | CF18: =Poblacion!BR13 -> 79 | CG18: =Poblacion!BS13 -> 64 | CH18: =Poblacion!BT13 -> 51 | CI18: =Poblacion!BU13 -> 70 | CJ18: =Poblacion!BV13 -> 30 | CK18: =Poblacion!BY13 -> 26 | CL18: =Poblacion!BZ13 -> 48 | CM18: =Poblacion!DP13 -> 256 | CN18: =Poblacion!DQ13 -> 244 | CO18: =Poblacion!DR13 -> 61 | CP18: =Poblacion!DS13 -> 79 | CQ18: =Poblacion!DT13 -> 689 | CR18: =Poblacion!DU13 -> 849 | CS18: =Poblacion!DV13 -> 300 | CT18: =Poblacion!DW13 -> 289
AS19: DE 35 A 39 AÑOS | AT19: 1093 | AU19: -1187 | AW19: DE 35 A 39 AÑOS | AX19: =+LOOKUP($A$10,numeropiramide,BS13:BS100) -> 1093 | AY19: =+LOOKUP($A$10,numeropiramide,BT13:BT100) -> 1187 | BA19: 01 | BB19: 7 | BC19: C.S. AMBAR | BD19: =Poblacion!F14 -> 1787 | BE19: =+SUM(Poblacion!K14,Poblacion!M14,Poblacion!O14,Poblacion!Q14,Poblacion!S14) -> 67 | BF19: =+SUM(Poblacion!L14,Poblacion!N14,Poblacion!P14,Poblacion!R14,Poblacion!T14) -> 65 | BG19: =SUM(Poblacion!U14,Poblacion!W14,Poblacion!Y14,Poblacion!AA14,Poblacion!AC14) -> 58 | BH19: =SUM(Poblacion!V14,Poblacion!X14,Poblacion!Z14,Poblacion!AB14,Poblacion!AD14) -> 46 | BI19: =+SUM(Poblacion!AE14,Poblacion!AG14,Poblacion!AI14,Poblacion!AK14,Poblacion!AM14) -> 47 | BJ19: =+SUM(Poblacion!AF14,Poblacion!AH14,Poblacion!AJ14,Poblacion!AL14,Poblacion!AN14) -> 55 | BK19: =+SUM(Poblacion!AO14,Poblacion!AQ14,Poblacion!AS14,Poblacion!AU14,Poblacion!AW14) -> 52 | BL19: =+SUM(Poblacion!AP14,Poblacion!AR14,Poblacion!AT14,Poblacion!AV14,Poblacion!AX14) -> 65 | BM19: =Poblacion!AY14 -> 57 | BN19: =Poblacion!AZ14 -> 67 | BO19: =Poblacion!BA14 -> 50 | BP19: =Poblacion!BB14 -> 81 | BQ19: =Poblacion!BC14 -> 42 | BR19: =Poblacion!BD14 -> 65 | BS19: =Poblacion!BE14 -> 53 | BT19: =Poblacion!BF14 -> 76 | BU19: =Poblacion!BG14 -> 50 | BV19: =Poblacion!BH14 -> 51 | BW19: =Poblacion!BI14 -> 55 | BX19: =Poblacion!BJ14 -> 60 | BY19: =Poblacion!BK14 -> 45 | BZ19: =Poblacion!BL14 -> 61 | CA19: =Poblacion!BM14 -> 55 | CB19: =Poblacion!BN14 -> 47 | CC19: =Poblacion!BO14 -> 42 | CD19: =Poblacion!BP14 -> 51 | CE19: =Poblacion!BQ14 -> 46 | CF19: =Poblacion!BR14 -> 50 | CG19: =Poblacion!BS14 -> 40 | CH19: =Poblacion!BT14 -> 32 | CI19: =Poblacion!BU14 -> 44 | CJ19: =Poblacion!BV14 -> 19 | CK19: =Poblacion!BY14 -> 16 | CL19: =Poblacion!BZ14 -> 30 | CM19: =Poblacion!DP14 -> 161 | CN19: =Poblacion!DQ14 -> 153 | CO19: =Poblacion!DR14 -> 38 | CP19: =Poblacion!DS14 -> 51 | CQ19: =Poblacion!DT14 -> 432 | CR19: =Poblacion!DU14 -> 535 | CS19: =Poblacion!DV14 -> 188 | CT19: =Poblacion!DW14 -> 182
AS20: DE 40 A 44 AÑOS | AT20: 986 | AU20: -1091 | AW20: DE 40 A 44 AÑOS | AX20: =+LOOKUP($A$10,numeropiramide,BU13:BU100) -> 986 | AY20: =+LOOKUP($A$10,numeropiramide,BV13:BV100) -> 1091 | BA20: 01 | BB20: 8 | BC20: P.S. AYNACA | BD20: =Poblacion!F15 -> 1054 | BE20: =+SUM(Poblacion!K15,Poblacion!M15,Poblacion!O15,Poblacion!Q15,Poblacion!S15) -> 39 | BF20: =+SUM(Poblacion!L15,Poblacion!N15,Poblacion!P15,Poblacion!R15,Poblacion!T15) -> 38 | BG20: =SUM(Poblacion!U15,Poblacion!W15,Poblacion!Y15,Poblacion!AA15,Poblacion!AC15) -> 35 | BH20: =SUM(Poblacion!V15,Poblacion!X15,Poblacion!Z15,Poblacion!AB15,Poblacion!AD15) -> 28 | BI20: =+SUM(Poblacion!AE15,Poblacion!AG15,Poblacion!AI15,Poblacion!AK15,Poblacion!AM15) -> 27 | BJ20: =+SUM(Poblacion!AF15,Poblacion!AH15,Poblacion!AJ15,Poblacion!AL15,Poblacion!AN15) -> 32 | BK20: =+SUM(Poblacion!AO15,Poblacion!AQ15,Poblacion!AS15,Poblacion!AU15,Poblacion!AW15) -> 32 | BL20: =+SUM(Poblacion!AP15,Poblacion!AR15,Poblacion!AT15,Poblacion!AV15,Poblacion!AX15) -> 36 | BM20: =Poblacion!AY15 -> 34 | BN20: =Poblacion!AZ15 -> 40 | BO20: =Poblacion!BA15 -> 29 | BP20: =Poblacion!BB15 -> 47 | BQ20: =Poblacion!BC15 -> 24 | BR20: =Poblacion!BD15 -> 39 | BS20: =Poblacion!BE15 -> 32 | BT20: =Poblacion!BF15 -> 45 | BU20: =Poblacion!BG15 -> 30 | BV20: =Poblacion!BH15 -> 30 | BW20: =Poblacion!BI15 -> 33 | BX20: =Poblacion!BJ15 -> 35 | BY20: =Poblacion!BK15 -> 27 | BZ20: =Poblacion!BL15 -> 36 | CA20: =Poblacion!BM15 -> 33 | CB20: =Poblacion!BN15 -> 27 | CC20: =Poblacion!BO15 -> 25 | CD20: =Poblacion!BP15 -> 30 | CE20: =Poblacion!BQ15 -> 27 | CF20: =Poblacion!BR15 -> 29 | CG20: =Poblacion!BS15 -> 24 | CH20: =Poblacion!BT15 -> 19 | CI20: =Poblacion!BU15 -> 26 | CJ20: =Poblacion!BV15 -> 11 | CK20: =Poblacion!BY15 -> 10 | CL20: =Poblacion!BZ15 -> 18 | CM20: =Poblacion!DP15 -> 95 | CN20: =Poblacion!DQ15 -> 91 | CO20: =Poblacion!DR15 -> 23 | CP20: =Poblacion!DS15 -> 28 | CQ20: =Poblacion!DT15 -> 257 | CR20: =Poblacion!DU15 -> 314 | CS20: =Poblacion!DV15 -> 112 | CT20: =Poblacion!DW15 -> 107
AS21: DE 45 A 49 AÑOS | AT21: 886 | AU21: -990 | AW21: DE 45 A 49 AÑOS | AX21: =+LOOKUP($A$10,numeropiramide,BW13:BW100) -> 886 | AY21: =+LOOKUP($A$10,numeropiramide,BX13:BX100) -> 990 | BB21: 9 | BC21: DISTRITO CARQUIN | BD21: =Poblacion!F16 -> 9548 | BE21: =+SUM(Poblacion!K16,Poblacion!M16,Poblacion!O16,Poblacion!Q16,Poblacion!S16) -> 236 | BF21: =+SUM(Poblacion!L16,Poblacion!N16,Poblacion!P16,Poblacion!R16,Poblacion!T16) -> 230 | BG21: =SUM(Poblacion!U16,Poblacion!W16,Poblacion!Y16,Poblacion!AA16,Poblacion!AC16) -> 319 | BH21: =SUM(Poblacion!V16,Poblacion!X16,Poblacion!Z16,Poblacion!AB16,Poblacion!AD16) -> 303 | BI21: =+SUM(Poblacion!AE16,Poblacion!AG16,Poblacion!AI16,Poblacion!AK16,Poblacion!AM16) -> 325 | BJ21: =+SUM(Poblacion!AF16,Poblacion!AH16,Poblacion!AJ16,Poblacion!AL16,Poblacion!AN16) -> 331 | BK21: =+SUM(Poblacion!AO16,Poblacion!AQ16,Poblacion!AS16,Poblacion!AU16,Poblacion!AW16) -> 328 | BL21: =+SUM(Poblacion!AP16,Poblacion!AR16,Poblacion!AT16,Poblacion!AV16,Poblacion!AX16) -> 369 | BM21: =Poblacion!AY16 -> 305 | BN21: =Poblacion!AZ16 -> 346 | BO21: =Poblacion!BA16 -> 305 | BP21: =Poblacion!BB16 -> 388 | BQ21: =Poblacion!BC16 -> 320 | BR21: =Poblacion!BD16 -> 411 | BS21: =Poblacion!BE16 -> 356 | BT21: =Poblacion!BF16 -> 355 | BU21: =Poblacion!BG16 -> 340 | BV21: =Poblacion!BH16 -> 406 | BW21: =Poblacion!BI16 -> 326 | BX21: =Poblacion!BJ16 -> 343 | BY21: =Poblacion!BK16 -> 269 | BZ21: =Poblacion!BL16 -> 310 | CA21: =Poblacion!BM16 -> 284 | CB21: =Poblacion!BN16 -> 309 | CC21: =Poblacion!BO16 -> 248 | CD21: =Poblacion!BP16 -> 222 | CE21: =Poblacion!BQ16 -> 159 | CF21: =Poblacion!BR16 -> 202 | CG21: =Poblacion!BS16 -> 179 | CH21: =Poblacion!BT16 -> 179 | CI21: =Poblacion!BU16 -> 116 | CJ21: =Poblacion!BV16 -> 124 | CK21: =Poblacion!BY16 -> 49 | CL21: =Poblacion!BZ16 -> 70 | CM21: =Poblacion!DP16 -> 812 | CN21: =Poblacion!DQ16 -> 797 | CO21: =Poblacion!DR16 -> 294 | CP21: =Poblacion!DS16 -> 307 | CQ21: =Poblacion!DT16 -> 2607 | CR21: =Poblacion!DU16 -> 2997 | CS21: =Poblacion!DV16 -> 751 | CT21: =Poblacion!DW16 -> 797
AS22: DE 50 A 54 AÑOS | AT22: 785 | AU22: -905 | AW22: DE 50 A 54 AÑOS | AX22: =+LOOKUP($A$10,numeropiramide,BY13:BY100) -> 785 | AY22: =+LOOKUP($A$10,numeropiramide,BZ13:BZ100) -> 905 | BA22: 02 | BB22: 10 | BC22: P.S. CARQUIN | BD22: =Poblacion!F17 -> 9548 | BE22: =+SUM(Poblacion!K17,Poblacion!M17,Poblacion!O17,Poblacion!Q17,Poblacion!S17) -> 236 | BF22: =+SUM(Poblacion!L17,Poblacion!N17,Poblacion!P17,Poblacion!R17,Poblacion!T17) -> 230 | BG22: =SUM(Poblacion!U17,Poblacion!W17,Poblacion!Y17,Poblacion!AA17,Poblacion!AC17) -> 319 | BH22: =SUM(Poblacion!V17,Poblacion!X17,Poblacion!Z17,Poblacion!AB17,Poblacion!AD17) -> 303 | BI22: =+SUM(Poblacion!AE17,Poblacion!AG17,Poblacion!AI17,Poblacion!AK17,Poblacion!AM17) -> 325 | BJ22: =+SUM(Poblacion!AF17,Poblacion!AH17,Poblacion!AJ17,Poblacion!AL17,Poblacion!AN17) -> 331 | BK22: =+SUM(Poblacion!AO17,Poblacion!AQ17,Poblacion!AS17,Poblacion!AU17,Poblacion!AW17) -> 328 | BL22: =+SUM(Poblacion!AP17,Poblacion!AR17,Poblacion!AT17,Poblacion!AV17,Poblacion!AX17) -> 369 | BM22: =Poblacion!AY17 -> 305 | BN22: =Poblacion!AZ17 -> 346 | BO22: =Poblacion!BA17 -> 305 | BP22: =Poblacion!BB17 -> 388 | BQ22: =Poblacion!BC17 -> 320 | BR22: =Poblacion!BD17 -> 411 | BS22: =Poblacion!BE17 -> 356 | BT22: =Poblacion!BF17 -> 355 | BU22: =Poblacion!BG17 -> 340 | BV22: =Poblacion!BH17 -> 406 | BW22: =Poblacion!BI17 -> 326 | BX22: =Poblacion!BJ17 -> 343 | BY22: =Poblacion!BK17 -> 269 | BZ22: =Poblacion!BL17 -> 310 | CA22: =Poblacion!BM17 -> 284 | CB22: =Poblacion!BN17 -> 309 | CC22: =Poblacion!BO17 -> 248 | CD22: =Poblacion!BP17 -> 222 | CE22: =Poblacion!BQ17 -> 159 | CF22: =Poblacion!BR17 -> 202 | CG22: =Poblacion!BS17 -> 179 | CH22: =Poblacion!BT17 -> 179 | CI22: =Poblacion!BU17 -> 116 | CJ22: =Poblacion!BV17 -> 124 | CK22: =Poblacion!BY17 -> 49 | CL22: =Poblacion!BZ17 -> 70 | CM22: =Poblacion!DP17 -> 812 | CN22: =Poblacion!DQ17 -> 797 | CO22: =Poblacion!DR17 -> 294 | CP22: =Poblacion!DS17 -> 307 | CQ22: =Poblacion!DT17 -> 2607 | CR22: =Poblacion!DU17 -> 2997 | CS22: =Poblacion!DV17 -> 751 | CT22: =Poblacion!DW17 -> 797
AS23: DE 55 A 59 AÑOS | AT23: 748 | AU23: -836 | AW23: DE 55 A 59 AÑOS | AX23: =+LOOKUP($A$10,numeropiramide,CA13:CA100) -> 748 | AY23: =+LOOKUP($A$10,numeropiramide,CB13:CB100) -> 836 | BB23: 11 | BC23: DISTRITO CHECRAS | BD23: =Poblacion!F18 -> 1022 | BE23: =+SUM(Poblacion!K18,Poblacion!M18,Poblacion!O18,Poblacion!Q18,Poblacion!S18) -> 13 | BF23: =+SUM(Poblacion!L18,Poblacion!N18,Poblacion!P18,Poblacion!R18,Poblacion!T18) -> 21 | BG23: =SUM(Poblacion!U18,Poblacion!W18,Poblacion!Y18,Poblacion!AA18,Poblacion!AC18) -> 21 | BH23: =SUM(Poblacion!V18,Poblacion!X18,Poblacion!Z18,Poblacion!AB18,Poblacion!AD18) -> 13 | BI23: =+SUM(Poblacion!AE18,Poblacion!AG18,Poblacion!AI18,Poblacion!AK18,Poblacion!AM18) -> 23 | BJ23: =+SUM(Poblacion!AF18,Poblacion!AH18,Poblacion!AJ18,Poblacion!AL18,Poblacion!AN18) -> 25 | BK23: =+SUM(Poblacion!AO18,Poblacion!AQ18,Poblacion!AS18,Poblacion!AU18,Poblacion!AW18) -> 44 | BL23: =+SUM(Poblacion!AP18,Poblacion!AR18,Poblacion!AT18,Poblacion!AV18,Poblacion!AX18) -> 36 | BM23: =Poblacion!AY18 -> 18 | BN23: =Poblacion!AZ18 -> 29 | BO23: =Poblacion!BA18 -> 27 | BP23: =Poblacion!BB18 -> 28 | BQ23: =Poblacion!BC18 -> 17 | BR23: =Poblacion!BD18 -> 22 | BS23: =Poblacion!BE18 -> 20 | BT23: =Poblacion!BF18 -> 24 | BU23: =Poblacion!BG18 -> 27 | BV23: =Poblacion!BH18 -> 16 | BW23: =Poblacion!BI18 -> 27 | BX23: =Poblacion!BJ18 -> 17 | BY23: =Poblacion!BK18 -> 30 | BZ23: =Poblacion!BL18 -> 39 | CA23: =Poblacion!BM18 -> 42 | CB23: =Poblacion!BN18 -> 37 | CC23: =Poblacion!BO18 -> 34 | CD23: =Poblacion!BP18 -> 31 | CE23: =Poblacion!BQ18 -> 35 | CF23: =Poblacion!BR18 -> 38 | CG23: =Poblacion!BS18 -> 36 | CH23: =Poblacion!BT18 -> 42 | CI23: =Poblacion!BU18 -> 19 | CJ23: =Poblacion!BV18 -> 31 | CK23: =Poblacion!BY18 -> 29 | CL23: =Poblacion!BZ18 -> 49 | CM23: =Poblacion!DP18 -> 52 | CN23: =Poblacion!DQ18 -> 54 | CO23: =Poblacion!DR18 -> 39 | CP23: =Poblacion!DS18 -> 32 | CQ23: =Poblacion!DT18 -> 218 | CR23: =Poblacion!DU18 -> 221 | CS23: =Poblacion!DV18 -> 153 | CT23: =Poblacion!DW18 -> 191
AS24: DE 60 A 64 AÑOS | AT24: 625 | AU24: -675 | AW24: DE 60 A 64 AÑOS | AX24: =+LOOKUP($A$10,numeropiramide,CC13:CC100) -> 625 | AY24: =+LOOKUP($A$10,numeropiramide,CD13:CD100) -> 675 | BA24: 05 | BB24: 12 | BC24: P.S. PUÑUN | BD24: =Poblacion!F19 -> 1022 | BE24: =+SUM(Poblacion!K19,Poblacion!M19,Poblacion!O19,Poblacion!Q19,Poblacion!S19) -> 13 | BF24: =+SUM(Poblacion!L19,Poblacion!N19,Poblacion!P19,Poblacion!R19,Poblacion!T19) -> 21 | BG24: =SUM(Poblacion!U19,Poblacion!W19,Poblacion!Y19,Poblacion!AA19,Poblacion!AC19) -> 21 | BH24: =SUM(Poblacion!V19,Poblacion!X19,Poblacion!Z19,Poblacion!AB19,Poblacion!AD19) -> 13 | BI24: =+SUM(Poblacion!AE19,Poblacion!AG19,Poblacion!AI19,Poblacion!AK19,Poblacion!AM19) -> 23 | BJ24: =+SUM(Poblacion!AF19,Poblacion!AH19,Poblacion!AJ19,Poblacion!AL19,Poblacion!AN19) -> 25 | BK24: =+SUM(Poblacion!AO19,Poblacion!AQ19,Poblacion!AS19,Poblacion!AU19,Poblacion!AW19) -> 44 | BL24: =+SUM(Poblacion!AP19,Poblacion!AR19,Poblacion!AT19,Poblacion!AV19,Poblacion!AX19) -> 36 | BM24: =Poblacion!AY19 -> 18 | BN24: =Poblacion!AZ19 -> 29 | BO24: =Poblacion!BA19 -> 27 | BP24: =Poblacion!BB19 -> 28 | BQ24: =Poblacion!BC19 -> 17 | BR24: =Poblacion!BD19 -> 22 | BS24: =Poblacion!BE19 -> 20 | BT24: =Poblacion!BF19 -> 24 | BU24: =Poblacion!BG19 -> 27 | BV24: =Poblacion!BH19 -> 16 | BW24: =Poblacion!BI19 -> 27 | BX24: =Poblacion!BJ19 -> 17 | BY24: =Poblacion!BK19 -> 30 | BZ24: =Poblacion!BL19 -> 39 | CA24: =Poblacion!BM19 -> 42 | CB24: =Poblacion!BN19 -> 37 | CC24: =Poblacion!BO19 -> 34 | CD24: =Poblacion!BP19 -> 31 | CE24: =Poblacion!BQ19 -> 35 | CF24: =Poblacion!BR19 -> 38 | CG24: =Poblacion!BS19 -> 36 | CH24: =Poblacion!BT19 -> 42 | CI24: =Poblacion!BU19 -> 19 | CJ24: =Poblacion!BV19 -> 31 | CK24: =Poblacion!BY19 -> 29 | CL24: =Poblacion!BZ19 -> 49 | CM24: =Poblacion!DP19 -> 52 | CN24: =Poblacion!DQ19 -> 54 | CO24: =Poblacion!DR19 -> 39 | CP24: =Poblacion!DS19 -> 32 | CQ24: =Poblacion!DT19 -> 218 | CR24: =Poblacion!DU19 -> 221 | CS24: =Poblacion!DV19 -> 153 | CT24: =Poblacion!DW19 -> 191
AS25: DE 65 A 69 AÑOS | AT25: 488 | AU25: -496 | AW25: DE 65 A 69 AÑOS | AX25: =+LOOKUP($A$10,numeropiramide,CE13:CE100) -> 488 | AY25: =+LOOKUP($A$10,numeropiramide,CF13:CF100) -> 496 | BB25: 13 | BC25: DISTRITO HUALMAY | BD25: =Poblacion!F20 -> 57016 | BE25: =+SUM(Poblacion!K20,Poblacion!M20,Poblacion!O20,Poblacion!Q20,Poblacion!S20) -> 1560 | BF25: =+SUM(Poblacion!L20,Poblacion!N20,Poblacion!P20,Poblacion!R20,Poblacion!T20) -> 1492 | BG25: =SUM(Poblacion!U20,Poblacion!W20,Poblacion!Y20,Poblacion!AA20,Poblacion!AC20) -> 1979 | BH25: =SUM(Poblacion!V20,Poblacion!X20,Poblacion!Z20,Poblacion!AB20,Poblacion!AD20) -> 1887 | BI25: =+SUM(Poblacion!AE20,Poblacion!AG20,Poblacion!AI20,Poblacion!AK20,Poblacion!AM20) -> 1711 | BJ25: =+SUM(Poblacion!AF20,Poblacion!AH20,Poblacion!AJ20,Poblacion!AL20,Poblacion!AN20) -> 1676 | BK25: =+SUM(Poblacion!AO20,Poblacion!AQ20,Poblacion!AS20,Poblacion!AU20,Poblacion!AW20) -> 1877 | BL25: =+SUM(Poblacion!AP20,Poblacion!AR20,Poblacion!AT20,Poblacion!AV20,Poblacion!AX20) -> 1904 | BM25: =Poblacion!AY20 -> 1776 | BN25: =Poblacion!AZ20 -> 1891 | BO25: =Poblacion!BA20 -> 1854 | BP25: =Poblacion!BB20 -> 2429 | BQ25: =Poblacion!BC20 -> 1906 | BR25: =Poblacion!BD20 -> 2138 | BS25: =Poblacion!BE20 -> 1989 | BT25: =Poblacion!BF20 -> 2069 | BU25: =Poblacion!BG20 -> 1979 | BV25: =Poblacion!BH20 -> 2093 | BW25: =Poblacion!BI20 -> 2001 | BX25: =Poblacion!BJ20 -> 2079 | BY25: =Poblacion!BK20 -> 1849 | BZ25: =Poblacion!BL20 -> 1933 | CA25: =Poblacion!BM20 -> 1726 | CB25: =Poblacion!BN20 -> 1808 | CC25: =Poblacion!BO20 -> 1491 | CD25: =Poblacion!BP20 -> 1506 | CE25: =Poblacion!BQ20 -> 1155 | CF25: =Poblacion!BR20 -> 1297 | CG25: =Poblacion!BS20 -> 1008 | CH25: =Poblacion!BT20 -> 1126 | CI25: =Poblacion!BU20 -> 789 | CJ25: =Poblacion!BV20 -> 866 | CK25: =Poblacion!BY20 -> 450 | CL25: =Poblacion!BZ20 -> 614 | CM25: =Poblacion!DP20 -> 4909 | CN25: =Poblacion!DQ20 -> 4721 | CO25: =Poblacion!DR20 -> 1476 | CP25: =Poblacion!DS20 -> 1501 | CQ25: =Poblacion!DT20 -> 15822 | CR25: =Poblacion!DU20 -> 17177 | CS25: =Poblacion!DV20 -> 4893 | CT25: =Poblacion!DW20 -> 5409
AS26: DE 70 A 74 AÑOS | AT26: 434 | AU26: -414 | AW26: DE 70 A 74 AÑOS | AX26: =+LOOKUP($A$10,numeropiramide,CG13:CG100) -> 434 | AY26: =+LOOKUP($A$10,numeropiramide,CH13:CH100) -> 414 | BA26: 02 | BB26: 14 | BC26: C.S. HUALMAY | BD26: =Poblacion!F21 -> 31021 | BE26: =+SUM(Poblacion!K21,Poblacion!M21,Poblacion!O21,Poblacion!Q21,Poblacion!S21) -> 831 | BF26: =+SUM(Poblacion!L21,Poblacion!N21,Poblacion!P21,Poblacion!R21,Poblacion!T21) -> 800 | BG26: =SUM(Poblacion!U21,Poblacion!W21,Poblacion!Y21,Poblacion!AA21,Poblacion!AC21) -> 1071 | BH26: =SUM(Poblacion!V21,Poblacion!X21,Poblacion!Z21,Poblacion!AB21,Poblacion!AD21) -> 1019 | BI26: =+SUM(Poblacion!AE21,Poblacion!AG21,Poblacion!AI21,Poblacion!AK21,Poblacion!AM21) -> 925 | BJ26: =+SUM(Poblacion!AF21,Poblacion!AH21,Poblacion!AJ21,Poblacion!AL21,Poblacion!AN21) -> 904 | BK26: =+SUM(Poblacion!AO21,Poblacion!AQ21,Poblacion!AS21,Poblacion!AU21,Poblacion!AW21) -> 1020 | BL26: =+SUM(Poblacion!AP21,Poblacion!AR21,Poblacion!AT21,Poblacion!AV21,Poblacion!AX21) -> 1030 | BM26: =Poblacion!AY21 -> 960 | BN26: =Poblacion!AZ21 -> 1019 | BO26: =Poblacion!BA21 -> 1001 | BP26: =Poblacion!BB21 -> 1312 | BQ26: =Poblacion!BC21 -> 1030 | BR26: =Poblacion!BD21 -> 1175 | BS26: =Poblacion!BE21 -> 1080 | BT26: =Poblacion!BF21 -> 1117 | BU26: =Poblacion!BG21 -> 1077 | BV26: =Poblacion!BH21 -> 1136 | BW26: =Poblacion!BI21 -> 1086 | BX26: =Poblacion!BJ21 -> 1129 | BY26: =Poblacion!BK21 -> 1007 | BZ26: =Poblacion!BL21 -> 1060 | CA26: =Poblacion!BM21 -> 946 | CB26: =Poblacion!BN21 -> 991 | CC26: =Poblacion!BO21 -> 821 | CD26: =Poblacion!BP21 -> 831 | CE26: =Poblacion!BQ21 -> 639 | CF26: =Poblacion!BR21 -> 713 | CG26: =Poblacion!BS21 -> 557 | CH26: =Poblacion!BT21 -> 623 | CI26: =Poblacion!BU21 -> 434 | CJ26: =Poblacion!BV21 -> 473 | CK26: =Poblacion!BY21 -> 250 | CL26: =Poblacion!BZ21 -> 339 | CM26: =Poblacion!DP21 -> 2644 | CN26: =Poblacion!DQ21 -> 2544 | CO26: =Poblacion!DR21 -> 799 | CP26: =Poblacion!DS21 -> 811 | CQ26: =Poblacion!DT21 -> 8591 | CR26: =Poblacion!DU21 -> 9337 | CS26: =Poblacion!DV21 -> 2701 | CT26: =Poblacion!DW21 -> 2979
AS27: DE 75 A 79 AÑOS | AT27: 349 | AU27: -313 | AW27: DE 75 A 79 AÑOS | AX27: =+LOOKUP($A$10,numeropiramide,CI13:CI100) -> 349 | AY27: =+LOOKUP($A$10,numeropiramide,CJ13:CJ100) -> 313 | BA27: 02 | BB27: 15 | BC27: P.S. DGO. MANDAMIENTO | BD27: =Poblacion!F22 -> 20884 | BE27: =+SUM(Poblacion!K22,Poblacion!M22,Poblacion!O22,Poblacion!Q22,Poblacion!S22) -> 570 | BF27: =+SUM(Poblacion!L22,Poblacion!N22,Poblacion!P22,Poblacion!R22,Poblacion!T22) -> 543 | BG27: =SUM(Poblacion!U22,Poblacion!W22,Poblacion!Y22,Poblacion!AA22,Poblacion!AC22) -> 724 | BH27: =SUM(Poblacion!V22,Poblacion!X22,Poblacion!Z22,Poblacion!AB22,Poblacion!AD22) -> 691 | BI27: =+SUM(Poblacion!AE22,Poblacion!AG22,Poblacion!AI22,Poblacion!AK22,Poblacion!AM22) -> 629 | BJ27: =+SUM(Poblacion!AF22,Poblacion!AH22,Poblacion!AJ22,Poblacion!AL22,Poblacion!AN22) -> 615 | BK27: =+SUM(Poblacion!AO22,Poblacion!AQ22,Poblacion!AS22,Poblacion!AU22,Poblacion!AW22) -> 687 | BL27: =+SUM(Poblacion!AP22,Poblacion!AR22,Poblacion!AT22,Poblacion!AV22,Poblacion!AX22) -> 696 | BM27: =Poblacion!AY22 -> 651 | BN27: =Poblacion!AZ22 -> 692 | BO27: =Poblacion!BA22 -> 679 | BP27: =Poblacion!BB22 -> 889 | BQ27: =Poblacion!BC22 -> 698 | BR27: =Poblacion!BD22 -> 768 | BS27: =Poblacion!BE22 -> 729 | BT27: =Poblacion!BF22 -> 757 | BU27: =Poblacion!BG22 -> 726 | BV27: =Poblacion!BH22 -> 768 | BW27: =Poblacion!BI22 -> 733 | BX27: =Poblacion!BJ22 -> 762 | BY27: =Poblacion!BK22 -> 678 | BZ27: =Poblacion!BL22 -> 709 | CA27: =Poblacion!BM22 -> 633 | CB27: =Poblacion!BN22 -> 664 | CC27: =Poblacion!BO22 -> 548 | CD27: =Poblacion!BP22 -> 554 | CE27: =Poblacion!BQ22 -> 424 | CF27: =Poblacion!BR22 -> 476 | CG27: =Poblacion!BS22 -> 370 | CH27: =Poblacion!BT22 -> 415 | CI27: =Poblacion!BU22 -> 289 | CJ27: =Poblacion!BV22 -> 318 | CK27: =Poblacion!BY22 -> 166 | CL27: =Poblacion!BZ22 -> 226 | CM27: =Poblacion!DP22 -> 1797 | CN27: =Poblacion!DQ22 -> 1726 | CO27: =Poblacion!DR22 -> 541 | CP27: =Poblacion!DS22 -> 550 | CQ27: =Poblacion!DT22 -> 5799 | CR27: =Poblacion!DU22 -> 6278 | CS27: =Poblacion!DV22 -> 1797 | CT27: =Poblacion!DW22 -> 1989
AS28: DE 80 A MAS AÑOS | AT28: 200 | AU28: -253 | AW28: DE 80 A MAS AÑOS | AX28: =+LOOKUP($A$10,numeropiramide,CK13:CK100) -> 200 | AY28: =+LOOKUP($A$10,numeropiramide,CL13:CL100) -> 253 | BA28: 02 | BB28: 16 | BC28: P.S. CAMPO ALEGRE | BD28: =Poblacion!F23 -> 5111 | BE28: =+SUM(Poblacion!K23,Poblacion!M23,Poblacion!O23,Poblacion!Q23,Poblacion!S23) -> 159 | BF28: =+SUM(Poblacion!L23,Poblacion!N23,Poblacion!P23,Poblacion!R23,Poblacion!T23) -> 149 | BG28: =SUM(Poblacion!U23,Poblacion!W23,Poblacion!Y23,Poblacion!AA23,Poblacion!AC23) -> 184 | BH28: =SUM(Poblacion!V23,Poblacion!X23,Poblacion!Z23,Poblacion!AB23,Poblacion!AD23) -> 177 | BI28: =+SUM(Poblacion!AE23,Poblacion!AG23,Poblacion!AI23,Poblacion!AK23,Poblacion!AM23) -> 157 | BJ28: =+SUM(Poblacion!AF23,Poblacion!AH23,Poblacion!AJ23,Poblacion!AL23,Poblacion!AN23) -> 157 | BK28: =+SUM(Poblacion!AO23,Poblacion!AQ23,Poblacion!AS23,Poblacion!AU23,Poblacion!AW23) -> 170 | BL28: =+SUM(Poblacion!AP23,Poblacion!AR23,Poblacion!AT23,Poblacion!AV23,Poblacion!AX23) -> 178 | BM28: =Poblacion!AY23 -> 165 | BN28: =Poblacion!AZ23 -> 180 | BO28: =Poblacion!BA23 -> 174 | BP28: =Poblacion!BB23 -> 228 | BQ28: =Poblacion!BC23 -> 178 | BR28: =Poblacion!BD23 -> 195 | BS28: =Poblacion!BE23 -> 180 | BT28: =Poblacion!BF23 -> 195 | BU28: =Poblacion!BG23 -> 176 | BV28: =Poblacion!BH23 -> 189 | BW28: =Poblacion!BI23 -> 182 | BX28: =Poblacion!BJ23 -> 188 | BY28: =Poblacion!BK23 -> 164 | BZ28: =Poblacion!BL23 -> 164 | CA28: =Poblacion!BM23 -> 147 | CB28: =Poblacion!BN23 -> 153 | CC28: =Poblacion!BO23 -> 122 | CD28: =Poblacion!BP23 -> 121 | CE28: =Poblacion!BQ23 -> 92 | CF28: =Poblacion!BR23 -> 108 | CG28: =Poblacion!BS23 -> 81 | CH28: =Poblacion!BT23 -> 88 | CI28: =Poblacion!BU23 -> 66 | CJ28: =Poblacion!BV23 -> 75 | CK28: =Poblacion!BY23 -> 34 | CL28: =Poblacion!BZ23 -> 49 | CM28: =Poblacion!DP23 -> 468 | CN28: =Poblacion!DQ23 -> 451 | CO28: =Poblacion!DR23 -> 136 | CP28: =Poblacion!DS23 -> 140 | CQ28: =Poblacion!DT23 -> 1432 | CR28: =Poblacion!DU23 -> 1562 | CS28: =Poblacion!DV23 -> 395 | CT28: =Poblacion!DW23 -> 441
BB29: 17 | BC29: DISTRITO HUAURA | BD29: =Poblacion!F24 -> 41495 | BE29: =+SUM(Poblacion!K24,Poblacion!M24,Poblacion!O24,Poblacion!Q24,Poblacion!S24) -> 1371 | BF29: =+SUM(Poblacion!L24,Poblacion!N24,Poblacion!P24,Poblacion!R24,Poblacion!T24) -> 1352 | BG29: =SUM(Poblacion!U24,Poblacion!W24,Poblacion!Y24,Poblacion!AA24,Poblacion!AC24) -> 1533 | BH29: =SUM(Poblacion!V24,Poblacion!X24,Poblacion!Z24,Poblacion!AB24,Poblacion!AD24) -> 1463 | BI29: =+SUM(Poblacion!AE24,Poblacion!AG24,Poblacion!AI24,Poblacion!AK24,Poblacion!AM24) -> 1324 | BJ29: =+SUM(Poblacion!AF24,Poblacion!AH24,Poblacion!AJ24,Poblacion!AL24,Poblacion!AN24) -> 1422 | BK29: =+SUM(Poblacion!AO24,Poblacion!AQ24,Poblacion!AS24,Poblacion!AU24,Poblacion!AW24) -> 1386 | BL29: =+SUM(Poblacion!AP24,Poblacion!AR24,Poblacion!AT24,Poblacion!AV24,Poblacion!AX24) -> 1598 | BM29: =Poblacion!AY24 -> 1286 | BN29: =Poblacion!AZ24 -> 1500 | BO29: =Poblacion!BA24 -> 1502 | BP29: =Poblacion!BB24 -> 1956 | BQ29: =Poblacion!BC24 -> 1549 | BR29: =Poblacion!BD24 -> 1732 | BS29: =Poblacion!BE24 -> 1420 | BT29: =Poblacion!BF24 -> 1549 | BU29: =Poblacion!BG24 -> 1464 | BV29: =Poblacion!BH24 -> 1544 | BW29: =Poblacion!BI24 -> 1283 | BX29: =Poblacion!BJ24 -> 1509 | BY29: =Poblacion!BK24 -> 1148 | BZ29: =Poblacion!BL24 -> 1481 | CA29: =Poblacion!BM24 -> 1119 | CB29: =Poblacion!BN24 -> 1271 | CC29: =Poblacion!BO24 -> 1000 | CD29: =Poblacion!BP24 -> 1000 | CE29: =Poblacion!BQ24 -> 679 | CF29: =Poblacion!BR24 -> 751 | CG29: =Poblacion!BS24 -> 591 | CH29: =Poblacion!BT24 -> 640 | CI29: =Poblacion!BU24 -> 452 | CJ29: =Poblacion!BV24 -> 430 | CK29: =Poblacion!BY24 -> 256 | CL29: =Poblacion!BZ24 -> 301 | CM29: =Poblacion!DP24 -> 3980 | CN29: =Poblacion!DQ24 -> 3969 | CO29: =Poblacion!DR24 -> 1080 | CP29: =Poblacion!DS24 -> 1250 | CQ29: =Poblacion!DT24 -> 11325 | CR29: =Poblacion!DU24 -> 13158 | CS29: =Poblacion!DV24 -> 2978 | CT29: =Poblacion!DW24 -> 3122
AS30: DATOS PIRAMIDE-CANCER | AW30: DATOS PIRAMIDE- CANCER | BA30: 01 | BB30: 18 | BC30: C.S. HUAURA | BD30: =Poblacion!F25 -> 18665 | BE30: =+SUM(Poblacion!K25,Poblacion!M25,Poblacion!O25,Poblacion!Q25,Poblacion!S25) -> 616 | BF30: =+SUM(Poblacion!L25,Poblacion!N25,Poblacion!P25,Poblacion!R25,Poblacion!T25) -> 608 | BG30: =SUM(Poblacion!U25,Poblacion!W25,Poblacion!Y25,Poblacion!AA25,Poblacion!AC25) -> 690 | BH30: =SUM(Poblacion!V25,Poblacion!X25,Poblacion!Z25,Poblacion!AB25,Poblacion!AD25) -> 658 | BI30: =+SUM(Poblacion!AE25,Poblacion!AG25,Poblacion!AI25,Poblacion!AK25,Poblacion!AM25) -> 595 | BJ30: =+SUM(Poblacion!AF25,Poblacion!AH25,Poblacion!AJ25,Poblacion!AL25,Poblacion!AN25) -> 639 | BK30: =+SUM(Poblacion!AO25,Poblacion!AQ25,Poblacion!AS25,Poblacion!AU25,Poblacion!AW25) -> 623 | BL30: =+SUM(Poblacion!AP25,Poblacion!AR25,Poblacion!AT25,Poblacion!AV25,Poblacion!AX25) -> 718 | BM30: =Poblacion!AY25 -> 578 | BN30: =Poblacion!AZ25 -> 675 | BO30: =Poblacion!BA25 -> 676 | BP30: =Poblacion!BB25 -> 880 | BQ30: =Poblacion!BC25 -> 696 | BR30: =Poblacion!BD25 -> 779 | BS30: =Poblacion!BE25 -> 639 | BT30: =Poblacion!BF25 -> 696 | BU30: =Poblacion!BG25 -> 658 | BV30: =Poblacion!BH25 -> 695 | BW30: =Poblacion!BI25 -> 577 | BX30: =Poblacion!BJ25 -> 679 | BY30: =Poblacion!BK25 -> 517 | BZ30: =Poblacion!BL25 -> 667 | CA30: =Poblacion!BM25 -> 504 | CB30: =Poblacion!BN25 -> 572 | CC30: =Poblacion!BO25 -> 450 | CD30: =Poblacion!BP25 -> 450 | CE30: =Poblacion!BQ25 -> 306 | CF30: =Poblacion!BR25 -> 337 | CG30: =Poblacion!BS25 -> 266 | CH30: =Poblacion!BT25 -> 288 | CI30: =Poblacion!BU25 -> 203 | CJ30: =Poblacion!BV25 -> 194 | CK30: =Poblacion!BY25 -> 115 | CL30: =Poblacion!BZ25 -> 136 | CM30: =Poblacion!DP25 -> 1789 | CN30: =Poblacion!DQ25 -> 1784 | CO30: =Poblacion!DR25 -> 485 | CP30: =Poblacion!DS25 -> 562 | CQ30: =Poblacion!DT25 -> 5095 | CR30: =Poblacion!DU25 -> 5920 | CS30: =Poblacion!DV25 -> 1340 | CT30: =Poblacion!DW25 -> 1405
AS31: DESCRIPCION | AT31: M | AU31: F | AW31: DESCRIPCION | AX31: M | AY31: F | BA31: 01 | BB31: 19 | BC31: P.S. HUMAYA | BD31: =Poblacion!F26 -> 3738 | BE31: =+SUM(Poblacion!K26,Poblacion!M26,Poblacion!O26,Poblacion!Q26,Poblacion!S26) -> 123 | BF31: =+SUM(Poblacion!L26,Poblacion!N26,Poblacion!P26,Poblacion!R26,Poblacion!T26) -> 122 | BG31: =SUM(Poblacion!U26,Poblacion!W26,Poblacion!Y26,Poblacion!AA26,Poblacion!AC26) -> 138 | BH31: =SUM(Poblacion!V26,Poblacion!X26,Poblacion!Z26,Poblacion!AB26,Poblacion!AD26) -> 131 | BI31: =+SUM(Poblacion!AE26,Poblacion!AG26,Poblacion!AI26,Poblacion!AK26,Poblacion!AM26) -> 119 | BJ31: =+SUM(Poblacion!AF26,Poblacion!AH26,Poblacion!AJ26,Poblacion!AL26,Poblacion!AN26) -> 129 | BK31: =+SUM(Poblacion!AO26,Poblacion!AQ26,Poblacion!AS26,Poblacion!AU26,Poblacion!AW26) -> 125 | BL31: =+SUM(Poblacion!AP26,Poblacion!AR26,Poblacion!AT26,Poblacion!AV26,Poblacion!AX26) -> 144 | BM31: =Poblacion!AY26 -> 116 | BN31: =Poblacion!AZ26 -> 135 | BO31: =Poblacion!BA26 -> 135 | BP31: =Poblacion!BB26 -> 176 | BQ31: =Poblacion!BC26 -> 140 | BR31: =Poblacion!BD26 -> 156 | BS31: =Poblacion!BE26 -> 128 | BT31: =Poblacion!BF26 -> 140 | BU31: =Poblacion!BG26 -> 132 | BV31: =Poblacion!BH26 -> 139 | BW31: =Poblacion!BI26 -> 116 | BX31: =Poblacion!BJ26 -> 136 | BY31: =Poblacion!BK26 -> 103 | BZ31: =Poblacion!BL26 -> 133 | CA31: =Poblacion!BM26 -> 101 | CB31: =Poblacion!BN26 -> 114 | CC31: =Poblacion!BO26 -> 90 | CD31: =Poblacion!BP26 -> 90 | CE31: =Poblacion!BQ26 -> 61 | CF31: =Poblacion!BR26 -> 68 | CG31: =Poblacion!BS26 -> 53 | CH31: =Poblacion!BT26 -> 58 | CI31: =Poblacion!BU26 -> 41 | CJ31: =Poblacion!BV26 -> 39 | CK31: =Poblacion!BY26 -> 23 | CL31: =Poblacion!BZ26 -> 27 | CM31: =Poblacion!DP26 -> 358 | CN31: =Poblacion!DQ26 -> 358 | CO31: =Poblacion!DR26 -> 97 | CP31: =Poblacion!DS26 -> 113 | CQ31: =Poblacion!DT26 -> 1021 | CR31: =Poblacion!DU26 -> 1184 | CS31: =Poblacion!DV26 -> 268 | CT31: =Poblacion!DW26 -> 282
AS32: DE 0 A 13 AÑOS | AT32: =AX32 -> 52 | AU32: =-AY32 -> -49 | AW32: DE 0 A 13 AÑOS | AX32: =VLOOKUP($T$48,$BB$13:$CT$100,38,FALSE) -> 52 | AY32: =VLOOKUP($T$48,$BB$13:$CT$100,39,FALSE) -> 49 | BA32: 01 | BB32: 20 | BC32: P.S. VILCAHUAURA | BD32: =Poblacion!F27 -> 3315 | BE32: =+SUM(Poblacion!K27,Poblacion!M27,Poblacion!O27,Poblacion!Q27,Poblacion!S27) -> 108 | BF32: =+SUM(Poblacion!L27,Poblacion!N27,Poblacion!P27,Poblacion!R27,Poblacion!T27) -> 109 | BG32: =SUM(Poblacion!U27,Poblacion!W27,Poblacion!Y27,Poblacion!AA27,Poblacion!AC27) -> 124 | BH32: =SUM(Poblacion!V27,Poblacion!X27,Poblacion!Z27,Poblacion!AB27,Poblacion!AD27) -> 117 | BI32: =+SUM(Poblacion!AE27,Poblacion!AG27,Poblacion!AI27,Poblacion!AK27,Poblacion!AM27) -> 106 | BJ32: =+SUM(Poblacion!AF27,Poblacion!AH27,Poblacion!AJ27,Poblacion!AL27,Poblacion!AN27) -> 114 | BK32: =+SUM(Poblacion!AO27,Poblacion!AQ27,Poblacion!AS27,Poblacion!AU27,Poblacion!AW27) -> 111 | BL32: =+SUM(Poblacion!AP27,Poblacion!AR27,Poblacion!AT27,Poblacion!AV27,Poblacion!AX27) -> 128 | BM32: =Poblacion!AY27 -> 103 | BN32: =Poblacion!AZ27 -> 120 | BO32: =Poblacion!BA27 -> 120 | BP32: =Poblacion!BB27 -> 156 | BQ32: =Poblacion!BC27 -> 124 | BR32: =Poblacion!BD27 -> 138 | BS32: =Poblacion!BE27 -> 113 | BT32: =Poblacion!BF27 -> 124 | BU32: =Poblacion!BG27 -> 117 | BV32: =Poblacion!BH27 -> 123 | BW32: =Poblacion!BI27 -> 102 | BX32: =Poblacion!BJ27 -> 121 | BY32: =Poblacion!BK27 -> 92 | BZ32: =Poblacion!BL27 -> 118 | CA32: =Poblacion!BM27 -> 89 | CB32: =Poblacion!BN27 -> 101 | CC32: =Poblacion!BO27 -> 80 | CD32: =Poblacion!BP27 -> 80 | CE32: =Poblacion!BQ27 -> 54 | CF32: =Poblacion!BR27 -> 60 | CG32: =Poblacion!BS27 -> 47 | CH32: =Poblacion!BT27 -> 51 | CI32: =Poblacion!BU27 -> 36 | CJ32: =Poblacion!BV27 -> 34 | CK32: =Poblacion!BY27 -> 20 | CL32: =Poblacion!BZ27 -> 24 | CM32: =Poblacion!DP27 -> 318 | CN32: =Poblacion!DQ27 -> 319 | CO32: =Poblacion!DR27 -> 87 | CP32: =Poblacion!DS27 -> 100 | CQ32: =Poblacion!DT27 -> 904 | CR32: =Poblacion!DU27 -> 1050 | CS32: =Poblacion!DV27 -> 237 | CT32: =Poblacion!DW27 -> 249
AS33: DE 14 A 17 AÑOS | AT33: =AX33 -> 11 | AU33: =-AY33 -> -14 | AW33: DE 14 A 17 AÑOS | AX33: =VLOOKUP($T$48,$BB$13:$CT$100,40,FALSE) -> 11 | AY33: =VLOOKUP($T$48,$BB$13:$CT$100,41,FALSE) -> 14 | BA33: 01 | BB33: 21 | BC33: P.S. PEÑICO | BD33: =Poblacion!F28 -> 422 | BE33: =+SUM(Poblacion!K28,Poblacion!M28,Poblacion!O28,Poblacion!Q28,Poblacion!S28) -> 14 | BF33: =+SUM(Poblacion!L28,Poblacion!N28,Poblacion!P28,Poblacion!R28,Poblacion!T28) -> 13 | BG33: =SUM(Poblacion!U28,Poblacion!W28,Poblacion!Y28,Poblacion!AA28,Poblacion!AC28) -> 15 | BH33: =SUM(Poblacion!V28,Poblacion!X28,Poblacion!Z28,Poblacion!AB28,Poblacion!AD28) -> 14 | BI33: =+SUM(Poblacion!AE28,Poblacion!AG28,Poblacion!AI28,Poblacion!AK28,Poblacion!AM28) -> 14 | BJ33: =+SUM(Poblacion!AF28,Poblacion!AH28,Poblacion!AJ28,Poblacion!AL28,Poblacion!AN28) -> 15 | BK33: =+SUM(Poblacion!AO28,Poblacion!AQ28,Poblacion!AS28,Poblacion!AU28,Poblacion!AW28) -> 15 | BL33: =+SUM(Poblacion!AP28,Poblacion!AR28,Poblacion!AT28,Poblacion!AV28,Poblacion!AX28) -> 17 | BM33: =Poblacion!AY28 -> 13 | BN33: =Poblacion!AZ28 -> 15 | BO33: =Poblacion!BA28 -> 15 | BP33: =Poblacion!BB28 -> 20 | BQ33: =Poblacion!BC28 -> 16 | BR33: =Poblacion!BD28 -> 18 | BS33: =Poblacion!BE28 -> 14 | BT33: =Poblacion!BF28 -> 16 | BU33: =Poblacion!BG28 -> 15 | BV33: =Poblacion!BH28 -> 16 | BW33: =Poblacion!BI28 -> 13 | BX33: =Poblacion!BJ28 -> 15 | BY33: =Poblacion!BK28 -> 11 | BZ33: =Poblacion!BL28 -> 15 | CA33: =Poblacion!BM28 -> 11 | CB33: =Poblacion!BN28 -> 14 | CC33: =Poblacion!BO28 -> 10 | CD33: =Poblacion!BP28 -> 10 | CE33: =Poblacion!BQ28 -> 7 | CF33: =Poblacion!BR28 -> 8 | CG33: =Poblacion!BS28 -> 6 | CH33: =Poblacion!BT28 -> 6 | CI33: =Poblacion!BU28 -> 5 | CJ33: =Poblacion!BV28 -> 4 | CK33: =Poblacion!BY28 -> 3 | CL33: =Poblacion!BZ28 -> 3 | CM33: =Poblacion!DP28 -> 41 | CN33: =Poblacion!DQ28 -> 39 | CO33: =Poblacion!DR28 -> 11 | CP33: =Poblacion!DS28 -> 13 | CQ33: =Poblacion!DT28 -> 114 | CR33: =Poblacion!DU28 -> 136 | CS33: =Poblacion!DV28 -> 31 | CT33: =Poblacion!DW28 -> 31
AS34: DE 18 A 59 AÑOS | AT34: 109 | AU34: -128 | AW34: DE 18 A 59 AÑOS | AX34: =VLOOKUP($T$48,$BB$13:$CT$100,42,FALSE) -> 109 | AY34: =VLOOKUP($T$48,$BB$13:$CT$100,43,FALSE) -> 128 | BA34: 01 | BB34: 22 | BC34: P.S. EL SOCORRO | BD34: =Poblacion!F29 -> 15355 | BE34: =+SUM(Poblacion!K29,Poblacion!M29,Poblacion!O29,Poblacion!Q29,Poblacion!S29) -> 510 | BF34: =+SUM(Poblacion!L29,Poblacion!N29,Poblacion!P29,Poblacion!R29,Poblacion!T29) -> 500 | BG34: =SUM(Poblacion!U29,Poblacion!W29,Poblacion!Y29,Poblacion!AA29,Poblacion!AC29) -> 566 | BH34: =SUM(Poblacion!V29,Poblacion!X29,Poblacion!Z29,Poblacion!AB29,Poblacion!AD29) -> 543 | BI34: =+SUM(Poblacion!AE29,Poblacion!AG29,Poblacion!AI29,Poblacion!AK29,Poblacion!AM29) -> 490 | BJ34: =+SUM(Poblacion!AF29,Poblacion!AH29,Poblacion!AJ29,Poblacion!AL29,Poblacion!AN29) -> 525 | BK34: =+SUM(Poblacion!AO29,Poblacion!AQ29,Poblacion!AS29,Poblacion!AU29,Poblacion!AW29) -> 512 | BL34: =+SUM(Poblacion!AP29,Poblacion!AR29,Poblacion!AT29,Poblacion!AV29,Poblacion!AX29) -> 591 | BM34: =Poblacion!AY29 -> 476 | BN34: =Poblacion!AZ29 -> 555 | BO34: =Poblacion!BA29 -> 556 | BP34: =Poblacion!BB29 -> 724 | BQ34: =Poblacion!BC29 -> 573 | BR34: =Poblacion!BD29 -> 641 | BS34: =Poblacion!BE29 -> 526 | BT34: =Poblacion!BF29 -> 573 | BU34: =Poblacion!BG29 -> 542 | BV34: =Poblacion!BH29 -> 571 | BW34: =Poblacion!BI29 -> 475 | BX34: =Poblacion!BJ29 -> 558 | BY34: =Poblacion!BK29 -> 425 | BZ34: =Poblacion!BL29 -> 548 | CA34: =Poblacion!BM29 -> 414 | CB34: =Poblacion!BN29 -> 470 | CC34: =Poblacion!BO29 -> 370 | CD34: =Poblacion!BP29 -> 370 | CE34: =Poblacion!BQ29 -> 251 | CF34: =Poblacion!BR29 -> 278 | CG34: =Poblacion!BS29 -> 219 | CH34: =Poblacion!BT29 -> 237 | CI34: =Poblacion!BU29 -> 167 | CJ34: =Poblacion!BV29 -> 159 | CK34: =Poblacion!BY29 -> 95 | CL34: =Poblacion!BZ29 -> 111 | CM34: =Poblacion!DP29 -> 1474 | CN34: =Poblacion!DQ29 -> 1469 | CO34: =Poblacion!DR29 -> 400 | CP34: =Poblacion!DS29 -> 462 | CQ34: =Poblacion!DT29 -> 4191 | CR34: =Poblacion!DU29 -> 4868 | CS34: =Poblacion!DV29 -> 1102 | CT34: =Poblacion!DW29 -> 1155
AS35: DE 60 A MAS AÑOS | AT35: 50 | AU35: =-AY35 -> -53 | AW35: DE 60 A MAS AÑOS | AX35: =VLOOKUP($T$48,$BB$13:$CT$100,44,FALSE) -> 50 | AY35: =VLOOKUP($T$48,$BB$13:$CT$100,45,FALSE) -> 53 | BB35: 23 | BC35: DISTRITO LEONCIO PRADO | BD35: =Poblacion!F30 -> 2490 | BE35: =+SUM(Poblacion!K30,Poblacion!M30,Poblacion!O30,Poblacion!Q30,Poblacion!S30) -> 96 | BF35: =+SUM(Poblacion!L30,Poblacion!N30,Poblacion!P30,Poblacion!R30,Poblacion!T30) -> 76 | BG35: =SUM(Poblacion!U30,Poblacion!W30,Poblacion!Y30,Poblacion!AA30,Poblacion!AC30) -> 55 | BH35: =SUM(Poblacion!V30,Poblacion!X30,Poblacion!Z30,Poblacion!AB30,Poblacion!AD30) -> 75 | BI35: =+SUM(Poblacion!AE30,Poblacion!AG30,Poblacion!AI30,Poblacion!AK30,Poblacion!AM30) -> 55 | BJ35: =+SUM(Poblacion!AF30,Poblacion!AH30,Poblacion!AJ30,Poblacion!AL30,Poblacion!AN30) -> 85 | BK35: =+SUM(Poblacion!AO30,Poblacion!AQ30,Poblacion!AS30,Poblacion!AU30,Poblacion!AW30) -> 84 | BL35: =+SUM(Poblacion!AP30,Poblacion!AR30,Poblacion!AT30,Poblacion!AV30,Poblacion!AX30) -> 102 | BM35: =Poblacion!AY30 -> 86 | BN35: =Poblacion!AZ30 -> 119 | BO35: =Poblacion!BA30 -> 54 | BP35: =Poblacion!BB30 -> 102 | BQ35: =Poblacion!BC30 -> 82 | BR35: =Poblacion!BD30 -> 94 | BS35: =Poblacion!BE30 -> 74 | BT35: =Poblacion!BF30 -> 91 | BU35: =Poblacion!BG30 -> 74 | BV35: =Poblacion!BH30 -> 81 | BW35: =Poblacion!BI30 -> 78 | BX35: =Poblacion!BJ30 -> 90 | BY35: =Poblacion!BK30 -> 61 | BZ35: =Poblacion!BL30 -> 87 | CA35: =Poblacion!BM30 -> 63 | CB35: =Poblacion!BN30 -> 62 | CC35: =Poblacion!BO30 -> 61 | CD35: =Poblacion!BP30 -> 76 | CE35: =Poblacion!BQ30 -> 63 | CF35: =Poblacion!BR30 -> 80 | CG35: =Poblacion!BS30 -> 38 | CH35: =Poblacion!BT30 -> 43 | CI35: =Poblacion!BU30 -> 29 | CJ35: =Poblacion!BV30 -> 45 | CK35: =Poblacion!BY30 -> 30 | CL35: =Poblacion!BZ30 -> 43 | CM35: =Poblacion!DP30 -> 194 | CN35: =Poblacion!DQ30 -> 217 | CO35: =Poblacion!DR30 -> 60 | CP35: =Poblacion!DS30 -> 81 | CQ35: =Poblacion!DT30 -> 608 | CR35: =Poblacion!DU30 -> 766 | CS35: =Poblacion!DV30 -> 221 | CT35: =Poblacion!DW30 -> 287
BA36: 03 | BB36: 24 | BC36: P.S. AUQUIMARCA | BD36: =Poblacion!F31 -> 138 | BE36: =+SUM(Poblacion!K31,Poblacion!M31,Poblacion!O31,Poblacion!Q31,Poblacion!S31) -> 5 | BF36: =+SUM(Poblacion!L31,Poblacion!N31,Poblacion!P31,Poblacion!R31,Poblacion!T31) -> 5 | BG36: =SUM(Poblacion!U31,Poblacion!W31,Poblacion!Y31,Poblacion!AA31,Poblacion!AC31) -> 4 | BH36: =SUM(Poblacion!V31,Poblacion!X31,Poblacion!Z31,Poblacion!AB31,Poblacion!AD31) -> 5 | BI36: =+SUM(Poblacion!AE31,Poblacion!AG31,Poblacion!AI31,Poblacion!AK31,Poblacion!AM31) -> 4 | BJ36: =+SUM(Poblacion!AF31,Poblacion!AH31,Poblacion!AJ31,Poblacion!AL31,Poblacion!AN31) -> 5 | BK36: =+SUM(Poblacion!AO31,Poblacion!AQ31,Poblacion!AS31,Poblacion!AU31,Poblacion!AW31) -> 5 | BL36: =+SUM(Poblacion!AP31,Poblacion!AR31,Poblacion!AT31,Poblacion!AV31,Poblacion!AX31) -> 5 | BM36: =Poblacion!AY31 -> 5 | BN36: =Poblacion!AZ31 -> 7 | BO36: =Poblacion!BA31 -> 3 | BP36: =Poblacion!BB31 -> 5 | BQ36: =Poblacion!BC31 -> 4 | BR36: =Poblacion!BD31 -> 5 | BS36: =Poblacion!BE31 -> 4 | BT36: =Poblacion!BF31 -> 5 | BU36: =Poblacion!BG31 -> 4 | BV36: =Poblacion!BH31 -> 5 | BW36: =Poblacion!BI31 -> 4 | BX36: =Poblacion!BJ31 -> 5 | BY36: =Poblacion!BK31 -> 4 | BZ36: =Poblacion!BL31 -> 5 | CA36: =Poblacion!BM31 -> 3 | CB36: =Poblacion!BN31 -> 3 | CC36: =Poblacion!BO31 -> 3 | CD36: =Poblacion!BP31 -> 4 | CE36: =Poblacion!BQ31 -> 3 | CF36: =Poblacion!BR31 -> 4 | CG36: =Poblacion!BS31 -> 2 | CH36: =Poblacion!BT31 -> 2 | CI36: =Poblacion!BU31 -> 2 | CJ36: =Poblacion!BV31 -> 2 | CK36: =Poblacion!BY31 -> 2 | CL36: =Poblacion!BZ31 -> 2 | CM36: =Poblacion!DP31 -> 12 | CN36: =Poblacion!DQ31 -> 14 | CO36: =Poblacion!DR31 -> 4 | CP36: =Poblacion!DS31 -> 4 | CQ36: =Poblacion!DT31 -> 33 | CR36: =Poblacion!DU31 -> 42 | CS36: =Poblacion!DV31 -> 12 | CT36: =Poblacion!DW31 -> 14
BA37: 03 | BB37: 25 | BC37: P.S. PARAN | BD37: =Poblacion!F32 -> 867 | BE37: =+SUM(Poblacion!K32,Poblacion!M32,Poblacion!O32,Poblacion!Q32,Poblacion!S32) -> 33 | BF37: =+SUM(Poblacion!L32,Poblacion!N32,Poblacion!P32,Poblacion!R32,Poblacion!T32) -> 27 | BG37: =SUM(Poblacion!U32,Poblacion!W32,Poblacion!Y32,Poblacion!AA32,Poblacion!AC32) -> 18 | BH37: =SUM(Poblacion!V32,Poblacion!X32,Poblacion!Z32,Poblacion!AB32,Poblacion!AD32) -> 26 | BI37: =+SUM(Poblacion!AE32,Poblacion!AG32,Poblacion!AI32,Poblacion!AK32,Poblacion!AM32) -> 19 | BJ37: =+SUM(Poblacion!AF32,Poblacion!AH32,Poblacion!AJ32,Poblacion!AL32,Poblacion!AN32) -> 29 | BK37: =+SUM(Poblacion!AO32,Poblacion!AQ32,Poblacion!AS32,Poblacion!AU32,Poblacion!AW32) -> 29 | BL37: =+SUM(Poblacion!AP32,Poblacion!AR32,Poblacion!AT32,Poblacion!AV32,Poblacion!AX32) -> 35 | BM37: =Poblacion!AY32 -> 30 | BN37: =Poblacion!AZ32 -> 41 | BO37: =Poblacion!BA32 -> 19 | BP37: =Poblacion!BB32 -> 36 | BQ37: =Poblacion!BC32 -> 29 | BR37: =Poblacion!BD32 -> 33 | BS37: =Poblacion!BE32 -> 26 | BT37: =Poblacion!BF32 -> 32 | BU37: =Poblacion!BG32 -> 26 | BV37: =Poblacion!BH32 -> 28 | BW37: =Poblacion!BI32 -> 27 | BX37: =Poblacion!BJ32 -> 31 | BY37: =Poblacion!BK32 -> 21 | BZ37: =Poblacion!BL32 -> 30 | CA37: =Poblacion!BM32 -> 22 | CB37: =Poblacion!BN32 -> 22 | CC37: =Poblacion!BO32 -> 22 | CD37: =Poblacion!BP32 -> 27 | CE37: =Poblacion!BQ32 -> 22 | CF37: =Poblacion!BR32 -> 28 | CG37: =Poblacion!BS32 -> 13 | CH37: =Poblacion!BT32 -> 15 | CI37: =Poblacion!BU32 -> 10 | CJ37: =Poblacion!BV32 -> 16 | CK37: =Poblacion!BY32 -> 10 | CL37: =Poblacion!BZ32 -> 15 | CM37: =Poblacion!DP32 -> 66 | CN37: =Poblacion!DQ32 -> 76 | CO37: =Poblacion!DR32 -> 21 | CP37: =Poblacion!DS32 -> 27 | CQ37: =Poblacion!DT32 -> 212 | CR37: =Poblacion!DU32 -> 267 | CS37: =Poblacion!DV32 -> 77 | CT37: =Poblacion!DW32 -> 101
BA38: 03 | BB38: 26 | BC38: P.S. SANTA CRUZ | BD38: =Poblacion!F33 -> 499 | BE38: =+SUM(Poblacion!K33,Poblacion!M33,Poblacion!O33,Poblacion!Q33,Poblacion!S33) -> 20 | BF38: =+SUM(Poblacion!L33,Poblacion!N33,Poblacion!P33,Poblacion!R33,Poblacion!T33) -> 14 | BG38: =SUM(Poblacion!U33,Poblacion!W33,Poblacion!Y33,Poblacion!AA33,Poblacion!AC33) -> 11 | BH38: =SUM(Poblacion!V33,Poblacion!X33,Poblacion!Z33,Poblacion!AB33,Poblacion!AD33) -> 15 | BI38: =+SUM(Poblacion!AE33,Poblacion!AG33,Poblacion!AI33,Poblacion!AK33,Poblacion!AM33) -> 11 | BJ38: =+SUM(Poblacion!AF33,Poblacion!AH33,Poblacion!AJ33,Poblacion!AL33,Poblacion!AN33) -> 16 | BK38: =+SUM(Poblacion!AO33,Poblacion!AQ33,Poblacion!AS33,Poblacion!AU33,Poblacion!AW33) -> 18 | BL38: =+SUM(Poblacion!AP33,Poblacion!AR33,Poblacion!AT33,Poblacion!AV33,Poblacion!AX33) -> 21 | BM38: =Poblacion!AY33 -> 17 | BN38: =Poblacion!AZ33 -> 24 | BO38: =Poblacion!BA33 -> 11 | BP38: =Poblacion!BB33 -> 20 | BQ38: =Poblacion!BC33 -> 16 | BR38: =Poblacion!BD33 -> 19 | BS38: =Poblacion!BE33 -> 15 | BT38: =Poblacion!BF33 -> 18 | BU38: =Poblacion!BG33 -> 15 | BV38: =Poblacion!BH33 -> 16 | BW38: =Poblacion!BI33 -> 16 | BX38: =Poblacion!BJ33 -> 18 | BY38: =Poblacion!BK33 -> 12 | BZ38: =Poblacion!BL33 -> 17 | CA38: =Poblacion!BM33 -> 13 | CB38: =Poblacion!BN33 -> 12 | CC38: =Poblacion!BO33 -> 12 | CD38: =Poblacion!BP33 -> 15 | CE38: =Poblacion!BQ33 -> 13 | CF38: =Poblacion!BR33 -> 16 | CG38: =Poblacion!BS33 -> 8 | CH38: =Poblacion!BT33 -> 9 | CI38: =Poblacion!BU33 -> 6 | CJ38: =Poblacion!BV33 -> 9 | CK38: =Poblacion!BY33 -> 6 | CL38: =Poblacion!BZ33 -> 9 | CM38: =Poblacion!DP33 -> 40 | CN38: =Poblacion!DQ33 -> 41 | CO38: =Poblacion!DR33 -> 12 | CP38: =Poblacion!DS33 -> 17 | CQ38: =Poblacion!DT33 -> 123 | CR38: =Poblacion!DU33 -> 152 | CS38: =Poblacion!DV33 -> 45 | CT38: =Poblacion!DW33 -> 58
BA39: 03 | BB39: 27 | BC39: P.S. HUANANGUI | BD39: =Poblacion!F34 -> 986 | BE39: =+SUM(Poblacion!K34,Poblacion!M34,Poblacion!O34,Poblacion!Q34,Poblacion!S34) -> 38 | BF39: =+SUM(Poblacion!L34,Poblacion!N34,Poblacion!P34,Poblacion!R34,Poblacion!T34) -> 30 | BG39: =SUM(Poblacion!U34,Poblacion!W34,Poblacion!Y34,Poblacion!AA34,Poblacion!AC34) -> 22 | BH39: =SUM(Poblacion!V34,Poblacion!X34,Poblacion!Z34,Poblacion!AB34,Poblacion!AD34) -> 29 | BI39: =+SUM(Poblacion!AE34,Poblacion!AG34,Poblacion!AI34,Poblacion!AK34,Poblacion!AM34) -> 21 | BJ39: =+SUM(Poblacion!AF34,Poblacion!AH34,Poblacion!AJ34,Poblacion!AL34,Poblacion!AN34) -> 35 | BK39: =+SUM(Poblacion!AO34,Poblacion!AQ34,Poblacion!AS34,Poblacion!AU34,Poblacion!AW34) -> 32 | BL39: =+SUM(Poblacion!AP34,Poblacion!AR34,Poblacion!AT34,Poblacion!AV34,Poblacion!AX34) -> 41 | BM39: =Poblacion!AY34 -> 34 | BN39: =Poblacion!AZ34 -> 47 | BO39: =Poblacion!BA34 -> 21 | BP39: =Poblacion!BB34 -> 41 | BQ39: =Poblacion!BC34 -> 33 | BR39: =Poblacion!BD34 -> 37 | BS39: =Poblacion!BE34 -> 29 | BT39: =Poblacion!BF34 -> 36 | BU39: =Poblacion!BG34 -> 29 | BV39: =Poblacion!BH34 -> 32 | BW39: =Poblacion!BI34 -> 31 | BX39: =Poblacion!BJ34 -> 36 | BY39: =Poblacion!BK34 -> 24 | BZ39: =Poblacion!BL34 -> 35 | CA39: =Poblacion!BM34 -> 25 | CB39: =Poblacion!BN34 -> 25 | CC39: =Poblacion!BO34 -> 24 | CD39: =Poblacion!BP34 -> 30 | CE39: =Poblacion!BQ34 -> 25 | CF39: =Poblacion!BR34 -> 32 | CG39: =Poblacion!BS34 -> 15 | CH39: =Poblacion!BT34 -> 17 | CI39: =Poblacion!BU34 -> 11 | CJ39: =Poblacion!BV34 -> 18 | CK39: =Poblacion!BY34 -> 12 | CL39: =Poblacion!BZ34 -> 17 | CM39: =Poblacion!DP34 -> 76 | CN39: =Poblacion!DQ34 -> 86 | CO39: =Poblacion!DR34 -> 23 | CP39: =Poblacion!DS34 -> 33 | CQ39: =Poblacion!DT34 -> 240 | CR39: =Poblacion!DU34 -> 305 | CS39: =Poblacion!DV34 -> 87 | CT39: =Poblacion!DW34 -> 114
BB40: 28 | BC40: DISTRITO PACCHO | BD40: =Poblacion!F35 -> 1707 | BE40: =+SUM(Poblacion!K35,Poblacion!M35,Poblacion!O35,Poblacion!Q35,Poblacion!S35) -> 32 | BF40: =+SUM(Poblacion!L35,Poblacion!N35,Poblacion!P35,Poblacion!R35,Poblacion!T35) -> 37 | BG40: =SUM(Poblacion!U35,Poblacion!W35,Poblacion!Y35,Poblacion!AA35,Poblacion!AC35) -> 37 | BH40: =SUM(Poblacion!V35,Poblacion!X35,Poblacion!Z35,Poblacion!AB35,Poblacion!AD35) -> 33 | BI40: =+SUM(Poblacion!AE35,Poblacion!AG35,Poblacion!AI35,Poblacion!AK35,Poblacion!AM35) -> 38 | BJ40: =+SUM(Poblacion!AF35,Poblacion!AH35,Poblacion!AJ35,Poblacion!AL35,Poblacion!AN35) -> 39 | BK40: =+SUM(Poblacion!AO35,Poblacion!AQ35,Poblacion!AS35,Poblacion!AU35,Poblacion!AW35) -> 49 | BL40: =+SUM(Poblacion!AP35,Poblacion!AR35,Poblacion!AT35,Poblacion!AV35,Poblacion!AX35) -> 46 | BM40: =Poblacion!AY35 -> 35 | BN40: =Poblacion!AZ35 -> 50 | BO40: =Poblacion!BA35 -> 33 | BP40: =Poblacion!BB35 -> 46 | BQ40: =Poblacion!BC35 -> 35 | BR40: =Poblacion!BD35 -> 40 | BS40: =Poblacion!BE35 -> 46 | BT40: =Poblacion!BF35 -> 33 | BU40: =Poblacion!BG35 -> 39 | BV40: =Poblacion!BH35 -> 43 | BW40: =Poblacion!BI35 -> 53 | BX40: =Poblacion!BJ35 -> 55 | BY40: =Poblacion!BK35 -> 55 | BZ40: =Poblacion!BL35 -> 79 | CA40: =Poblacion!BM35 -> 61 | CB40: =Poblacion!BN35 -> 59 | CC40: =Poblacion!BO35 -> 55 | CD40: =Poblacion!BP35 -> 53 | CE40: =Poblacion!BQ35 -> 50 | CF40: =Poblacion!BR35 -> 51 | CG40: =Poblacion!BS35 -> 43 | CH40: =Poblacion!BT35 -> 56 | CI40: =Poblacion!BU35 -> 62 | CJ40: =Poblacion!BV35 -> 63 | CK40: =Poblacion!BY35 -> 47 | CL40: =Poblacion!BZ35 -> 60 | CM40: =Poblacion!DP35 -> 98 | CN40: =Poblacion!DQ35 -> 100 | CO40: =Poblacion!DR35 -> 40 | CP40: =Poblacion!DS35 -> 35 | CQ40: =Poblacion!DT35 -> 375 | CR40: =Poblacion!DU35 -> 425 | CS40: =Poblacion!DV35 -> 257 | CT40: =Poblacion!DW35 -> 283
BA41: 05 | BB41: 29 | BC41: P.S. PACCHO | BD41: =Poblacion!F36 -> 671 | BE41: =+SUM(Poblacion!K36,Poblacion!M36,Poblacion!O36,Poblacion!Q36,Poblacion!S36) -> 10 | BF41: =+SUM(Poblacion!L36,Poblacion!N36,Poblacion!P36,Poblacion!R36,Poblacion!T36) -> 14 | BG41: =SUM(Poblacion!U36,Poblacion!W36,Poblacion!Y36,Poblacion!AA36,Poblacion!AC36) -> 15 | BH41: =SUM(Poblacion!V36,Poblacion!X36,Poblacion!Z36,Poblacion!AB36,Poblacion!AD36) -> 13 | BI41: =+SUM(Poblacion!AE36,Poblacion!AG36,Poblacion!AI36,Poblacion!AK36,Poblacion!AM36) -> 15 | BJ41: =+SUM(Poblacion!AF36,Poblacion!AH36,Poblacion!AJ36,Poblacion!AL36,Poblacion!AN36) -> 17 | BK41: =+SUM(Poblacion!AO36,Poblacion!AQ36,Poblacion!AS36,Poblacion!AU36,Poblacion!AW36) -> 19 | BL41: =+SUM(Poblacion!AP36,Poblacion!AR36,Poblacion!AT36,Poblacion!AV36,Poblacion!AX36) -> 18 | BM41: =Poblacion!AY36 -> 14 | BN41: =Poblacion!AZ36 -> 20 | BO41: =Poblacion!BA36 -> 13 | BP41: =Poblacion!BB36 -> 18 | BQ41: =Poblacion!BC36 -> 14 | BR41: =Poblacion!BD36 -> 16 | BS41: =Poblacion!BE36 -> 18 | BT41: =Poblacion!BF36 -> 13 | BU41: =Poblacion!BG36 -> 15 | BV41: =Poblacion!BH36 -> 16 | BW41: =Poblacion!BI36 -> 21 | BX41: =Poblacion!BJ36 -> 22 | BY41: =Poblacion!BK36 -> 22 | BZ41: =Poblacion!BL36 -> 31 | CA41: =Poblacion!BM36 -> 24 | CB41: =Poblacion!BN36 -> 23 | CC41: =Poblacion!BO36 -> 22 | CD41: =Poblacion!BP36 -> 21 | CE41: =Poblacion!BQ36 -> 20 | CF41: =Poblacion!BR36 -> 20 | CG41: =Poblacion!BS36 -> 17 | CH41: =Poblacion!BT36 -> 21 | CI41: =Poblacion!BU36 -> 25 | CJ41: =Poblacion!BV36 -> 25 | CK41: =Poblacion!BY36 -> 19 | CL41: =Poblacion!BZ36 -> 24 | CM41: =Poblacion!DP36 -> 36 | CN41: =Poblacion!DQ36 -> 40 | CO41: =Poblacion!DR36 -> 16 | CP41: =Poblacion!DS36 -> 14 | CQ41: =Poblacion!DT36 -> 148 | CR41: =Poblacion!DU36 -> 167 | CS41: =Poblacion!DV36 -> 103 | CT41: =Poblacion!DW36 -> 111
BA42: 05 | BB42: 30 | BC42: P.S. LACSANGA | BD42: =Poblacion!F37 -> 515 | BE42: =+SUM(Poblacion!K37,Poblacion!M37,Poblacion!O37,Poblacion!Q37,Poblacion!S37) -> 10 | BF42: =+SUM(Poblacion!L37,Poblacion!N37,Poblacion!P37,Poblacion!R37,Poblacion!T37) -> 11 | BG42: =SUM(Poblacion!U37,Poblacion!W37,Poblacion!Y37,Poblacion!AA37,Poblacion!AC37) -> 10 | BH42: =SUM(Poblacion!V37,Poblacion!X37,Poblacion!Z37,Poblacion!AB37,Poblacion!AD37) -> 10 | BI42: =+SUM(Poblacion!AE37,Poblacion!AG37,Poblacion!AI37,Poblacion!AK37,Poblacion!AM37) -> 13 | BJ42: =+SUM(Poblacion!AF37,Poblacion!AH37,Poblacion!AJ37,Poblacion!AL37,Poblacion!AN37) -> 12 | BK42: =+SUM(Poblacion!AO37,Poblacion!AQ37,Poblacion!AS37,Poblacion!AU37,Poblacion!AW37) -> 14 | BL42: =+SUM(Poblacion!AP37,Poblacion!AR37,Poblacion!AT37,Poblacion!AV37,Poblacion!AX37) -> 14 | BM42: =Poblacion!AY37 -> 11 | BN42: =Poblacion!AZ37 -> 14 | BO42: =Poblacion!BA37 -> 10 | BP42: =Poblacion!BB37 -> 14 | BQ42: =Poblacion!BC37 -> 11 | BR42: =Poblacion!BD37 -> 12 | BS42: =Poblacion!BE37 -> 14 | BT42: =Poblacion!BF37 -> 10 | BU42: =Poblacion!BG37 -> 12 | BV42: =Poblacion!BH37 -> 13 | BW42: =Poblacion!BI37 -> 16 | BX42: =Poblacion!BJ37 -> 17 | BY42: =Poblacion!BK37 -> 17 | BZ42: =Poblacion!BL37 -> 24 | CA42: =Poblacion!BM37 -> 19 | CB42: =Poblacion!BN37 -> 18 | CC42: =Poblacion!BO37 -> 17 | CD42: =Poblacion!BP37 -> 16 | CE42: =Poblacion!BQ37 -> 14 | CF42: =Poblacion!BR37 -> 15 | CG42: =Poblacion!BS37 -> 12 | CH42: =Poblacion!BT37 -> 17 | CI42: =Poblacion!BU37 -> 19 | CJ42: =Poblacion!BV37 -> 18 | CK42: =Poblacion!BY37 -> 14 | CL42: =Poblacion!BZ37 -> 18 | CM42: =Poblacion!DP37 -> 30 | CN42: =Poblacion!DQ37 -> 30 | CO42: =Poblacion!DR37 -> 12 | CP42: =Poblacion!DS37 -> 11 | CQ42: =Poblacion!DT37 -> 115 | CR42: =Poblacion!DU37 -> 128 | CS42: =Poblacion!DV37 -> 76 | CT42: =Poblacion!DW37 -> 84
BA43: 05 | BB43: 31 | BC43: P.S. MUZGA | BD43: =Poblacion!F38 -> 260 | BE43: =+SUM(Poblacion!K38,Poblacion!M38,Poblacion!O38,Poblacion!Q38,Poblacion!S38) -> 6 | BF43: =+SUM(Poblacion!L38,Poblacion!N38,Poblacion!P38,Poblacion!R38,Poblacion!T38) -> 6 | BG43: =SUM(Poblacion!U38,Poblacion!W38,Poblacion!Y38,Poblacion!AA38,Poblacion!AC38) -> 6 | BH43: =SUM(Poblacion!V38,Poblacion!X38,Poblacion!Z38,Poblacion!AB38,Poblacion!AD38) -> 5 | BI43: =+SUM(Poblacion!AE38,Poblacion!AG38,Poblacion!AI38,Poblacion!AK38,Poblacion!AM38) -> 5 | BJ43: =+SUM(Poblacion!AF38,Poblacion!AH38,Poblacion!AJ38,Poblacion!AL38,Poblacion!AN38) -> 5 | BK43: =+SUM(Poblacion!AO38,Poblacion!AQ38,Poblacion!AS38,Poblacion!AU38,Poblacion!AW38) -> 8 | BL43: =+SUM(Poblacion!AP38,Poblacion!AR38,Poblacion!AT38,Poblacion!AV38,Poblacion!AX38) -> 7 | BM43: =Poblacion!AY38 -> 5 | BN43: =Poblacion!AZ38 -> 8 | BO43: =Poblacion!BA38 -> 5 | BP43: =Poblacion!BB38 -> 7 | BQ43: =Poblacion!BC38 -> 5 | BR43: =Poblacion!BD38 -> 6 | BS43: =Poblacion!BE38 -> 7 | BT43: =Poblacion!BF38 -> 5 | BU43: =Poblacion!BG38 -> 6 | BV43: =Poblacion!BH38 -> 7 | BW43: =Poblacion!BI38 -> 8 | BX43: =Poblacion!BJ38 -> 8 | BY43: =Poblacion!BK38 -> 8 | BZ43: =Poblacion!BL38 -> 12 | CA43: =Poblacion!BM38 -> 9 | CB43: =Poblacion!BN38 -> 9 | CC43: =Poblacion!BO38 -> 8 | CD43: =Poblacion!BP38 -> 8 | CE43: =Poblacion!BQ38 -> 8 | CF43: =Poblacion!BR38 -> 8 | CG43: =Poblacion!BS38 -> 7 | CH43: =Poblacion!BT38 -> 9 | CI43: =Poblacion!BU38 -> 9 | CJ43: =Poblacion!BV38 -> 10 | CK43: =Poblacion!BY38 -> 7 | CL43: =Poblacion!BZ38 -> 9 | CM43: =Poblacion!DP38 -> 16 | CN43: =Poblacion!DQ38 -> 15 | CO43: =Poblacion!DR38 -> 6 | CP43: =Poblacion!DS38 -> 5 | CQ43: =Poblacion!DT38 -> 56 | CR43: =Poblacion!DU38 -> 65 | CS43: =Poblacion!DV38 -> 39 | CT43: =Poblacion!DW38 -> 44
BA44: 05 | BB44: 32 | BC44: P.S. AYARANGA | BD44: =Poblacion!F39 -> 261 | BE44: =+SUM(Poblacion!K39,Poblacion!M39,Poblacion!O39,Poblacion!Q39,Poblacion!S39) -> 6 | BF44: =+SUM(Poblacion!L39,Poblacion!N39,Poblacion!P39,Poblacion!R39,Poblacion!T39) -> 6 | BG44: =SUM(Poblacion!U39,Poblacion!W39,Poblacion!Y39,Poblacion!AA39,Poblacion!AC39) -> 6 | BH44: =SUM(Poblacion!V39,Poblacion!X39,Poblacion!Z39,Poblacion!AB39,Poblacion!AD39) -> 5 | BI44: =+SUM(Poblacion!AE39,Poblacion!AG39,Poblacion!AI39,Poblacion!AK39,Poblacion!AM39) -> 5 | BJ44: =+SUM(Poblacion!AF39,Poblacion!AH39,Poblacion!AJ39,Poblacion!AL39,Poblacion!AN39) -> 5 | BK44: =+SUM(Poblacion!AO39,Poblacion!AQ39,Poblacion!AS39,Poblacion!AU39,Poblacion!AW39) -> 8 | BL44: =+SUM(Poblacion!AP39,Poblacion!AR39,Poblacion!AT39,Poblacion!AV39,Poblacion!AX39) -> 7 | BM44: =Poblacion!AY39 -> 5 | BN44: =Poblacion!AZ39 -> 8 | BO44: =Poblacion!BA39 -> 5 | BP44: =Poblacion!BB39 -> 7 | BQ44: =Poblacion!BC39 -> 5 | BR44: =Poblacion!BD39 -> 6 | BS44: =Poblacion!BE39 -> 7 | BT44: =Poblacion!BF39 -> 5 | BU44: =Poblacion!BG39 -> 6 | BV44: =Poblacion!BH39 -> 7 | BW44: =Poblacion!BI39 -> 8 | BX44: =Poblacion!BJ39 -> 8 | BY44: =Poblacion!BK39 -> 8 | BZ44: =Poblacion!BL39 -> 12 | CA44: =Poblacion!BM39 -> 9 | CB44: =Poblacion!BN39 -> 9 | CC44: =Poblacion!BO39 -> 8 | CD44: =Poblacion!BP39 -> 8 | CE44: =Poblacion!BQ39 -> 8 | CF44: =Poblacion!BR39 -> 8 | CG44: =Poblacion!BS39 -> 7 | CH44: =Poblacion!BT39 -> 9 | CI44: =Poblacion!BU39 -> 9 | CJ44: =Poblacion!BV39 -> 10 | CK44: =Poblacion!BY39 -> 7 | CL44: =Poblacion!BZ39 -> 9 | CM44: =Poblacion!DP39 -> 16 | CN44: =Poblacion!DQ39 -> 15 | CO44: =Poblacion!DR39 -> 6 | CP44: =Poblacion!DS39 -> 5 | CQ44: =Poblacion!DT39 -> 56 | CR44: =Poblacion!DU39 -> 65 | CS44: =Poblacion!DV39 -> 39 | CT44: =Poblacion!DW39 -> 44
D45: PIRAMIDE POBLACIONAL ESPECIAL - ESTRATEGIA DE PREVENCIÓN Y CONTROL DE CANCER | BB45: 33 | BC45: DISTRITO SANTA LEONOR | BD45: =Poblacion!F40 -> 1245 | BE45: =+SUM(Poblacion!K40,Poblacion!M40,Poblacion!O40,Poblacion!Q40,Poblacion!S40) -> 41 | BF45: =+SUM(Poblacion!L40,Poblacion!N40,Poblacion!P40,Poblacion!R40,Poblacion!T40) -> 32 | BG45: =SUM(Poblacion!U40,Poblacion!W40,Poblacion!Y40,Poblacion!AA40,Poblacion!AC40) -> 27 | BH45: =SUM(Poblacion!V40,Poblacion!X40,Poblacion!Z40,Poblacion!AB40,Poblacion!AD40) -> 28 | BI45: =+SUM(Poblacion!AE40,Poblacion!AG40,Poblacion!AI40,Poblacion!AK40,Poblacion!AM40) -> 29 | BJ45: =+SUM(Poblacion!AF40,Poblacion!AH40,Poblacion!AJ40,Poblacion!AL40,Poblacion!AN40) -> 37 | BK45: =+SUM(Poblacion!AO40,Poblacion!AQ40,Poblacion!AS40,Poblacion!AU40,Poblacion!AW40) -> 40 | BL45: =+SUM(Poblacion!AP40,Poblacion!AR40,Poblacion!AT40,Poblacion!AV40,Poblacion!AX40) -> 38 | BM45: =Poblacion!AY40 -> 27 | BN45: =Poblacion!AZ40 -> 28 | BO45: =Poblacion!BA40 -> 29 | BP45: =Poblacion!BB40 -> 43 | BQ45: =Poblacion!BC40 -> 29 | BR45: =Poblacion!BD40 -> 47 | BS45: =Poblacion!BE40 -> 36 | BT45: =Poblacion!BF40 -> 29 | BU45: =Poblacion!BG40 -> 30 | BV45: =Poblacion!BH40 -> 40 | BW45: =Poblacion!BI40 -> 29 | BX45: =Poblacion!BJ40 -> 38 | BY45: =Poblacion!BK40 -> 36 | BZ45: =Poblacion!BL40 -> 41 | CA45: =Poblacion!BM40 -> 40 | CB45: =Poblacion!BN40 -> 38 | CC45: =Poblacion!BO40 -> 46 | CD45: =Poblacion!BP40 -> 48 | CE45: =Poblacion!BQ40 -> 38 | CF45: =Poblacion!BR40 -> 38 | CG45: =Poblacion!BS40 -> 35 | CH45: =Poblacion!BT40 -> 26 | CI45: =Poblacion!BU40 -> 31 | CJ45: =Poblacion!BV40 -> 47 | CK45: =Poblacion!BY40 -> 24 | CL45: =Poblacion!BZ40 -> 31 | CM45: =Poblacion!DP40 -> 92 | CN45: =Poblacion!DQ40 -> 92 | CO45: =Poblacion!DR40 -> 30 | CP45: =Poblacion!DS40 -> 27 | CQ45: =Poblacion!DT40 -> 271 | CR45: =Poblacion!DU40 -> 320 | CS45: =Poblacion!DV40 -> 174 | CT45: =Poblacion!DW40 -> 190
T46: =UPPER("Piramide Poblacional 2024 - " &$B$15) -> PIRAMIDE POBLACIONAL 2024 - DISTRITO CAUJUL | BA46: 05 | BB46: 34 | BC46: P.S. CHIUCHIN | BD46: =Poblacion!F41 -> 812 | BE46: =+SUM(Poblacion!K41,Poblacion!M41,Poblacion!O41,Poblacion!Q41,Poblacion!S41) -> 26 | BF46: =+SUM(Poblacion!L41,Poblacion!N41,Poblacion!P41,Poblacion!R41,Poblacion!T41) -> 20 | BG46: =SUM(Poblacion!U41,Poblacion!W41,Poblacion!Y41,Poblacion!AA41,Poblacion!AC41) -> 18 | BH46: =SUM(Poblacion!V41,Poblacion!X41,Poblacion!Z41,Poblacion!AB41,Poblacion!AD41) -> 18 | BI46: =+SUM(Poblacion!AE41,Poblacion!AG41,Poblacion!AI41,Poblacion!AK41,Poblacion!AM41) -> 18 | BJ46: =+SUM(Poblacion!AF41,Poblacion!AH41,Poblacion!AJ41,Poblacion!AL41,Poblacion!AN41) -> 25 | BK46: =+SUM(Poblacion!AO41,Poblacion!AQ41,Poblacion!AS41,Poblacion!AU41,Poblacion!AW41) -> 27 | BL46: =+SUM(Poblacion!AP41,Poblacion!AR41,Poblacion!AT41,Poblacion!AV41,Poblacion!AX41) -> 25 | BM46: =Poblacion!AY41 -> 18 | BN46: =Poblacion!AZ41 -> 18 | BO46: =Poblacion!BA41 -> 19 | BP46: =Poblacion!BB41 -> 28 | BQ46: =Poblacion!BC41 -> 19 | BR46: =Poblacion!BD41 -> 31 | BS46: =Poblacion!BE41 -> 24 | BT46: =Poblacion!BF41 -> 19 | BU46: =Poblacion!BG41 -> 20 | BV46: =Poblacion!BH41 -> 26 | BW46: =Poblacion!BI41 -> 19 | BX46: =Poblacion!BJ41 -> 25 | BY46: =Poblacion!BK41 -> 24 | BZ46: =Poblacion!BL41 -> 27 | CA46: =Poblacion!BM41 -> 26 | CB46: =Poblacion!BN41 -> 24 | CC46: =Poblacion!BO41 -> 30 | CD46: =Poblacion!BP41 -> 31 | CE46: =Poblacion!BQ41 -> 25 | CF46: =Poblacion!BR41 -> 24 | CG46: =Poblacion!BS41 -> 23 | CH46: =Poblacion!BT41 -> 17 | CI46: =Poblacion!BU41 -> 20 | CJ46: =Poblacion!BV41 -> 31 | CK46: =Poblacion!BY41 -> 15 | CL46: =Poblacion!BZ41 -> 20 | CM46: =Poblacion!DP41 -> 59 | CN46: =Poblacion!DQ41 -> 60 | CO46: =Poblacion!DR41 -> 20 | CP46: =Poblacion!DS41 -> 17 | CQ46: =Poblacion!DT41 -> 179 | CR46: =Poblacion!DU41 -> 209 | CS46: =Poblacion!DV41 -> 113 | CT46: =Poblacion!DW41 -> 123
BA47: 05 | BB47: 35 | BC47: P.S. PARQUIN | BD47: =Poblacion!F42 -> 249 | BE47: =+SUM(Poblacion!K42,Poblacion!M42,Poblacion!O42,Poblacion!Q42,Poblacion!S42) -> 9 | BF47: =+SUM(Poblacion!L42,Poblacion!N42,Poblacion!P42,Poblacion!R42,Poblacion!T42) -> 7 | BG47: =SUM(Poblacion!U42,Poblacion!W42,Poblacion!Y42,Poblacion!AA42,Poblacion!AC42) -> 6 | BH47: =SUM(Poblacion!V42,Poblacion!X42,Poblacion!Z42,Poblacion!AB42,Poblacion!AD42) -> 6 | BI47: =+SUM(Poblacion!AE42,Poblacion!AG42,Poblacion!AI42,Poblacion!AK42,Poblacion!AM42) -> 6 | BJ47: =+SUM(Poblacion!AF42,Poblacion!AH42,Poblacion!AJ42,Poblacion!AL42,Poblacion!AN42) -> 6 | BK47: =+SUM(Poblacion!AO42,Poblacion!AQ42,Poblacion!AS42,Poblacion!AU42,Poblacion!AW42) -> 8 | BL47: =+SUM(Poblacion!AP42,Poblacion!AR42,Poblacion!AT42,Poblacion!AV42,Poblacion!AX42) -> 7 | BM47: =Poblacion!AY42 -> 5 | BN47: =Poblacion!AZ42 -> 6 | BO47: =Poblacion!BA42 -> 6 | BP47: =Poblacion!BB42 -> 9 | BQ47: =Poblacion!BC42 -> 6 | BR47: =Poblacion!BD42 -> 9 | BS47: =Poblacion!BE42 -> 7 | BT47: =Poblacion!BF42 -> 6 | BU47: =Poblacion!BG42 -> 6 | BV47: =Poblacion!BH42 -> 8 | BW47: =Poblacion!BI42 -> 6 | BX47: =Poblacion!BJ42 -> 7 | BY47: =Poblacion!BK42 -> 7 | BZ47: =Poblacion!BL42 -> 8 | CA47: =Poblacion!BM42 -> 8 | CB47: =Poblacion!BN42 -> 8 | CC47: =Poblacion!BO42 -> 9 | CD47: =Poblacion!BP42 -> 10 | CE47: =Poblacion!BQ42 -> 7 | CF47: =Poblacion!BR42 -> 8 | CG47: =Poblacion!BS42 -> 7 | CH47: =Poblacion!BT42 -> 5 | CI47: =Poblacion!BU42 -> 6 | CJ47: =Poblacion!BV42 -> 9 | CK47: =Poblacion!BY42 -> 5 | CL47: =Poblacion!BZ42 -> 6 | CM47: =Poblacion!DP42 -> 20 | CN47: =Poblacion!DQ42 -> 18 | CO47: =Poblacion!DR42 -> 6 | CP47: =Poblacion!DS42 -> 5 | CQ47: =Poblacion!DT42 -> 54 | CR47: =Poblacion!DU42 -> 64 | CS47: =Poblacion!DV42 -> 34 | CT47: =Poblacion!DW42 -> 38
T48: 78 | BA48: 05 | BB48: 36 | BC48: P.S. JUCUL | BD48: =Poblacion!F43 -> 184 | BE48: =+SUM(Poblacion!K43,Poblacion!M43,Poblacion!O43,Poblacion!Q43,Poblacion!S43) -> 6 | BF48: =+SUM(Poblacion!L43,Poblacion!N43,Poblacion!P43,Poblacion!R43,Poblacion!T43) -> 5 | BG48: =SUM(Poblacion!U43,Poblacion!W43,Poblacion!Y43,Poblacion!AA43,Poblacion!AC43) -> 3 | BH48: =SUM(Poblacion!V43,Poblacion!X43,Poblacion!Z43,Poblacion!AB43,Poblacion!AD43) -> 4 | BI48: =+SUM(Poblacion!AE43,Poblacion!AG43,Poblacion!AI43,Poblacion!AK43,Poblacion!AM43) -> 5 | BJ48: =+SUM(Poblacion!AF43,Poblacion!AH43,Poblacion!AJ43,Poblacion!AL43,Poblacion!AN43) -> 6 | BK48: =+SUM(Poblacion!AO43,Poblacion!AQ43,Poblacion!AS43,Poblacion!AU43,Poblacion!AW43) -> 5 | BL48: =+SUM(Poblacion!AP43,Poblacion!AR43,Poblacion!AT43,Poblacion!AV43,Poblacion!AX43) -> 6 | BM48: =Poblacion!AY43 -> 4 | BN48: =Poblacion!AZ43 -> 4 | BO48: =Poblacion!BA43 -> 4 | BP48: =Poblacion!BB43 -> 6 | BQ48: =Poblacion!BC43 -> 4 | BR48: =Poblacion!BD43 -> 7 | BS48: =Poblacion!BE43 -> 5 | BT48: =Poblacion!BF43 -> 4 | BU48: =Poblacion!BG43 -> 4 | BV48: =Poblacion!BH43 -> 6 | BW48: =Poblacion!BI43 -> 4 | BX48: =Poblacion!BJ43 -> 6 | BY48: =Poblacion!BK43 -> 5 | BZ48: =Poblacion!BL43 -> 6 | CA48: =Poblacion!BM43 -> 6 | CB48: =Poblacion!BN43 -> 6 | CC48: =Poblacion!BO43 -> 7 | CD48: =Poblacion!BP43 -> 7 | CE48: =Poblacion!BQ43 -> 6 | CF48: =Poblacion!BR43 -> 6 | CG48: =Poblacion!BS43 -> 5 | CH48: =Poblacion!BT43 -> 4 | CI48: =Poblacion!BU43 -> 5 | CJ48: =Poblacion!BV43 -> 7 | CK48: =Poblacion!BY43 -> 4 | CL48: =Poblacion!BZ43 -> 5 | CM48: =Poblacion!DP43 -> 13 | CN48: =Poblacion!DQ43 -> 14 | CO48: =Poblacion!DR43 -> 4 | CP48: =Poblacion!DS43 -> 5 | CQ48: =Poblacion!DT43 -> 38 | CR48: =Poblacion!DU43 -> 47 | CS48: =Poblacion!DV43 -> 27 | CT48: =Poblacion!DW43 -> 29
BB49: 37 | BC49: DISTRITO SANTA MARIA | BD49: =Poblacion!F44 -> 45471 | BE49: =+SUM(Poblacion!K44,Poblacion!M44,Poblacion!O44,Poblacion!Q44,Poblacion!S44) -> 1679 | BF49: =+SUM(Poblacion!L44,Poblacion!N44,Poblacion!P44,Poblacion!R44,Poblacion!T44) -> 1640 | BG49: =SUM(Poblacion!U44,Poblacion!W44,Poblacion!Y44,Poblacion!AA44,Poblacion!AC44) -> 1638 | BH49: =SUM(Poblacion!V44,Poblacion!X44,Poblacion!Z44,Poblacion!AB44,Poblacion!AD44) -> 1659 | BI49: =+SUM(Poblacion!AE44,Poblacion!AG44,Poblacion!AI44,Poblacion!AK44,Poblacion!AM44) -> 1440 | BJ49: =+SUM(Poblacion!AF44,Poblacion!AH44,Poblacion!AJ44,Poblacion!AL44,Poblacion!AN44) -> 1418 | BK49: =+SUM(Poblacion!AO44,Poblacion!AQ44,Poblacion!AS44,Poblacion!AU44,Poblacion!AW44) -> 1545 | BL49: =+SUM(Poblacion!AP44,Poblacion!AR44,Poblacion!AT44,Poblacion!AV44,Poblacion!AX44) -> 1625 | BM49: =Poblacion!AY44 -> 1560 | BN49: =Poblacion!AZ44 -> 1635 | BO49: =Poblacion!BA44 -> 1576 | BP49: =Poblacion!BB44 -> 2089 | BQ49: =Poblacion!BC44 -> 1499 | BR49: =Poblacion!BD44 -> 1843 | BS49: =Poblacion!BE44 -> 1537 | BT49: =Poblacion!BF44 -> 1665 | BU49: =Poblacion!BG44 -> 1490 | BV49: =Poblacion!BH44 -> 1600 | BW49: =Poblacion!BI44 -> 1402 | BX49: =Poblacion!BJ44 -> 1566 | BY49: =Poblacion!BK44 -> 1293 | BZ49: =Poblacion!BL44 -> 1446 | CA49: =Poblacion!BM44 -> 1178 | CB49: =Poblacion!BN44 -> 1253 | CC49: =Poblacion!BO44 -> 1027 | CD49: =Poblacion!BP44 -> 1116 | CE49: =Poblacion!BQ44 -> 800 | CF49: =Poblacion!BR44 -> 876 | CG49: =Poblacion!BS44 -> 773 | CH49: =Poblacion!BT44 -> 866 | CI49: =Poblacion!BU44 -> 608 | CJ49: =Poblacion!BV44 -> 618 | CK49: =Poblacion!BY44 -> 399 | CL49: =Poblacion!BZ44 -> 365 | CM49: =Poblacion!DP44 -> 4489 | CN49: =Poblacion!DQ44 -> 4454 | CO49: =Poblacion!DR44 -> 1218 | CP49: =Poblacion!DS44 -> 1237 | CQ49: =Poblacion!DT44 -> 12130 | CR49: =Poblacion!DU44 -> 13748 | CS49: =Poblacion!DV44 -> 3607 | CT49: =Poblacion!DW44 -> 3841
BB50: 38 | BC50: ---
BA51: 02 | BB51: 39 | BC51: C.S. SANTA MARIA | BD51: =Poblacion!F45 -> 12730 | BE51: =+SUM(Poblacion!K45,Poblacion!M45,Poblacion!O45,Poblacion!Q45,Poblacion!S45) -> 469 | BF51: =+SUM(Poblacion!L45,Poblacion!N45,Poblacion!P45,Poblacion!R45,Poblacion!T45) -> 459 | BG51: =SUM(Poblacion!U45,Poblacion!W45,Poblacion!Y45,Poblacion!AA45,Poblacion!AC45) -> 458 | BH51: =SUM(Poblacion!V45,Poblacion!X45,Poblacion!Z45,Poblacion!AB45,Poblacion!AD45) -> 464 | BI51: =+SUM(Poblacion!AE45,Poblacion!AG45,Poblacion!AI45,Poblacion!AK45,Poblacion!AM45) -> 404 | BJ51: =+SUM(Poblacion!AF45,Poblacion!AH45,Poblacion!AJ45,Poblacion!AL45,Poblacion!AN45) -> 398 | BK51: =+SUM(Poblacion!AO45,Poblacion!AQ45,Poblacion!AS45,Poblacion!AU45,Poblacion!AW45) -> 432 | BL51: =+SUM(Poblacion!AP45,Poblacion!AR45,Poblacion!AT45,Poblacion!AV45,Poblacion!AX45) -> 456 | BM51: =Poblacion!AY45 -> 437 | BN51: =Poblacion!AZ45 -> 458 | BO51: =Poblacion!BA45 -> 441 | BP51: =Poblacion!BB45 -> 585 | BQ51: =Poblacion!BC45 -> 420 | BR51: =Poblacion!BD45 -> 516 | BS51: =Poblacion!BE45 -> 430 | BT51: =Poblacion!BF45 -> 465 | BU51: =Poblacion!BG45 -> 417 | BV51: =Poblacion!BH45 -> 448 | BW51: =Poblacion!BI45 -> 393 | BX51: =Poblacion!BJ45 -> 438 | BY51: =Poblacion!BK45 -> 362 | BZ51: =Poblacion!BL45 -> 405 | CA51: =Poblacion!BM45 -> 330 | CB51: =Poblacion!BN45 -> 351 | CC51: =Poblacion!BO45 -> 288 | CD51: =Poblacion!BP45 -> 313 | CE51: =Poblacion!BQ45 -> 224 | CF51: =Poblacion!BR45 -> 245 | CG51: =Poblacion!BS45 -> 217 | CH51: =Poblacion!BT45 -> 242 | CI51: =Poblacion!BU45 -> 170 | CJ51: =Poblacion!BV45 -> 173 | CK51: =Poblacion!BY45 -> 111 | CL51: =Poblacion!BZ45 -> 101 | CM51: =Poblacion!DP45 -> 1256 | CN51: =Poblacion!DQ45 -> 1247 | CO51: =Poblacion!DR45 -> 341 | CP51: =Poblacion!DS45 -> 348 | CQ51: =Poblacion!DT45 -> 3396 | CR51: =Poblacion!DU45 -> 3848 | CS51: =Poblacion!DV45 -> 1010 | CT51: =Poblacion!DW45 -> 1074
BA52: 02 | BB52: 40 | BC52: P.S. CHONTA | BD52: =Poblacion!F46 -> 6820 | BE52: =+SUM(Poblacion!K46,Poblacion!M46,Poblacion!O46,Poblacion!Q46,Poblacion!S46) -> 252 | BF52: =+SUM(Poblacion!L46,Poblacion!N46,Poblacion!P46,Poblacion!R46,Poblacion!T46) -> 245 | BG52: =SUM(Poblacion!U46,Poblacion!W46,Poblacion!Y46,Poblacion!AA46,Poblacion!AC46) -> 246 | BH52: =SUM(Poblacion!V46,Poblacion!X46,Poblacion!Z46,Poblacion!AB46,Poblacion!AD46) -> 248 | BI52: =+SUM(Poblacion!AE46,Poblacion!AG46,Poblacion!AI46,Poblacion!AK46,Poblacion!AM46) -> 215 | BJ52: =+SUM(Poblacion!AF46,Poblacion!AH46,Poblacion!AJ46,Poblacion!AL46,Poblacion!AN46) -> 213 | BK52: =+SUM(Poblacion!AO46,Poblacion!AQ46,Poblacion!AS46,Poblacion!AU46,Poblacion!AW46) -> 232 | BL52: =+SUM(Poblacion!AP46,Poblacion!AR46,Poblacion!AT46,Poblacion!AV46,Poblacion!AX46) -> 244 | BM52: =Poblacion!AY46 -> 234 | BN52: =Poblacion!AZ46 -> 245 | BO52: =Poblacion!BA46 -> 237 | BP52: =Poblacion!BB46 -> 313 | BQ52: =Poblacion!BC46 -> 224 | BR52: =Poblacion!BD46 -> 276 | BS52: =Poblacion!BE46 -> 231 | BT52: =Poblacion!BF46 -> 250 | BU52: =Poblacion!BG46 -> 224 | BV52: =Poblacion!BH46 -> 240 | BW52: =Poblacion!BI46 -> 210 | BX52: =Poblacion!BJ46 -> 235 | BY52: =Poblacion!BK46 -> 194 | BZ52: =Poblacion!BL46 -> 217 | CA52: =Poblacion!BM46 -> 177 | CB52: =Poblacion!BN46 -> 188 | CC52: =Poblacion!BO46 -> 154 | CD52: =Poblacion!BP46 -> 167 | CE52: =Poblacion!BQ46 -> 120 | CF52: =Poblacion!BR46 -> 131 | CG52: =Poblacion!BS46 -> 116 | CH52: =Poblacion!BT46 -> 130 | CI52: =Poblacion!BU46 -> 92 | CJ52: =Poblacion!BV46 -> 93 | CK52: =Poblacion!BY46 -> 60 | CL52: =Poblacion!BZ46 -> 55 | CM52: =Poblacion!DP46 -> 673 | CN52: =Poblacion!DQ46 -> 667 | CO52: =Poblacion!DR46 -> 183 | CP52: =Poblacion!DS46 -> 185 | CQ52: =Poblacion!DT46 -> 1820 | CR52: =Poblacion!DU46 -> 2062 | CS52: =Poblacion!DV46 -> 542 | CT52: =Poblacion!DW46 -> 576
BA53: 02 | BB53: 41 | BC53: P.S. 1RO DE MAYO | BD53: =Poblacion!F47 -> 13638 | BE53: =+SUM(Poblacion!K47,Poblacion!M47,Poblacion!O47,Poblacion!Q47,Poblacion!S47) -> 503 | BF53: =+SUM(Poblacion!L47,Poblacion!N47,Poblacion!P47,Poblacion!R47,Poblacion!T47) -> 492 | BG53: =SUM(Poblacion!U47,Poblacion!W47,Poblacion!Y47,Poblacion!AA47,Poblacion!AC47) -> 491 | BH53: =SUM(Poblacion!V47,Poblacion!X47,Poblacion!Z47,Poblacion!AB47,Poblacion!AD47) -> 496 | BI53: =+SUM(Poblacion!AE47,Poblacion!AG47,Poblacion!AI47,Poblacion!AK47,Poblacion!AM47) -> 432 | BJ53: =+SUM(Poblacion!AF47,Poblacion!AH47,Poblacion!AJ47,Poblacion!AL47,Poblacion!AN47) -> 425 | BK53: =+SUM(Poblacion!AO47,Poblacion!AQ47,Poblacion!AS47,Poblacion!AU47,Poblacion!AW47) -> 464 | BL53: =+SUM(Poblacion!AP47,Poblacion!AR47,Poblacion!AT47,Poblacion!AV47,Poblacion!AX47) -> 486 | BM53: =Poblacion!AY47 -> 468 | BN53: =Poblacion!AZ47 -> 491 | BO53: =Poblacion!BA47 -> 472 | BP53: =Poblacion!BB47 -> 627 | BQ53: =Poblacion!BC47 -> 450 | BR53: =Poblacion!BD47 -> 553 | BS53: =Poblacion!BE47 -> 461 | BT53: =Poblacion!BF47 -> 500 | BU53: =Poblacion!BG47 -> 447 | BV53: =Poblacion!BH47 -> 480 | BW53: =Poblacion!BI47 -> 421 | BX53: =Poblacion!BJ47 -> 470 | BY53: =Poblacion!BK47 -> 388 | BZ53: =Poblacion!BL47 -> 434 | CA53: =Poblacion!BM47 -> 353 | CB53: =Poblacion!BN47 -> 375 | CC53: =Poblacion!BO47 -> 308 | CD53: =Poblacion!BP47 -> 335 | CE53: =Poblacion!BQ47 -> 240 | CF53: =Poblacion!BR47 -> 263 | CG53: =Poblacion!BS47 -> 232 | CH53: =Poblacion!BT47 -> 260 | CI53: =Poblacion!BU47 -> 182 | CJ53: =Poblacion!BV47 -> 185 | CK53: =Poblacion!BY47 -> 120 | CL53: =Poblacion!BZ47 -> 110 | CM53: =Poblacion!DP47 -> 1346 | CN53: =Poblacion!DQ47 -> 1334 | CO53: =Poblacion!DR47 -> 365 | CP53: =Poblacion!DS47 -> 370 | CQ53: =Poblacion!DT47 -> 3639 | CR53: =Poblacion!DU47 -> 4125 | CS53: =Poblacion!DV47 -> 1082 | CT53: =Poblacion!DW47 -> 1153
BA54: 02 | BB54: 42 | BC54: P.S. ZAPATA | BD54: =Poblacion!F48 -> 4098 | BE54: =+SUM(Poblacion!K48,Poblacion!M48,Poblacion!O48,Poblacion!Q48,Poblacion!S48) -> 153 | BF54: =+SUM(Poblacion!L48,Poblacion!N48,Poblacion!P48,Poblacion!R48,Poblacion!T48) -> 148 | BG54: =SUM(Poblacion!U48,Poblacion!W48,Poblacion!Y48,Poblacion!AA48,Poblacion!AC48) -> 149 | BH54: =SUM(Poblacion!V48,Poblacion!X48,Poblacion!Z48,Poblacion!AB48,Poblacion!AD48) -> 151 | BI54: =+SUM(Poblacion!AE48,Poblacion!AG48,Poblacion!AI48,Poblacion!AK48,Poblacion!AM48) -> 131 | BJ54: =+SUM(Poblacion!AF48,Poblacion!AH48,Poblacion!AJ48,Poblacion!AL48,Poblacion!AN48) -> 128 | BK54: =+SUM(Poblacion!AO48,Poblacion!AQ48,Poblacion!AS48,Poblacion!AU48,Poblacion!AW48) -> 139 | BL54: =+SUM(Poblacion!AP48,Poblacion!AR48,Poblacion!AT48,Poblacion!AV48,Poblacion!AX48) -> 146 | BM54: =Poblacion!AY48 -> 140 | BN54: =Poblacion!AZ48 -> 147 | BO54: =Poblacion!BA48 -> 142 | BP54: =Poblacion!BB48 -> 188 | BQ54: =Poblacion!BC48 -> 135 | BR54: =Poblacion!BD48 -> 166 | BS54: =Poblacion!BE48 -> 138 | BT54: =Poblacion!BF48 -> 150 | BU54: =Poblacion!BG48 -> 134 | BV54: =Poblacion!BH48 -> 144 | BW54: =Poblacion!BI48 -> 126 | BX54: =Poblacion!BJ48 -> 141 | BY54: =Poblacion!BK48 -> 116 | BZ54: =Poblacion!BL48 -> 130 | CA54: =Poblacion!BM48 -> 106 | CB54: =Poblacion!BN48 -> 113 | CC54: =Poblacion!BO48 -> 92 | CD54: =Poblacion!BP48 -> 100 | CE54: =Poblacion!BQ48 -> 72 | CF54: =Poblacion!BR48 -> 79 | CG54: =Poblacion!BS48 -> 69 | CH54: =Poblacion!BT48 -> 78 | CI54: =Poblacion!BU48 -> 55 | CJ54: =Poblacion!BV48 -> 56 | CK54: =Poblacion!BY48 -> 36 | CL54: =Poblacion!BZ48 -> 33 | CM54: =Poblacion!DP48 -> 408 | CN54: =Poblacion!DQ48 -> 403 | CO54: =Poblacion!DR48 -> 110 | CP54: =Poblacion!DS48 -> 112 | CQ54: =Poblacion!DT48 -> 1091 | CR54: =Poblacion!DU48 -> 1237 | CS54: =Poblacion!DV48 -> 324 | CT54: =Poblacion!DW48 -> 346
BA55: 02 | BB55: 43 | BC55: P.S. SAN BARTOLOME | BD55: =Poblacion!F49 -> 8185 | BE55: =+SUM(Poblacion!K49,Poblacion!M49,Poblacion!O49,Poblacion!Q49,Poblacion!S49) -> 302 | BF55: =+SUM(Poblacion!L49,Poblacion!N49,Poblacion!P49,Poblacion!R49,Poblacion!T49) -> 296 | BG55: =SUM(Poblacion!U49,Poblacion!W49,Poblacion!Y49,Poblacion!AA49,Poblacion!AC49) -> 294 | BH55: =SUM(Poblacion!V49,Poblacion!X49,Poblacion!Z49,Poblacion!AB49,Poblacion!AD49) -> 300 | BI55: =+SUM(Poblacion!AE49,Poblacion!AG49,Poblacion!AI49,Poblacion!AK49,Poblacion!AM49) -> 258 | BJ55: =+SUM(Poblacion!AF49,Poblacion!AH49,Poblacion!AJ49,Poblacion!AL49,Poblacion!AN49) -> 254 | BK55: =+SUM(Poblacion!AO49,Poblacion!AQ49,Poblacion!AS49,Poblacion!AU49,Poblacion!AW49) -> 278 | BL55: =+SUM(Poblacion!AP49,Poblacion!AR49,Poblacion!AT49,Poblacion!AV49,Poblacion!AX49) -> 293 | BM55: =Poblacion!AY49 -> 281 | BN55: =Poblacion!AZ49 -> 294 | BO55: =Poblacion!BA49 -> 284 | BP55: =Poblacion!BB49 -> 376 | BQ55: =Poblacion!BC49 -> 270 | BR55: =Poblacion!BD49 -> 332 | BS55: =Poblacion!BE49 -> 277 | BT55: =Poblacion!BF49 -> 300 | BU55: =Poblacion!BG49 -> 268 | BV55: =Poblacion!BH49 -> 288 | BW55: =Poblacion!BI49 -> 252 | BX55: =Poblacion!BJ49 -> 282 | BY55: =Poblacion!BK49 -> 233 | BZ55: =Poblacion!BL49 -> 260 | CA55: =Poblacion!BM49 -> 212 | CB55: =Poblacion!BN49 -> 226 | CC55: =Poblacion!BO49 -> 185 | CD55: =Poblacion!BP49 -> 201 | CE55: =Poblacion!BQ49 -> 144 | CF55: =Poblacion!BR49 -> 158 | CG55: =Poblacion!BS49 -> 139 | CH55: =Poblacion!BT49 -> 156 | CI55: =Poblacion!BU49 -> 109 | CJ55: =Poblacion!BV49 -> 111 | CK55: =Poblacion!BY49 -> 72 | CL55: =Poblacion!BZ49 -> 66 | CM55: =Poblacion!DP49 -> 806 | CN55: =Poblacion!DQ49 -> 803 | CO55: =Poblacion!DR49 -> 219 | CP55: =Poblacion!DS49 -> 222 | CQ55: =Poblacion!DT49 -> 2184 | CR55: =Poblacion!DU49 -> 2476 | CS55: =Poblacion!DV49 -> 649 | CT55: =Poblacion!DW49 -> 692
BB56: 44 | BC56: DISTRITO SAYAN | BD56: =Poblacion!F50 -> 27544 | BE56: =+SUM(Poblacion!K50,Poblacion!M50,Poblacion!O50,Poblacion!Q50,Poblacion!S50) -> 1025 | BF56: =+SUM(Poblacion!L50,Poblacion!N50,Poblacion!P50,Poblacion!R50,Poblacion!T50) -> 994 | BG56: =SUM(Poblacion!U50,Poblacion!W50,Poblacion!Y50,Poblacion!AA50,Poblacion!AC50) -> 993 | BH56: =SUM(Poblacion!V50,Poblacion!X50,Poblacion!Z50,Poblacion!AB50,Poblacion!AD50) -> 1046 | BI56: =+SUM(Poblacion!AE50,Poblacion!AG50,Poblacion!AI50,Poblacion!AK50,Poblacion!AM50) -> 898 | BJ56: =+SUM(Poblacion!AF50,Poblacion!AH50,Poblacion!AJ50,Poblacion!AL50,Poblacion!AN50) -> 908 | BK56: =+SUM(Poblacion!AO50,Poblacion!AQ50,Poblacion!AS50,Poblacion!AU50,Poblacion!AW50) -> 989 | BL56: =+SUM(Poblacion!AP50,Poblacion!AR50,Poblacion!AT50,Poblacion!AV50,Poblacion!AX50) -> 1142 | BM56: =Poblacion!AY50 -> 851 | BN56: =Poblacion!AZ50 -> 1086 | BO56: =Poblacion!BA50 -> 939 | BP56: =Poblacion!BB50 -> 1274 | BQ56: =Poblacion!BC50 -> 893 | BR56: =Poblacion!BD50 -> 1152 | BS56: =Poblacion!BE50 -> 967 | BT56: =Poblacion!BF50 -> 1016 | BU56: =Poblacion!BG50 -> 914 | BV56: =Poblacion!BH50 -> 1038 | BW56: =Poblacion!BI50 -> 899 | BX56: =Poblacion!BJ50 -> 933 | BY56: =Poblacion!BK50 -> 741 | BZ56: =Poblacion!BL50 -> 857 | CA56: =Poblacion!BM50 -> 719 | CB56: =Poblacion!BN50 -> 792 | CC56: =Poblacion!BO50 -> 660 | CD56: =Poblacion!BP50 -> 589 | CE56: =Poblacion!BQ50 -> 470 | CF56: =Poblacion!BR50 -> 502 | CG56: =Poblacion!BS50 -> 447 | CH56: =Poblacion!BT50 -> 381 | CI56: =Poblacion!BU50 -> 334 | CJ56: =Poblacion!BV50 -> 310 | CK56: =Poblacion!BY50 -> 182 | CL56: =Poblacion!BZ50 -> 195 | CM56: =Poblacion!DP50 -> 2741 | CN56: =Poblacion!DQ50 -> 2770 | CO56: =Poblacion!DR50 -> 769 | CP56: =Poblacion!DS50 -> 884 | CQ56: =Poblacion!DT50 -> 7318 | CR56: =Poblacion!DU50 -> 8584 | CS56: =Poblacion!DV50 -> 2093 | CT56: =Poblacion!DW50 -> 1977
BA57: 03 | BB57: 45 | BC57: P.S. 9 DE OCTUBRE | BD57: =Poblacion!F51 -> 7434 | BE57: =+SUM(Poblacion!K51,Poblacion!M51,Poblacion!O51,Poblacion!Q51,Poblacion!S51) -> 276 | BF57: =+SUM(Poblacion!L51,Poblacion!N51,Poblacion!P51,Poblacion!R51,Poblacion!T51) -> 268 | BG57: =SUM(Poblacion!U51,Poblacion!W51,Poblacion!Y51,Poblacion!AA51,Poblacion!AC51) -> 271 | BH57: =SUM(Poblacion!V51,Poblacion!X51,Poblacion!Z51,Poblacion!AB51,Poblacion!AD51) -> 281 | BI57: =+SUM(Poblacion!AE51,Poblacion!AG51,Poblacion!AI51,Poblacion!AK51,Poblacion!AM51) -> 242 | BJ57: =+SUM(Poblacion!AF51,Poblacion!AH51,Poblacion!AJ51,Poblacion!AL51,Poblacion!AN51) -> 246 | BK57: =+SUM(Poblacion!AO51,Poblacion!AQ51,Poblacion!AS51,Poblacion!AU51,Poblacion!AW51) -> 268 | BL57: =+SUM(Poblacion!AP51,Poblacion!AR51,Poblacion!AT51,Poblacion!AV51,Poblacion!AX51) -> 309 | BM57: =Poblacion!AY51 -> 230 | BN57: =Poblacion!AZ51 -> 292 | BO57: =Poblacion!BA51 -> 253 | BP57: =Poblacion!BB51 -> 344 | BQ57: =Poblacion!BC51 -> 241 | BR57: =Poblacion!BD51 -> 311 | BS57: =Poblacion!BE51 -> 261 | BT57: =Poblacion!BF51 -> 274 | BU57: =Poblacion!BG51 -> 247 | BV57: =Poblacion!BH51 -> 280 | BW57: =Poblacion!BI51 -> 242 | BX57: =Poblacion!BJ51 -> 251 | BY57: =Poblacion!BK51 -> 200 | BZ57: =Poblacion!BL51 -> 231 | CA57: =Poblacion!BM51 -> 193 | CB57: =Poblacion!BN51 -> 214 | CC57: =Poblacion!BO51 -> 178 | CD57: =Poblacion!BP51 -> 158 | CE57: =Poblacion!BQ51 -> 127 | CF57: =Poblacion!BR51 -> 136 | CG57: =Poblacion!BS51 -> 121 | CH57: =Poblacion!BT51 -> 103 | CI57: =Poblacion!BU51 -> 90 | CJ57: =Poblacion!BV51 -> 84 | CK57: =Poblacion!BY51 -> 49 | CL57: =Poblacion!BZ51 -> 53 | CM57: =Poblacion!DP51 -> 742 | CN57: =Poblacion!DQ51 -> 747 | CO57: =Poblacion!DR51 -> 208 | CP57: =Poblacion!DS51 -> 239 | CQ57: =Poblacion!DT51 -> 1974 | CR57: =Poblacion!DU51 -> 2315 | CS57: =Poblacion!DV51 -> 565 | CT57: =Poblacion!DW51 -> 534
BA58: 03 | BB58: 46 | BC58: P.S. LA MERCED | BD58: =Poblacion!F52 -> 1112 | BE58: =+SUM(Poblacion!K52,Poblacion!M52,Poblacion!O52,Poblacion!Q52,Poblacion!S52) -> 41 | BF58: =+SUM(Poblacion!L52,Poblacion!N52,Poblacion!P52,Poblacion!R52,Poblacion!T52) -> 43 | BG58: =SUM(Poblacion!U52,Poblacion!W52,Poblacion!Y52,Poblacion!AA52,Poblacion!AC52) -> 38 | BH58: =SUM(Poblacion!V52,Poblacion!X52,Poblacion!Z52,Poblacion!AB52,Poblacion!AD52) -> 43 | BI58: =+SUM(Poblacion!AE52,Poblacion!AG52,Poblacion!AI52,Poblacion!AK52,Poblacion!AM52) -> 36 | BJ58: =+SUM(Poblacion!AF52,Poblacion!AH52,Poblacion!AJ52,Poblacion!AL52,Poblacion!AN52) -> 36 | BK58: =+SUM(Poblacion!AO52,Poblacion!AQ52,Poblacion!AS52,Poblacion!AU52,Poblacion!AW52) -> 40 | BL58: =+SUM(Poblacion!AP52,Poblacion!AR52,Poblacion!AT52,Poblacion!AV52,Poblacion!AX52) -> 45 | BM58: =Poblacion!AY52 -> 34 | BN58: =Poblacion!AZ52 -> 44 | BO58: =Poblacion!BA52 -> 38 | BP58: =Poblacion!BB52 -> 51 | BQ58: =Poblacion!BC52 -> 36 | BR58: =Poblacion!BD52 -> 46 | BS58: =Poblacion!BE52 -> 39 | BT58: =Poblacion!BF52 -> 41 | BU58: =Poblacion!BG52 -> 37 | BV58: =Poblacion!BH52 -> 42 | BW58: =Poblacion!BI52 -> 36 | BX58: =Poblacion!BJ52 -> 38 | BY58: =Poblacion!BK52 -> 30 | BZ58: =Poblacion!BL52 -> 35 | CA58: =Poblacion!BM52 -> 29 | CB58: =Poblacion!BN52 -> 32 | CC58: =Poblacion!BO52 -> 27 | CD58: =Poblacion!BP52 -> 24 | CE58: =Poblacion!BQ52 -> 19 | CF58: =Poblacion!BR52 -> 20 | CG58: =Poblacion!BS52 -> 18 | CH58: =Poblacion!BT52 -> 15 | CI58: =Poblacion!BU52 -> 13 | CJ58: =Poblacion!BV52 -> 12 | CK58: =Poblacion!BY52 -> 9 | CL58: =Poblacion!BZ52 -> 8 | CM58: =Poblacion!DP52 -> 108 | CN58: =Poblacion!DQ52 -> 115 | CO58: =Poblacion!DR52 -> 31 | CP58: =Poblacion!DS52 -> 35 | CQ58: =Poblacion!DT52 -> 295 | CR58: =Poblacion!DU52 -> 346 | CS58: =Poblacion!DV52 -> 86 | CT58: =Poblacion!DW52 -> 79
BA59: 03 | BB59: 47 | BC59: P.S. LA VILLA | BD59: =Poblacion!F53 -> 7974 | BE59: =+SUM(Poblacion!K53,Poblacion!M53,Poblacion!O53,Poblacion!Q53,Poblacion!S53) -> 296 | BF59: =+SUM(Poblacion!L53,Poblacion!N53,Poblacion!P53,Poblacion!R53,Poblacion!T53) -> 288 | BG59: =SUM(Poblacion!U53,Poblacion!W53,Poblacion!Y53,Poblacion!AA53,Poblacion!AC53) -> 288 | BH59: =SUM(Poblacion!V53,Poblacion!X53,Poblacion!Z53,Poblacion!AB53,Poblacion!AD53) -> 302 | BI59: =+SUM(Poblacion!AE53,Poblacion!AG53,Poblacion!AI53,Poblacion!AK53,Poblacion!AM53) -> 260 | BJ59: =+SUM(Poblacion!AF53,Poblacion!AH53,Poblacion!AJ53,Poblacion!AL53,Poblacion!AN53) -> 263 | BK59: =+SUM(Poblacion!AO53,Poblacion!AQ53,Poblacion!AS53,Poblacion!AU53,Poblacion!AW53) -> 286 | BL59: =+SUM(Poblacion!AP53,Poblacion!AR53,Poblacion!AT53,Poblacion!AV53,Poblacion!AX53) -> 331 | BM59: =Poblacion!AY53 -> 245 | BN59: =Poblacion!AZ53 -> 314 | BO59: =Poblacion!BA53 -> 272 | BP59: =Poblacion!BB53 -> 369 | BQ59: =Poblacion!BC53 -> 258 | BR59: =Poblacion!BD53 -> 333 | BS59: =Poblacion!BE53 -> 280 | BT59: =Poblacion!BF53 -> 295 | BU59: =Poblacion!BG53 -> 265 | BV59: =Poblacion!BH53 -> 301 | BW59: =Poblacion!BI53 -> 261 | BX59: =Poblacion!BJ53 -> 271 | BY59: =Poblacion!BK53 -> 215 | BZ59: =Poblacion!BL53 -> 247 | CA59: =Poblacion!BM53 -> 208 | CB59: =Poblacion!BN53 -> 229 | CC59: =Poblacion!BO53 -> 191 | CD59: =Poblacion!BP53 -> 171 | CE59: =Poblacion!BQ53 -> 136 | CF59: =Poblacion!BR53 -> 146 | CG59: =Poblacion!BS53 -> 130 | CH59: =Poblacion!BT53 -> 110 | CI59: =Poblacion!BU53 -> 97 | CJ59: =Poblacion!BV53 -> 90 | CK59: =Poblacion!BY53 -> 53 | CL59: =Poblacion!BZ53 -> 57 | CM59: =Poblacion!DP53 -> 793 | CN59: =Poblacion!DQ53 -> 801 | CO59: =Poblacion!DR53 -> 223 | CP59: =Poblacion!DS53 -> 257 | CQ59: =Poblacion!DT53 -> 2118 | CR59: =Poblacion!DU53 -> 2485 | CS59: =Poblacion!DV53 -> 607 | CT59: =Poblacion!DW53 -> 574
BA60: 03 | BB60: 48 | BC60: P.S. EL AHORCADO | BD60: =Poblacion!F54 -> 833 | BE60: =+SUM(Poblacion!K54,Poblacion!M54,Poblacion!O54,Poblacion!Q54,Poblacion!S54) -> 31 | BF60: =+SUM(Poblacion!L54,Poblacion!N54,Poblacion!P54,Poblacion!R54,Poblacion!T54) -> 29 | BG60: =SUM(Poblacion!U54,Poblacion!W54,Poblacion!Y54,Poblacion!AA54,Poblacion!AC54) -> 29 | BH60: =SUM(Poblacion!V54,Poblacion!X54,Poblacion!Z54,Poblacion!AB54,Poblacion!AD54) -> 33 | BI60: =+SUM(Poblacion!AE54,Poblacion!AG54,Poblacion!AI54,Poblacion!AK54,Poblacion!AM54) -> 29 | BJ60: =+SUM(Poblacion!AF54,Poblacion!AH54,Poblacion!AJ54,Poblacion!AL54,Poblacion!AN54) -> 28 | BK60: =+SUM(Poblacion!AO54,Poblacion!AQ54,Poblacion!AS54,Poblacion!AU54,Poblacion!AW54) -> 30 | BL60: =+SUM(Poblacion!AP54,Poblacion!AR54,Poblacion!AT54,Poblacion!AV54,Poblacion!AX54) -> 36 | BM60: =Poblacion!AY54 -> 26 | BN60: =Poblacion!AZ54 -> 33 | BO60: =Poblacion!BA54 -> 29 | BP60: =Poblacion!BB54 -> 38 | BQ60: =Poblacion!BC54 -> 27 | BR60: =Poblacion!BD54 -> 35 | BS60: =Poblacion!BE54 -> 29 | BT60: =Poblacion!BF54 -> 30 | BU60: =Poblacion!BG54 -> 27 | BV60: =Poblacion!BH54 -> 31 | BW60: =Poblacion!BI54 -> 27 | BX60: =Poblacion!BJ54 -> 28 | BY60: =Poblacion!BK54 -> 22 | BZ60: =Poblacion!BL54 -> 26 | CA60: =Poblacion!BM54 -> 22 | CB60: =Poblacion!BN54 -> 24 | CC60: =Poblacion!BO54 -> 20 | CD60: =Poblacion!BP54 -> 18 | CE60: =Poblacion!BQ54 -> 14 | CF60: =Poblacion!BR54 -> 15 | CG60: =Poblacion!BS54 -> 13 | CH60: =Poblacion!BT54 -> 11 | CI60: =Poblacion!BU54 -> 10 | CJ60: =Poblacion!BV54 -> 9 | CK60: =Poblacion!BY54 -> 5 | CL60: =Poblacion!BZ54 -> 6 | CM60: =Poblacion!DP54 -> 83 | CN60: =Poblacion!DQ54 -> 85 | CO60: =Poblacion!DR54 -> 24 | CP60: =Poblacion!DS54 -> 26 | CQ60: =Poblacion!DT54 -> 221 | CR60: =Poblacion!DU54 -> 260 | CS60: =Poblacion!DV54 -> 62 | CT60: =Poblacion!DW54 -> 59
BA61: 03 | BB61: 49 | BC61: C.S. SAYAN | BD61: =Poblacion!F55 -> 8529 | BE61: =+SUM(Poblacion!K55,Poblacion!M55,Poblacion!O55,Poblacion!Q55,Poblacion!S55) -> 319 | BF61: =+SUM(Poblacion!L55,Poblacion!N55,Poblacion!P55,Poblacion!R55,Poblacion!T55) -> 308 | BG61: =SUM(Poblacion!U55,Poblacion!W55,Poblacion!Y55,Poblacion!AA55,Poblacion!AC55) -> 307 | BH61: =SUM(Poblacion!V55,Poblacion!X55,Poblacion!Z55,Poblacion!AB55,Poblacion!AD55) -> 325 | BI61: =+SUM(Poblacion!AE55,Poblacion!AG55,Poblacion!AI55,Poblacion!AK55,Poblacion!AM55) -> 275 | BJ61: =+SUM(Poblacion!AF55,Poblacion!AH55,Poblacion!AJ55,Poblacion!AL55,Poblacion!AN55) -> 279 | BK61: =+SUM(Poblacion!AO55,Poblacion!AQ55,Poblacion!AS55,Poblacion!AU55,Poblacion!AW55) -> 305 | BL61: =+SUM(Poblacion!AP55,Poblacion!AR55,Poblacion!AT55,Poblacion!AV55,Poblacion!AX55) -> 353 | BM61: =Poblacion!AY55 -> 264 | BN61: =Poblacion!AZ55 -> 337 | BO61: =Poblacion!BA55 -> 291 | BP61: =Poblacion!BB55 -> 395 | BQ61: =Poblacion!BC55 -> 277 | BR61: =Poblacion!BD55 -> 357 | BS61: =Poblacion!BE55 -> 300 | BT61: =Poblacion!BF55 -> 315 | BU61: =Poblacion!BG55 -> 283 | BV61: =Poblacion!BH55 -> 322 | BW61: =Poblacion!BI55 -> 279 | BX61: =Poblacion!BJ55 -> 289 | BY61: =Poblacion!BK55 -> 230 | BZ61: =Poblacion!BL55 -> 266 | CA61: =Poblacion!BM55 -> 223 | CB61: =Poblacion!BN55 -> 245 | CC61: =Poblacion!BO55 -> 204 | CD61: =Poblacion!BP55 -> 182 | CE61: =Poblacion!BQ55 -> 146 | CF61: =Poblacion!BR55 -> 155 | CG61: =Poblacion!BS55 -> 139 | CH61: =Poblacion!BT55 -> 118 | CI61: =Poblacion!BU55 -> 104 | CJ61: =Poblacion!BV55 -> 96 | CK61: =Poblacion!BY55 -> 56 | CL61: =Poblacion!BZ55 -> 59 | CM61: =Poblacion!DP55 -> 847 | CN61: =Poblacion!DQ55 -> 856 | CO61: =Poblacion!DR55 -> 237 | CP61: =Poblacion!DS55 -> 275 | CQ61: =Poblacion!DT55 -> 2269 | CR61: =Poblacion!DU55 -> 2660 | CS61: =Poblacion!DV55 -> 649 | CT61: =Poblacion!DW55 -> 610
BA62: 03 | BB62: 50 | BC62: P.S. CHAMBARA | BD62: =Poblacion!F56 -> 835 | BE62: =+SUM(Poblacion!K56,Poblacion!M56,Poblacion!O56,Poblacion!Q56,Poblacion!S56) -> 31 | BF62: =+SUM(Poblacion!L56,Poblacion!N56,Poblacion!P56,Poblacion!R56,Poblacion!T56) -> 29 | BG62: =SUM(Poblacion!U56,Poblacion!W56,Poblacion!Y56,Poblacion!AA56,Poblacion!AC56) -> 31 | BH62: =SUM(Poblacion!V56,Poblacion!X56,Poblacion!Z56,Poblacion!AB56,Poblacion!AD56) -> 31 | BI62: =+SUM(Poblacion!AE56,Poblacion!AG56,Poblacion!AI56,Poblacion!AK56,Poblacion!AM56) -> 28 | BJ62: =+SUM(Poblacion!AF56,Poblacion!AH56,Poblacion!AJ56,Poblacion!AL56,Poblacion!AN56) -> 28 | BK62: =+SUM(Poblacion!AO56,Poblacion!AQ56,Poblacion!AS56,Poblacion!AU56,Poblacion!AW56) -> 30 | BL62: =+SUM(Poblacion!AP56,Poblacion!AR56,Poblacion!AT56,Poblacion!AV56,Poblacion!AX56) -> 34 | BM62: =Poblacion!AY56 -> 26 | BN62: =Poblacion!AZ56 -> 33 | BO62: =Poblacion!BA56 -> 28 | BP62: =Poblacion!BB56 -> 39 | BQ62: =Poblacion!BC56 -> 27 | BR62: =Poblacion!BD56 -> 35 | BS62: =Poblacion!BE56 -> 29 | BT62: =Poblacion!BF56 -> 31 | BU62: =Poblacion!BG56 -> 28 | BV62: =Poblacion!BH56 -> 31 | BW62: =Poblacion!BI56 -> 27 | BX62: =Poblacion!BJ56 -> 28 | BY62: =Poblacion!BK56 -> 22 | BZ62: =Poblacion!BL56 -> 26 | CA62: =Poblacion!BM56 -> 22 | CB62: =Poblacion!BN56 -> 24 | CC62: =Poblacion!BO56 -> 20 | CD62: =Poblacion!BP56 -> 18 | CE62: =Poblacion!BQ56 -> 14 | CF62: =Poblacion!BR56 -> 15 | CG62: =Poblacion!BS56 -> 13 | CH62: =Poblacion!BT56 -> 13 | CI62: =Poblacion!BU56 -> 10 | CJ62: =Poblacion!BV56 -> 10 | CK62: =Poblacion!BY56 -> 5 | CL62: =Poblacion!BZ56 -> 6 | CM62: =Poblacion!DP56 -> 85 | CN62: =Poblacion!DQ56 -> 83 | CO62: =Poblacion!DR56 -> 23 | CP62: =Poblacion!DS56 -> 26 | CQ62: =Poblacion!DT56 -> 221 | CR62: =Poblacion!DU56 -> 260 | CS62: =Poblacion!DV56 -> 62 | CT62: =Poblacion!DW56 -> 62
BA63: 03 | BB63: 51 | BC63: P.S. LA UNION | BD63: =Poblacion!F57 -> 827 | BE63: =+SUM(Poblacion!K57,Poblacion!M57,Poblacion!O57,Poblacion!Q57,Poblacion!S57) -> 31 | BF63: =+SUM(Poblacion!L57,Poblacion!N57,Poblacion!P57,Poblacion!R57,Poblacion!T57) -> 29 | BG63: =SUM(Poblacion!U57,Poblacion!W57,Poblacion!Y57,Poblacion!AA57,Poblacion!AC57) -> 29 | BH63: =SUM(Poblacion!V57,Poblacion!X57,Poblacion!Z57,Poblacion!AB57,Poblacion!AD57) -> 31 | BI63: =+SUM(Poblacion!AE57,Poblacion!AG57,Poblacion!AI57,Poblacion!AK57,Poblacion!AM57) -> 28 | BJ63: =+SUM(Poblacion!AF57,Poblacion!AH57,Poblacion!AJ57,Poblacion!AL57,Poblacion!AN57) -> 28 | BK63: =+SUM(Poblacion!AO57,Poblacion!AQ57,Poblacion!AS57,Poblacion!AU57,Poblacion!AW57) -> 30 | BL63: =+SUM(Poblacion!AP57,Poblacion!AR57,Poblacion!AT57,Poblacion!AV57,Poblacion!AX57) -> 34 | BM63: =Poblacion!AY57 -> 26 | BN63: =Poblacion!AZ57 -> 33 | BO63: =Poblacion!BA57 -> 28 | BP63: =Poblacion!BB57 -> 38 | BQ63: =Poblacion!BC57 -> 27 | BR63: =Poblacion!BD57 -> 35 | BS63: =Poblacion!BE57 -> 29 | BT63: =Poblacion!BF57 -> 30 | BU63: =Poblacion!BG57 -> 27 | BV63: =Poblacion!BH57 -> 31 | BW63: =Poblacion!BI57 -> 27 | BX63: =Poblacion!BJ57 -> 28 | BY63: =Poblacion!BK57 -> 22 | BZ63: =Poblacion!BL57 -> 26 | CA63: =Poblacion!BM57 -> 22 | CB63: =Poblacion!BN57 -> 24 | CC63: =Poblacion!BO57 -> 20 | CD63: =Poblacion!BP57 -> 18 | CE63: =Poblacion!BQ57 -> 14 | CF63: =Poblacion!BR57 -> 15 | CG63: =Poblacion!BS57 -> 13 | CH63: =Poblacion!BT57 -> 11 | CI63: =Poblacion!BU57 -> 10 | CJ63: =Poblacion!BV57 -> 9 | CK63: =Poblacion!BY57 -> 5 | CL63: =Poblacion!BZ57 -> 6 | CM63: =Poblacion!DP57 -> 83 | CN63: =Poblacion!DQ57 -> 83 | CO63: =Poblacion!DR57 -> 23 | CP63: =Poblacion!DS57 -> 26 | CQ63: =Poblacion!DT57 -> 220 | CR63: =Poblacion!DU57 -> 258 | CS63: =Poblacion!DV57 -> 62 | CT63: =Poblacion!DW57 -> 59
BB64: 52 | BC64: DISTRITO VEGUETA | BD64: =Poblacion!F58 -> 30644 | BE64: =+SUM(Poblacion!K58,Poblacion!M58,Poblacion!O58,Poblacion!Q58,Poblacion!S58) -> 1368 | BF64: =+SUM(Poblacion!L58,Poblacion!N58,Poblacion!P58,Poblacion!R58,Poblacion!T58) -> 1399 | BG64: =SUM(Poblacion!U58,Poblacion!W58,Poblacion!Y58,Poblacion!AA58,Poblacion!AC58) -> 1210 | BH64: =SUM(Poblacion!V58,Poblacion!X58,Poblacion!Z58,Poblacion!AB58,Poblacion!AD58) -> 1153 | BI64: =+SUM(Poblacion!AE58,Poblacion!AG58,Poblacion!AI58,Poblacion!AK58,Poblacion!AM58) -> 1063 | BJ64: =+SUM(Poblacion!AF58,Poblacion!AH58,Poblacion!AJ58,Poblacion!AL58,Poblacion!AN58) -> 1031 | BK64: =+SUM(Poblacion!AO58,Poblacion!AQ58,Poblacion!AS58,Poblacion!AU58,Poblacion!AW58) -> 1123 | BL64: =+SUM(Poblacion!AP58,Poblacion!AR58,Poblacion!AT58,Poblacion!AV58,Poblacion!AX58) -> 1135 | BM64: =Poblacion!AY58 -> 898 | BN64: =Poblacion!AZ58 -> 1096 | BO64: =Poblacion!BA58 -> 1087 | BP64: =Poblacion!BB58 -> 1470 | BQ64: =Poblacion!BC58 -> 1089 | BR64: =Poblacion!BD58 -> 1364 | BS64: =Poblacion!BE58 -> 1093 | BT64: =Poblacion!BF58 -> 1187 | BU64: =Poblacion!BG58 -> 986 | BV64: =Poblacion!BH58 -> 1091 | BW64: =Poblacion!BI58 -> 886 | BX64: =Poblacion!BJ58 -> 990 | BY64: =Poblacion!BK58 -> 785 | BZ64: =Poblacion!BL58 -> 905 | CA64: =Poblacion!BM58 -> 748 | CB64: =Poblacion!BN58 -> 836 | CC64: =Poblacion!BO58 -> 625 | CD64: =Poblacion!BP58 -> 675 | CE64: =Poblacion!BQ58 -> 488 | CF64: =Poblacion!BR58 -> 496 | CG64: =Poblacion!BS58 -> 434 | CH64: =Poblacion!BT58 -> 414 | CI64: =Poblacion!BU58 -> 349 | CJ64: =Poblacion!BV58 -> 313 | CK64: =Poblacion!BY58 -> 200 | CL64: =Poblacion!BZ58 -> 253 | CM64: =Poblacion!DP58 -> 3453 | CN64: =Poblacion!DQ58 -> 3401 | CO64: =Poblacion!DR58 -> 890 | CP64: =Poblacion!DS58 -> 863 | CQ64: =Poblacion!DT58 -> 7993 | CR64: =Poblacion!DU58 -> 9393 | CS64: =Poblacion!DV58 -> 2096 | CT64: =Poblacion!DW58 -> 2151
BA65: 04 | BB65: 53 | BC65: C.S. VEGUETA | BD65: =Poblacion!F59 -> 8274 | BE65: =+SUM(Poblacion!K59,Poblacion!M59,Poblacion!O59,Poblacion!Q59,Poblacion!S59) -> 369 | BF65: =+SUM(Poblacion!L59,Poblacion!N59,Poblacion!P59,Poblacion!R59,Poblacion!T59) -> 380 | BG65: =SUM(Poblacion!U59,Poblacion!W59,Poblacion!Y59,Poblacion!AA59,Poblacion!AC59) -> 327 | BH65: =SUM(Poblacion!V59,Poblacion!X59,Poblacion!Z59,Poblacion!AB59,Poblacion!AD59) -> 312 | BI65: =+SUM(Poblacion!AE59,Poblacion!AG59,Poblacion!AI59,Poblacion!AK59,Poblacion!AM59) -> 287 | BJ65: =+SUM(Poblacion!AF59,Poblacion!AH59,Poblacion!AJ59,Poblacion!AL59,Poblacion!AN59) -> 279 | BK65: =+SUM(Poblacion!AO59,Poblacion!AQ59,Poblacion!AS59,Poblacion!AU59,Poblacion!AW59) -> 303 | BL65: =+SUM(Poblacion!AP59,Poblacion!AR59,Poblacion!AT59,Poblacion!AV59,Poblacion!AX59) -> 305 | BM65: =Poblacion!AY59 -> 242 | BN65: =Poblacion!AZ59 -> 296 | BO65: =Poblacion!BA59 -> 293 | BP65: =Poblacion!BB59 -> 397 | BQ65: =Poblacion!BC59 -> 294 | BR65: =Poblacion!BD59 -> 368 | BS65: =Poblacion!BE59 -> 295 | BT65: =Poblacion!BF59 -> 320 | BU65: =Poblacion!BG59 -> 266 | BV65: =Poblacion!BH59 -> 295 | BW65: =Poblacion!BI59 -> 239 | BX65: =Poblacion!BJ59 -> 267 | BY65: =Poblacion!BK59 -> 212 | BZ65: =Poblacion!BL59 -> 244 | CA65: =Poblacion!BM59 -> 202 | CB65: =Poblacion!BN59 -> 226 | CC65: =Poblacion!BO59 -> 169 | CD65: =Poblacion!BP59 -> 182 | CE65: =Poblacion!BQ59 -> 132 | CF65: =Poblacion!BR59 -> 134 | CG65: =Poblacion!BS59 -> 117 | CH65: =Poblacion!BT59 -> 112 | CI65: =Poblacion!BU59 -> 94 | CJ65: =Poblacion!BV59 -> 85 | CK65: =Poblacion!BY59 -> 54 | CL65: =Poblacion!BZ59 -> 68 | CM65: =Poblacion!DP59 -> 932 | CN65: =Poblacion!DQ59 -> 922 | CO65: =Poblacion!DR59 -> 241 | CP65: =Poblacion!DS59 -> 232 | CQ65: =Poblacion!DT59 -> 2156 | CR65: =Poblacion!DU59 -> 2535 | CS65: =Poblacion!DV59 -> 566 | CT65: =Poblacion!DW59 -> 581
BA66: 04 | BB66: 54 | BC66: P.S. MAZO | BD66: =Poblacion!F60 -> 1992 | BE66: =+SUM(Poblacion!K60,Poblacion!M60,Poblacion!O60,Poblacion!Q60,Poblacion!S60) -> 89 | BF66: =+SUM(Poblacion!L60,Poblacion!N60,Poblacion!P60,Poblacion!R60,Poblacion!T60) -> 91 | BG66: =SUM(Poblacion!U60,Poblacion!W60,Poblacion!Y60,Poblacion!AA60,Poblacion!AC60) -> 79 | BH66: =SUM(Poblacion!V60,Poblacion!X60,Poblacion!Z60,Poblacion!AB60,Poblacion!AD60) -> 75 | BI66: =+SUM(Poblacion!AE60,Poblacion!AG60,Poblacion!AI60,Poblacion!AK60,Poblacion!AM60) -> 69 | BJ66: =+SUM(Poblacion!AF60,Poblacion!AH60,Poblacion!AJ60,Poblacion!AL60,Poblacion!AN60) -> 68 | BK66: =+SUM(Poblacion!AO60,Poblacion!AQ60,Poblacion!AS60,Poblacion!AU60,Poblacion!AW60) -> 73 | BL66: =+SUM(Poblacion!AP60,Poblacion!AR60,Poblacion!AT60,Poblacion!AV60,Poblacion!AX60) -> 73 | BM66: =Poblacion!AY60 -> 58 | BN66: =Poblacion!AZ60 -> 71 | BO66: =Poblacion!BA60 -> 71 | BP66: =Poblacion!BB60 -> 96 | BQ66: =Poblacion!BC60 -> 71 | BR66: =Poblacion!BD60 -> 89 | BS66: =Poblacion!BE60 -> 71 | BT66: =Poblacion!BF60 -> 77 | BU66: =Poblacion!BG60 -> 64 | BV66: =Poblacion!BH60 -> 71 | BW66: =Poblacion!BI60 -> 58 | BX66: =Poblacion!BJ60 -> 64 | BY66: =Poblacion!BK60 -> 51 | BZ66: =Poblacion!BL60 -> 59 | CA66: =Poblacion!BM60 -> 48 | CB66: =Poblacion!BN60 -> 54 | CC66: =Poblacion!BO60 -> 41 | CD66: =Poblacion!BP60 -> 44 | CE66: =Poblacion!BQ60 -> 32 | CF66: =Poblacion!BR60 -> 32 | CG66: =Poblacion!BS60 -> 28 | CH66: =Poblacion!BT60 -> 27 | CI66: =Poblacion!BU60 -> 23 | CJ66: =Poblacion!BV60 -> 20 | CK66: =Poblacion!BY60 -> 13 | CL66: =Poblacion!BZ60 -> 16 | CM66: =Poblacion!DP60 -> 225 | CN66: =Poblacion!DQ60 -> 222 | CO66: =Poblacion!DR60 -> 58 | CP66: =Poblacion!DS60 -> 56 | CQ66: =Poblacion!DT60 -> 519 | CR66: =Poblacion!DU60 -> 610 | CS66: =Poblacion!DV60 -> 137 | CT66: =Poblacion!DW60 -> 139
BA67: 04 | BB67: 55 | BC67: P.S. PRIMAVERA | BD67: =Poblacion!F61 -> 7354 | BE67: =+SUM(Poblacion!K61,Poblacion!M61,Poblacion!O61,Poblacion!Q61,Poblacion!S61) -> 328 | BF67: =+SUM(Poblacion!L61,Poblacion!N61,Poblacion!P61,Poblacion!R61,Poblacion!T61) -> 336 | BG67: =SUM(Poblacion!U61,Poblacion!W61,Poblacion!Y61,Poblacion!AA61,Poblacion!AC61) -> 290 | BH67: =SUM(Poblacion!V61,Poblacion!X61,Poblacion!Z61,Poblacion!AB61,Poblacion!AD61) -> 276 | BI67: =+SUM(Poblacion!AE61,Poblacion!AG61,Poblacion!AI61,Poblacion!AK61,Poblacion!AM61) -> 256 | BJ67: =+SUM(Poblacion!AF61,Poblacion!AH61,Poblacion!AJ61,Poblacion!AL61,Poblacion!AN61) -> 246 | BK67: =+SUM(Poblacion!AO61,Poblacion!AQ61,Poblacion!AS61,Poblacion!AU61,Poblacion!AW61) -> 270 | BL67: =+SUM(Poblacion!AP61,Poblacion!AR61,Poblacion!AT61,Poblacion!AV61,Poblacion!AX61) -> 272 | BM67: =Poblacion!AY61 -> 216 | BN67: =Poblacion!AZ61 -> 263 | BO67: =Poblacion!BA61 -> 261 | BP67: =Poblacion!BB61 -> 353 | BQ67: =Poblacion!BC61 -> 261 | BR67: =Poblacion!BD61 -> 327 | BS67: =Poblacion!BE61 -> 262 | BT67: =Poblacion!BF61 -> 285 | BU67: =Poblacion!BG61 -> 237 | BV67: =Poblacion!BH61 -> 262 | BW67: =Poblacion!BI61 -> 213 | BX67: =Poblacion!BJ61 -> 238 | BY67: =Poblacion!BK61 -> 188 | BZ67: =Poblacion!BL61 -> 217 | CA67: =Poblacion!BM61 -> 180 | CB67: =Poblacion!BN61 -> 201 | CC67: =Poblacion!BO61 -> 150 | CD67: =Poblacion!BP61 -> 162 | CE67: =Poblacion!BQ61 -> 117 | CF67: =Poblacion!BR61 -> 119 | CG67: =Poblacion!BS61 -> 104 | CH67: =Poblacion!BT61 -> 99 | CI67: =Poblacion!BU61 -> 84 | CJ67: =Poblacion!BV61 -> 75 | CK67: =Poblacion!BY61 -> 48 | CL67: =Poblacion!BZ61 -> 61 | CM67: =Poblacion!DP61 -> 829 | CN67: =Poblacion!DQ61 -> 814 | CO67: =Poblacion!DR61 -> 214 | CP67: =Poblacion!DS61 -> 207 | CQ67: =Poblacion!DT61 -> 1919 | CR67: =Poblacion!DU61 -> 2255 | CS67: =Poblacion!DV61 -> 503 | CT67: =Poblacion!DW61 -> 516
BA68: 04 | BB68: 56 | BC68: P.S. MARIATEGUI | BD68: =Poblacion!F62 -> 10113 | BE68: =+SUM(Poblacion!K62,Poblacion!M62,Poblacion!O62,Poblacion!Q62,Poblacion!S62) -> 452 | BF68: =+SUM(Poblacion!L62,Poblacion!N62,Poblacion!P62,Poblacion!R62,Poblacion!T62) -> 461 | BG68: =SUM(Poblacion!U62,Poblacion!W62,Poblacion!Y62,Poblacion!AA62,Poblacion!AC62) -> 399 | BH68: =SUM(Poblacion!V62,Poblacion!X62,Poblacion!Z62,Poblacion!AB62,Poblacion!AD62) -> 382 | BI68: =+SUM(Poblacion!AE62,Poblacion!AG62,Poblacion!AI62,Poblacion!AK62,Poblacion!AM62) -> 351 | BJ68: =+SUM(Poblacion!AF62,Poblacion!AH62,Poblacion!AJ62,Poblacion!AL62,Poblacion!AN62) -> 340 | BK68: =+SUM(Poblacion!AO62,Poblacion!AQ62,Poblacion!AS62,Poblacion!AU62,Poblacion!AW62) -> 370 | BL68: =+SUM(Poblacion!AP62,Poblacion!AR62,Poblacion!AT62,Poblacion!AV62,Poblacion!AX62) -> 375 | BM68: =Poblacion!AY62 -> 296 | BN68: =Poblacion!AZ62 -> 362 | BO68: =Poblacion!BA62 -> 359 | BP68: =Poblacion!BB62 -> 485 | BQ68: =Poblacion!BC62 -> 359 | BR68: =Poblacion!BD62 -> 450 | BS68: =Poblacion!BE62 -> 361 | BT68: =Poblacion!BF62 -> 392 | BU68: =Poblacion!BG62 -> 325 | BV68: =Poblacion!BH62 -> 360 | BW68: =Poblacion!BI62 -> 292 | BX68: =Poblacion!BJ62 -> 327 | BY68: =Poblacion!BK62 -> 259 | BZ68: =Poblacion!BL62 -> 299 | CA68: =Poblacion!BM62 -> 247 | CB68: =Poblacion!BN62 -> 276 | CC68: =Poblacion!BO62 -> 206 | CD68: =Poblacion!BP62 -> 223 | CE68: =Poblacion!BQ62 -> 161 | CF68: =Poblacion!BR62 -> 164 | CG68: =Poblacion!BS62 -> 142 | CH68: =Poblacion!BT62 -> 137 | CI68: =Poblacion!BU62 -> 115 | CJ68: =Poblacion!BV62 -> 103 | CK68: =Poblacion!BY62 -> 66 | CL68: =Poblacion!BZ62 -> 83 | CM68: =Poblacion!DP62 -> 1140 | CN68: =Poblacion!DQ62 -> 1123 | CO68: =Poblacion!DR62 -> 293 | CP68: =Poblacion!DS62 -> 285 | CQ68: =Poblacion!DT62 -> 2637 | CR68: =Poblacion!DU62 -> 3101 | CS68: =Poblacion!DV62 -> 690 | CT68: =Poblacion!DW62 -> 710
BA69: 04 | BB69: 57 | BC69: P.S. MEDIO MUNDO | BD69: =Poblacion!F63 -> 2758 | BE69: =+SUM(Poblacion!K63,Poblacion!M63,Poblacion!O63,Poblacion!Q63,Poblacion!S63) -> 124 | BF69: =+SUM(Poblacion!L63,Poblacion!N63,Poblacion!P63,Poblacion!R63,Poblacion!T63) -> 126 | BG69: =SUM(Poblacion!U63,Poblacion!W63,Poblacion!Y63,Poblacion!AA63,Poblacion!AC63) -> 110 | BH69: =SUM(Poblacion!V63,Poblacion!X63,Poblacion!Z63,Poblacion!AB63,Poblacion!AD63) -> 103 | BI69: =+SUM(Poblacion!AE63,Poblacion!AG63,Poblacion!AI63,Poblacion!AK63,Poblacion!AM63) -> 95 | BJ69: =+SUM(Poblacion!AF63,Poblacion!AH63,Poblacion!AJ63,Poblacion!AL63,Poblacion!AN63) -> 93 | BK69: =+SUM(Poblacion!AO63,Poblacion!AQ63,Poblacion!AS63,Poblacion!AU63,Poblacion!AW63) -> 100 | BL69: =+SUM(Poblacion!AP63,Poblacion!AR63,Poblacion!AT63,Poblacion!AV63,Poblacion!AX63) -> 102 | BM69: =Poblacion!AY63 -> 81 | BN69: =Poblacion!AZ63 -> 99 | BO69: =Poblacion!BA63 -> 98 | BP69: =Poblacion!BB63 -> 132 | BQ69: =Poblacion!BC63 -> 98 | BR69: =Poblacion!BD63 -> 123 | BS69: =Poblacion!BE63 -> 98 | BT69: =Poblacion!BF63 -> 107 | BU69: =Poblacion!BG63 -> 89 | BV69: =Poblacion!BH63 -> 98 | BW69: =Poblacion!BI63 -> 80 | BX69: =Poblacion!BJ63 -> 89 | BY69: =Poblacion!BK63 -> 71 | BZ69: =Poblacion!BL63 -> 81 | CA69: =Poblacion!BM63 -> 67 | CB69: =Poblacion!BN63 -> 75 | CC69: =Poblacion!BO63 -> 56 | CD69: =Poblacion!BP63 -> 61 | CE69: =Poblacion!BQ63 -> 44 | CF69: =Poblacion!BR63 -> 45 | CG69: =Poblacion!BS63 -> 40 | CH69: =Poblacion!BT63 -> 37 | CI69: =Poblacion!BU63 -> 31 | CJ69: =Poblacion!BV63 -> 28 | CK69: =Poblacion!BY63 -> 18 | CL69: =Poblacion!BZ63 -> 23 | CM69: =Poblacion!DP63 -> 312 | CN69: =Poblacion!DQ63 -> 306 | CO69: =Poblacion!DR63 -> 80 | CP69: =Poblacion!DS63 -> 77 | CQ69: =Poblacion!DT63 -> 719 | CR69: =Poblacion!DU63 -> 845 | CS69: =Poblacion!DV63 -> 189 | CT69: =Poblacion!DW63 -> 194
BA70: 04 | BB70: 58 | BC70: P.S. TIROLER | BD70: =Poblacion!F64 -> 153 | BE70: =+SUM(Poblacion!K64,Poblacion!M64,Poblacion!O64,Poblacion!Q64,Poblacion!S64) -> 6 | BF70: =+SUM(Poblacion!L64,Poblacion!N64,Poblacion!P64,Poblacion!R64,Poblacion!T64) -> 5 | BG70: =SUM(Poblacion!U64,Poblacion!W64,Poblacion!Y64,Poblacion!AA64,Poblacion!AC64) -> 5 | BH70: =SUM(Poblacion!V64,Poblacion!X64,Poblacion!Z64,Poblacion!AB64,Poblacion!AD64) -> 5 | BI70: =+SUM(Poblacion!AE64,Poblacion!AG64,Poblacion!AI64,Poblacion!AK64,Poblacion!AM64) -> 5 | BJ70: =+SUM(Poblacion!AF64,Poblacion!AH64,Poblacion!AJ64,Poblacion!AL64,Poblacion!AN64) -> 5 | BK70: =+SUM(Poblacion!AO64,Poblacion!AQ64,Poblacion!AS64,Poblacion!AU64,Poblacion!AW64) -> 7 | BL70: =+SUM(Poblacion!AP64,Poblacion!AR64,Poblacion!AT64,Poblacion!AV64,Poblacion!AX64) -> 8 | BM70: =Poblacion!AY64 -> 5 | BN70: =Poblacion!AZ64 -> 5 | BO70: =Poblacion!BA64 -> 5 | BP70: =Poblacion!BB64 -> 7 | BQ70: =Poblacion!BC64 -> 6 | BR70: =Poblacion!BD64 -> 7 | BS70: =Poblacion!BE64 -> 6 | BT70: =Poblacion!BF64 -> 6 | BU70: =Poblacion!BG64 -> 5 | BV70: =Poblacion!BH64 -> 5 | BW70: =Poblacion!BI64 -> 4 | BX70: =Poblacion!BJ64 -> 5 | BY70: =Poblacion!BK64 -> 4 | BZ70: =Poblacion!BL64 -> 5 | CA70: =Poblacion!BM64 -> 4 | CB70: =Poblacion!BN64 -> 4 | CC70: =Poblacion!BO64 -> 3 | CD70: =Poblacion!BP64 -> 3 | CE70: =Poblacion!BQ64 -> 2 | CF70: =Poblacion!BR64 -> 2 | CG70: =Poblacion!BS64 -> 3 | CH70: =Poblacion!BT64 -> 2 | CI70: =Poblacion!BU64 -> 2 | CJ70: =Poblacion!BV64 -> 2 | CK70: =Poblacion!BY64 -> 1 | CL70: =Poblacion!BZ64 -> 2 | CM70: =Poblacion!DP64 -> 15 | CN70: =Poblacion!DQ64 -> 14 | CO70: =Poblacion!DR64 -> 4 | CP70: =Poblacion!DS64 -> 6 | CQ70: =Poblacion!DT64 -> 43 | CR70: =Poblacion!DU64 -> 47 | CS70: =Poblacion!DV64 -> 11 | CT70: =Poblacion!DW64 -> 11
BB71: 59 | BC71: PROVINCIA OYON | BD71: =Poblacion!F65 -> 17137 | BE71: =+SUM(Poblacion!K65,Poblacion!M65,Poblacion!O65,Poblacion!Q65,Poblacion!S65) -> 498 | BF71: =+SUM(Poblacion!L65,Poblacion!N65,Poblacion!P65,Poblacion!R65,Poblacion!T65) -> 542 | BG71: =SUM(Poblacion!U65,Poblacion!W65,Poblacion!Y65,Poblacion!AA65,Poblacion!AC65) -> 620 | BH71: =SUM(Poblacion!V65,Poblacion!X65,Poblacion!Z65,Poblacion!AB65,Poblacion!AD65) -> 613 | BI71: =+SUM(Poblacion!AE65,Poblacion!AG65,Poblacion!AI65,Poblacion!AK65,Poblacion!AM65) -> 673 | BJ71: =+SUM(Poblacion!AF65,Poblacion!AH65,Poblacion!AJ65,Poblacion!AL65,Poblacion!AN65) -> 697 | BK71: =+SUM(Poblacion!AO65,Poblacion!AQ65,Poblacion!AS65,Poblacion!AU65,Poblacion!AW65) -> 751 | BL71: =+SUM(Poblacion!AP65,Poblacion!AR65,Poblacion!AT65,Poblacion!AV65,Poblacion!AX65) -> 782 | BM71: =Poblacion!AY65 -> 560 | BN71: =Poblacion!AZ65 -> 606 | BO71: =Poblacion!BA65 -> 538 | BP71: =Poblacion!BB65 -> 692 | BQ71: =Poblacion!BC65 -> 508 | BR71: =Poblacion!BD65 -> 636 | BS71: =Poblacion!BE65 -> 554 | BT71: =Poblacion!BF65 -> 585 | BU71: =Poblacion!BG65 -> 512 | BV71: =Poblacion!BH65 -> 483 | BW71: =Poblacion!BI65 -> 534 | BX71: =Poblacion!BJ65 -> 509 | BY71: =Poblacion!BK65 -> 498 | BZ71: =Poblacion!BL65 -> 545 | CA71: =Poblacion!BM65 -> 456 | CB71: =Poblacion!BN65 -> 478 | CC71: =Poblacion!BO65 -> 439 | CD71: =Poblacion!BP65 -> 408 | CE71: =Poblacion!BQ65 -> 322 | CF71: =Poblacion!BR65 -> 334 | CG71: =Poblacion!BS65 -> 298 | CH71: =Poblacion!BT65 -> 300 | CI71: =Poblacion!BU65 -> 218 | CJ71: =Poblacion!BV65 -> 255 | CK71: =Poblacion!BY65 -> 146 | CL71: =Poblacion!BZ65 -> 214 | CM71: =Poblacion!DP65 -> 1668 | CN71: =Poblacion!DQ65 -> 1720 | CO71: =Poblacion!DR65 -> 604 | CP71: =Poblacion!DS65 -> 653 | CQ71: =Poblacion!DT65 -> 4430 | CR71: =Poblacion!DU65 -> 4795 | CS71: =Poblacion!DV65 -> 1423 | CT71: =Poblacion!DW65 -> 1511
BB72: 60 | BC72: DISTRITO OYON | BD72: =Poblacion!F66 -> 11592 | BE72: =+SUM(Poblacion!K66,Poblacion!M66,Poblacion!O66,Poblacion!Q66,Poblacion!S66) -> 255 | BF72: =+SUM(Poblacion!L66,Poblacion!N66,Poblacion!P66,Poblacion!R66,Poblacion!T66) -> 282 | BG72: =SUM(Poblacion!U66,Poblacion!W66,Poblacion!Y66,Poblacion!AA66,Poblacion!AC66) -> 472 | BH72: =SUM(Poblacion!V66,Poblacion!X66,Poblacion!Z66,Poblacion!AB66,Poblacion!AD66) -> 471 | BI72: =+SUM(Poblacion!AE66,Poblacion!AG66,Poblacion!AI66,Poblacion!AK66,Poblacion!AM66) -> 529 | BJ72: =+SUM(Poblacion!AF66,Poblacion!AH66,Poblacion!AJ66,Poblacion!AL66,Poblacion!AN66) -> 517 | BK72: =+SUM(Poblacion!AO66,Poblacion!AQ66,Poblacion!AS66,Poblacion!AU66,Poblacion!AW66) -> 553 | BL72: =+SUM(Poblacion!AP66,Poblacion!AR66,Poblacion!AT66,Poblacion!AV66,Poblacion!AX66) -> 558 | BM72: =Poblacion!AY66 -> 402 | BN72: =Poblacion!AZ66 -> 442 | BO72: =Poblacion!BA66 -> 404 | BP72: =Poblacion!BB66 -> 488 | BQ72: =Poblacion!BC66 -> 373 | BR72: =Poblacion!BD66 -> 482 | BS72: =Poblacion!BE66 -> 405 | BT72: =Poblacion!BF66 -> 421 | BU72: =Poblacion!BG66 -> 358 | BV72: =Poblacion!BH66 -> 335 | BW72: =Poblacion!BI66 -> 359 | BX72: =Poblacion!BJ66 -> 348 | BY72: =Poblacion!BK66 -> 347 | BZ72: =Poblacion!BL66 -> 377 | CA72: =Poblacion!BM66 -> 288 | CB72: =Poblacion!BN66 -> 290 | CC72: =Poblacion!BO66 -> 260 | CD72: =Poblacion!BP66 -> 245 | CE72: =Poblacion!BQ66 -> 198 | CF72: =Poblacion!BR66 -> 199 | CG72: =Poblacion!BS66 -> 171 | CH72: =Poblacion!BT66 -> 168 | CI72: =Poblacion!BU66 -> 112 | CJ72: =Poblacion!BV66 -> 136 | CK72: =Poblacion!BY66 -> 55 | CL72: =Poblacion!BZ66 -> 114 | CM72: =Poblacion!DP66 -> 1156 | CN72: =Poblacion!DQ66 -> 1171 | CO72: =Poblacion!DR66 -> 465 | CP72: =Poblacion!DS66 -> 472 | CQ72: =Poblacion!DT66 -> 3124 | CR72: =Poblacion!DU66 -> 3368 | CS72: =Poblacion!DV66 -> 796 | CT72: =Poblacion!DW66 -> 862
BA73: 05 | BB73: 61 | BC73: P.S. RAPAZ | BD73: =Poblacion!F67 -> 745 | BE73: =+SUM(Poblacion!K67,Poblacion!M67,Poblacion!O67,Poblacion!Q67,Poblacion!S67) -> 16 | BF73: =+SUM(Poblacion!L67,Poblacion!N67,Poblacion!P67,Poblacion!R67,Poblacion!T67) -> 17 | BG73: =SUM(Poblacion!U67,Poblacion!W67,Poblacion!Y67,Poblacion!AA67,Poblacion!AC67) -> 32 | BH73: =SUM(Poblacion!V67,Poblacion!X67,Poblacion!Z67,Poblacion!AB67,Poblacion!AD67) -> 30 | BI73: =+SUM(Poblacion!AE67,Poblacion!AG67,Poblacion!AI67,Poblacion!AK67,Poblacion!AM67) -> 34 | BJ73: =+SUM(Poblacion!AF67,Poblacion!AH67,Poblacion!AJ67,Poblacion!AL67,Poblacion!AN67) -> 32 | BK73: =+SUM(Poblacion!AO67,Poblacion!AQ67,Poblacion!AS67,Poblacion!AU67,Poblacion!AW67) -> 34 | BL73: =+SUM(Poblacion!AP67,Poblacion!AR67,Poblacion!AT67,Poblacion!AV67,Poblacion!AX67) -> 36 | BM73: =Poblacion!AY67 -> 25 | BN73: =Poblacion!AZ67 -> 29 | BO73: =Poblacion!BA67 -> 26 | BP73: =Poblacion!BB67 -> 32 | BQ73: =Poblacion!BC67 -> 25 | BR73: =Poblacion!BD67 -> 31 | BS73: =Poblacion!BE67 -> 26 | BT73: =Poblacion!BF67 -> 27 | BU73: =Poblacion!BG67 -> 23 | BV73: =Poblacion!BH67 -> 22 | BW73: =Poblacion!BI67 -> 23 | BX73: =Poblacion!BJ67 -> 23 | BY73: =Poblacion!BK67 -> 23 | BZ73: =Poblacion!BL67 -> 25 | CA73: =Poblacion!BM67 -> 18 | CB73: =Poblacion!BN67 -> 18 | CC73: =Poblacion!BO67 -> 17 | CD73: =Poblacion!BP67 -> 17 | CE73: =Poblacion!BQ67 -> 12 | CF73: =Poblacion!BR67 -> 12 | CG73: =Poblacion!BS67 -> 11 | CH73: =Poblacion!BT67 -> 11 | CI73: =Poblacion!BU67 -> 7 | CJ73: =Poblacion!BV67 -> 9 | CK73: =Poblacion!BY67 -> 4 | CL73: =Poblacion!BZ67 -> 7 | CM73: =Poblacion!DP67 -> 75 | CN73: =Poblacion!DQ67 -> 73 | CO73: =Poblacion!DR67 -> 29 | CP73: =Poblacion!DS67 -> 30 | CQ73: =Poblacion!DT67 -> 201 | CR73: =Poblacion!DU67 -> 219 | CS73: =Poblacion!DV67 -> 51 | CT73: =Poblacion!DW67 -> 56
BA74: 05 | BB74: 62 | BC74: C.S. OYON | BD74: =Poblacion!F68 -> 9712 | BE74: =+SUM(Poblacion!K68,Poblacion!M68,Poblacion!O68,Poblacion!Q68,Poblacion!S68) -> 215 | BF74: =+SUM(Poblacion!L68,Poblacion!N68,Poblacion!P68,Poblacion!R68,Poblacion!T68) -> 237 | BG74: =SUM(Poblacion!U68,Poblacion!W68,Poblacion!Y68,Poblacion!AA68,Poblacion!AC68) -> 394 | BH74: =SUM(Poblacion!V68,Poblacion!X68,Poblacion!Z68,Poblacion!AB68,Poblacion!AD68) -> 394 | BI74: =+SUM(Poblacion!AE68,Poblacion!AG68,Poblacion!AI68,Poblacion!AK68,Poblacion!AM68) -> 443 | BJ74: =+SUM(Poblacion!AF68,Poblacion!AH68,Poblacion!AJ68,Poblacion!AL68,Poblacion!AN68) -> 434 | BK74: =+SUM(Poblacion!AO68,Poblacion!AQ68,Poblacion!AS68,Poblacion!AU68,Poblacion!AW68) -> 463 | BL74: =+SUM(Poblacion!AP68,Poblacion!AR68,Poblacion!AT68,Poblacion!AV68,Poblacion!AX68) -> 468 | BM74: =Poblacion!AY68 -> 337 | BN74: =Poblacion!AZ68 -> 369 | BO74: =Poblacion!BA68 -> 338 | BP74: =Poblacion!BB68 -> 409 | BQ74: =Poblacion!BC68 -> 312 | BR74: =Poblacion!BD68 -> 404 | BS74: =Poblacion!BE68 -> 339 | BT74: =Poblacion!BF68 -> 353 | BU74: =Poblacion!BG68 -> 300 | BV74: =Poblacion!BH68 -> 281 | BW74: =Poblacion!BI68 -> 301 | BX74: =Poblacion!BJ68 -> 291 | BY74: =Poblacion!BK68 -> 291 | BZ74: =Poblacion!BL68 -> 316 | CA74: =Poblacion!BM68 -> 241 | CB74: =Poblacion!BN68 -> 243 | CC74: =Poblacion!BO68 -> 218 | CD74: =Poblacion!BP68 -> 205 | CE74: =Poblacion!BQ68 -> 166 | CF74: =Poblacion!BR68 -> 167 | CG74: =Poblacion!BS68 -> 143 | CH74: =Poblacion!BT68 -> 142 | CI74: =Poblacion!BU68 -> 95 | CJ74: =Poblacion!BV68 -> 113 | CK74: =Poblacion!BY68 -> 46 | CL74: =Poblacion!BZ68 -> 95 | CM74: =Poblacion!DP68 -> 969 | CN74: =Poblacion!DQ68 -> 982 | CO74: =Poblacion!DR68 -> 389 | CP74: =Poblacion!DS68 -> 396 | CQ74: =Poblacion!DT68 -> 2616 | CR74: =Poblacion!DU68 -> 2821 | CS74: =Poblacion!DV68 -> 668 | CT74: =Poblacion!DW68 -> 722
BA75: 05 | BB75: 63 | BC75: P.S. MALLAY | BD75: =Poblacion!F69 -> 574 | BE75: =+SUM(Poblacion!K69,Poblacion!M69,Poblacion!O69,Poblacion!Q69,Poblacion!S69) -> 12 | BF75: =+SUM(Poblacion!L69,Poblacion!N69,Poblacion!P69,Poblacion!R69,Poblacion!T69) -> 14 | BG75: =SUM(Poblacion!U69,Poblacion!W69,Poblacion!Y69,Poblacion!AA69,Poblacion!AC69) -> 23 | BH75: =SUM(Poblacion!V69,Poblacion!X69,Poblacion!Z69,Poblacion!AB69,Poblacion!AD69) -> 24 | BI75: =+SUM(Poblacion!AE69,Poblacion!AG69,Poblacion!AI69,Poblacion!AK69,Poblacion!AM69) -> 26 | BJ75: =+SUM(Poblacion!AF69,Poblacion!AH69,Poblacion!AJ69,Poblacion!AL69,Poblacion!AN69) -> 26 | BK75: =+SUM(Poblacion!AO69,Poblacion!AQ69,Poblacion!AS69,Poblacion!AU69,Poblacion!AW69) -> 29 | BL75: =+SUM(Poblacion!AP69,Poblacion!AR69,Poblacion!AT69,Poblacion!AV69,Poblacion!AX69) -> 28 | BM75: =Poblacion!AY69 -> 20 | BN75: =Poblacion!AZ69 -> 22 | BO75: =Poblacion!BA69 -> 20 | BP75: =Poblacion!BB69 -> 24 | BQ75: =Poblacion!BC69 -> 18 | BR75: =Poblacion!BD69 -> 24 | BS75: =Poblacion!BE69 -> 20 | BT75: =Poblacion!BF69 -> 21 | BU75: =Poblacion!BG69 -> 18 | BV75: =Poblacion!BH69 -> 16 | BW75: =Poblacion!BI69 -> 18 | BX75: =Poblacion!BJ69 -> 17 | BY75: =Poblacion!BK69 -> 17 | BZ75: =Poblacion!BL69 -> 18 | CA75: =Poblacion!BM69 -> 14 | CB75: =Poblacion!BN69 -> 14 | CC75: =Poblacion!BO69 -> 13 | CD75: =Poblacion!BP69 -> 12 | CE75: =Poblacion!BQ69 -> 10 | CF75: =Poblacion!BR69 -> 10 | CG75: =Poblacion!BS69 -> 8 | CH75: =Poblacion!BT69 -> 8 | CI75: =Poblacion!BU69 -> 5 | CJ75: =Poblacion!BV69 -> 7 | CK75: =Poblacion!BY69 -> 3 | CL75: =Poblacion!BZ69 -> 6 | CM75: =Poblacion!DP69 -> 56 | CN75: =Poblacion!DQ69 -> 59 | CO75: =Poblacion!DR69 -> 24 | CP75: =Poblacion!DS69 -> 23 | CQ75: =Poblacion!DT69 -> 155 | CR75: =Poblacion!DU69 -> 166 | CS75: =Poblacion!DV69 -> 39 | CT75: =Poblacion!DW69 -> 43
BA76: 05 | BB76: 64 | BC76: P.S. NAVA | BD76: =Poblacion!F70 -> 148 | BE76: =+SUM(Poblacion!K70,Poblacion!M70,Poblacion!O70,Poblacion!Q70,Poblacion!S70) -> 5 | BF76: =+SUM(Poblacion!L70,Poblacion!N70,Poblacion!P70,Poblacion!R70,Poblacion!T70) -> 5 | BG76: =SUM(Poblacion!U70,Poblacion!W70,Poblacion!Y70,Poblacion!AA70,Poblacion!AC70) -> 5 | BH76: =SUM(Poblacion!V70,Poblacion!X70,Poblacion!Z70,Poblacion!AB70,Poblacion!AD70) -> 5 | BI76: =+SUM(Poblacion!AE70,Poblacion!AG70,Poblacion!AI70,Poblacion!AK70,Poblacion!AM70) -> 6 | BJ76: =+SUM(Poblacion!AF70,Poblacion!AH70,Poblacion!AJ70,Poblacion!AL70,Poblacion!AN70) -> 5 | BK76: =+SUM(Poblacion!AO70,Poblacion!AQ70,Poblacion!AS70,Poblacion!AU70,Poblacion!AW70) -> 7 | BL76: =+SUM(Poblacion!AP70,Poblacion!AR70,Poblacion!AT70,Poblacion!AV70,Poblacion!AX70) -> 7 | BM76: =Poblacion!AY70 -> 5 | BN76: =Poblacion!AZ70 -> 6 | BO76: =Poblacion!BA70 -> 5 | BP76: =Poblacion!BB70 -> 6 | BQ76: =Poblacion!BC70 -> 5 | BR76: =Poblacion!BD70 -> 6 | BS76: =Poblacion!BE70 -> 5 | BT76: =Poblacion!BF70 -> 5 | BU76: =Poblacion!BG70 -> 5 | BV76: =Poblacion!BH70 -> 4 | BW76: =Poblacion!BI70 -> 5 | BX76: =Poblacion!BJ70 -> 5 | BY76: =Poblacion!BK70 -> 4 | BZ76: =Poblacion!BL70 -> 5 | CA76: =Poblacion!BM70 -> 4 | CB76: =Poblacion!BN70 -> 4 | CC76: =Poblacion!BO70 -> 3 | CD76: =Poblacion!BP70 -> 3 | CE76: =Poblacion!BQ70 -> 3 | CF76: =Poblacion!BR70 -> 3 | CG76: =Poblacion!BS70 -> 2 | CH76: =Poblacion!BT70 -> 2 | CI76: =Poblacion!BU70 -> 1 | CJ76: =Poblacion!BV70 -> 2 | CK76: =Poblacion!BY70 -> 1 | CL76: =Poblacion!BZ70 -> 2 | CM76: =Poblacion!DP70 -> 15 | CN76: =Poblacion!DQ70 -> 14 | CO76: =Poblacion!DR70 -> 6 | CP76: =Poblacion!DS70 -> 6 | CQ76: =Poblacion!DT70 -> 40 | CR76: =Poblacion!DU70 -> 43 | CS76: =Poblacion!DV70 -> 10 | CT76: =Poblacion!DW70 -> 12
BA77: 05 | BB77: 65 | BC77: P.S. TINTA | BD77: =Poblacion!F71 -> 309 | BE77: =+SUM(Poblacion!K71,Poblacion!M71,Poblacion!O71,Poblacion!Q71,Poblacion!S71) -> 6 | BF77: =+SUM(Poblacion!L71,Poblacion!N71,Poblacion!P71,Poblacion!R71,Poblacion!T71) -> 7 | BG77: =SUM(Poblacion!U71,Poblacion!W71,Poblacion!Y71,Poblacion!AA71,Poblacion!AC71) -> 13 | BH77: =SUM(Poblacion!V71,Poblacion!X71,Poblacion!Z71,Poblacion!AB71,Poblacion!AD71) -> 13 | BI77: =+SUM(Poblacion!AE71,Poblacion!AG71,Poblacion!AI71,Poblacion!AK71,Poblacion!AM71) -> 15 | BJ77: =+SUM(Poblacion!AF71,Poblacion!AH71,Poblacion!AJ71,Poblacion!AL71,Poblacion!AN71) -> 15 | BK77: =+SUM(Poblacion!AO71,Poblacion!AQ71,Poblacion!AS71,Poblacion!AU71,Poblacion!AW71) -> 15 | BL77: =+SUM(Poblacion!AP71,Poblacion!AR71,Poblacion!AT71,Poblacion!AV71,Poblacion!AX71) -> 14 | BM77: =Poblacion!AY71 -> 11 | BN77: =Poblacion!AZ71 -> 12 | BO77: =Poblacion!BA71 -> 11 | BP77: =Poblacion!BB71 -> 13 | BQ77: =Poblacion!BC71 -> 10 | BR77: =Poblacion!BD71 -> 13 | BS77: =Poblacion!BE71 -> 11 | BT77: =Poblacion!BF71 -> 11 | BU77: =Poblacion!BG71 -> 9 | BV77: =Poblacion!BH71 -> 9 | BW77: =Poblacion!BI71 -> 9 | BX77: =Poblacion!BJ71 -> 9 | BY77: =Poblacion!BK71 -> 9 | BZ77: =Poblacion!BL71 -> 10 | CA77: =Poblacion!BM71 -> 8 | CB77: =Poblacion!BN71 -> 8 | CC77: =Poblacion!BO71 -> 7 | CD77: =Poblacion!BP71 -> 6 | CE77: =Poblacion!BQ71 -> 5 | CF77: =Poblacion!BR71 -> 5 | CG77: =Poblacion!BS71 -> 5 | CH77: =Poblacion!BT71 -> 4 | CI77: =Poblacion!BU71 -> 3 | CJ77: =Poblacion!BV71 -> 4 | CK77: =Poblacion!BY71 -> 1 | CL77: =Poblacion!BZ71 -> 3 | CM77: =Poblacion!DP71 -> 31 | CN77: =Poblacion!DQ71 -> 32 | CO77: =Poblacion!DR71 -> 13 | CP77: =Poblacion!DS71 -> 13 | CQ77: =Poblacion!DT71 -> 83 | CR77: =Poblacion!DU71 -> 89 | CS77: =Poblacion!DV71 -> 21 | CT77: =Poblacion!DW71 -> 22
BA78: 05 | BB78: 66 | BC78: P.S. QUICHAZ | BD78: =Poblacion!F72 -> 104 | BE78: =+SUM(Poblacion!K72,Poblacion!M72,Poblacion!O72,Poblacion!Q72,Poblacion!S72) -> 1 | BF78: =+SUM(Poblacion!L72,Poblacion!N72,Poblacion!P72,Poblacion!R72,Poblacion!T72) -> 2 | BG78: =SUM(Poblacion!U72,Poblacion!W72,Poblacion!Y72,Poblacion!AA72,Poblacion!AC72) -> 5 | BH78: =SUM(Poblacion!V72,Poblacion!X72,Poblacion!Z72,Poblacion!AB72,Poblacion!AD72) -> 5 | BI78: =+SUM(Poblacion!AE72,Poblacion!AG72,Poblacion!AI72,Poblacion!AK72,Poblacion!AM72) -> 5 | BJ78: =+SUM(Poblacion!AF72,Poblacion!AH72,Poblacion!AJ72,Poblacion!AL72,Poblacion!AN72) -> 5 | BK78: =+SUM(Poblacion!AO72,Poblacion!AQ72,Poblacion!AS72,Poblacion!AU72,Poblacion!AW72) -> 5 | BL78: =+SUM(Poblacion!AP72,Poblacion!AR72,Poblacion!AT72,Poblacion!AV72,Poblacion!AX72) -> 5 | BM78: =Poblacion!AY72 -> 4 | BN78: =Poblacion!AZ72 -> 4 | BO78: =Poblacion!BA72 -> 4 | BP78: =Poblacion!BB72 -> 4 | BQ78: =Poblacion!BC72 -> 3 | BR78: =Poblacion!BD72 -> 4 | BS78: =Poblacion!BE72 -> 4 | BT78: =Poblacion!BF72 -> 4 | BU78: =Poblacion!BG72 -> 3 | BV78: =Poblacion!BH72 -> 3 | BW78: =Poblacion!BI72 -> 3 | BX78: =Poblacion!BJ72 -> 3 | BY78: =Poblacion!BK72 -> 3 | BZ78: =Poblacion!BL72 -> 3 | CA78: =Poblacion!BM72 -> 3 | CB78: =Poblacion!BN72 -> 3 | CC78: =Poblacion!BO72 -> 2 | CD78: =Poblacion!BP72 -> 2 | CE78: =Poblacion!BQ72 -> 2 | CF78: =Poblacion!BR72 -> 2 | CG78: =Poblacion!BS72 -> 2 | CH78: =Poblacion!BT72 -> 1 | CI78: =Poblacion!BU72 -> 1 | CJ78: =Poblacion!BV72 -> 1 | CK78: =Poblacion!BY72 -> 0 | CL78: =Poblacion!BZ72 -> 1 | CM78: =Poblacion!DP72 -> 10 | CN78: =Poblacion!DQ72 -> 11 | CO78: =Poblacion!DR72 -> 4 | CP78: =Poblacion!DS72 -> 4 | CQ78: =Poblacion!DT72 -> 29 | CR78: =Poblacion!DU72 -> 30 | CS78: =Poblacion!DV72 -> 7 | CT78: =Poblacion!DW72 -> 7
BB79: 67 | BC79: DISTRITO ANDAJES | BD79: =Poblacion!F73 -> 473 | BE79: =+SUM(Poblacion!K73,Poblacion!M73,Poblacion!O73,Poblacion!Q73,Poblacion!S73) -> 13 | BF79: =+SUM(Poblacion!L73,Poblacion!N73,Poblacion!P73,Poblacion!R73,Poblacion!T73) -> 21 | BG79: =SUM(Poblacion!U73,Poblacion!W73,Poblacion!Y73,Poblacion!AA73,Poblacion!AC73) -> 10 | BH79: =SUM(Poblacion!V73,Poblacion!X73,Poblacion!Z73,Poblacion!AB73,Poblacion!AD73) -> 6 | BI79: =+SUM(Poblacion!AE73,Poblacion!AG73,Poblacion!AI73,Poblacion!AK73,Poblacion!AM73) -> 10 | BJ79: =+SUM(Poblacion!AF73,Poblacion!AH73,Poblacion!AJ73,Poblacion!AL73,Poblacion!AN73) -> 12 | BK79: =+SUM(Poblacion!AO73,Poblacion!AQ73,Poblacion!AS73,Poblacion!AU73,Poblacion!AW73) -> 10 | BL79: =+SUM(Poblacion!AP73,Poblacion!AR73,Poblacion!AT73,Poblacion!AV73,Poblacion!AX73) -> 12 | BM79: =Poblacion!AY73 -> 8 | BN79: =Poblacion!AZ73 -> 4 | BO79: =Poblacion!BA73 -> 6 | BP79: =Poblacion!BB73 -> 6 | BQ79: =Poblacion!BC73 -> 6 | BR79: =Poblacion!BD73 -> 4 | BS79: =Poblacion!BE73 -> 9 | BT79: =Poblacion!BF73 -> 8 | BU79: =Poblacion!BG73 -> 12 | BV79: =Poblacion!BH73 -> 6 | BW79: =Poblacion!BI73 -> 7 | BX79: =Poblacion!BJ73 -> 7 | BY79: =Poblacion!BK73 -> 18 | BZ79: =Poblacion!BL73 -> 7 | CA79: =Poblacion!BM73 -> 15 | CB79: =Poblacion!BN73 -> 18 | CC79: =Poblacion!BO73 -> 34 | CD79: =Poblacion!BP73 -> 20 | CE79: =Poblacion!BQ73 -> 11 | CF79: =Poblacion!BR73 -> 18 | CG79: =Poblacion!BS73 -> 16 | CH79: =Poblacion!BT73 -> 19 | CI79: =Poblacion!BU73 -> 16 | CJ79: =Poblacion!BV73 -> 22 | CK79: =Poblacion!BY73 -> 23 | CL79: =Poblacion!BZ73 -> 21 | CM79: =Poblacion!DP73 -> 33 | CN79: =Poblacion!DQ73 -> 38 | CO79: =Poblacion!DR73 -> 8 | CP79: =Poblacion!DS73 -> 11 | CQ79: =Poblacion!DT73 -> 83 | CR79: =Poblacion!DU73 -> 62 | CS79: =Poblacion!DV73 -> 100 | CT79: =Poblacion!DW73 -> 100
BA80: 05 | BB80: 68 | BC80: P.S. ANDAJES | BD80: =Poblacion!F74 -> 473 | BE80: =+SUM(Poblacion!K74,Poblacion!M74,Poblacion!O74,Poblacion!Q74,Poblacion!S74) -> 13 | BF80: =+SUM(Poblacion!L74,Poblacion!N74,Poblacion!P74,Poblacion!R74,Poblacion!T74) -> 21 | BG80: =SUM(Poblacion!U74,Poblacion!W74,Poblacion!Y74,Poblacion!AA74,Poblacion!AC74) -> 10 | BH80: =SUM(Poblacion!V74,Poblacion!X74,Poblacion!Z74,Poblacion!AB74,Poblacion!AD74) -> 6 | BI80: =+SUM(Poblacion!AE74,Poblacion!AG74,Poblacion!AI74,Poblacion!AK74,Poblacion!AM74) -> 10 | BJ80: =+SUM(Poblacion!AF74,Poblacion!AH74,Poblacion!AJ74,Poblacion!AL74,Poblacion!AN74) -> 12 | BK80: =+SUM(Poblacion!AO74,Poblacion!AQ74,Poblacion!AS74,Poblacion!AU74,Poblacion!AW74) -> 10 | BL80: =+SUM(Poblacion!AP74,Poblacion!AR74,Poblacion!AT74,Poblacion!AV74,Poblacion!AX74) -> 12 | BM80: =Poblacion!AY74 -> 8 | BN80: =Poblacion!AZ74 -> 4 | BO80: =Poblacion!BA74 -> 6 | BP80: =Poblacion!BB74 -> 6 | BQ80: =Poblacion!BC74 -> 6 | BR80: =Poblacion!BD74 -> 4 | BS80: =Poblacion!BE74 -> 9 | BT80: =Poblacion!BF74 -> 8 | BU80: =Poblacion!BG74 -> 12 | BV80: =Poblacion!BH74 -> 6 | BW80: =Poblacion!BI74 -> 7 | BX80: =Poblacion!BJ74 -> 7 | BY80: =Poblacion!BK74 -> 18 | BZ80: =Poblacion!BL74 -> 7 | CA80: =Poblacion!BM74 -> 15 | CB80: =Poblacion!BN74 -> 18 | CC80: =Poblacion!BO74 -> 34 | CD80: =Poblacion!BP74 -> 20 | CE80: =Poblacion!BQ74 -> 11 | CF80: =Poblacion!BR74 -> 18 | CG80: =Poblacion!BS74 -> 16 | CH80: =Poblacion!BT74 -> 19 | CI80: =Poblacion!BU74 -> 16 | CJ80: =Poblacion!BV74 -> 22 | CK80: =Poblacion!BY74 -> 23 | CL80: =Poblacion!BZ74 -> 21 | CM80: =Poblacion!DP74 -> 33 | CN80: =Poblacion!DQ74 -> 38 | CO80: =Poblacion!DR74 -> 8 | CP80: =Poblacion!DS74 -> 11 | CQ80: =Poblacion!DT74 -> 83 | CR80: =Poblacion!DU74 -> 62 | CS80: =Poblacion!DV74 -> 100 | CT80: =Poblacion!DW74 -> 100
BB81: 69 | BC81: DISTRITO CAUJUL | BD81: =Poblacion!F75 -> 445 | BE81: =+SUM(Poblacion!K75,Poblacion!M75,Poblacion!O75,Poblacion!Q75,Poblacion!S75) -> 17 | BF81: =+SUM(Poblacion!L75,Poblacion!N75,Poblacion!P75,Poblacion!R75,Poblacion!T75) -> 22 | BG81: =SUM(Poblacion!U75,Poblacion!W75,Poblacion!Y75,Poblacion!AA75,Poblacion!AC75) -> 9 | BH81: =SUM(Poblacion!V75,Poblacion!X75,Poblacion!Z75,Poblacion!AB75,Poblacion!AD75) -> 11 | BI81: =+SUM(Poblacion!AE75,Poblacion!AG75,Poblacion!AI75,Poblacion!AK75,Poblacion!AM75) -> 8 | BJ81: =+SUM(Poblacion!AF75,Poblacion!AH75,Poblacion!AJ75,Poblacion!AL75,Poblacion!AN75) -> 11 | BK81: =+SUM(Poblacion!AO75,Poblacion!AQ75,Poblacion!AS75,Poblacion!AU75,Poblacion!AW75) -> 13 | BL81: =+SUM(Poblacion!AP75,Poblacion!AR75,Poblacion!AT75,Poblacion!AV75,Poblacion!AX75) -> 15 | BM81: =Poblacion!AY75 -> 12 | BN81: =Poblacion!AZ75 -> 14 | BO81: =Poblacion!BA75 -> 10 | BP81: =Poblacion!BB75 -> 16 | BQ81: =Poblacion!BC75 -> 11 | BR81: =Poblacion!BD75 -> 11 | BS81: =Poblacion!BE75 -> 11 | BT81: =Poblacion!BF75 -> 15 | BU81: =Poblacion!BG75 -> 10 | BV81: =Poblacion!BH75 -> 11 | BW81: =Poblacion!BI75 -> 20 | BX81: =Poblacion!BJ75 -> 10 | BY81: =Poblacion!BK75 -> 9 | BZ81: =Poblacion!BL75 -> 14 | CA81: =Poblacion!BM75 -> 14 | CB81: =Poblacion!BN75 -> 17 | CC81: =Poblacion!BO75 -> 16 | CD81: =Poblacion!BP75 -> 13 | CE81: =Poblacion!BQ75 -> 18 | CF81: =Poblacion!BR75 -> 9 | CG81: =Poblacion!BS75 -> 12 | CH81: =Poblacion!BT75 -> 7 | CI81: =Poblacion!BU75 -> 8 | CJ81: =Poblacion!BV75 -> 10 | CK81: =Poblacion!BY75 -> 12 | CL81: =Poblacion!BZ75 -> 12 | CM81: =Poblacion!DP75 -> 33 | CN81: =Poblacion!DQ75 -> 41 | CO81: =Poblacion!DR75 -> 10 | CP81: =Poblacion!DS75 -> 12 | CQ81: =Poblacion!DT75 -> 101 | CR81: =Poblacion!DU75 -> 114 | CS81: =Poblacion!DV75 -> 66 | CT81: =Poblacion!DW75 -> 51
BA82: 05 | BB82: 70 | BC82: P.S. CAUJUL | BD82: =Poblacion!F76 -> 445 | BE82: =+SUM(Poblacion!K76,Poblacion!M76,Poblacion!O76,Poblacion!Q76,Poblacion!S76) -> 17 | BF82: =+SUM(Poblacion!L76,Poblacion!N76,Poblacion!P76,Poblacion!R76,Poblacion!T76) -> 22 | BG82: =SUM(Poblacion!U76,Poblacion!W76,Poblacion!Y76,Poblacion!AA76,Poblacion!AC76) -> 9 | BH82: =SUM(Poblacion!V76,Poblacion!X76,Poblacion!Z76,Poblacion!AB76,Poblacion!AD76) -> 11 | BI82: =+SUM(Poblacion!AE76,Poblacion!AG76,Poblacion!AI76,Poblacion!AK76,Poblacion!AM76) -> 8 | BJ82: =+SUM(Poblacion!AF76,Poblacion!AH76,Poblacion!AJ76,Poblacion!AL76,Poblacion!AN76) -> 11 | BK82: =+SUM(Poblacion!AO76,Poblacion!AQ76,Poblacion!AS76,Poblacion!AU76,Poblacion!AW76) -> 13 | BL82: =+SUM(Poblacion!AP76,Poblacion!AR76,Poblacion!AT76,Poblacion!AV76,Poblacion!AX76) -> 15 | BM82: =Poblacion!AY76 -> 12 | BN82: =Poblacion!AZ76 -> 14 | BO82: =Poblacion!BA76 -> 10 | BP82: =Poblacion!BB76 -> 16 | BQ82: =Poblacion!BC76 -> 11 | BR82: =Poblacion!BD76 -> 11 | BS82: =Poblacion!BE76 -> 11 | BT82: =Poblacion!BF76 -> 15 | BU82: =Poblacion!BG76 -> 10 | BV82: =Poblacion!BH76 -> 11 | BW82: =Poblacion!BI76 -> 20 | BX82: =Poblacion!BJ76 -> 10 | BY82: =Poblacion!BK76 -> 9 | BZ82: =Poblacion!BL76 -> 14 | CA82: =Poblacion!BM76 -> 14 | CB82: =Poblacion!BN76 -> 17 | CC82: =Poblacion!BO76 -> 16 | CD82: =Poblacion!BP76 -> 13 | CE82: =Poblacion!BQ76 -> 18 | CF82: =Poblacion!BR76 -> 9 | CG82: =Poblacion!BS76 -> 12 | CH82: =Poblacion!BT76 -> 7 | CI82: =Poblacion!BU76 -> 8 | CJ82: =Poblacion!BV76 -> 10 | CK82: =Poblacion!BY76 -> 12 | CL82: =Poblacion!BZ76 -> 12 | CM82: =Poblacion!DP76 -> 33 | CN82: =Poblacion!DQ76 -> 41 | CO82: =Poblacion!DR76 -> 10 | CP82: =Poblacion!DS76 -> 12 | CQ82: =Poblacion!DT76 -> 101 | CR82: =Poblacion!DU76 -> 114 | CS82: =Poblacion!DV76 -> 66 | CT82: =Poblacion!DW76 -> 51
BB83: 71 | BC83: DISTRITO COCHAMARCA | BD83: =Poblacion!F77 -> 1191 | BE83: =+SUM(Poblacion!K77,Poblacion!M77,Poblacion!O77,Poblacion!Q77,Poblacion!S77) -> 50 | BF83: =+SUM(Poblacion!L77,Poblacion!N77,Poblacion!P77,Poblacion!R77,Poblacion!T77) -> 60 | BG83: =SUM(Poblacion!U77,Poblacion!W77,Poblacion!Y77,Poblacion!AA77,Poblacion!AC77) -> 29 | BH83: =SUM(Poblacion!V77,Poblacion!X77,Poblacion!Z77,Poblacion!AB77,Poblacion!AD77) -> 38 | BI83: =+SUM(Poblacion!AE77,Poblacion!AG77,Poblacion!AI77,Poblacion!AK77,Poblacion!AM77) -> 33 | BJ83: =+SUM(Poblacion!AF77,Poblacion!AH77,Poblacion!AJ77,Poblacion!AL77,Poblacion!AN77) -> 55 | BK83: =+SUM(Poblacion!AO77,Poblacion!AQ77,Poblacion!AS77,Poblacion!AU77,Poblacion!AW77) -> 68 | BL83: =+SUM(Poblacion!AP77,Poblacion!AR77,Poblacion!AT77,Poblacion!AV77,Poblacion!AX77) -> 69 | BM83: =Poblacion!AY77 -> 50 | BN83: =Poblacion!AZ77 -> 56 | BO83: =Poblacion!BA77 -> 37 | BP83: =Poblacion!BB77 -> 51 | BQ83: =Poblacion!BC77 -> 35 | BR83: =Poblacion!BD77 -> 35 | BS83: =Poblacion!BE77 -> 28 | BT83: =Poblacion!BF77 -> 33 | BU83: =Poblacion!BG77 -> 24 | BV83: =Poblacion!BH77 -> 25 | BW83: =Poblacion!BI77 -> 38 | BX83: =Poblacion!BJ77 -> 44 | BY83: =Poblacion!BK77 -> 30 | BZ83: =Poblacion!BL77 -> 35 | CA83: =Poblacion!BM77 -> 38 | CB83: =Poblacion!BN77 -> 27 | CC83: =Poblacion!BO77 -> 23 | CD83: =Poblacion!BP77 -> 26 | CE83: =Poblacion!BQ77 -> 14 | CF83: =Poblacion!BR77 -> 16 | CG83: =Poblacion!BS77 -> 19 | CH83: =Poblacion!BT77 -> 27 | CI83: =Poblacion!BU77 -> 9 | CJ83: =Poblacion!BV77 -> 16 | CK83: =Poblacion!BY77 -> 14 | CL83: =Poblacion!BZ77 -> 18 | CM83: =Poblacion!DP77 -> 104 | CN83: =Poblacion!DQ77 -> 140 | CO83: =Poblacion!DR77 -> 46 | CP83: =Poblacion!DS77 -> 54 | CQ83: =Poblacion!DT77 -> 310 | CR83: =Poblacion!DU77 -> 334 | CS83: =Poblacion!DV77 -> 79 | CT83: =Poblacion!DW77 -> 103
BA84: 03 | BB84: 72 | BC84: P.S. COCHAMARCA | BD84: =Poblacion!F78 -> 507 | BE84: =+SUM(Poblacion!K78,Poblacion!M78,Poblacion!O78,Poblacion!Q78,Poblacion!S78) -> 20 | BF84: =+SUM(Poblacion!L78,Poblacion!N78,Poblacion!P78,Poblacion!R78,Poblacion!T78) -> 26 | BG84: =SUM(Poblacion!U78,Poblacion!W78,Poblacion!Y78,Poblacion!AA78,Poblacion!AC78) -> 13 | BH84: =SUM(Poblacion!V78,Poblacion!X78,Poblacion!Z78,Poblacion!AB78,Poblacion!AD78) -> 16 | BI84: =+SUM(Poblacion!AE78,Poblacion!AG78,Poblacion!AI78,Poblacion!AK78,Poblacion!AM78) -> 13 | BJ84: =+SUM(Poblacion!AF78,Poblacion!AH78,Poblacion!AJ78,Poblacion!AL78,Poblacion!AN78) -> 23 | BK84: =+SUM(Poblacion!AO78,Poblacion!AQ78,Poblacion!AS78,Poblacion!AU78,Poblacion!AW78) -> 30 | BL84: =+SUM(Poblacion!AP78,Poblacion!AR78,Poblacion!AT78,Poblacion!AV78,Poblacion!AX78) -> 29 | BM84: =Poblacion!AY78 -> 21 | BN84: =Poblacion!AZ78 -> 24 | BO84: =Poblacion!BA78 -> 16 | BP84: =Poblacion!BB78 -> 22 | BQ84: =Poblacion!BC78 -> 15 | BR84: =Poblacion!BD78 -> 15 | BS84: =Poblacion!BE78 -> 12 | BT84: =Poblacion!BF78 -> 14 | BU84: =Poblacion!BG78 -> 10 | BV84: =Poblacion!BH78 -> 11 | BW84: =Poblacion!BI78 -> 16 | BX84: =Poblacion!BJ78 -> 19 | BY84: =Poblacion!BK78 -> 13 | BZ84: =Poblacion!BL78 -> 15 | CA84: =Poblacion!BM78 -> 16 | CB84: =Poblacion!BN78 -> 11 | CC84: =Poblacion!BO78 -> 10 | CD84: =Poblacion!BP78 -> 11 | CE84: =Poblacion!BQ78 -> 6 | CF84: =Poblacion!BR78 -> 7 | CG84: =Poblacion!BS78 -> 8 | CH84: =Poblacion!BT78 -> 11 | CI84: =Poblacion!BU78 -> 4 | CJ84: =Poblacion!BV78 -> 7 | CK84: =Poblacion!BY78 -> 6 | CL84: =Poblacion!BZ78 -> 8 | CM84: =Poblacion!DP78 -> 43 | CN84: =Poblacion!DQ78 -> 59 | CO84: =Poblacion!DR78 -> 20 | CP84: =Poblacion!DS78 -> 23 | CQ84: =Poblacion!DT78 -> 132 | CR84: =Poblacion!DU78 -> 143 | CS84: =Poblacion!DV78 -> 34 | CT84: =Poblacion!DW78 -> 44
BA85: 03 | BB85: 73 | BC85: P.S. COLCAPAMPA | BD85: =Poblacion!F79 -> 570 | BE85: =+SUM(Poblacion!K79,Poblacion!M79,Poblacion!O79,Poblacion!Q79,Poblacion!S79) -> 24 | BF85: =+SUM(Poblacion!L79,Poblacion!N79,Poblacion!P79,Poblacion!R79,Poblacion!T79) -> 29 | BG85: =SUM(Poblacion!U79,Poblacion!W79,Poblacion!Y79,Poblacion!AA79,Poblacion!AC79) -> 14 | BH85: =SUM(Poblacion!V79,Poblacion!X79,Poblacion!Z79,Poblacion!AB79,Poblacion!AD79) -> 17 | BI85: =+SUM(Poblacion!AE79,Poblacion!AG79,Poblacion!AI79,Poblacion!AK79,Poblacion!AM79) -> 15 | BJ85: =+SUM(Poblacion!AF79,Poblacion!AH79,Poblacion!AJ79,Poblacion!AL79,Poblacion!AN79) -> 27 | BK85: =+SUM(Poblacion!AO79,Poblacion!AQ79,Poblacion!AS79,Poblacion!AU79,Poblacion!AW79) -> 32 | BL85: =+SUM(Poblacion!AP79,Poblacion!AR79,Poblacion!AT79,Poblacion!AV79,Poblacion!AX79) -> 34 | BM85: =Poblacion!AY79 -> 24 | BN85: =Poblacion!AZ79 -> 27 | BO85: =Poblacion!BA79 -> 18 | BP85: =Poblacion!BB79 -> 24 | BQ85: =Poblacion!BC79 -> 17 | BR85: =Poblacion!BD79 -> 17 | BS85: =Poblacion!BE79 -> 13 | BT85: =Poblacion!BF79 -> 16 | BU85: =Poblacion!BG79 -> 12 | BV85: =Poblacion!BH79 -> 12 | BW85: =Poblacion!BI79 -> 18 | BX85: =Poblacion!BJ79 -> 21 | BY85: =Poblacion!BK79 -> 14 | BZ85: =Poblacion!BL79 -> 17 | CA85: =Poblacion!BM79 -> 18 | CB85: =Poblacion!BN79 -> 13 | CC85: =Poblacion!BO79 -> 11 | CD85: =Poblacion!BP79 -> 13 | CE85: =Poblacion!BQ79 -> 7 | CF85: =Poblacion!BR79 -> 8 | CG85: =Poblacion!BS79 -> 9 | CH85: =Poblacion!BT79 -> 13 | CI85: =Poblacion!BU79 -> 4 | CJ85: =Poblacion!BV79 -> 8 | CK85: =Poblacion!BY79 -> 7 | CL85: =Poblacion!BZ79 -> 7 | CM85: =Poblacion!DP79 -> 49 | CN85: =Poblacion!DQ79 -> 67 | CO85: =Poblacion!DR79 -> 22 | CP85: =Poblacion!DS79 -> 26 | CQ85: =Poblacion!DT79 -> 148 | CR85: =Poblacion!DU79 -> 161 | CS85: =Poblacion!DV79 -> 38 | CT85: =Poblacion!DW79 -> 49
BA86: 03 | BB86: 74 | BC86: P.S. YARUCAYA | BD86: =Poblacion!F80 -> 114 | BE86: =+SUM(Poblacion!K80,Poblacion!M80,Poblacion!O80,Poblacion!Q80,Poblacion!S80) -> 6 | BF86: =+SUM(Poblacion!L80,Poblacion!N80,Poblacion!P80,Poblacion!R80,Poblacion!T80) -> 5 | BG86: =SUM(Poblacion!U80,Poblacion!W80,Poblacion!Y80,Poblacion!AA80,Poblacion!AC80) -> 2 | BH86: =SUM(Poblacion!V80,Poblacion!X80,Poblacion!Z80,Poblacion!AB80,Poblacion!AD80) -> 5 | BI86: =+SUM(Poblacion!AE80,Poblacion!AG80,Poblacion!AI80,Poblacion!AK80,Poblacion!AM80) -> 5 | BJ86: =+SUM(Poblacion!AF80,Poblacion!AH80,Poblacion!AJ80,Poblacion!AL80,Poblacion!AN80) -> 5 | BK86: =+SUM(Poblacion!AO80,Poblacion!AQ80,Poblacion!AS80,Poblacion!AU80,Poblacion!AW80) -> 6 | BL86: =+SUM(Poblacion!AP80,Poblacion!AR80,Poblacion!AT80,Poblacion!AV80,Poblacion!AX80) -> 6 | BM86: =Poblacion!AY80 -> 5 | BN86: =Poblacion!AZ80 -> 5 | BO86: =Poblacion!BA80 -> 3 | BP86: =Poblacion!BB80 -> 5 | BQ86: =Poblacion!BC80 -> 3 | BR86: =Poblacion!BD80 -> 3 | BS86: =Poblacion!BE80 -> 3 | BT86: =Poblacion!BF80 -> 3 | BU86: =Poblacion!BG80 -> 2 | BV86: =Poblacion!BH80 -> 2 | BW86: =Poblacion!BI80 -> 4 | BX86: =Poblacion!BJ80 -> 4 | BY86: =Poblacion!BK80 -> 3 | BZ86: =Poblacion!BL80 -> 3 | CA86: =Poblacion!BM80 -> 4 | CB86: =Poblacion!BN80 -> 3 | CC86: =Poblacion!BO80 -> 2 | CD86: =Poblacion!BP80 -> 2 | CE86: =Poblacion!BQ80 -> 1 | CF86: =Poblacion!BR80 -> 1 | CG86: =Poblacion!BS80 -> 2 | CH86: =Poblacion!BT80 -> 3 | CI86: =Poblacion!BU80 -> 1 | CJ86: =Poblacion!BV80 -> 1 | CK86: =Poblacion!BY80 -> 1 | CL86: =Poblacion!BZ80 -> 3 | CM86: =Poblacion!DP80 -> 12 | CN86: =Poblacion!DQ80 -> 14 | CO86: =Poblacion!DR80 -> 4 | CP86: =Poblacion!DS80 -> 5 | CQ86: =Poblacion!DT80 -> 30 | CR86: =Poblacion!DU80 -> 30 | CS86: =Poblacion!DV80 -> 7 | CT86: =Poblacion!DW80 -> 10
BB87: 75 | BC87: DISTRITO NAVAN | BD87: =Poblacion!F81 -> 814 | BE87: =+SUM(Poblacion!K81,Poblacion!M81,Poblacion!O81,Poblacion!Q81,Poblacion!S81) -> 25 | BF87: =+SUM(Poblacion!L81,Poblacion!N81,Poblacion!P81,Poblacion!R81,Poblacion!T81) -> 29 | BG87: =SUM(Poblacion!U81,Poblacion!W81,Poblacion!Y81,Poblacion!AA81,Poblacion!AC81) -> 20 | BH87: =SUM(Poblacion!V81,Poblacion!X81,Poblacion!Z81,Poblacion!AB81,Poblacion!AD81) -> 14 | BI87: =+SUM(Poblacion!AE81,Poblacion!AG81,Poblacion!AI81,Poblacion!AK81,Poblacion!AM81) -> 22 | BJ87: =+SUM(Poblacion!AF81,Poblacion!AH81,Poblacion!AJ81,Poblacion!AL81,Poblacion!AN81) -> 25 | BK87: =+SUM(Poblacion!AO81,Poblacion!AQ81,Poblacion!AS81,Poblacion!AU81,Poblacion!AW81) -> 23 | BL87: =+SUM(Poblacion!AP81,Poblacion!AR81,Poblacion!AT81,Poblacion!AV81,Poblacion!AX81) -> 38 | BM87: =Poblacion!AY81 -> 20 | BN87: =Poblacion!AZ81 -> 20 | BO87: =Poblacion!BA81 -> 13 | BP87: =Poblacion!BB81 -> 19 | BQ87: =Poblacion!BC81 -> 12 | BR87: =Poblacion!BD81 -> 26 | BS87: =Poblacion!BE81 -> 31 | BT87: =Poblacion!BF81 -> 25 | BU87: =Poblacion!BG81 -> 20 | BV87: =Poblacion!BH81 -> 23 | BW87: =Poblacion!BI81 -> 29 | BX87: =Poblacion!BJ81 -> 29 | BY87: =Poblacion!BK81 -> 39 | BZ87: =Poblacion!BL81 -> 26 | CA87: =Poblacion!BM81 -> 28 | CB87: =Poblacion!BN81 -> 32 | CC87: =Poblacion!BO81 -> 32 | CD87: =Poblacion!BP81 -> 25 | CE87: =Poblacion!BQ81 -> 23 | CF87: =Poblacion!BR81 -> 21 | CG87: =Poblacion!BS81 -> 19 | CH87: =Poblacion!BT81 -> 23 | CI87: =Poblacion!BU81 -> 14 | CJ87: =Poblacion!BV81 -> 17 | CK87: =Poblacion!BY81 -> 15 | CL87: =Poblacion!BZ81 -> 18 | CM87: =Poblacion!DP81 -> 65 | CN87: =Poblacion!DQ81 -> 65 | CO87: =Poblacion!DR81 -> 13 | CP87: =Poblacion!DS81 -> 30 | CQ87: =Poblacion!DT81 -> 204 | CR87: =Poblacion!DU81 -> 211 | CS87: =Poblacion!DV81 -> 103 | CT87: =Poblacion!DW81 -> 104
BA88: 05 | BB88: 76 | BC88: P.S. NAVAN | BD88: =Poblacion!F82 -> 814 | BE88: =+SUM(Poblacion!K82,Poblacion!M82,Poblacion!O82,Poblacion!Q82,Poblacion!S82) -> 25 | BF88: =+SUM(Poblacion!L82,Poblacion!N82,Poblacion!P82,Poblacion!R82,Poblacion!T82) -> 29 | BG88: =SUM(Poblacion!U82,Poblacion!W82,Poblacion!Y82,Poblacion!AA82,Poblacion!AC82) -> 20 | BH88: =SUM(Poblacion!V82,Poblacion!X82,Poblacion!Z82,Poblacion!AB82,Poblacion!AD82) -> 14 | BI88: =+SUM(Poblacion!AE82,Poblacion!AG82,Poblacion!AI82,Poblacion!AK82,Poblacion!AM82) -> 22 | BJ88: =+SUM(Poblacion!AF82,Poblacion!AH82,Poblacion!AJ82,Poblacion!AL82,Poblacion!AN82) -> 25 | BK88: =+SUM(Poblacion!AO82,Poblacion!AQ82,Poblacion!AS82,Poblacion!AU82,Poblacion!AW82) -> 23 | BL88: =+SUM(Poblacion!AP82,Poblacion!AR82,Poblacion!AT82,Poblacion!AV82,Poblacion!AX82) -> 38 | BM88: =Poblacion!AY82 -> 20 | BN88: =Poblacion!AZ82 -> 20 | BO88: =Poblacion!BA82 -> 13 | BP88: =Poblacion!BB82 -> 19 | BQ88: =Poblacion!BC82 -> 12 | BR88: =Poblacion!BD82 -> 26 | BS88: =Poblacion!BE82 -> 31 | BT88: =Poblacion!BF82 -> 25 | BU88: =Poblacion!BG82 -> 20 | BV88: =Poblacion!BH82 -> 23 | BW88: =Poblacion!BI82 -> 29 | BX88: =Poblacion!BJ82 -> 29 | BY88: =Poblacion!BK82 -> 39 | BZ88: =Poblacion!BL82 -> 26 | CA88: =Poblacion!BM82 -> 28 | CB88: =Poblacion!BN82 -> 32 | CC88: =Poblacion!BO82 -> 32 | CD88: =Poblacion!BP82 -> 25 | CE88: =Poblacion!BQ82 -> 23 | CF88: =Poblacion!BR82 -> 21 | CG88: =Poblacion!BS82 -> 19 | CH88: =Poblacion!BT82 -> 23 | CI88: =Poblacion!BU82 -> 14 | CJ88: =Poblacion!BV82 -> 17 | CK88: =Poblacion!BY82 -> 15 | CL88: =Poblacion!BZ82 -> 18 | CM88: =Poblacion!DP82 -> 65 | CN88: =Poblacion!DQ82 -> 65 | CO88: =Poblacion!DR82 -> 13 | CP88: =Poblacion!DS82 -> 30 | CQ88: =Poblacion!DT82 -> 204 | CR88: =Poblacion!DU82 -> 211 | CS88: =Poblacion!DV82 -> 103 | CT88: =Poblacion!DW82 -> 104
BB89: 77 | BC89: DISTRITO PACHANGARA | BD89: =Poblacion!F83 -> 2622 | BE89: =+SUM(Poblacion!K83,Poblacion!M83,Poblacion!O83,Poblacion!Q83,Poblacion!S83) -> 138 | BF89: =+SUM(Poblacion!L83,Poblacion!N83,Poblacion!P83,Poblacion!R83,Poblacion!T83) -> 128 | BG89: =SUM(Poblacion!U83,Poblacion!W83,Poblacion!Y83,Poblacion!AA83,Poblacion!AC83) -> 80 | BH89: =SUM(Poblacion!V83,Poblacion!X83,Poblacion!Z83,Poblacion!AB83,Poblacion!AD83) -> 73 | BI89: =+SUM(Poblacion!AE83,Poblacion!AG83,Poblacion!AI83,Poblacion!AK83,Poblacion!AM83) -> 71 | BJ89: =+SUM(Poblacion!AF83,Poblacion!AH83,Poblacion!AJ83,Poblacion!AL83,Poblacion!AN83) -> 77 | BK89: =+SUM(Poblacion!AO83,Poblacion!AQ83,Poblacion!AS83,Poblacion!AU83,Poblacion!AW83) -> 84 | BL89: =+SUM(Poblacion!AP83,Poblacion!AR83,Poblacion!AT83,Poblacion!AV83,Poblacion!AX83) -> 90 | BM89: =Poblacion!AY83 -> 68 | BN89: =Poblacion!AZ83 -> 70 | BO89: =Poblacion!BA83 -> 68 | BP89: =Poblacion!BB83 -> 112 | BQ89: =Poblacion!BC83 -> 71 | BR89: =Poblacion!BD83 -> 78 | BS89: =Poblacion!BE83 -> 70 | BT89: =Poblacion!BF83 -> 83 | BU89: =Poblacion!BG83 -> 88 | BV89: =Poblacion!BH83 -> 83 | BW89: =Poblacion!BI83 -> 81 | BX89: =Poblacion!BJ83 -> 71 | BY89: =Poblacion!BK83 -> 55 | BZ89: =Poblacion!BL83 -> 86 | CA89: =Poblacion!BM83 -> 73 | CB89: =Poblacion!BN83 -> 94 | CC89: =Poblacion!BO83 -> 74 | CD89: =Poblacion!BP83 -> 79 | CE89: =Poblacion!BQ83 -> 58 | CF89: =Poblacion!BR83 -> 71 | CG89: =Poblacion!BS83 -> 61 | CH89: =Poblacion!BT83 -> 56 | CI89: =Poblacion!BU83 -> 59 | CJ89: =Poblacion!BV83 -> 54 | CK89: =Poblacion!BY83 -> 27 | CL89: =Poblacion!BZ83 -> 31 | CM89: =Poblacion!DP83 -> 277 | CN89: =Poblacion!DQ83 -> 265 | CO89: =Poblacion!DR83 -> 62 | CP89: =Poblacion!DS83 -> 74 | CQ89: =Poblacion!DT83 -> 608 | CR89: =Poblacion!DU83 -> 706 | CS89: =Poblacion!DV83 -> 279 | CT89: =Poblacion!DW83 -> 291
BA90: 05 | BB90: 78 | BC90: P.S. HUANCAHUASI | BD90: =Poblacion!F84 -> 476 | BE90: =+SUM(Poblacion!K84,Poblacion!M84,Poblacion!O84,Poblacion!Q84,Poblacion!S84) -> 26 | BF90: =+SUM(Poblacion!L84,Poblacion!N84,Poblacion!P84,Poblacion!R84,Poblacion!T84) -> 23 | BG90: =SUM(Poblacion!U84,Poblacion!W84,Poblacion!Y84,Poblacion!AA84,Poblacion!AC84) -> 15 | BH90: =SUM(Poblacion!V84,Poblacion!X84,Poblacion!Z84,Poblacion!AB84,Poblacion!AD84) -> 15 | BI90: =+SUM(Poblacion!AE84,Poblacion!AG84,Poblacion!AI84,Poblacion!AK84,Poblacion!AM84) -> 13 | BJ90: =+SUM(Poblacion!AF84,Poblacion!AH84,Poblacion!AJ84,Poblacion!AL84,Poblacion!AN84) -> 13 | BK90: =+SUM(Poblacion!AO84,Poblacion!AQ84,Poblacion!AS84,Poblacion!AU84,Poblacion!AW84) -> 15 | BL90: =+SUM(Poblacion!AP84,Poblacion!AR84,Poblacion!AT84,Poblacion!AV84,Poblacion!AX84) -> 17 | BM90: =Poblacion!AY84 -> 12 | BN90: =Poblacion!AZ84 -> 13 | BO90: =Poblacion!BA84 -> 12 | BP90: =Poblacion!BB84 -> 20 | BQ90: =Poblacion!BC84 -> 12 | BR90: =Poblacion!BD84 -> 14 | BS90: =Poblacion!BE84 -> 13 | BT90: =Poblacion!BF84 -> 15 | BU90: =Poblacion!BG84 -> 16 | BV90: =Poblacion!BH84 -> 15 | BW90: =Poblacion!BI84 -> 15 | BX90: =Poblacion!BJ84 -> 13 | BY90: =Poblacion!BK84 -> 10 | BZ90: =Poblacion!BL84 -> 16 | CA90: =Poblacion!BM84 -> 13 | CB90: =Poblacion!BN84 -> 17 | CC90: =Poblacion!BO84 -> 13 | CD90: =Poblacion!BP84 -> 14 | CE90: =Poblacion!BQ84 -> 10 | CF90: =Poblacion!BR84 -> 13 | CG90: =Poblacion!BS84 -> 11 | CH90: =Poblacion!BT84 -> 10 | CI90: =Poblacion!BU84 -> 11 | CJ90: =Poblacion!BV84 -> 10 | CK90: =Poblacion!BY84 -> 5 | CL90: =Poblacion!BZ84 -> 6 | CM90: =Poblacion!DP84 -> 52 | CN90: =Poblacion!DQ84 -> 49 | CO90: =Poblacion!DR84 -> 11 | CP90: =Poblacion!DS84 -> 14 | CQ90: =Poblacion!DT84 -> 109 | CR90: =Poblacion!DU84 -> 128 | CS90: =Poblacion!DV84 -> 50 | CT90: =Poblacion!DW84 -> 53
BA91: 05 | BB91: 79 | BC91: C.S. CHURIN | BD91: =Poblacion!F85 -> 1750 | BE91: =+SUM(Poblacion!K85,Poblacion!M85,Poblacion!O85,Poblacion!Q85,Poblacion!S85) -> 90 | BF91: =+SUM(Poblacion!L85,Poblacion!N85,Poblacion!P85,Poblacion!R85,Poblacion!T85) -> 85 | BG91: =SUM(Poblacion!U85,Poblacion!W85,Poblacion!Y85,Poblacion!AA85,Poblacion!AC85) -> 53 | BH91: =SUM(Poblacion!V85,Poblacion!X85,Poblacion!Z85,Poblacion!AB85,Poblacion!AD85) -> 47 | BI91: =+SUM(Poblacion!AE85,Poblacion!AG85,Poblacion!AI85,Poblacion!AK85,Poblacion!AM85) -> 47 | BJ91: =+SUM(Poblacion!AF85,Poblacion!AH85,Poblacion!AJ85,Poblacion!AL85,Poblacion!AN85) -> 52 | BK91: =+SUM(Poblacion!AO85,Poblacion!AQ85,Poblacion!AS85,Poblacion!AU85,Poblacion!AW85) -> 56 | BL91: =+SUM(Poblacion!AP85,Poblacion!AR85,Poblacion!AT85,Poblacion!AV85,Poblacion!AX85) -> 60 | BM91: =Poblacion!AY85 -> 46 | BN91: =Poblacion!AZ85 -> 47 | BO91: =Poblacion!BA85 -> 46 | BP91: =Poblacion!BB85 -> 75 | BQ91: =Poblacion!BC85 -> 48 | BR91: =Poblacion!BD85 -> 52 | BS91: =Poblacion!BE85 -> 47 | BT91: =Poblacion!BF85 -> 56 | BU91: =Poblacion!BG85 -> 59 | BV91: =Poblacion!BH85 -> 56 | BW91: =Poblacion!BI85 -> 54 | BX91: =Poblacion!BJ85 -> 47 | BY91: =Poblacion!BK85 -> 37 | BZ91: =Poblacion!BL85 -> 57 | CA91: =Poblacion!BM85 -> 49 | CB91: =Poblacion!BN85 -> 63 | CC91: =Poblacion!BO85 -> 50 | CD91: =Poblacion!BP85 -> 53 | CE91: =Poblacion!BQ85 -> 39 | CF91: =Poblacion!BR85 -> 47 | CG91: =Poblacion!BS85 -> 41 | CH91: =Poblacion!BT85 -> 38 | CI91: =Poblacion!BU85 -> 39 | CJ91: =Poblacion!BV85 -> 36 | CK91: =Poblacion!BY85 -> 18 | CL91: =Poblacion!BZ85 -> 20 | CM91: =Poblacion!DP85 -> 182 | CN91: =Poblacion!DQ85 -> 175 | CO91: =Poblacion!DR85 -> 41 | CP91: =Poblacion!DS85 -> 49 | CQ91: =Poblacion!DT85 -> 409 | CR91: =Poblacion!DU85 -> 473 | CS91: =Poblacion!DV85 -> 187 | CT91: =Poblacion!DW85 -> 194
BA92: 05 | BB92: 80 | BC92: P.S. PACHANGARA | BD92: =Poblacion!F86 -> 396 | BE92: =+SUM(Poblacion!K86,Poblacion!M86,Poblacion!O86,Poblacion!Q86,Poblacion!S86) -> 22 | BF92: =+SUM(Poblacion!L86,Poblacion!N86,Poblacion!P86,Poblacion!R86,Poblacion!T86) -> 20 | BG92: =SUM(Poblacion!U86,Poblacion!W86,Poblacion!Y86,Poblacion!AA86,Poblacion!AC86) -> 12 | BH92: =SUM(Poblacion!V86,Poblacion!X86,Poblacion!Z86,Poblacion!AB86,Poblacion!AD86) -> 11 | BI92: =+SUM(Poblacion!AE86,Poblacion!AG86,Poblacion!AI86,Poblacion!AK86,Poblacion!AM86) -> 11 | BJ92: =+SUM(Poblacion!AF86,Poblacion!AH86,Poblacion!AJ86,Poblacion!AL86,Poblacion!AN86) -> 12 | BK92: =+SUM(Poblacion!AO86,Poblacion!AQ86,Poblacion!AS86,Poblacion!AU86,Poblacion!AW86) -> 13 | BL92: =+SUM(Poblacion!AP86,Poblacion!AR86,Poblacion!AT86,Poblacion!AV86,Poblacion!AX86) -> 13 | BM92: =Poblacion!AY86 -> 10 | BN92: =Poblacion!AZ86 -> 10 | BO92: =Poblacion!BA86 -> 10 | BP92: =Poblacion!BB86 -> 17 | BQ92: =Poblacion!BC86 -> 11 | BR92: =Poblacion!BD86 -> 12 | BS92: =Poblacion!BE86 -> 10 | BT92: =Poblacion!BF86 -> 12 | BU92: =Poblacion!BG86 -> 13 | BV92: =Poblacion!BH86 -> 12 | BW92: =Poblacion!BI86 -> 12 | BX92: =Poblacion!BJ86 -> 11 | BY92: =Poblacion!BK86 -> 8 | BZ92: =Poblacion!BL86 -> 13 | CA92: =Poblacion!BM86 -> 11 | CB92: =Poblacion!BN86 -> 14 | CC92: =Poblacion!BO86 -> 11 | CD92: =Poblacion!BP86 -> 12 | CE92: =Poblacion!BQ86 -> 9 | CF92: =Poblacion!BR86 -> 11 | CG92: =Poblacion!BS86 -> 9 | CH92: =Poblacion!BT86 -> 8 | CI92: =Poblacion!BU86 -> 9 | CJ92: =Poblacion!BV86 -> 8 | CK92: =Poblacion!BY86 -> 4 | CL92: =Poblacion!BZ86 -> 5 | CM92: =Poblacion!DP86 -> 43 | CN92: =Poblacion!DQ86 -> 41 | CO92: =Poblacion!DR86 -> 10 | CP92: =Poblacion!DS86 -> 11 | CQ92: =Poblacion!DT86 -> 90 | CR92: =Poblacion!DU86 -> 105 | CS92: =Poblacion!DV86 -> 42 | CT92: =Poblacion!DW86 -> 44
BB93: 81 | BC93: PROVINCIA HUARAL | BD93: =Poblacion!F87 -> 977 | BE93: =+SUM(Poblacion!K87,Poblacion!M87,Poblacion!O87,Poblacion!Q87,Poblacion!S87) -> 29 | BF93: =+SUM(Poblacion!L87,Poblacion!N87,Poblacion!P87,Poblacion!R87,Poblacion!T87) -> 26 | BG93: =SUM(Poblacion!U87,Poblacion!W87,Poblacion!Y87,Poblacion!AA87,Poblacion!AC87) -> 22 | BH93: =SUM(Poblacion!V87,Poblacion!X87,Poblacion!Z87,Poblacion!AB87,Poblacion!AD87) -> 22 | BI93: =+SUM(Poblacion!AE87,Poblacion!AG87,Poblacion!AI87,Poblacion!AK87,Poblacion!AM87) -> 22 | BJ93: =+SUM(Poblacion!AF87,Poblacion!AH87,Poblacion!AJ87,Poblacion!AL87,Poblacion!AN87) -> 29 | BK93: =+SUM(Poblacion!AO87,Poblacion!AQ87,Poblacion!AS87,Poblacion!AU87,Poblacion!AW87) -> 27 | BL93: =+SUM(Poblacion!AP87,Poblacion!AR87,Poblacion!AT87,Poblacion!AV87,Poblacion!AX87) -> 36 | BM93: =Poblacion!AY87 -> 26 | BN93: =Poblacion!AZ87 -> 32 | BO93: =Poblacion!BA87 -> 27 | BP93: =Poblacion!BB87 -> 33 | BQ93: =Poblacion!BC87 -> 37 | BR93: =Poblacion!BD87 -> 34 | BS93: =Poblacion!BE87 -> 33 | BT93: =Poblacion!BF87 -> 31 | BU93: =Poblacion!BG87 -> 21 | BV93: =Poblacion!BH87 -> 35 | BW93: =Poblacion!BI87 -> 32 | BX93: =Poblacion!BJ87 -> 34 | BY93: =Poblacion!BK87 -> 26 | BZ93: =Poblacion!BL87 -> 32 | CA93: =Poblacion!BM87 -> 31 | CB93: =Poblacion!BN87 -> 32 | CC93: =Poblacion!BO87 -> 31 | CD93: =Poblacion!BP87 -> 36 | CE93: =Poblacion!BQ87 -> 21 | CF93: =Poblacion!BR87 -> 22 | CG93: =Poblacion!BS87 -> 22 | CH93: =Poblacion!BT87 -> 21 | CI93: =Poblacion!BU87 -> 20 | CJ93: =Poblacion!BV87 -> 17 | CK93: =Poblacion!BY87 -> 12 | CL93: =Poblacion!BZ87 -> 26 | CM93: =Poblacion!DP87 -> 68 | CN93: =Poblacion!DQ87 -> 70 | CO93: =Poblacion!DR87 -> 20 | CP93: =Poblacion!DS87 -> 29 | CQ93: =Poblacion!DT87 -> 245 | CR93: =Poblacion!DU87 -> 277 | CS93: =Poblacion!DV87 -> 106 | CT93: =Poblacion!DW87 -> 122
BA94: 03 | BB94: 82 | BC94: IHUARI - P.S. ACOTAMA | BD94: =Poblacion!F88 -> 977 | BE94: =+SUM(Poblacion!K88,Poblacion!M88,Poblacion!O88,Poblacion!Q88,Poblacion!S88) -> 29 | BF94: =+SUM(Poblacion!L88,Poblacion!N88,Poblacion!P88,Poblacion!R88,Poblacion!T88) -> 26 | BG94: =SUM(Poblacion!U88,Poblacion!W88,Poblacion!Y88,Poblacion!AA88,Poblacion!AC88) -> 22 | BH94: =SUM(Poblacion!V88,Poblacion!X88,Poblacion!Z88,Poblacion!AB88,Poblacion!AD88) -> 22 | BI94: =+SUM(Poblacion!AE88,Poblacion!AG88,Poblacion!AI88,Poblacion!AK88,Poblacion!AM88) -> 22 | BJ94: =+SUM(Poblacion!AF88,Poblacion!AH88,Poblacion!AJ88,Poblacion!AL88,Poblacion!AN88) -> 29 | BK94: =+SUM(Poblacion!AO88,Poblacion!AQ88,Poblacion!AS88,Poblacion!AU88,Poblacion!AW88) -> 27 | BL94: =+SUM(Poblacion!AP88,Poblacion!AR88,Poblacion!AT88,Poblacion!AV88,Poblacion!AX88) -> 36 | BM94: =Poblacion!AY88 -> 26 | BN94: =Poblacion!AZ88 -> 32 | BO94: =Poblacion!BA88 -> 27 | BP94: =Poblacion!BB88 -> 33 | BQ94: =Poblacion!BC88 -> 37 | BR94: =Poblacion!BD88 -> 34 | BS94: =Poblacion!BE88 -> 33 | BT94: =Poblacion!BF88 -> 31 | BU94: =Poblacion!BG88 -> 21 | BV94: =Poblacion!BH88 -> 35 | BW94: =Poblacion!BI88 -> 32 | BX94: =Poblacion!BJ88 -> 34 | BY94: =Poblacion!BK88 -> 26 | BZ94: =Poblacion!BL88 -> 32 | CA94: =Poblacion!BM88 -> 31 | CB94: =Poblacion!BN88 -> 32 | CC94: =Poblacion!BO88 -> 31 | CD94: =Poblacion!BP88 -> 36 | CE94: =Poblacion!BQ88 -> 21 | CF94: =Poblacion!BR88 -> 22 | CG94: =Poblacion!BS88 -> 22 | CH94: =Poblacion!BT88 -> 21 | CI94: =Poblacion!BU88 -> 20 | CJ94: =Poblacion!BV88 -> 17 | CK94: =Poblacion!BY88 -> 12 | CL94: =Poblacion!BZ88 -> 26 | CM94: =Poblacion!DP88 -> 68 | CN94: =Poblacion!DQ88 -> 70 | CO94: =Poblacion!DR88 -> 20 | CP94: =Poblacion!DS88 -> 29 | CQ94: =Poblacion!DT88 -> 245 | CR94: =Poblacion!DU88 -> 277 | CS94: =Poblacion!DV88 -> 106 | CT94: =Poblacion!DW88 -> 122
BB95: 83 | BC95: ---
BA96: 01 | BB96: 84 | BC96: MICRORED HUAURA | BD96: =Poblacion!F90 -> 44336 | BE96: =+SUM(Poblacion!K90,Poblacion!M90,Poblacion!O90,Poblacion!Q90,Poblacion!S90) -> 1477 | BF96: =+SUM(Poblacion!L90,Poblacion!N90,Poblacion!P90,Poblacion!R90,Poblacion!T90) -> 1455 | BG96: =SUM(Poblacion!U90,Poblacion!W90,Poblacion!Y90,Poblacion!AA90,Poblacion!AC90) -> 1626 | BH96: =SUM(Poblacion!V90,Poblacion!X90,Poblacion!Z90,Poblacion!AB90,Poblacion!AD90) -> 1537 | BI96: =+SUM(Poblacion!AE90,Poblacion!AG90,Poblacion!AI90,Poblacion!AK90,Poblacion!AM90) -> 1398 | BJ96: =+SUM(Poblacion!AF90,Poblacion!AH90,Poblacion!AJ90,Poblacion!AL90,Poblacion!AN90) -> 1509 | BK96: =+SUM(Poblacion!AO90,Poblacion!AQ90,Poblacion!AS90,Poblacion!AU90,Poblacion!AW90) -> 1470 | BL96: =+SUM(Poblacion!AP90,Poblacion!AR90,Poblacion!AT90,Poblacion!AV90,Poblacion!AX90) -> 1699 | BM96: =Poblacion!AY90 -> 1377 | BN96: =Poblacion!AZ90 -> 1607 | BO96: =Poblacion!BA90 -> 1581 | BP96: =Poblacion!BB90 -> 2084 | BQ96: =Poblacion!BC90 -> 1615 | BR96: =Poblacion!BD90 -> 1836 | BS96: =Poblacion!BE90 -> 1505 | BT96: =Poblacion!BF90 -> 1670 | BU96: =Poblacion!BG90 -> 1544 | BV96: =Poblacion!BH90 -> 1625 | BW96: =Poblacion!BI90 -> 1371 | BX96: =Poblacion!BJ90 -> 1604 | BY96: =Poblacion!BK90 -> 1220 | BZ96: =Poblacion!BL90 -> 1578 | CA96: =Poblacion!BM90 -> 1207 | CB96: =Poblacion!BN90 -> 1345 | CC96: =Poblacion!BO90 -> 1067 | CD96: =Poblacion!BP90 -> 1081 | CE96: =Poblacion!BQ90 -> 752 | CF96: =Poblacion!BR90 -> 830 | CG96: =Poblacion!BS90 -> 655 | CH96: =Poblacion!BT90 -> 691 | CI96: =Poblacion!BU90 -> 522 | CJ96: =Poblacion!BV90 -> 460 | CK96: =Poblacion!BY90 -> 282 | CL96: =Poblacion!BZ90 -> 349 | CM96: =Poblacion!DP90 -> 4236 | CN96: =Poblacion!DQ90 -> 4213 | CO96: =Poblacion!DR90 -> 1141 | CP96: =Poblacion!DS90 -> 1329 | CQ96: =Poblacion!DT90 -> 12014 | CR96: =Poblacion!DU90 -> 14007 | CS96: =Poblacion!DV90 -> 3278 | CT96: =Poblacion!DW90 -> 3411
BA97: 02 | BB97: 85 | BC97: MICRORED HUALMAY | BD97: =Poblacion!F91 -> 165315 | BE97: =+SUM(Poblacion!K91,Poblacion!M91,Poblacion!O91,Poblacion!Q91,Poblacion!S91) -> 4687 | BF97: =+SUM(Poblacion!L91,Poblacion!N91,Poblacion!P91,Poblacion!R91,Poblacion!T91) -> 4563 | BG97: =SUM(Poblacion!U91,Poblacion!W91,Poblacion!Y91,Poblacion!AA91,Poblacion!AC91) -> 5711 | BH97: =SUM(Poblacion!V91,Poblacion!X91,Poblacion!Z91,Poblacion!AB91,Poblacion!AD91) -> 5504 | BI97: =+SUM(Poblacion!AE91,Poblacion!AG91,Poblacion!AI91,Poblacion!AK91,Poblacion!AM91) -> 5012 | BJ97: =+SUM(Poblacion!AF91,Poblacion!AH91,Poblacion!AJ91,Poblacion!AL91,Poblacion!AN91) -> 4893 | BK97: =+SUM(Poblacion!AO91,Poblacion!AQ91,Poblacion!AS91,Poblacion!AU91,Poblacion!AW91) -> 5496 | BL97: =+SUM(Poblacion!AP91,Poblacion!AR91,Poblacion!AT91,Poblacion!AV91,Poblacion!AX91) -> 5586 | BM97: =Poblacion!AY91 -> 5219 | BN97: =Poblacion!AZ91 -> 5498 | BO97: =Poblacion!BA91 -> 5365 | BP97: =Poblacion!BB91 -> 7040 | BQ97: =Poblacion!BC91 -> 5410 | BR97: =Poblacion!BD91 -> 6347 | BS97: =Poblacion!BE91 -> 5711 | BT97: =Poblacion!BF91 -> 5889 | BU97: =Poblacion!BG91 -> 5674 | BV97: =Poblacion!BH91 -> 6032 | BW97: =Poblacion!BI91 -> 5565 | BX97: =Poblacion!BJ91 -> 5911 | BY97: =Poblacion!BK91 -> 5165 | BZ97: =Poblacion!BL91 -> 5621 | CA97: =Poblacion!BM91 -> 4904 | CB97: =Poblacion!BN91 -> 5180 | CC97: =Poblacion!BO91 -> 4317 | CD97: =Poblacion!BP91 -> 4435 | CE97: =Poblacion!BQ91 -> 3344 | CF97: =Poblacion!BR91 -> 3698 | CG97: =Poblacion!BS91 -> 3031 | CH97: =Poblacion!BT91 -> 3389 | CI97: =Poblacion!BU91 -> 2318 | CJ97: =Poblacion!BV91 -> 2449 | CK97: =Poblacion!BY91 -> 1396 | CL97: =Poblacion!BZ91 -> 1698 | CM97: =Poblacion!DP91 -> 14440 | CN97: =Poblacion!DQ91 -> 14015 | CO97: =Poblacion!DR91 -> 4326 | CP97: =Poblacion!DS91 -> 4368 | CQ97: =Poblacion!DT91 -> 45153 | CR97: =Poblacion!DU91 -> 49681 | CS97: =Poblacion!DV91 -> 14406 | CT97: =Poblacion!DW91 -> 15669
BA98: 03 | BB98: 86 | BC98: MICRORED SAYAN | BD98: =Poblacion!F92 -> 32202 | BE98: =+SUM(Poblacion!K92,Poblacion!M92,Poblacion!O92,Poblacion!Q92,Poblacion!S92) -> 1200 | BF98: =+SUM(Poblacion!L92,Poblacion!N92,Poblacion!P92,Poblacion!R92,Poblacion!T92) -> 1156 | BG98: =SUM(Poblacion!U92,Poblacion!W92,Poblacion!Y92,Poblacion!AA92,Poblacion!AC92) -> 1099 | BH98: =SUM(Poblacion!V92,Poblacion!X92,Poblacion!Z92,Poblacion!AB92,Poblacion!AD92) -> 1181 | BI98: =+SUM(Poblacion!AE92,Poblacion!AG92,Poblacion!AI92,Poblacion!AK92,Poblacion!AM92) -> 1008 | BJ98: =+SUM(Poblacion!AF92,Poblacion!AH92,Poblacion!AJ92,Poblacion!AL92,Poblacion!AN92) -> 1077 | BK98: =+SUM(Poblacion!AO92,Poblacion!AQ92,Poblacion!AS92,Poblacion!AU92,Poblacion!AW92) -> 1168 | BL98: =+SUM(Poblacion!AP92,Poblacion!AR92,Poblacion!AT92,Poblacion!AV92,Poblacion!AX92) -> 1349 | BM98: =Poblacion!AY92 -> 1013 | BN98: =Poblacion!AZ92 -> 1293 | BO98: =Poblacion!BA92 -> 1057 | BP98: =Poblacion!BB92 -> 1460 | BQ98: =Poblacion!BC92 -> 1047 | BR98: =Poblacion!BD92 -> 1315 | BS98: =Poblacion!BE92 -> 1102 | BT98: =Poblacion!BF92 -> 1171 | BU98: =Poblacion!BG92 -> 1033 | BV98: =Poblacion!BH92 -> 1179 | BW98: =Poblacion!BI92 -> 1047 | BX98: =Poblacion!BJ92 -> 1101 | BY98: =Poblacion!BK92 -> 858 | BZ98: =Poblacion!BL92 -> 1011 | CA98: =Poblacion!BM92 -> 851 | CB98: =Poblacion!BN92 -> 913 | CC98: =Poblacion!BO92 -> 775 | CD98: =Poblacion!BP92 -> 727 | CE98: =Poblacion!BQ92 -> 568 | CF98: =Poblacion!BR92 -> 620 | CG98: =Poblacion!BS92 -> 526 | CH98: =Poblacion!BT92 -> 472 | CI98: =Poblacion!BU92 -> 392 | CJ98: =Poblacion!BV92 -> 388 | CK98: =Poblacion!BY92 -> 238 | CL98: =Poblacion!BZ92 -> 282 | CM98: =Poblacion!DP92 -> 3107 | CN98: =Poblacion!DQ92 -> 3197 | CO98: =Poblacion!DR92 -> 895 | CP98: =Poblacion!DS92 -> 1048 | CQ98: =Poblacion!DT92 -> 8481 | CR98: =Poblacion!DU92 -> 9961 | CS98: =Poblacion!DV92 -> 2499 | CT98: =Poblacion!DW92 -> 2489
BA99: 04 | BB99: 87 | BC99: MICRORED VEGUETA | BD99: =Poblacion!F93 -> 30644 | BE99: =+SUM(Poblacion!K93,Poblacion!M93,Poblacion!O93,Poblacion!Q93,Poblacion!S93) -> 1368 | BF99: =+SUM(Poblacion!L93,Poblacion!N93,Poblacion!P93,Poblacion!R93,Poblacion!T93) -> 1399 | BG99: =SUM(Poblacion!U93,Poblacion!W93,Poblacion!Y93,Poblacion!AA93,Poblacion!AC93) -> 1210 | BH99: =SUM(Poblacion!V93,Poblacion!X93,Poblacion!Z93,Poblacion!AB93,Poblacion!AD93) -> 1153 | BI99: =+SUM(Poblacion!AE93,Poblacion!AG93,Poblacion!AI93,Poblacion!AK93,Poblacion!AM93) -> 1063 | BJ99: =+SUM(Poblacion!AF93,Poblacion!AH93,Poblacion!AJ93,Poblacion!AL93,Poblacion!AN93) -> 1031 | BK99: =+SUM(Poblacion!AO93,Poblacion!AQ93,Poblacion!AS93,Poblacion!AU93,Poblacion!AW93) -> 1123 | BL99: =+SUM(Poblacion!AP93,Poblacion!AR93,Poblacion!AT93,Poblacion!AV93,Poblacion!AX93) -> 1135 | BM99: =Poblacion!AY93 -> 898 | BN99: =Poblacion!AZ93 -> 1096 | BO99: =Poblacion!BA93 -> 1087 | BP99: =Poblacion!BB93 -> 1470 | BQ99: =Poblacion!BC93 -> 1089 | BR99: =Poblacion!BD93 -> 1364 | BS99: =Poblacion!BE93 -> 1093 | BT99: =Poblacion!BF93 -> 1187 | BU99: =Poblacion!BG93 -> 986 | BV99: =Poblacion!BH93 -> 1091 | BW99: =Poblacion!BI93 -> 886 | BX99: =Poblacion!BJ93 -> 990 | BY99: =Poblacion!BK93 -> 785 | BZ99: =Poblacion!BL93 -> 905 | CA99: =Poblacion!BM93 -> 748 | CB99: =Poblacion!BN93 -> 836 | CC99: =Poblacion!BO93 -> 625 | CD99: =Poblacion!BP93 -> 675 | CE99: =Poblacion!BQ93 -> 488 | CF99: =Poblacion!BR93 -> 496 | CG99: =Poblacion!BS93 -> 434 | CH99: =Poblacion!BT93 -> 414 | CI99: =Poblacion!BU93 -> 349 | CJ99: =Poblacion!BV93 -> 313 | CK99: =Poblacion!BY93 -> 200 | CL99: =Poblacion!BZ93 -> 253 | CM99: =Poblacion!DP93 -> 3453 | CN99: =Poblacion!DQ93 -> 3401 | CO99: =Poblacion!DR93 -> 890 | CP99: =Poblacion!DS93 -> 863 | CQ99: =Poblacion!DT93 -> 7993 | CR99: =Poblacion!DU93 -> 9393 | CS99: =Poblacion!DV93 -> 2096 | CT99: =Poblacion!DW93 -> 2151
BA100: 05 | BB100: 88 | BC100: MICRORED CHURIN - OYON | BD100: =Poblacion!F94 -> 19920 | BE100: =+SUM(Poblacion!K94,Poblacion!M94,Poblacion!O94,Poblacion!Q94,Poblacion!S94) -> 534 | BF100: =+SUM(Poblacion!L94,Poblacion!N94,Poblacion!P94,Poblacion!R94,Poblacion!T94) -> 572 | BG100: =SUM(Poblacion!U94,Poblacion!W94,Poblacion!Y94,Poblacion!AA94,Poblacion!AC94) -> 676 | BH100: =SUM(Poblacion!V94,Poblacion!X94,Poblacion!Z94,Poblacion!AB94,Poblacion!AD94) -> 649 | BI100: =+SUM(Poblacion!AE94,Poblacion!AG94,Poblacion!AI94,Poblacion!AK94,Poblacion!AM94) -> 730 | BJ100: =+SUM(Poblacion!AF94,Poblacion!AH94,Poblacion!AJ94,Poblacion!AL94,Poblacion!AN94) -> 743 | BK100: =+SUM(Poblacion!AO94,Poblacion!AQ94,Poblacion!AS94,Poblacion!AU94,Poblacion!AW94) -> 816 | BL100: =+SUM(Poblacion!AP94,Poblacion!AR94,Poblacion!AT94,Poblacion!AV94,Poblacion!AX94) -> 833 | BM100: =Poblacion!AY94 -> 590 | BN100: =Poblacion!AZ94 -> 657 | BO100: =Poblacion!BA94 -> 590 | BP100: =Poblacion!BB94 -> 758 | BQ100: =Poblacion!BC94 -> 554 | BR100: =Poblacion!BD94 -> 710 | BS100: =Poblacion!BE94 -> 628 | BT100: =Poblacion!BF94 -> 638 | BU100: =Poblacion!BG94 -> 584 | BV100: =Poblacion!BH94 -> 557 | BW100: =Poblacion!BI94 -> 605 | BX100: =Poblacion!BJ94 -> 575 | BY100: =Poblacion!BK94 -> 589 | BZ100: =Poblacion!BL94 -> 669 | CA100: =Poblacion!BM94 -> 561 | CB100: =Poblacion!BN94 -> 585 | CC100: =Poblacion!BO94 -> 551 | CD100: =Poblacion!BP94 -> 514 | CE100: =Poblacion!BQ94 -> 431 | CF100: =Poblacion!BR94 -> 445 | CG100: =Poblacion!BS94 -> 393 | CH100: =Poblacion!BT94 -> 397 | CI100: =Poblacion!BU94 -> 321 | CJ100: =Poblacion!BV94 -> 380 | CK100: =Poblacion!BY94 -> 232 | CL100: =Poblacion!BZ94 -> 336 | CM100: =Poblacion!DP94 -> 1806 | CN100: =Poblacion!DQ94 -> 1826 | CO100: =Poblacion!DR94 -> 667 | CP100: =Poblacion!DS94 -> 693 | CQ100: =Poblacion!DT94 -> 4984 | CR100: =Poblacion!DU94 -> 5427 | CS100: =Poblacion!DV94 -> 1928 | CT100: =Poblacion!DW94 -> 2072
R102: PIRAMIDE POBLACIONAL | W102: DATOS PIRAMIDE | AB102: TOTAL | AG102: ZONA URBANA | AL102: ZONA RURAL | AQ102: DIRECCION DE SALUD | AS102: URBANA % | AT102: RURAL % | AV102: DIRECCION DE SALUD | AW102: URBANA (ABSOLUTO) | AX102: RURAL (ABSOLUTO) | AY102: TOTAL | BB102: N° | BC102: DESCRIPCION | BD102: GRUPOS DE EDADES - PIRAMIDE | CN102: DESCRIPCION | CO102: ZONA URBANA | DY102: DESCRIPCION | DZ102: ZONA RURAL
R103: GRUPO DE EDAD | T103: HOMBRES | U103: MUJERES | W103: GRUPO DE EDAD | Y103: HOMBRES | Z103: MUJERES | AB103: GRUPO DE EDAD | AD103: HOMBRES | AE103: MUJERES | AG103: GRUPO DE EDAD | AI103: HOMBRES | AJ103: MUJERES | AL103: GRUPO DE EDAD | AN103: HOMBRES | AO103: MUJERES | AQ103: PROVINCIA | AV103: PROVINCIA | BA103: Microredes | BD103: TOTAL | BE103: Menor de 5 años | BG103: 5 - 9 | BI103: 10 - 14 | BK103: 15 - 19 | BM103: 20 - 24 | BO103: 25 - 29 | BQ103: 30 - 34 | BS103: 35 - 39 | BU103: 40 - 44 | BW103: 45 - 49 | BY103: 50 - 54 | CA103: 55 - 59 | CC103: 60 - 64 | CE103: 65 - 69 | CG103: 70 - 74 | CI103: 75 - 79 | CK103: 80 +++ | CO103: TOTAL | CP103: Menor de 5 años | CR103: 5 - 9 | CT103: 10 - 14 | CV103: 15 - 19 | CX103: 20 - 24 | CZ103: 25 - 29 | DB103: 30 - 34 | DD103: 35 - 39 | DF103: 40 - 44 | DH103: 45 - 49 | DJ103: 50 - 54 | DL103: 55 - 59 | DN103: 60 - 64 | DP103: 65 - 69 | DR103: 70 - 74 | DT103: 75 - 79 | DV103: 80 +++ | DZ103: TOTAL | EA103: Menor de 5 años | EC103: 5 - 9 | EE103: 10 - 14 | EG103: 15 - 19 | EI103: 20 - 24 | EK103: 25 - 29 | EM103: 30 - 34 | EO103: 35 - 39 | EQ103: 40 - 44 | ES103: 45 - 49 | EU103: 50 - 54 | EW103: 55 - 59 | EY103: 60 - 64 | FA103: 65 - 69 | FC103: 70 - 74 | FE103: 75 - 79 | FG103: 80 +++
R104: MENORES DE 5 AÑOS | T104: =Y104 -> 17 | U104: =-Z104 -> -22 | W104: MENORES DE 5 AÑOS | Y104: =+IF($A$16=1,AD104,IF($A$16=2,AI104,AN104)) -> 17 | Z104: 22 | AB104: MENORES DE 5 AÑOS | AD104: =+LOOKUP($A$15,numeropiramidedistrito,BE105:BE127) -> 17 | AE104: =+LOOKUP($A$15,numeropiramidedistrito,BF105:BF127) -> 22 | AG104: MENORES DE 5 AÑOS | AI104: =+LOOKUP($A$15,numeropiramidedistrito,CP105:CP127) -> 7.65 | AJ104: =+LOOKUP($A$15,numeropiramidedistrito,CQ105:CQ127) -> 9.9 | AL104: MENORES DE 5 AÑOS | AN104: =+LOOKUP($A$15,numeropiramidedistrito,EA105:EA127) -> 9.35 | AO104: =+LOOKUP($A$15,numeropiramidedistrito,EB105:EB127) -> 12.1 | AQ104: DISTRITO | AV104: DISTRITO | BE104: M | BF104: F | BG104: M | BH104: F | BI104: M | BJ104: F | BK104: M | BL104: F | BM104: M | BN104: F | BO104: M | BP104: F | BQ104: M | BR104: F | BS104: M | BT104: F | BU104: M | BV104: F | BW104: M | BX104: F | BY104: M | BZ104: F | CA104: M | CB104: F | CC104: M | CD104: F | CE104: M | CF104: F | CG104: M | CH104: F | CI104: M | CJ104: F | CK104: M | CL104: F | CP104: M | CQ104: F | CR104: M | CS104: F | CT104: M | CU104: F | CV104: M | CW104: F | CX104: M | CY104: F | CZ104: M | DA104: F | DB104: M | DC104: F | DD104: M | DE104: F | DF104: M | DG104: F | DH104: M | DI104: F | DJ104: M | DK104: F | DL104: M | DM104: F | DN104: M | DO104: F | DP104: M | DQ104: F | DR104: M | DS104: F | DT104: M | DU104: F | DV104: M | DW104: F | EA104: M | EB104: F | EC104: M | ED104: F | EE104: M | EF104: F | EG104: M | EH104: F | EI104: M | EJ104: F | EK104: M | EL104: F | EM104: M | EN104: F | EO104: M | EP104: F | EQ104: M | ER104: F | ES104: M | ET104: F | EU104: M | EV104: F | EW104: M | EX104: F | EY104: M | EZ104: F | FA104: M | FB104: F | FC104: M | FD104: F | FE104: M | FF104: F | FG104: M | FH104: F
R105: DE 5 A 9 AÑOS | T105: =Y105 -> 9 | U105: =-Z105 -> -11 | W105: DE 5 A 9 AÑOS | Y105: 9 | Z105: 11 | AB105: DE 5 A 9 AÑOS | AD105: =+LOOKUP($A$15,numeropiramidedistrito,BG105:BG127) -> 9 | AE105: =+LOOKUP($A$15,numeropiramidedistrito,BH105:BH127) -> 11 | AG105: DE 5 A 9 AÑOS | AI105: =+LOOKUP($A$15,numeropiramidedistrito,CR105:CR127) -> 4.05 | AJ105: =+LOOKUP($A$15,numeropiramidedistrito,CS105:CS127) -> 4.95 | AL105: DE 5 A 9 AÑOS | AN105: =+LOOKUP($A$15,numeropiramidedistrito,EC105:EC127) -> 4.95 | AO105: =+LOOKUP($A$15,numeropiramidedistrito,ED105:ED127) -> 6.05 | AQ105: HUAURA - OYON | AV105: HUAURA - OYON | AW105: =+AW106+AW119+AW126 -> 250283.06 | AX105: =+AX106+AX119+AX126 -> 42133.94 | AY105: =Poblacion!F8 -> 292417 | BB105: 1 | BC105: HUAURA - OYON | BD105: =BD13 -> 292417 | BE105: 9266 | BF105: 9145 | BG105: 10322 | BH105: 10024 | BI105: 9211 | BJ105: 9253 | BK105: 10073 | BL105: 10602 | BM105: 9097 | BN105: 10151 | BO105: 9680 | BP105: 12812 | BQ105: 9715 | BR105: 11572 | BS105: 10039 | BT105: 10555 | BU105: 9821 | BV105: 10484 | BW105: 9474 | BX105: 10181 | BY105: 8617 | BZ105: 9784 | CA105: 8271 | CB105: 8859 | CC105: 7335 | CD105: 7432 | CE105: 5583 | CF105: 6089 | CG105: 5039 | CH105: 5363 | CI105: 3902 | CJ105: 3990 | CK105: 2348 | CL105: 2918 | CN105: HUAURA - OYON | CO105: =AW105 -> 250283.06 | CP105: =+CP133*$CO$105 -> 7930.875544 | CQ105: =+CQ133*$CO$105 -> 7827.310258 | CR105: =+CR133*$CO$105 -> 8834.718041 | CS105: 8579.656427 | CT105: 7883.800414 | CU105: 7919.748695 | CV105: 8621.596088 | CW105: 9074.373248 | CX105: 7786.226508 | CY105: 8688.357182 | CZ105: 8285.222886 | DA105: 10965.93756 | DB105: 8315.179787 | DC105: 9904.60736 | DD105: 8592.495099 | DE105: 9034.14541 | DF105: 8405.906402 | DG105: 8973.375696 | DH105: 8108.905127 | DI105: 8714.034526 | DJ105: 7375.38901 | DK105: 8374.237678 | DL105: 7079.243646 | DM105: 7582.519582 | DN105: 6278.110524 | DO105: 6361.133935 | DP105: 4778.553654 | DQ105: 5211.644851 | DR105: 4312.937823 | DS105: 4590.253134 | DT105: 3339.766498 | DU105: 3415.086706 | DV105: 2009.680097 | DW105: 2497.549626 | DY105: HUAURA - OYON | DZ105: =AX105 -> 42133.94 | EA105: =+EA133*$DZ$105 -> 1335.124456 | EB105: =+EB133*$DZ$105 -> 1317.689742 | EC105: 1487.281959 | ED105: 1444.343573 | EE105: 1327.199586 | EF105: 1333.251305 | EG105: 1451.403912 | EH105: 1527.626752 | EI105: 1310.773492 | EJ105: 1462.642818 | EK105: 1394.777114 | EL105: 1846.062436 | EM105: 1399.820213 | EN105: 1667.39264 | EO105: 1446.504901 | EP105: 1520.85459 | EQ105: 1415.093598 | ER105: 1510.624304 | ES105: 1365.094873 | ET105: 1466.965474 | EU105: 1241.61099 | EV105: 1409.762322 | EW105: 1191.756354 | EX105: 1276.480418 | EY105: 1056.889476 | EZ105: 1070.866065 | FA105: 804.4463455 | FB105: 877.3551492 | FC105: 726.0621772 | FD105: 772.7468657 | FE105: 562.2335017 | FF105: 574.9132937 | FG105: 338.3199032 | FH105: 420.4503737
